Workbook

Sheet Índice
D4: Documento realizado pelo Observatório de Luta Contra a Pobreza na Cidade de Lisboa
D5: Dados cedidos pelo Instituto de Emprego e Formação Profissional (IEFP)
B10: Índice
B11: Conceitos
A13: Q.1 | B13: Número de desempregados inscritos nos Centros de Emprego, género 2014
A14: Q.2 | B14: Desempregados inscritos nos Centros de Emprego, género 2014 (%)
A15: Q.3 | B15: Número de desempregados inscritos nos Centros de Emprego, idade 2014
A16: Q.4 | B16: Desempregados inscritos nos Centros de Emprego, idade 2014 (%)
A17: Q.5 | B17: Número de desempregados inscritos nos Centros de Emprego, escolaridade 2014
A18: Q.6 | B18: Desempregados inscritos nos Centros de Emprego, escolaridade, 2014 (%)
A19: Q.7 | B19: Número de Desempregados de Longa Duração inscritos nos Centros de Emprego, género 2014
A20: Q.8 | B20: Desempregados de longa duração inscritos nos Centros de Emprego, 2014 (%)
A21: Q.9 | B21: Número de Desempregados de Longa Duração inscritos nos Centros de Emprego, idade 2014
A22: Q.10 | B22: Desempregados de longa duração inscritos nos Centros de Emprego, idade, 1º trim.-4º trim. 2014
A23: Q.11 | B23: Número de Desempregados de Longa Duração inscritos nos Centros de Emprego, escolaridade, 2014
A24: Q.12 | B24: Desempregados de longa duração inscritos nos Centros de Emprego, escolaridade, 2014
A25: Q.13 | B25: Número de desempregados 1º emprego inscritos Centros de Emprego, género, 2014
A26: Q.14 | B26: Desempregados 1º emprego inscritos nos Centros de Emprego, Género, 2014
A27: Q.15 | B27: Número de desempregados 1º emprego inscritos Centros de Emprego, idade 2014
A28: Q.16 | B28: Desempregados 1º emprego inscritos nos Centros de Emprego, idade, 2014
A29: Q.17 | B29: Número de desempregados 1º emprego inscritos Centros de Emprego, escolaridade 2014
A30: Q.18 | B30: Desempregados 1º emprego inscritos nos Centros de Emprego, escolaridade, 2014

Sheet Conceitos
B4: CONCEITOS
B6: DESEMPREGADO | C6: O candidato inscrito num Centro de Emprego, que não tem trabalho, procura um emprego como trabalhador por conta de outrem, está imediatamente disponível e tem capacidade para o trabalho (IEFP)
B8: DESEMPREGADO À PROCURA DE NOVO EMPREGO | C8: Pessoa que já teve um emprego. Inclui os candidatos que, tendo-se retirado da vida ativa, qualquer que tenha sido o motivo e a duração da interrupção, desejam eingressar. Inclui igualmente os candidatos que tenham trabalhado com familiares, não sendo remunerados e os que trabalharam por conta própria (IEFP)
B10: DESEMPREGADO À PROCURA DO 1º. EMPREGO | C10: Pessoa que nunca teve emprego (IEFP)
B12: DESEMPREGADO DE LONGA DURAÇÃO | C12: Candidato inscrito como Desempregado há um ano ou mais (IEFP)
B14: GRUPO ETÁRIO | C14: Intervalo de idade, em anos, no qual o indivíduo se enquadra, de acordo com o momento de referência
B16: NÍVEL DE ESCOLARIDADE | C16: Nível ou grau de ensino mais elevado que o indivíduo concluiu ou para o qual obteve equivalência, e em relação ao qual tem direito ao respectivo certificado ou diploma.
B18: POPULAÇÃO ACTIVA | C18: Conjunto de indivíduos com idade mínima de 15 anos que, no período de referência, constituíam a mão-de-obra disponível para a produção de bens e serviços que entram no circuito económico (empregados e desempregados).
B20: TAXA DE DESEMPREGO | C20: Taxa que permite definir o peso da população desempregada: (População desempregada/ População activa)*100 (expressa em %
D26: Taxa que permite definir o peso da população desempregada
D29: Conjunto de indivíduos com idade mínima de 15 anos que, no período de referência, constituíam a mão-de-obra disponível para a produção de bens e serviços que entram no circuito económico (empregados e desempregados).

Sheet Desempregados_Genero
A5: Q.1 | B5: Número de desempregados inscritos nos Centros de Emprego, género, 2014
C7: Número de desempregados inscritos nos Centros de Emprego, género
C8: 1º TRIMESTRE | G8: 2º TRIMESTRE | I8: 2 | K8: 3º TRIMESTRE | O8: 4º TRIMESTRE | Q8: 4
B9: Unidade: Nº | C9: Fem | D9: Masc | E9: Total | G9: Fem | H9: Masc | I9: Total | K9: Fem | L9: Masc | M9: Total | O9: Fem | P9: Masc | Q9: Total
B10: Portugal Continental | C10: 334887 | D10: 318614 | E10: 653501 | G10: 301128 | H10: 279551 | I10: 580679 | K10: 308134 | L10: 274706 | M10: 582840 | O10: 291824 | P10: 272488 | Q10: 564312
B11: AML | C11: 80969 | D11: 83543 | E11: 164512 | G11: 74480 | H11: 74285 | I11: 148765 | K11: 75520 | L11: 72250 | M11: 147770 | O11: 69623 | P11: 69234 | Q11: 138857
B12: Distrito de Lisboa | C12: 62345 | D12: 65455 | E12: 127800 | G12: 57157 | H12: 58203 | I12: 115360 | K12: 57235 | L12: 55800 | M12: 113035 | O12: 52248 | P12: 52831 | Q12: 105079
B13: Concelho de Lisboa | C13: 15962 | D13: 17988 | E13: 33950 | G13: =SUM(G14:G38) -> 14735 | H13: =SUM(H14:H38) -> 16433 | I13: =SUM(I14:I38) -> 31168 | K13: 14710 | L13: 15713 | M13: 30423 | O13: 12998 | P13: 14336 | Q13: 27334
B14: Ajuda | C14: 487 | D14: 494 | E14: 981 | G14: 484 | H14: 462 | I14: =SUM(G14:H14) -> 946 | K14: 507 | L14: 458 | M14: 965 | O14: 432 | P14: 415 | Q14: 847
B15: Alcântara | C15: 384 | D15: 468 | E15: 852 | G15: 351 | H15: 420 | I15: =SUM(G15:H15) -> 771 | K15: 353 | L15: 398 | M15: 751 | O15: 300 | P15: 360 | Q15: 660
B16: Alvalade | C16: 748 | D16: 696 | E16: 1444 | G16: 612 | H16: 628 | I16: 1240 | K16: 622 | L16: 600 | M16: 1222 | O16: 562 | P16: 511 | Q16: 1073
B17: Areeiro | C17: 600 | D17: 538 | E17: 1138 | G17: 534 | H17: 481 | I17: 1015 | K17: 520 | L17: 475 | M17: 995 | O17: 452 | P17: 447 | Q17: 899
B18: Arroios | C18: 1045 | D18: 1428 | E18: 2473 | G18: 931 | H18: 1302 | I18: 2233 | K18: 912 | L18: 1245 | M18: 2157 | O18: 805 | P18: 1156 | Q18: 1961
B19: Avenidas Novas | C19: 596 | D19: 538 | E19: 1134 | G19: 532 | H19: 479 | I19: 1011 | K19: 535 | L19: 471 | M19: 1006 | O19: 461 | P19: 431 | Q19: 892
B20: Beato | C20: 478 | D20: 650 | E20: 1128 | G20: 454 | H20: 608 | I20: 1062 | K20: 422 | L20: 564 | M20: 986 | O20: 376 | P20: 508 | Q20: 884
B21: Belém | C21: 273 | D21: 263 | E21: 536 | G21: 254 | H21: 226 | I21: 480 | K21: 261 | L21: 231 | M21: 492 | O21: 215 | P21: 203 | Q21: 418
B22: Benfica | C22: 1122 | D22: 1182 | E22: 2304 | G22: 1094 | H22: 1068 | I22: 2162 | K22: 1031 | L22: 972 | M22: 2003 | O22: 1008 | P22: 952 | Q22: 1960
B23: Campo de Ourique | C23: 562 | D23: 526 | E23: 1088 | G23: 523 | H23: 509 | I23: 1032 | K23: 549 | L23: 488 | M23: 1037 | O23: 495 | P23: 469 | Q23: 964
B24: Campolide | C24: 409 | D24: 506 | E24: 915 | G24: 340 | H24: 417 | I24: 757 | K24: 343 | L24: 430 | M24: 773 | O24: 320 | P24: 422 | Q24: 742
B25: Carnide | C25: 571 | D25: 659 | E25: 1230 | G25: 542 | H25: 630 | I25: 1172 | K25: 554 | L25: 595 | M25: 1149 | O25: 499 | P25: 573 | Q25: 1072
B26: Estrela | C26: 470 | D26: 435 | E26: 905 | G26: 434 | H26: 410 | I26: 844 | K26: 451 | L26: 391 | M26: 842 | O26: 363 | P26: 380 | Q26: 743
B27: Lumiar | C27: 1121 | D27: 1109 | E27: 2230 | G27: 1025 | H27: 1014 | I27: 2039 | K27: 1004 | L27: 971 | M27: 1975 | O27: 928 | P27: 935 | Q27: 1863
B28: Marvila | C28: 1505 | D28: 1830 | E28: 3335 | G28: 1374 | H28: 1667 | I28: 3041 | K28: 1355 | L28: 1583 | M28: 2938 | O28: 1166 | P28: 1359 | Q28: 2525
B29: Misericórdia | C29: 392 | D29: 518 | E29: 910 | G29: 352 | H29: 474 | I29: 826 | K29: 349 | L29: 427 | M29: 776 | O29: 312 | P29: 401 | Q29: 713
B30: Olivais | C30: 105 | D30: 88 | E30: 193 | G30: 174 | H30: 169 | I30: 343 | K30: 230 | L30: 238 | M30: 468 | O30: 269 | P30: 280 | Q30: 549
B31: Parque das Nações | C31: 1242 | D31: 1489 | E31: 2731 | G31: 1100 | H31: 1343 | I31: 2443 | K31: 1048 | L31: 1232 | M31: 2280 | O31: 832 | P31: 995 | Q31: 1827
B32: Penha de França | C32: 895 | D32: 993 | E32: 1888 | G32: 828 | H32: 896 | I32: 1724 | K32: 851 | L32: 867 | M32: 1718 | O32: 718 | P32: 786 | Q32: 1504
B33: Santa Clara | C33: 964 | D33: 1201 | E33: 2165 | G33: 921 | H33: 1128 | I33: 2049 | K33: 948 | L33: 1078 | M33: 2026 | O33: 850 | P33: 967 | Q33: 1817
B34: Santa Maria Maior | C34: 454 | D34: 623 | E34: 1077 | G34: 391 | H34: 555 | I34: 946 | K34: 365 | L34: 498 | M34: 863 | O34: 313 | P34: 451 | Q34: 764
B35: Santo António | C35: 350 | D35: 428 | E35: 778 | G35: 358 | H35: 379 | I35: 737 | K35: 355 | L35: 376 | M35: 731 | O35: 295 | P35: 329 | Q35: 624
B36: São Domingos de Benfica | C36: 707 | D36: 737 | E36: 1444 | G36: 658 | H36: 648 | I36: 1306 | K36: 679 | L36: 625 | M36: 1304 | O36: 627 | P36: 584 | Q36: 1211
B37: São Vicente | C37: 466 | D37: 567 | E37: 1033 | G37: 444 | H37: 505 | I37: 949 | K37: 438 | L37: 477 | M37: 915 | O37: 382 | P37: 407 | Q37: 789
B38: Freg. Não Codificada | C38: 16 | D38: 22 | E38: 38 | G38: 25 | H38: 15 | I38: 40 | K38: 28 | L38: 23 | M38: 51 | O38: 18 | P38: 15 | Q38: 33
B40: Fonte: Instituto de Emprego e Formação Profissional
B41: Notas n.d.: não disponível (para valores =< 5, por razões de confidencialidade dados não disponibilizados pela fonte)

Sheet Desempregados Genero %
A5: Q.2 | B5: Desempregados inscritos nos Centros de Emprego, género, 2014 (%)
C7: Desempregados inscritos nos Centros de Emprego, género
C8: %
C9: 1º TRIMESTRE | F9: 2º TRIMESTRE | I9: 3º TRIMESTRE | L9: 4º TRIMESTRE
B10: Unidade: Nº e % | C10: Fem | E10: Masc | F10: Fem | H10: Masc | I10: Fem | K10: Masc | L10: Fem | N10: Masc
B11: Portugal Continental | C11: =Desempregados_Genero!C10/Desempregados_Genero!E10 -> 0.5124506313 | E11: =Desempregados_Genero!D10/Desempregados_Genero!E10 -> 0.4875493687 | F11: =Desempregados_Genero!G10/Desempregados_Genero!I10 -> 0.5185791117 | H11: =Desempregados_Genero!H10/Desempregados_Genero!I10 -> 0.4814208883 | I11: =Desempregados_Genero!K10/Desempregados_Genero!M10 -> 0.5286768238 | J11: =Desempregados_Genero!L10/Desempregados_Genero!N10 ->  | K11: =Desempregados_Genero!L10/Desempregados_Genero!M10 -> 0.4713231762 | L11: =Desempregados_Genero!O10/Desempregados_Genero!Q10 -> 0.5171323665 | N11: =Desempregados_Genero!P10/Desempregados_Genero!Q10 -> 0.4828676335
B12: AML | C12: =Desempregados_Genero!C11/Desempregados_Genero!E11 -> 0.4921768625 | E12: =Desempregados_Genero!D11/Desempregados_Genero!E11 -> 0.5078231375 | F12: =Desempregados_Genero!G11/Desempregados_Genero!I11 -> 0.5006553961 | H12: =Desempregados_Genero!H11/Desempregados_Genero!I11 -> 0.4993446039 | I12: =Desempregados_Genero!K11/Desempregados_Genero!M11 -> 0.5110644921 | K12: =Desempregados_Genero!L11/Desempregados_Genero!M11 -> 0.4889355079 | L12: =Desempregados_Genero!O11/Desempregados_Genero!Q11 -> 0.5014007216 | N12: =Desempregados_Genero!P11/Desempregados_Genero!Q11 -> 0.4985992784
B13: Distrito de Lisboa | C13: =Desempregados_Genero!C12/Desempregados_Genero!E12 -> 0.4878325509 | E13: =Desempregados_Genero!D12/Desempregados_Genero!E12 -> 0.5121674491 | F13: =Desempregados_Genero!G12/Desempregados_Genero!I12 -> 0.4954663662 | H13: =Desempregados_Genero!H12/Desempregados_Genero!I12 -> 0.5045336338 | I13: =Desempregados_Genero!K12/Desempregados_Genero!M12 -> 0.5063475915 | K13: =Desempregados_Genero!L12/Desempregados_Genero!M12 -> 0.4936524085 | L13: =Desempregados_Genero!O12/Desempregados_Genero!Q12 -> 0.4972258967 | N13: =Desempregados_Genero!P12/Desempregados_Genero!Q12 -> 0.5027741033
B14: Concelho de Lisboa | C14: =Desempregados_Genero!C13/Desempregados_Genero!E13 -> 0.4701620029 | E14: =Desempregados_Genero!D13/Desempregados_Genero!E13 -> 0.5298379971 | F14: =Desempregados_Genero!G13/Desempregados_Genero!I13 -> 0.4727605236 | H14: =Desempregados_Genero!H13/Desempregados_Genero!I13 -> 0.5272394764 | I14: =Desempregados_Genero!K13/Desempregados_Genero!M13 -> 0.4835157611 | K14: =Desempregados_Genero!L13/Desempregados_Genero!M13 -> 0.5164842389 | L14: =Desempregados_Genero!O13/Desempregados_Genero!Q13 -> 0.4755249872 | N14: =Desempregados_Genero!P13/Desempregados_Genero!Q13 -> 0.5244750128
B15: Ajuda | C15: =Desempregados_Genero!C14/Desempregados_Genero!E14 -> 0.496432212 | E15: =Desempregados_Genero!D14/Desempregados_Genero!E14 -> 0.503567788 | F15: =Desempregados_Genero!G14/Desempregados_Genero!I14 -> 0.511627907 | H15: =Desempregados_Genero!H14/Desempregados_Genero!I14 -> 0.488372093 | I15: =Desempregados_Genero!K14/Desempregados_Genero!M14 -> 0.525388601 | K15: =Desempregados_Genero!L14/Desempregados_Genero!M14 -> 0.474611399 | L15: =Desempregados_Genero!O14/Desempregados_Genero!Q14 -> 0.5100354191 | N15: =Desempregados_Genero!P14/Desempregados_Genero!Q14 -> 0.4899645809
B16: Alcântara | C16: =Desempregados_Genero!C15/Desempregados_Genero!E15 -> 0.4507042254 | E16: =Desempregados_Genero!D15/Desempregados_Genero!E15 -> 0.5492957746 | F16: =Desempregados_Genero!G15/Desempregados_Genero!I15 -> 0.4552529183 | H16: =Desempregados_Genero!H15/Desempregados_Genero!I15 -> 0.5447470817 | I16: =Desempregados_Genero!K15/Desempregados_Genero!M15 -> 0.4700399467 | K16: =Desempregados_Genero!L15/Desempregados_Genero!M15 -> 0.5299600533 | L16: =Desempregados_Genero!O15/Desempregados_Genero!Q15 -> 0.4545454545 | N16: =Desempregados_Genero!P15/Desempregados_Genero!Q15 -> 0.5454545455
B17: Alvalade | C17: =Desempregados_Genero!C16/Desempregados_Genero!E16 -> 0.5180055402 | E17: =Desempregados_Genero!D16/Desempregados_Genero!E16 -> 0.4819944598 | F17: =Desempregados_Genero!G16/Desempregados_Genero!I16 -> 0.4935483871 | H17: =Desempregados_Genero!H16/Desempregados_Genero!I16 -> 0.5064516129 | I17: =Desempregados_Genero!K16/Desempregados_Genero!M16 -> 0.5090016367 | K17: =Desempregados_Genero!L16/Desempregados_Genero!M16 -> 0.4909983633 | L17: =Desempregados_Genero!O16/Desempregados_Genero!Q16 -> 0.5237651445 | N17: =Desempregados_Genero!P16/Desempregados_Genero!Q16 -> 0.4762348555
B18: Areeiro | C18: =Desempregados_Genero!C17/Desempregados_Genero!E17 -> 0.5272407733 | E18: =Desempregados_Genero!D17/Desempregados_Genero!E17 -> 0.4727592267 | F18: =Desempregados_Genero!G17/Desempregados_Genero!I17 -> 0.5261083744 | H18: =Desempregados_Genero!H17/Desempregados_Genero!I17 -> 0.4738916256 | I18: =Desempregados_Genero!K17/Desempregados_Genero!M17 -> 0.5226130653 | K18: =Desempregados_Genero!L17/Desempregados_Genero!M17 -> 0.4773869347 | L18: =Desempregados_Genero!O17/Desempregados_Genero!Q17 -> 0.5027808676 | N18: =Desempregados_Genero!P17/Desempregados_Genero!Q17 -> 0.4972191324
B19: Arroios | C19: =Desempregados_Genero!C18/Desempregados_Genero!E18 -> 0.4225636878 | E19: =Desempregados_Genero!D18/Desempregados_Genero!E18 -> 0.5774363122 | F19: =Desempregados_Genero!G18/Desempregados_Genero!I18 -> 0.4169278997 | H19: =Desempregados_Genero!H18/Desempregados_Genero!I18 -> 0.5830721003 | I19: =Desempregados_Genero!K18/Desempregados_Genero!M18 -> 0.4228094576 | K19: =Desempregados_Genero!L18/Desempregados_Genero!M18 -> 0.5771905424 | L19: =Desempregados_Genero!O18/Desempregados_Genero!Q18 -> 0.4105048445 | N19: =Desempregados_Genero!P18/Desempregados_Genero!Q18 -> 0.5894951555
B20: Avenidas Novas | C20: =Desempregados_Genero!C19/Desempregados_Genero!E19 -> 0.5255731922 | E20: =Desempregados_Genero!D19/Desempregados_Genero!E19 -> 0.4744268078 | F20: =Desempregados_Genero!G19/Desempregados_Genero!I19 -> 0.5262116716 | H20: =Desempregados_Genero!H19/Desempregados_Genero!I19 -> 0.4737883284 | I20: =Desempregados_Genero!K19/Desempregados_Genero!M19 -> 0.5318091451 | K20: =Desempregados_Genero!L19/Desempregados_Genero!M19 -> 0.4681908549 | L20: =Desempregados_Genero!O19/Desempregados_Genero!Q19 -> 0.5168161435 | N20: =Desempregados_Genero!P19/Desempregados_Genero!Q19 -> 0.4831838565
B21: Beato | C21: =Desempregados_Genero!C20/Desempregados_Genero!E20 -> 0.4237588652 | E21: =Desempregados_Genero!D20/Desempregados_Genero!E20 -> 0.5762411348 | F21: =Desempregados_Genero!G20/Desempregados_Genero!I20 -> 0.4274952919 | H21: =Desempregados_Genero!H20/Desempregados_Genero!I20 -> 0.5725047081 | I21: =Desempregados_Genero!K20/Desempregados_Genero!M20 -> 0.4279918864 | K21: =Desempregados_Genero!L20/Desempregados_Genero!M20 -> 0.5720081136 | L21: =Desempregados_Genero!O20/Desempregados_Genero!Q20 -> 0.4253393665 | N21: =Desempregados_Genero!P20/Desempregados_Genero!Q20 -> 0.5746606335
B22: Belém | C22: =Desempregados_Genero!C21/Desempregados_Genero!E21 -> 0.5093283582 | E22: =Desempregados_Genero!D21/Desempregados_Genero!E21 -> 0.4906716418 | F22: =Desempregados_Genero!G21/Desempregados_Genero!I21 -> 0.5291666667 | H22: =Desempregados_Genero!H21/Desempregados_Genero!I21 -> 0.4708333333 | I22: =Desempregados_Genero!K21/Desempregados_Genero!M21 -> 0.5304878049 | K22: =Desempregados_Genero!L21/Desempregados_Genero!M21 -> 0.4695121951 | L22: =Desempregados_Genero!O21/Desempregados_Genero!Q21 -> 0.514354067 | N22: =Desempregados_Genero!P21/Desempregados_Genero!Q21 -> 0.485645933
B23: Benfica | C23: =Desempregados_Genero!C22/Desempregados_Genero!E22 -> 0.4869791667 | E23: =Desempregados_Genero!D22/Desempregados_Genero!E22 -> 0.5130208333 | F23: =Desempregados_Genero!G22/Desempregados_Genero!I22 -> 0.506012951 | H23: =Desempregados_Genero!H22/Desempregados_Genero!I22 -> 0.493987049 | I23: =Desempregados_Genero!K22/Desempregados_Genero!M22 -> 0.5147279081 | K23: =Desempregados_Genero!L22/Desempregados_Genero!M22 -> 0.4852720919 | L23: =Desempregados_Genero!O22/Desempregados_Genero!Q22 -> 0.5142857143 | N23: =Desempregados_Genero!P22/Desempregados_Genero!Q22 -> 0.4857142857
B24: Campo de Ourique | C24: =Desempregados_Genero!C23/Desempregados_Genero!E23 -> 0.5165441176 | E24: =Desempregados_Genero!D23/Desempregados_Genero!E23 -> 0.4834558824 | F24: =Desempregados_Genero!G23/Desempregados_Genero!I23 -> 0.5067829457 | H24: =Desempregados_Genero!H23/Desempregados_Genero!I23 -> 0.4932170543 | I24: =Desempregados_Genero!K23/Desempregados_Genero!M23 -> 0.5294117647 | K24: =Desempregados_Genero!L23/Desempregados_Genero!M23 -> 0.4705882353 | L24: =Desempregados_Genero!O23/Desempregados_Genero!Q23 -> 0.5134854772 | N24: =Desempregados_Genero!P23/Desempregados_Genero!Q23 -> 0.4865145228
B25: Campolide | C25: =Desempregados_Genero!C24/Desempregados_Genero!E24 -> 0.4469945355 | E25: =Desempregados_Genero!D24/Desempregados_Genero!E24 -> 0.5530054645 | F25: =Desempregados_Genero!G24/Desempregados_Genero!I24 -> 0.4491413474 | H25: =Desempregados_Genero!H24/Desempregados_Genero!I24 -> 0.5508586526 | I25: =Desempregados_Genero!K24/Desempregados_Genero!M24 -> 0.4437257439 | K25: =Desempregados_Genero!L24/Desempregados_Genero!M24 -> 0.5562742561 | L25: =Desempregados_Genero!O24/Desempregados_Genero!Q24 -> 0.4312668464 | N25: =Desempregados_Genero!P24/Desempregados_Genero!Q24 -> 0.5687331536
B26: Carnide | C26: =Desempregados_Genero!C25/Desempregados_Genero!E25 -> 0.4642276423 | E26: =Desempregados_Genero!D25/Desempregados_Genero!E25 -> 0.5357723577 | F26: =Desempregados_Genero!G25/Desempregados_Genero!I25 -> 0.4624573379 | H26: =Desempregados_Genero!H25/Desempregados_Genero!I25 -> 0.5375426621 | I26: =Desempregados_Genero!K25/Desempregados_Genero!M25 -> 0.4821583986 | K26: =Desempregados_Genero!L25/Desempregados_Genero!M25 -> 0.5178416014 | L26: =Desempregados_Genero!O25/Desempregados_Genero!Q25 -> 0.4654850746 | N26: =Desempregados_Genero!P25/Desempregados_Genero!Q25 -> 0.5345149254
B27: Estrela | C27: =Desempregados_Genero!C26/Desempregados_Genero!E26 -> 0.5193370166 | E27: =Desempregados_Genero!D26/Desempregados_Genero!E26 -> 0.4806629834 | F27: =Desempregados_Genero!G26/Desempregados_Genero!I26 -> 0.5142180095 | H27: =Desempregados_Genero!H26/Desempregados_Genero!I26 -> 0.4857819905 | I27: =Desempregados_Genero!K26/Desempregados_Genero!M26 -> 0.5356294537 | K27: =Desempregados_Genero!L26/Desempregados_Genero!M26 -> 0.4643705463 | L27: =Desempregados_Genero!O26/Desempregados_Genero!Q26 -> 0.4885598923 | N27: =Desempregados_Genero!P26/Desempregados_Genero!Q26 -> 0.5114401077
B28: Lumiar | C28: =Desempregados_Genero!C27/Desempregados_Genero!E27 -> 0.502690583 | E28: =Desempregados_Genero!D27/Desempregados_Genero!E27 -> 0.497309417 | F28: =Desempregados_Genero!G27/Desempregados_Genero!I27 -> 0.5026974007 | H28: =Desempregados_Genero!H27/Desempregados_Genero!I27 -> 0.4973025993 | I28: =Desempregados_Genero!K27/Desempregados_Genero!M27 -> 0.5083544304 | K28: =Desempregados_Genero!L27/Desempregados_Genero!M27 -> 0.4916455696 | L28: =Desempregados_Genero!O27/Desempregados_Genero!Q27 -> 0.4981213097 | N28: =Desempregados_Genero!P27/Desempregados_Genero!Q27 -> 0.5018786903
B29: Marvila | C29: =Desempregados_Genero!C28/Desempregados_Genero!E28 -> 0.4512743628 | E29: =Desempregados_Genero!D28/Desempregados_Genero!E28 -> 0.5487256372 | F29: =Desempregados_Genero!G28/Desempregados_Genero!I28 -> 0.4518250575 | H29: =Desempregados_Genero!H28/Desempregados_Genero!I28 -> 0.5481749425 | I29: =Desempregados_Genero!K28/Desempregados_Genero!M28 -> 0.4611980939 | K29: =Desempregados_Genero!L28/Desempregados_Genero!M28 -> 0.5388019061 | L29: =Desempregados_Genero!O28/Desempregados_Genero!Q28 -> 0.4617821782 | N29: =Desempregados_Genero!P28/Desempregados_Genero!Q28 -> 0.5382178218
B30: Misericórdia | C30: =Desempregados_Genero!C29/Desempregados_Genero!E29 -> 0.4307692308 | E30: =Desempregados_Genero!D29/Desempregados_Genero!E29 -> 0.5692307692 | F30: =Desempregados_Genero!G29/Desempregados_Genero!I29 -> 0.4261501211 | H30: =Desempregados_Genero!H29/Desempregados_Genero!I29 -> 0.5738498789 | I30: =Desempregados_Genero!K29/Desempregados_Genero!M29 -> 0.449742268 | K30: =Desempregados_Genero!L29/Desempregados_Genero!M29 -> 0.550257732 | L30: =Desempregados_Genero!O29/Desempregados_Genero!Q29 -> 0.4375876578 | N30: =Desempregados_Genero!P29/Desempregados_Genero!Q29 -> 0.5624123422
B31: Olivais | C31: =Desempregados_Genero!C30/Desempregados_Genero!E30 -> 0.5440414508 | E31: =Desempregados_Genero!D30/Desempregados_Genero!E30 -> 0.4559585492 | F31: =Desempregados_Genero!G30/Desempregados_Genero!I30 -> 0.5072886297 | H31: =Desempregados_Genero!H30/Desempregados_Genero!I30 -> 0.4927113703 | I31: =Desempregados_Genero!K30/Desempregados_Genero!M30 -> 0.4914529915 | K31: =Desempregados_Genero!L30/Desempregados_Genero!M30 -> 0.5085470085 | L31: =Desempregados_Genero!O30/Desempregados_Genero!Q30 -> 0.4899817851 | N31: =Desempregados_Genero!P30/Desempregados_Genero!Q30 -> 0.5100182149
B32: Parque das Nações | C32: =Desempregados_Genero!C31/Desempregados_Genero!E31 -> 0.4547784694 | E32: =Desempregados_Genero!D31/Desempregados_Genero!E31 -> 0.5452215306 | F32: =Desempregados_Genero!G31/Desempregados_Genero!I31 -> 0.4502660663 | H32: =Desempregados_Genero!H31/Desempregados_Genero!I31 -> 0.5497339337 | I32: =Desempregados_Genero!K31/Desempregados_Genero!M31 -> 0.4596491228 | K32: =Desempregados_Genero!L31/Desempregados_Genero!M31 -> 0.5403508772 | L32: =Desempregados_Genero!O31/Desempregados_Genero!Q31 -> 0.4553913519 | N32: =Desempregados_Genero!P31/Desempregados_Genero!Q31 -> 0.5446086481
B33: Penha de França | C33: =Desempregados_Genero!C32/Desempregados_Genero!E32 -> 0.4740466102 | E33: =Desempregados_Genero!D32/Desempregados_Genero!E32 -> 0.5259533898 | F33: =Desempregados_Genero!G32/Desempregados_Genero!I32 -> 0.4802784223 | H33: =Desempregados_Genero!H32/Desempregados_Genero!I32 -> 0.5197215777 | I33: =Desempregados_Genero!K32/Desempregados_Genero!M32 -> 0.4953434226 | K33: =Desempregados_Genero!L32/Desempregados_Genero!M32 -> 0.5046565774 | L33: =Desempregados_Genero!O32/Desempregados_Genero!Q32 -> 0.477393617 | N33: =Desempregados_Genero!P32/Desempregados_Genero!Q32 -> 0.522606383
B34: Santa Clara | C34: =Desempregados_Genero!C33/Desempregados_Genero!E33 -> 0.4452655889 | E34: =Desempregados_Genero!D33/Desempregados_Genero!E33 -> 0.5547344111 | F34: =Desempregados_Genero!G33/Desempregados_Genero!I33 -> 0.4494875549 | H34: =Desempregados_Genero!H33/Desempregados_Genero!I33 -> 0.5505124451 | I34: =Desempregados_Genero!K33/Desempregados_Genero!M33 -> 0.467917078 | K34: =Desempregados_Genero!L33/Desempregados_Genero!M33 -> 0.532082922 | L34: =Desempregados_Genero!O33/Desempregados_Genero!Q33 -> 0.4678040726 | N34: =Desempregados_Genero!P33/Desempregados_Genero!Q33 -> 0.5321959274
B35: Santa Maria Maior | C35: =Desempregados_Genero!C34/Desempregados_Genero!E34 -> 0.4215413185 | E35: =Desempregados_Genero!D34/Desempregados_Genero!E34 -> 0.5784586815 | F35: =Desempregados_Genero!G34/Desempregados_Genero!I34 -> 0.4133192389 | H35: =Desempregados_Genero!H34/Desempregados_Genero!I34 -> 0.5866807611 | I35: =Desempregados_Genero!K34/Desempregados_Genero!M34 -> 0.4229432213 | K35: =Desempregados_Genero!L34/Desempregados_Genero!M34 -> 0.5770567787 | L35: =Desempregados_Genero!O34/Desempregados_Genero!Q34 -> 0.4096858639 | N35: =Desempregados_Genero!P34/Desempregados_Genero!Q34 -> 0.5903141361
B36: Santo António | C36: =Desempregados_Genero!C35/Desempregados_Genero!E35 -> 0.4498714653 | E36: =Desempregados_Genero!D35/Desempregados_Genero!E35 -> 0.5501285347 | F36: =Desempregados_Genero!G35/Desempregados_Genero!I35 -> 0.4857530529 | H36: =Desempregados_Genero!H35/Desempregados_Genero!I35 -> 0.5142469471 | I36: =Desempregados_Genero!K35/Desempregados_Genero!M35 -> 0.4856361149 | K36: =Desempregados_Genero!L35/Desempregados_Genero!M35 -> 0.5143638851 | L36: =Desempregados_Genero!O35/Desempregados_Genero!Q35 -> 0.4727564103 | N36: =Desempregados_Genero!P35/Desempregados_Genero!Q35 -> 0.5272435897
B37: São Domingos de Benfica | C37: =Desempregados_Genero!C36/Desempregados_Genero!E36 -> 0.4896121884 | E37: =Desempregados_Genero!D36/Desempregados_Genero!E36 -> 0.5103878116 | F37: =Desempregados_Genero!G36/Desempregados_Genero!I36 -> 0.5038284839 | H37: =Desempregados_Genero!H36/Desempregados_Genero!I36 -> 0.4961715161 | I37: =Desempregados_Genero!K36/Desempregados_Genero!M36 -> 0.5207055215 | K37: =Desempregados_Genero!L36/Desempregados_Genero!M36 -> 0.4792944785 | L37: =Desempregados_Genero!O36/Desempregados_Genero!Q36 -> 0.5177539224 | N37: =Desempregados_Genero!P36/Desempregados_Genero!Q36 -> 0.4822460776
B38: São Vicente | C38: =Desempregados_Genero!C37/Desempregados_Genero!E37 -> 0.4511132623 | E38: =Desempregados_Genero!D37/Desempregados_Genero!E37 -> 0.5488867377 | F38: =Desempregados_Genero!G37/Desempregados_Genero!I37 -> 0.4678609062 | H38: =Desempregados_Genero!H37/Desempregados_Genero!I37 -> 0.5321390938 | I38: =Desempregados_Genero!K37/Desempregados_Genero!M37 -> 0.4786885246 | K38: =Desempregados_Genero!L37/Desempregados_Genero!M37 -> 0.5213114754 | L38: =Desempregados_Genero!O37/Desempregados_Genero!Q37 -> 0.484157161 | N38: =Desempregados_Genero!P37/Desempregados_Genero!Q37 -> 0.515842839
B39: Freg. Não Codificada | C39: =Desempregados_Genero!C38/Desempregados_Genero!E38 -> 0.4210526316 | E39: =Desempregados_Genero!D38/Desempregados_Genero!E38 -> 0.5789473684 | F39: =Desempregados_Genero!G38/Desempregados_Genero!I38 -> 0.625 | H39: =Desempregados_Genero!H38/Desempregados_Genero!I38 -> 0.375 | I39: =Desempregados_Genero!K38/Desempregados_Genero!M38 -> 0.5490196078 | K39: =Desempregados_Genero!L38/Desempregados_Genero!M38 -> 0.4509803922 | L39: =Desempregados_Genero!O38/Desempregados_Genero!Q38 -> 0.5454545455 | N39: =Desempregados_Genero!P38/Desempregados_Genero!Q38 -> 0.4545454545
B41: Fonte: Instituto de Emprego e Formação Profissional
B42: Cálculos: OLCPL

Sheet Desempregados_idades
A5: Q.3 | B5: Número de desempregados inscritos nos Centros de Emprego, idade, 2014
C7: Número de desempregados inscritos nos Centros de Emprego, idade
C8: 1º TRIMESTRE | I8: 2º TRIMESTRE | O8: 3º TRIMESTRE | U8: 4º TRIMESTRE
B9: Unidade: Nº | C9: < 25 Anos | D9: 25 - 34 Anos | E9: 35 - 54 Anos | F9: 55 Anos e + | G9: Total | I9: < 25 Anos | J9: 25 - 34 Anos | K9: 35 - 54 Anos | L9: 55 Anos e + | M9: Total | O9: < 25 Anos | P9: 25 - 34 Anos | Q9: 35 - 54 Anos | R9: 55 Anos e + | S9: Total | U9: < 25 Anos | V9: 25 - 34 Anos | W9: 35 - 54 Anos | X9: 55 Anos e + | Y9: Total
B10: Portugal Continental | C10: 85278 | D10: 137023 | E10: 303164 | F10: 128036 | G10: 653501 | I10: 65322 | J10: 113944 | K10: 277257 | L10: 124156 | M10: 580679 | O10: 72402 | P10: 114894 | Q10: 272320 | R10: 123224 | S10: 582840 | U10: 68515 | V10: 109838 | W10: 262667 | X10: 123292 | Y10: 564312
B11: AML | C11: 18536 | D11: 35152 | E11: 79642 | F11: 31182 | G11: 164512 | I11: 14128 | J11: 29438 | K11: 74477 | L11: 30722 | M11: 148765 | O11: 15172 | P11: 29287 | Q11: 72466 | R11: 30845 | S11: 147770 | U11: 13500 | V11: 27657 | W11: 67712 | X11: 29988 | Y11: 138857
B12: Distrito de Lisboa | C12: 14458 | D12: 27293 | E12: 61727 | F12: 24322 | G12: 127800 | I12: 10927 | J12: 22713 | K12: 57681 | L12: 24039 | M12: 115360 | O12: 11550 | P12: 22221 | Q12: 55377 | R12: 23887 | S12: 113035 | U12: 10228 | V12: 20710 | W12: 51184 | X12: 22957 | Y12: 105079
B13: Concelho de Lisboa | C13: 3824 | D13: 7838 | E13: 15932 | F13: 6356 | G13: 33950 | I13: =SUM(I14:I38) -> 3057 | J13: =SUM(J14:J38) -> 6525 | K13: 15273 | L13: 6313 | M13: 31168 | O13: 3073 | P13: 6388 | Q13: 14683 | R13: 6279 | S13: 30423 | U13: 2469 | V13: 5735 | W13: 13026 | X13: 6104 | Y13: 27334
B14: Ajuda | C14: 133 | D14: 229 | E14: 468 | F14: 151 | G14: 981 | I14: 121 | J14: 200 | K14: 471 | L14: 154 | M14: 946 | O14: 114 | P14: 213 | Q14: 476 | R14: 162 | S14: 965 | U14: 85 | V14: 184 | W14: 426 | X14: 152 | Y14: 847
B15: Alcântara | C15: 96 | D15: 189 | E15: 427 | F15: 140 | G15: 852 | I15: 70 | J15: 159 | K15: 403 | L15: 139 | M15: 771 | O15: 71 | P15: 155 | Q15: 388 | R15: 137 | S15: 751 | U15: 55 | V15: 150 | W15: 315 | X15: 140 | Y15: 660
B16: Alvalade | C16: 152 | D16: 320 | E16: 711 | F16: 261 | G16: 1444 | I16: 95 | J16: 249 | K16: 642 | L16: 254 | M16: 1240 | O16: 111 | P16: 244 | Q16: 614 | R16: 253 | S16: 1222 | U16: 99 | V16: 229 | W16: 511 | X16: 234 | Y16: 1073
B17: Areeiro | C17: 119 | D17: 260 | E17: 510 | F17: 249 | G17: 1138 | I17: 95 | J17: 215 | K17: 453 | L17: 252 | M17: 1015 | O17: 95 | P17: 230 | Q17: 445 | R17: 225 | S17: 995 | U17: 82 | V17: 216 | W17: 372 | X17: 229 | Y17: 899
B18: Arroios | C18: 229 | D18: 577 | E18: 1220 | F18: 447 | G18: 2473 | I18: 161 | J18: 478 | K18: 1147 | L18: 447 | M18: 2233 | O18: 162 | P18: 464 | Q18: 1077 | R18: 454 | S18: 2157 | U18: 133 | V18: 404 | W18: 968 | X18: 456 | Y18: 1961
B19: Avenidas Novas | C19: 132 | D19: 295 | E19: 481 | F19: 226 | G19: 1134 | I19: 100 | J19: 214 | K19: 469 | L19: 228 | M19: 1011 | O19: 115 | P19: 222 | Q19: 451 | R19: 218 | S19: 1006 | U19: 88 | V19: 200 | W19: 377 | X19: 227 | Y19: 892
B20: Beato | C20: 142 | D20: 233 | E20: 533 | F20: 220 | G20: 1128 | I20: 114 | J20: 211 | K20: 509 | L20: 228 | M20: 1062 | O20: 92 | P20: 178 | Q20: 497 | R20: 219 | S20: 986 | U20: 79 | V20: 151 | W20: 453 | X20: 201 | Y20: 884
B21: Belém | C21: 48 | D21: 106 | E21: 290 | F21: 92 | G21: 536 | I21: 40 | J21: 84 | K21: 262 | L21: 94 | M21: 480 | O21: 43 | P21: 99 | Q21: 255 | R21: 95 | S21: 492 | U21: 31 | V21: 90 | W21: 209 | X21: 88 | Y21: 418
B22: Benfica | C22: 236 | D22: 526 | E22: 1111 | F22: 431 | G22: 2304 | I22: 193 | J22: 454 | K22: 1081 | L22: 434 | M22: 2162 | O22: 206 | P22: 416 | Q22: 967 | R22: 414 | S22: 2003 | U22: 179 | V22: 407 | W22: 950 | X22: 424 | Y22: 1960
B23: Campo de Ourique | C23: 106 | D23: 236 | E23: 517 | F23: 229 | G23: 1088 | I23: 89 | J23: 218 | K23: 487 | L23: 238 | M23: 1032 | O23: 80 | P23: 207 | Q23: 501 | R23: 249 | S23: 1037 | U23: 53 | V23: 186 | W23: 473 | X23: 252 | Y23: 964
B24: Campolide | C24: 98 | D24: 197 | E24: 450 | F24: 170 | G24: 915 | I24: 79 | J24: 123 | K24: 390 | L24: 165 | M24: 757 | O24: 74 | P24: 146 | Q24: 389 | R24: 164 | S24: 773 | U24: 56 | V24: 121 | W24: 388 | X24: 177 | Y24: 742
B25: Carnide | C25: 179 | D25: 280 | E25: 532 | F25: 239 | G25: 1230 | I25: 160 | J25: 243 | K25: 537 | L25: 232 | M25: 1172 | O25: 150 | P25: 250 | Q25: 511 | R25: 238 | S25: 1149 | U25: 129 | V25: 212 | W25: 492 | X25: 239 | Y25: 1072
B26: Estrela | C26: 79 | D26: 178 | E26: 444 | F26: 204 | G26: 905 | I26: 66 | J26: 141 | K26: 443 | L26: 194 | M26: 844 | O26: 77 | P26: 155 | Q26: 414 | R26: 196 | S26: 842 | U26: 59 | V26: 148 | W26: 342 | X26: 194 | Y26: 743
B27: Lumiar | C27: 255 | D27: 577 | E27: 1008 | F27: 390 | G27: 2230 | I27: 201 | J27: 483 | K27: 966 | L27: 389 | M27: 2039 | O27: 212 | P27: 413 | Q27: 976 | R27: 374 | S27: 1975 | U27: 171 | V27: 420 | W27: 900 | X27: 372 | Y27: 1863
B28: Marvila | C28: 479 | D28: 727 | E28: 1493 | F28: 636 | G28: 3335 | I28: 361 | J28: 633 | K28: 1425 | L28: 622 | M28: 3041 | O28: 373 | P28: 603 | Q28: 1317 | R28: 645 | S28: 2938 | U28: 263 | V28: 510 | W28: 1139 | X28: 613 | Y28: 2525
B29: Misericórdia | C29: 91 | D29: 228 | E29: 417 | F29: 174 | G29: 910 | I29: 69 | J29: 167 | K29: 416 | L29: 174 | M29: 826 | O29: 49 | P29: 172 | Q29: 385 | R29: 170 | S29: 776 | U29: 43 | V29: 160 | W29: 345 | X29: 165 | Y29: 713
B30: Olivais | C30: 48 | D30: 46 | E30: 81 | F30: 18 | G30: 193 | I30: 80 | J30: 81 | K30: 134 | L30: 48 | M30: 343 | O30: 106 | P30: 110 | Q30: 189 | R30: 63 | S30: 468 | U30: 94 | V30: 137 | W30: 235 | X30: 83 | Y30: 549
B31: Parque das Nações | C31: 322 | D31: 593 | E31: 1294 | F31: 522 | G31: 2731 | I31: 233 | J31: 482 | K31: 1238 | L31: 490 | M31: 2443 | O31: 193 | P31: 444 | Q31: 1156 | R31: 487 | S31: 2280 | U31: 138 | V31: 340 | W31: 904 | X31: 445 | Y31: 1827
B32: Penha de França | C32: 165 | D32: 468 | E32: 891 | F32: 364 | G32: 1888 | I32: 138 | J32: 390 | K32: 847 | L32: 349 | M32: 1724 | O32: 159 | P32: 384 | Q32: 840 | R32: 335 | S32: 1718 | U32: 133 | V32: 332 | W32: 730 | X32: 309 | Y32: 1504
B33: Santa Clara | C33: 293 | D33: 552 | E33: 986 | F33: 334 | G33: 2165 | I33: 271 | J33: 474 | K33: 961 | L33: 343 | M33: 2049 | O33: 273 | P33: 478 | Q33: 930 | R33: 345 | S33: 2026 | U33: 235 | V33: 413 | W33: 843 | X33: 326 | Y33: 1817
B34: Santa Maria Maior | C34: 103 | D34: 254 | E34: 522 | F34: 198 | G34: 1077 | I34: 75 | J34: 193 | K34: 494 | L34: 184 | M34: 946 | O34: 59 | P34: 152 | Q34: 468 | R34: 184 | S34: 863 | U34: 55 | V34: 136 | W34: 405 | X34: 168 | Y34: 764
B35: Santo António | C35: 56 | D35: 188 | E35: 365 | F35: 169 | G35: 778 | I35: 52 | J35: 160 | K35: 362 | L35: 163 | M35: 737 | O35: 52 | P35: 162 | Q35: 358 | R35: 159 | S35: 731 | U35: 45 | V35: 139 | W35: 291 | X35: 149 | Y35: 624
B36: São Domingos de Benfica | C36: 145 | D36: 325 | E36: 677 | F36: 297 | G36: 1444 | I36: 114 | J36: 268 | K36: 632 | L36: 292 | M36: 1306 | O36: 126 | P36: 286 | Q36: 593 | R36: 299 | S36: 1304 | U36: 102 | V36: 277 | W36: 556 | X36: 276 | Y36: 1211
B37: São Vicente | C37: 111 | D37: 243 | E37: 487 | F37: 192 | G37: 1033 | I37: 77 | J37: 196 | K37: 479 | L37: 197 | M37: 949 | O37: 73 | P37: 192 | Q37: 460 | R37: 190 | S37: 915 | U37: 55 | V37: 166 | W37: 387 | X37: 181 | Y37: 789
B38: Freg. Não Codificada | C38: 7 | D38: 11 | E38: 17 | F38: 3 | G38: 38 | I38: 3 | J38: 9 | K38: 25 | L38: 3 | M38: 40 | O38: 8 | P38: 13 | Q38: 26 | R38: 4 | S38: 51 | U38: 7 | V38: 7 | W38: 15 | X38: 4 | Y38: 33
B40: Fonte: Instituto de Emprego e Formação Profissional
B41: Notas n.d.: não disponível (para valores =< 5, por razões de confidencialidade dados não disponibilizados pela fonte)

Sheet Desempregados_idades %
A5: Q.4 | B5: Desempregados inscritos nos Centros de Emprego, idade, 2014 (%)
C7: Desempregados inscritos nos Centros de Emprego, Idades
C8: %
C9: 1º TRIMESTRE | H9: 2º TRIMESTRE | M9: 3º TRIMESTRE | R9: 4º TRIMESTRE
B10: Unidade: Nº e % | C10: < 25 Anos | D10: 25 - 34 Anos | E10: 35 - 54 Anos | F10: 55 Anos e + | H10: < 25 Anos | I10: 25 - 34 Anos | J10: 35 - 54 Anos | K10: 55 Anos e + | M10: < 25 Anos | N10: 25 - 34 Anos | O10: 35 - 54 Anos | P10: 55 Anos e + | R10: < 25 Anos | S10: 25 - 34 Anos | T10: 35 - 54 Anos | U10: 55 Anos e +
B11: Portugal Continental | C11: ='Desempregados_idades '!C10/'Desempregados_idades '!G10 -> 0.130494062 | D11: ='Desempregados_idades '!D10/'Desempregados_idades '!G10 -> 0.2096752721 | E11: ='Desempregados_idades '!E10/'Desempregados_idades '!G10 -> 0.4639074768 | F11: ='Desempregados_idades '!F10/'Desempregados_idades '!G10 -> 0.1959231891 | H11: ='Desempregados_idades '!I10/'Desempregados_idades '!M10 -> 0.1124924442 | I11: ='Desempregados_idades '!J10/'Desempregados_idades '!M10 -> 0.1962254533 | J11: ='Desempregados_idades '!K10/'Desempregados_idades '!M10 -> 0.4774703408 | K11: ='Desempregados_idades '!L10/'Desempregados_idades '!M10 -> 0.2138117617 | M11: ='Desempregados_idades '!O10/'Desempregados_idades '!S10 -> 0.1242227713 | N11: ='Desempregados_idades '!P10/'Desempregados_idades '!S10 -> 0.1971278567 | O11: ='Desempregados_idades '!Q10/'Desempregados_idades '!S10 -> 0.4672294283 | P11: ='Desempregados_idades '!R10/'Desempregados_idades '!S10 -> 0.2114199437 | R11: ='Desempregados_idades '!U10/'Desempregados_idades '!Y10 -> 0.1214133316 | S11: ='Desempregados_idades '!V10/'Desempregados_idades '!Y10 -> 0.1946405535 | T11: ='Desempregados_idades '!W10/'Desempregados_idades '!Y10 -> 0.4654641404 | U11: ='Desempregados_idades '!X10/'Desempregados_idades '!Y10 -> 0.2184819745
B12: AML | C12: ='Desempregados_idades '!C11/'Desempregados_idades '!G11 -> 0.1126726318 | D12: ='Desempregados_idades '!D11/'Desempregados_idades '!G11 -> 0.2136743824 | E12: ='Desempregados_idades '!E11/'Desempregados_idades '!G11 -> 0.4841105816 | F12: ='Desempregados_idades '!F11/'Desempregados_idades '!G11 -> 0.1895424042 | H12: ='Desempregados_idades '!I11/'Desempregados_idades '!M11 -> 0.0949685746 | I12: ='Desempregados_idades '!J11/'Desempregados_idades '!M11 -> 0.1978825665 | J12: ='Desempregados_idades '!K11/'Desempregados_idades '!M11 -> 0.5006352301 | K12: ='Desempregados_idades '!L11/'Desempregados_idades '!M11 -> 0.2065136289 | M12: ='Desempregados_idades '!O11/'Desempregados_idades '!S11 -> 0.102673073 | N12: ='Desempregados_idades '!P11/'Desempregados_idades '!S11 -> 0.198193138 | O12: ='Desempregados_idades '!Q11/'Desempregados_idades '!S11 -> 0.490397239 | P12: ='Desempregados_idades '!R11/'Desempregados_idades '!S11 -> 0.20873655 | R12: ='Desempregados_idades '!U11/'Desempregados_idades '!Y11 -> 0.09722232225 | S12: ='Desempregados_idades '!V11/'Desempregados_idades '!Y11 -> 0.1991761308 | T12: ='Desempregados_idades '!W11/'Desempregados_idades '!Y11 -> 0.4876383618 | U12: ='Desempregados_idades '!X11/'Desempregados_idades '!Y11 -> 0.2159631851
B13: Distrito de Lisboa | C13: ='Desempregados_idades '!C12/'Desempregados_idades '!G12 -> 0.1131298905 | D13: ='Desempregados_idades '!D12/'Desempregados_idades '!G12 -> 0.2135602504 | E13: ='Desempregados_idades '!E12/'Desempregados_idades '!G12 -> 0.4829968701 | F13: ='Desempregados_idades '!F12/'Desempregados_idades '!G12 -> 0.190312989 | H13: ='Desempregados_idades '!I12/'Desempregados_idades '!M12 -> 0.09472087379 | I13: ='Desempregados_idades '!J12/'Desempregados_idades '!M12 -> 0.1968880028 | J13: ='Desempregados_idades '!K12/'Desempregados_idades '!M12 -> 0.5000086685 | K13: ='Desempregados_idades '!L12/'Desempregados_idades '!M12 -> 0.2083824549 | M13: ='Desempregados_idades '!O12/'Desempregados_idades '!S12 -> 0.1021807405 | N13: ='Desempregados_idades '!P12/'Desempregados_idades '!S12 -> 0.1965851285 | O13: ='Desempregados_idades '!Q12/'Desempregados_idades '!S12 -> 0.4899102048 | P13: ='Desempregados_idades '!R12/'Desempregados_idades '!S12 -> 0.2113239262 | R13: ='Desempregados_idades '!U12/'Desempregados_idades '!Y12 -> 0.09733628984 | S13: ='Desempregados_idades '!V12/'Desempregados_idades '!Y12 -> 0.1970898086 | T13: ='Desempregados_idades '!W12/'Desempregados_idades '!Y12 -> 0.4871001818 | U13: ='Desempregados_idades '!X12/'Desempregados_idades '!Y12 -> 0.2184737198
B14: Concelho de Lisboa | C14: ='Desempregados_idades '!C13/'Desempregados_idades '!G13 -> 0.1126362297 | D14: ='Desempregados_idades '!D13/'Desempregados_idades '!G13 -> 0.2308689249 | E14: ='Desempregados_idades '!E13/'Desempregados_idades '!G13 -> 0.4692783505 | F14: ='Desempregados_idades '!F13/'Desempregados_idades '!G13 -> 0.1872164948 | H14: ='Desempregados_idades '!I13/'Desempregados_idades '!M13 -> 0.0980813655 | I14: ='Desempregados_idades '!J13/'Desempregados_idades '!M13 -> 0.2093493326 | J14: ='Desempregados_idades '!K13/'Desempregados_idades '!M13 -> 0.4900218172 | K14: ='Desempregados_idades '!L13/'Desempregados_idades '!M13 -> 0.2025474846 | M14: ='Desempregados_idades '!O13/'Desempregados_idades '!S13 -> 0.101009105 | N14: ='Desempregados_idades '!P13/'Desempregados_idades '!S13 -> 0.209972718 | O14: ='Desempregados_idades '!Q13/'Desempregados_idades '!S13 -> 0.4826282747 | P14: ='Desempregados_idades '!R13/'Desempregados_idades '!S13 -> 0.2063899024 | R14: ='Desempregados_idades '!U13/'Desempregados_idades '!Y13 -> 0.09032706519 | S14: ='Desempregados_idades '!V13/'Desempregados_idades '!Y13 -> 0.2098119558 | T14: ='Desempregados_idades '!W13/'Desempregados_idades '!Y13 -> 0.4765493525 | U14: ='Desempregados_idades '!X13/'Desempregados_idades '!Y13 -> 0.2233116265
B15: Ajuda | C15: ='Desempregados_idades '!C14/'Desempregados_idades '!G14 -> 0.1355759429 | D15: ='Desempregados_idades '!D14/'Desempregados_idades '!G14 -> 0.2334352701 | E15: ='Desempregados_idades '!E14/'Desempregados_idades '!G14 -> 0.4770642202 | F15: ='Desempregados_idades '!F14/'Desempregados_idades '!G14 -> 0.1539245668 | H15: ='Desempregados_idades '!I14/'Desempregados_idades '!M14 -> 0.1279069767 | I15: ='Desempregados_idades '!J14/'Desempregados_idades '!M14 -> 0.2114164905 | J15: ='Desempregados_idades '!K14/'Desempregados_idades '!M14 -> 0.4978858351 | K15: ='Desempregados_idades '!L14/'Desempregados_idades '!M14 -> 0.1627906977 | M15: ='Desempregados_idades '!O14/'Desempregados_idades '!S14 -> 0.118134715 | N15: ='Desempregados_idades '!P14/'Desempregados_idades '!S14 -> 0.2207253886 | O15: ='Desempregados_idades '!Q14/'Desempregados_idades '!S14 -> 0.4932642487 | P15: ='Desempregados_idades '!R14/'Desempregados_idades '!S14 -> 0.1678756477 | R15: ='Desempregados_idades '!U14/'Desempregados_idades '!Y14 -> 0.1003541913 | S15: ='Desempregados_idades '!V14/'Desempregados_idades '!Y14 -> 0.2172373081 | T15: ='Desempregados_idades '!W14/'Desempregados_idades '!Y14 -> 0.5029515939 | U15: ='Desempregados_idades '!X14/'Desempregados_idades '!Y14 -> 0.1794569067
B16: Alcântara | C16: ='Desempregados_idades '!C15/'Desempregados_idades '!G15 -> 0.1126760563 | D16: ='Desempregados_idades '!D15/'Desempregados_idades '!G15 -> 0.2218309859 | E16: ='Desempregados_idades '!E15/'Desempregados_idades '!G15 -> 0.5011737089 | F16: ='Desempregados_idades '!F15/'Desempregados_idades '!G15 -> 0.1643192488 | H16: ='Desempregados_idades '!I15/'Desempregados_idades '!M15 -> 0.09079118029 | I16: ='Desempregados_idades '!J15/'Desempregados_idades '!M15 -> 0.2062256809 | J16: ='Desempregados_idades '!K15/'Desempregados_idades '!M15 -> 0.5226977951 | K16: ='Desempregados_idades '!L15/'Desempregados_idades '!M15 -> 0.1802853437 | M16: ='Desempregados_idades '!O15/'Desempregados_idades '!S15 -> 0.09454061252 | N16: ='Desempregados_idades '!P15/'Desempregados_idades '!S15 -> 0.206391478 | O16: ='Desempregados_idades '!Q15/'Desempregados_idades '!S15 -> 0.516644474 | P16: ='Desempregados_idades '!R15/'Desempregados_idades '!S15 -> 0.1824234354 | R16: ='Desempregados_idades '!U15/'Desempregados_idades '!Y15 -> 0.08333333333 | S16: ='Desempregados_idades '!V15/'Desempregados_idades '!Y15 -> 0.2272727273 | T16: ='Desempregados_idades '!W15/'Desempregados_idades '!Y15 -> 0.4772727273 | U16: ='Desempregados_idades '!X15/'Desempregados_idades '!Y15 -> 0.2121212121
B17: Alvalade | C17: ='Desempregados_idades '!C16/'Desempregados_idades '!G16 -> 0.1052631579 | D17: ='Desempregados_idades '!D16/'Desempregados_idades '!G16 -> 0.2216066482 | E17: ='Desempregados_idades '!E16/'Desempregados_idades '!G16 -> 0.4923822715 | F17: ='Desempregados_idades '!F16/'Desempregados_idades '!G16 -> 0.1807479224 | H17: ='Desempregados_idades '!I16/'Desempregados_idades '!M16 -> 0.07661290323 | I17: ='Desempregados_idades '!J16/'Desempregados_idades '!M16 -> 0.2008064516 | J17: ='Desempregados_idades '!K16/'Desempregados_idades '!M16 -> 0.5177419355 | K17: ='Desempregados_idades '!L16/'Desempregados_idades '!M16 -> 0.2048387097 | M17: ='Desempregados_idades '!O16/'Desempregados_idades '!S16 -> 0.09083469722 | N17: ='Desempregados_idades '!P16/'Desempregados_idades '!S16 -> 0.1996726678 | O17: ='Desempregados_idades '!Q16/'Desempregados_idades '!S16 -> 0.5024549918 | P17: ='Desempregados_idades '!R16/'Desempregados_idades '!S16 -> 0.2070376432 | R17: ='Desempregados_idades '!U16/'Desempregados_idades '!Y16 -> 0.09226467847 | S17: ='Desempregados_idades '!V16/'Desempregados_idades '!Y16 -> 0.2134203169 | T17: ='Desempregados_idades '!W16/'Desempregados_idades '!Y16 -> 0.4762348555 | U17: ='Desempregados_idades '!X16/'Desempregados_idades '!Y16 -> 0.2180801491
B18: Areeiro | C18: ='Desempregados_idades '!C17/'Desempregados_idades '!G17 -> 0.10456942 | D18: ='Desempregados_idades '!D17/'Desempregados_idades '!G17 -> 0.2284710018 | E18: ='Desempregados_idades '!E17/'Desempregados_idades '!G17 -> 0.4481546573 | F18: ='Desempregados_idades '!F17/'Desempregados_idades '!G17 -> 0.2188049209 | H18: ='Desempregados_idades '!I17/'Desempregados_idades '!M17 -> 0.09359605911 | I18: ='Desempregados_idades '!J17/'Desempregados_idades '!M17 -> 0.2118226601 | J18: ='Desempregados_idades '!K17/'Desempregados_idades '!M17 -> 0.4463054187 | K18: ='Desempregados_idades '!L17/'Desempregados_idades '!M17 -> 0.2482758621 | M18: ='Desempregados_idades '!O17/'Desempregados_idades '!S17 -> 0.09547738693 | N18: ='Desempregados_idades '!P17/'Desempregados_idades '!S17 -> 0.2311557789 | O18: ='Desempregados_idades '!Q17/'Desempregados_idades '!S17 -> 0.4472361809 | P18: ='Desempregados_idades '!R17/'Desempregados_idades '!S17 -> 0.2261306533 | R18: ='Desempregados_idades '!U17/'Desempregados_idades '!Y17 -> 0.09121245829 | S18: ='Desempregados_idades '!V17/'Desempregados_idades '!Y17 -> 0.2402669633 | T18: ='Desempregados_idades '!W17/'Desempregados_idades '!Y17 -> 0.4137931034 | U18: ='Desempregados_idades '!X17/'Desempregados_idades '!Y17 -> 0.254727475
B19: Arroios | C19: ='Desempregados_idades '!C18/'Desempregados_idades '!G18 -> 0.09260008087 | D19: ='Desempregados_idades '!D18/'Desempregados_idades '!G18 -> 0.2333198544 | E19: ='Desempregados_idades '!E18/'Desempregados_idades '!G18 -> 0.4933279418 | F19: ='Desempregados_idades '!F18/'Desempregados_idades '!G18 -> 0.1807521229 | H19: ='Desempregados_idades '!I18/'Desempregados_idades '!M18 -> 0.07210031348 | I19: ='Desempregados_idades '!J18/'Desempregados_idades '!M18 -> 0.2140618003 | J19: ='Desempregados_idades '!K18/'Desempregados_idades '!M18 -> 0.513658755 | K19: ='Desempregados_idades '!L18/'Desempregados_idades '!M18 -> 0.2001791312 | M19: ='Desempregados_idades '!O18/'Desempregados_idades '!S18 -> 0.07510431154 | N19: ='Desempregados_idades '!P18/'Desempregados_idades '!S18 -> 0.2151135837 | O19: ='Desempregados_idades '!Q18/'Desempregados_idades '!S18 -> 0.4993045897 | P19: ='Desempregados_idades '!R18/'Desempregados_idades '!S18 -> 0.2104775151 | R19: ='Desempregados_idades '!U18/'Desempregados_idades '!Y18 -> 0.06782253952 | S19: ='Desempregados_idades '!V18/'Desempregados_idades '!Y18 -> 0.2060173381 | T19: ='Desempregados_idades '!W18/'Desempregados_idades '!Y18 -> 0.4936257012 | U19: ='Desempregados_idades '!X18/'Desempregados_idades '!Y18 -> 0.2325344212
B20: Avenidas Novas | C20: ='Desempregados_idades '!C19/'Desempregados_idades '!G19 -> 0.1164021164 | D20: ='Desempregados_idades '!D19/'Desempregados_idades '!G19 -> 0.2601410935 | E20: ='Desempregados_idades '!E19/'Desempregados_idades '!G19 -> 0.4241622575 | F20: ='Desempregados_idades '!F19/'Desempregados_idades '!G19 -> 0.1992945326 | H20: ='Desempregados_idades '!I19/'Desempregados_idades '!M19 -> 0.09891196835 | I20: ='Desempregados_idades '!J19/'Desempregados_idades '!M19 -> 0.2116716123 | J20: ='Desempregados_idades '!K19/'Desempregados_idades '!M19 -> 0.4638971316 | K20: ='Desempregados_idades '!L19/'Desempregados_idades '!M19 -> 0.2255192878 | M20: ='Desempregados_idades '!O19/'Desempregados_idades '!S19 -> 0.1143141153 | N20: ='Desempregados_idades '!P19/'Desempregados_idades '!S19 -> 0.2206759443 | O20: ='Desempregados_idades '!Q19/'Desempregados_idades '!S19 -> 0.4483101392 | P20: ='Desempregados_idades '!R19/'Desempregados_idades '!S19 -> 0.2166998012 | R20: ='Desempregados_idades '!U19/'Desempregados_idades '!Y19 -> 0.09865470852 | S20: ='Desempregados_idades '!V19/'Desempregados_idades '!Y19 -> 0.2242152466 | T20: ='Desempregados_idades '!W19/'Desempregados_idades '!Y19 -> 0.4226457399 | U20: ='Desempregados_idades '!X19/'Desempregados_idades '!Y19 -> 0.2544843049
B21: Beato | C21: ='Desempregados_idades '!C20/'Desempregados_idades '!G20 -> 0.1258865248 | D21: ='Desempregados_idades '!D20/'Desempregados_idades '!G20 -> 0.2065602837 | E21: ='Desempregados_idades '!E20/'Desempregados_idades '!G20 -> 0.4725177305 | F21: ='Desempregados_idades '!F20/'Desempregados_idades '!G20 -> 0.195035461 | H21: ='Desempregados_idades '!I20/'Desempregados_idades '!M20 -> 0.1073446328 | I21: ='Desempregados_idades '!J20/'Desempregados_idades '!M20 -> 0.1986817326 | J21: ='Desempregados_idades '!K20/'Desempregados_idades '!M20 -> 0.4792843691 | K21: ='Desempregados_idades '!L20/'Desempregados_idades '!M20 -> 0.2146892655 | M21: ='Desempregados_idades '!O20/'Desempregados_idades '!S20 -> 0.09330628803 | N21: ='Desempregados_idades '!P20/'Desempregados_idades '!S20 -> 0.1805273834 | O21: ='Desempregados_idades '!Q20/'Desempregados_idades '!S20 -> 0.5040567951 | P21: ='Desempregados_idades '!R20/'Desempregados_idades '!S20 -> 0.2221095335 | R21: ='Desempregados_idades '!U20/'Desempregados_idades '!Y20 -> 0.08936651584 | S21: ='Desempregados_idades '!V20/'Desempregados_idades '!Y20 -> 0.1708144796 | T21: ='Desempregados_idades '!W20/'Desempregados_idades '!Y20 -> 0.5124434389 | U21: ='Desempregados_idades '!X20/'Desempregados_idades '!Y20 -> 0.2273755656
B22: Belém | C22: ='Desempregados_idades '!C21/'Desempregados_idades '!G21 -> 0.08955223881 | D22: ='Desempregados_idades '!D21/'Desempregados_idades '!G21 -> 0.197761194 | E22: ='Desempregados_idades '!E21/'Desempregados_idades '!G21 -> 0.5410447761 | F22: ='Desempregados_idades '!F21/'Desempregados_idades '!G21 -> 0.171641791 | H22: ='Desempregados_idades '!I21/'Desempregados_idades '!M21 -> 0.08333333333 | I22: ='Desempregados_idades '!J21/'Desempregados_idades '!M21 -> 0.175 | J22: ='Desempregados_idades '!K21/'Desempregados_idades '!M21 -> 0.5458333333 | K22: ='Desempregados_idades '!L21/'Desempregados_idades '!M21 -> 0.1958333333 | M22: ='Desempregados_idades '!O21/'Desempregados_idades '!S21 -> 0.08739837398 | N22: ='Desempregados_idades '!P21/'Desempregados_idades '!S21 -> 0.2012195122 | O22: ='Desempregados_idades '!Q21/'Desempregados_idades '!S21 -> 0.5182926829 | P22: ='Desempregados_idades '!R21/'Desempregados_idades '!S21 -> 0.1930894309 | R22: ='Desempregados_idades '!U21/'Desempregados_idades '!Y21 -> 0.07416267943 | S22: ='Desempregados_idades '!V21/'Desempregados_idades '!Y21 -> 0.2153110048 | T22: ='Desempregados_idades '!W21/'Desempregados_idades '!Y21 -> 0.5 | U22: ='Desempregados_idades '!X21/'Desempregados_idades '!Y21 -> 0.2105263158
B23: Benfica | C23: ='Desempregados_idades '!C22/'Desempregados_idades '!G22 -> 0.1024305556 | D23: ='Desempregados_idades '!D22/'Desempregados_idades '!G22 -> 0.2282986111 | E23: ='Desempregados_idades '!E22/'Desempregados_idades '!G22 -> 0.4822048611 | F23: ='Desempregados_idades '!F22/'Desempregados_idades '!G22 -> 0.1870659722 | H23: ='Desempregados_idades '!I22/'Desempregados_idades '!M22 -> 0.08926919519 | I23: ='Desempregados_idades '!J22/'Desempregados_idades '!M22 -> 0.2099907493 | J23: ='Desempregados_idades '!K22/'Desempregados_idades '!M22 -> 0.5 | K23: ='Desempregados_idades '!L22/'Desempregados_idades '!M22 -> 0.2007400555 | M23: ='Desempregados_idades '!O22/'Desempregados_idades '!S22 -> 0.1028457314 | N23: ='Desempregados_idades '!P22/'Desempregados_idades '!S22 -> 0.2076884673 | O23: ='Desempregados_idades '!Q22/'Desempregados_idades '!S22 -> 0.4827758362 | P23: ='Desempregados_idades '!R22/'Desempregados_idades '!S22 -> 0.2066899651 | R23: ='Desempregados_idades '!U22/'Desempregados_idades '!Y22 -> 0.09132653061 | S23: ='Desempregados_idades '!V22/'Desempregados_idades '!Y22 -> 0.2076530612 | T23: ='Desempregados_idades '!W22/'Desempregados_idades '!Y22 -> 0.4846938776 | U23: ='Desempregados_idades '!X22/'Desempregados_idades '!Y22 -> 0.2163265306
B24: Campo de Ourique | C24: ='Desempregados_idades '!C23/'Desempregados_idades '!G23 -> 0.09742647059 | D24: ='Desempregados_idades '!D23/'Desempregados_idades '!G23 -> 0.2169117647 | E24: ='Desempregados_idades '!E23/'Desempregados_idades '!G23 -> 0.4751838235 | F24: ='Desempregados_idades '!F23/'Desempregados_idades '!G23 -> 0.2104779412 | H24: ='Desempregados_idades '!I23/'Desempregados_idades '!M23 -> 0.08624031008 | I24: ='Desempregados_idades '!J23/'Desempregados_idades '!M23 -> 0.2112403101 | J24: ='Desempregados_idades '!K23/'Desempregados_idades '!M23 -> 0.4718992248 | K24: ='Desempregados_idades '!L23/'Desempregados_idades '!M23 -> 0.230620155 | M24: ='Desempregados_idades '!O23/'Desempregados_idades '!S23 -> 0.07714561234 | N24: ='Desempregados_idades '!P23/'Desempregados_idades '!S23 -> 0.1996142719 | O24: ='Desempregados_idades '!Q23/'Desempregados_idades '!S23 -> 0.4831243973 | P24: ='Desempregados_idades '!R23/'Desempregados_idades '!S23 -> 0.2401157184 | R24: ='Desempregados_idades '!U23/'Desempregados_idades '!Y23 -> 0.05497925311 | S24: ='Desempregados_idades '!V23/'Desempregados_idades '!Y23 -> 0.1929460581 | T24: ='Desempregados_idades '!W23/'Desempregados_idades '!Y23 -> 0.4906639004 | U24: ='Desempregados_idades '!X23/'Desempregados_idades '!Y23 -> 0.2614107884
B25: Campolide | C25: ='Desempregados_idades '!C24/'Desempregados_idades '!G24 -> 0.1071038251 | D25: ='Desempregados_idades '!D24/'Desempregados_idades '!G24 -> 0.2153005464 | E25: ='Desempregados_idades '!E24/'Desempregados_idades '!G24 -> 0.4918032787 | F25: ='Desempregados_idades '!F24/'Desempregados_idades '!G24 -> 0.1857923497 | H25: ='Desempregados_idades '!I24/'Desempregados_idades '!M24 -> 0.1043593131 | I25: ='Desempregados_idades '!J24/'Desempregados_idades '!M24 -> 0.1624834875 | J25: ='Desempregados_idades '!K24/'Desempregados_idades '!M24 -> 0.5151915456 | K25: ='Desempregados_idades '!L24/'Desempregados_idades '!M24 -> 0.2179656539 | M25: ='Desempregados_idades '!O24/'Desempregados_idades '!S24 -> 0.0957309185 | N25: ='Desempregados_idades '!P24/'Desempregados_idades '!S24 -> 0.1888745149 | O25: ='Desempregados_idades '!Q24/'Desempregados_idades '!S24 -> 0.5032341527 | P25: ='Desempregados_idades '!R24/'Desempregados_idades '!S24 -> 0.212160414 | R25: ='Desempregados_idades '!U24/'Desempregados_idades '!Y24 -> 0.07547169811 | S25: ='Desempregados_idades '!V24/'Desempregados_idades '!Y24 -> 0.1630727763 | T25: ='Desempregados_idades '!W24/'Desempregados_idades '!Y24 -> 0.5229110512 | U25: ='Desempregados_idades '!X24/'Desempregados_idades '!Y24 -> 0.2385444744
B26: Carnide | C26: ='Desempregados_idades '!C25/'Desempregados_idades '!G25 -> 0.1455284553 | D26: ='Desempregados_idades '!D25/'Desempregados_idades '!G25 -> 0.2276422764 | E26: ='Desempregados_idades '!E25/'Desempregados_idades '!G25 -> 0.4325203252 | F26: ='Desempregados_idades '!F25/'Desempregados_idades '!G25 -> 0.1943089431 | H26: ='Desempregados_idades '!I25/'Desempregados_idades '!M25 -> 0.1365187713 | I26: ='Desempregados_idades '!J25/'Desempregados_idades '!M25 -> 0.207337884 | J26: ='Desempregados_idades '!K25/'Desempregados_idades '!M25 -> 0.4581911263 | K26: ='Desempregados_idades '!L25/'Desempregados_idades '!M25 -> 0.1979522184 | M26: ='Desempregados_idades '!O25/'Desempregados_idades '!S25 -> 0.1305483029 | N26: ='Desempregados_idades '!P25/'Desempregados_idades '!S25 -> 0.2175805048 | O26: ='Desempregados_idades '!Q25/'Desempregados_idades '!S25 -> 0.4447345518 | P26: ='Desempregados_idades '!R25/'Desempregados_idades '!S25 -> 0.2071366406 | R26: ='Desempregados_idades '!U25/'Desempregados_idades '!Y25 -> 0.1203358209 | S26: ='Desempregados_idades '!V25/'Desempregados_idades '!Y25 -> 0.197761194 | T26: ='Desempregados_idades '!W25/'Desempregados_idades '!Y25 -> 0.4589552239 | U26: ='Desempregados_idades '!X25/'Desempregados_idades '!Y25 -> 0.2229477612
B27: Estrela | C27: ='Desempregados_idades '!C26/'Desempregados_idades '!G26 -> 0.08729281768 | D27: ='Desempregados_idades '!D26/'Desempregados_idades '!G26 -> 0.1966850829 | E27: ='Desempregados_idades '!E26/'Desempregados_idades '!G26 -> 0.4906077348 | F27: ='Desempregados_idades '!F26/'Desempregados_idades '!G26 -> 0.2254143646 | H27: ='Desempregados_idades '!I26/'Desempregados_idades '!M26 -> 0.07819905213 | I27: ='Desempregados_idades '!J26/'Desempregados_idades '!M26 -> 0.1670616114 | J27: ='Desempregados_idades '!K26/'Desempregados_idades '!M26 -> 0.5248815166 | K27: ='Desempregados_idades '!L26/'Desempregados_idades '!M26 -> 0.2298578199 | M27: ='Desempregados_idades '!O26/'Desempregados_idades '!S26 -> 0.09144893112 | N27: ='Desempregados_idades '!P26/'Desempregados_idades '!S26 -> 0.1840855107 | O27: ='Desempregados_idades '!Q26/'Desempregados_idades '!S26 -> 0.4916864608 | P27: ='Desempregados_idades '!R26/'Desempregados_idades '!S26 -> 0.2327790974 | R27: ='Desempregados_idades '!U26/'Desempregados_idades '!Y26 -> 0.07940780619 | S27: ='Desempregados_idades '!V26/'Desempregados_idades '!Y26 -> 0.199192463 | T27: ='Desempregados_idades '!W26/'Desempregados_idades '!Y26 -> 0.4602960969 | U27: ='Desempregados_idades '!X26/'Desempregados_idades '!Y26 -> 0.2611036339
B28: Lumiar | C28: ='Desempregados_idades '!C27/'Desempregados_idades '!G27 -> 0.1143497758 | D28: ='Desempregados_idades '!D27/'Desempregados_idades '!G27 -> 0.2587443946 | E28: ='Desempregados_idades '!E27/'Desempregados_idades '!G27 -> 0.4520179372 | F28: ='Desempregados_idades '!F27/'Desempregados_idades '!G27 -> 0.1748878924 | H28: ='Desempregados_idades '!I27/'Desempregados_idades '!M27 -> 0.09857773418 | I28: ='Desempregados_idades '!J27/'Desempregados_idades '!M27 -> 0.2368808239 | J28: ='Desempregados_idades '!K27/'Desempregados_idades '!M27 -> 0.4737616479 | K28: ='Desempregados_idades '!L27/'Desempregados_idades '!M27 -> 0.190779794 | M28: ='Desempregados_idades '!O27/'Desempregados_idades '!S27 -> 0.1073417722 | N28: ='Desempregados_idades '!P27/'Desempregados_idades '!S27 -> 0.2091139241 | O28: ='Desempregados_idades '!Q27/'Desempregados_idades '!S27 -> 0.4941772152 | P28: ='Desempregados_idades '!R27/'Desempregados_idades '!S27 -> 0.1893670886 | R28: ='Desempregados_idades '!U27/'Desempregados_idades '!Y27 -> 0.09178743961 | S28: ='Desempregados_idades '!V27/'Desempregados_idades '!Y27 -> 0.2254428341 | T28: ='Desempregados_idades '!W27/'Desempregados_idades '!Y27 -> 0.4830917874 | U28: ='Desempregados_idades '!X27/'Desempregados_idades '!Y27 -> 0.1996779388
B29: Marvila | C29: ='Desempregados_idades '!C28/'Desempregados_idades '!G28 -> 0.1436281859 | D29: ='Desempregados_idades '!D28/'Desempregados_idades '!G28 -> 0.2179910045 | E29: ='Desempregados_idades '!E28/'Desempregados_idades '!G28 -> 0.4476761619 | F29: ='Desempregados_idades '!F28/'Desempregados_idades '!G28 -> 0.1907046477 | H29: ='Desempregados_idades '!I28/'Desempregados_idades '!M28 -> 0.1187109503 | I29: ='Desempregados_idades '!J28/'Desempregados_idades '!M28 -> 0.2081552121 | J29: ='Desempregados_idades '!K28/'Desempregados_idades '!M28 -> 0.4685958566 | K29: ='Desempregados_idades '!L28/'Desempregados_idades '!M28 -> 0.2045379809 | M29: ='Desempregados_idades '!O28/'Desempregados_idades '!S28 -> 0.1269571137 | N29: ='Desempregados_idades '!P28/'Desempregados_idades '!S28 -> 0.205241661 | O29: ='Desempregados_idades '!Q28/'Desempregados_idades '!S28 -> 0.4482641253 | P29: ='Desempregados_idades '!R28/'Desempregados_idades '!S28 -> 0.2195371001 | R29: ='Desempregados_idades '!U28/'Desempregados_idades '!Y28 -> 0.1041584158 | S29: ='Desempregados_idades '!V28/'Desempregados_idades '!Y28 -> 0.201980198 | T29: ='Desempregados_idades '!W28/'Desempregados_idades '!Y28 -> 0.4510891089 | U29: ='Desempregados_idades '!X28/'Desempregados_idades '!Y28 -> 0.2427722772
B30: Misericórdia | C30: ='Desempregados_idades '!C29/'Desempregados_idades '!G29 -> 0.1 | D30: ='Desempregados_idades '!D29/'Desempregados_idades '!G29 -> 0.2505494505 | E30: ='Desempregados_idades '!E29/'Desempregados_idades '!G29 -> 0.4582417582 | F30: ='Desempregados_idades '!F29/'Desempregados_idades '!G29 -> 0.1912087912 | H30: ='Desempregados_idades '!I29/'Desempregados_idades '!M29 -> 0.08353510896 | I30: ='Desempregados_idades '!J29/'Desempregados_idades '!M29 -> 0.2021791768 | J30: ='Desempregados_idades '!K29/'Desempregados_idades '!M29 -> 0.5036319613 | K30: ='Desempregados_idades '!L29/'Desempregados_idades '!M29 -> 0.210653753 | M30: ='Desempregados_idades '!O29/'Desempregados_idades '!S29 -> 0.0631443299 | N30: ='Desempregados_idades '!P29/'Desempregados_idades '!S29 -> 0.2216494845 | O30: ='Desempregados_idades '!Q29/'Desempregados_idades '!S29 -> 0.4961340206 | P30: ='Desempregados_idades '!R29/'Desempregados_idades '!S29 -> 0.2190721649 | R30: ='Desempregados_idades '!U29/'Desempregados_idades '!Y29 -> 0.0603085554 | S30: ='Desempregados_idades '!V29/'Desempregados_idades '!Y29 -> 0.2244039271 | T30: ='Desempregados_idades '!W29/'Desempregados_idades '!Y29 -> 0.4838709677 | U30: ='Desempregados_idades '!X29/'Desempregados_idades '!Y29 -> 0.2314165498
B31: Olivais | C31: ='Desempregados_idades '!C30/'Desempregados_idades '!G30 -> 0.2487046632 | D31: ='Desempregados_idades '!D30/'Desempregados_idades '!G30 -> 0.2383419689 | E31: ='Desempregados_idades '!E30/'Desempregados_idades '!G30 -> 0.4196891192 | F31: ='Desempregados_idades '!F30/'Desempregados_idades '!G30 -> 0.0932642487 | H31: ='Desempregados_idades '!I30/'Desempregados_idades '!M30 -> 0.2332361516 | I31: ='Desempregados_idades '!J30/'Desempregados_idades '!M30 -> 0.2361516035 | J31: ='Desempregados_idades '!K30/'Desempregados_idades '!M30 -> 0.3906705539 | K31: ='Desempregados_idades '!L30/'Desempregados_idades '!M30 -> 0.139941691 | M31: ='Desempregados_idades '!O30/'Desempregados_idades '!S30 -> 0.2264957265 | N31: ='Desempregados_idades '!P30/'Desempregados_idades '!S30 -> 0.235042735 | O31: ='Desempregados_idades '!Q30/'Desempregados_idades '!S30 -> 0.4038461538 | P31: ='Desempregados_idades '!R30/'Desempregados_idades '!S30 -> 0.1346153846 | R31: ='Desempregados_idades '!U30/'Desempregados_idades '!Y30 -> 0.1712204007 | S31: ='Desempregados_idades '!V30/'Desempregados_idades '!Y30 -> 0.2495446266 | T31: ='Desempregados_idades '!W30/'Desempregados_idades '!Y30 -> 0.4280510018 | U31: ='Desempregados_idades '!X30/'Desempregados_idades '!Y30 -> 0.1511839709
B32: Parque das Nações | C32: ='Desempregados_idades '!C31/'Desempregados_idades '!G31 -> 0.1179055291 | D32: ='Desempregados_idades '!D31/'Desempregados_idades '!G31 -> 0.21713658 | E32: ='Desempregados_idades '!E31/'Desempregados_idades '!G31 -> 0.4738191139 | F32: ='Desempregados_idades '!F31/'Desempregados_idades '!G31 -> 0.191138777 | H32: ='Desempregados_idades '!I31/'Desempregados_idades '!M31 -> 0.0953745395 | I32: ='Desempregados_idades '!J31/'Desempregados_idades '!M31 -> 0.1972984036 | J32: ='Desempregados_idades '!K31/'Desempregados_idades '!M31 -> 0.506753991 | K32: ='Desempregados_idades '!L31/'Desempregados_idades '!M31 -> 0.2005730659 | L32: - | M32: ='Desempregados_idades '!O31/'Desempregados_idades '!S31 -> 0.08464912281 | N32: ='Desempregados_idades '!P31/'Desempregados_idades '!S31 -> 0.1947368421 | O32: ='Desempregados_idades '!Q31/'Desempregados_idades '!S31 -> 0.5070175439 | P32: ='Desempregados_idades '!R31/'Desempregados_idades '!S31 -> 0.2135964912 | Q32: - | R32: ='Desempregados_idades '!U31/'Desempregados_idades '!Y31 -> 0.07553366174 | S32: ='Desempregados_idades '!V31/'Desempregados_idades '!Y31 -> 0.1860974275 | T32: ='Desempregados_idades '!W31/'Desempregados_idades '!Y31 -> 0.4948002189 | U32: ='Desempregados_idades '!X31/'Desempregados_idades '!Y31 -> 0.2435686918
B33: Penha de França | C33: ='Desempregados_idades '!C32/'Desempregados_idades '!G32 -> 0.0873940678 | D33: ='Desempregados_idades '!D32/'Desempregados_idades '!G32 -> 0.2478813559 | E33: ='Desempregados_idades '!E32/'Desempregados_idades '!G32 -> 0.4719279661 | F33: ='Desempregados_idades '!F32/'Desempregados_idades '!G32 -> 0.1927966102 | H33: ='Desempregados_idades '!I32/'Desempregados_idades '!M32 -> 0.08004640371 | I33: ='Desempregados_idades '!J32/'Desempregados_idades '!M32 -> 0.2262180974 | J33: ='Desempregados_idades '!K32/'Desempregados_idades '!M32 -> 0.4912993039 | K33: ='Desempregados_idades '!L32/'Desempregados_idades '!M32 -> 0.2024361949 | M33: ='Desempregados_idades '!O32/'Desempregados_idades '!S32 -> 0.09254947614 | N33: ='Desempregados_idades '!P32/'Desempregados_idades '!S32 -> 0.2235157159 | O33: ='Desempregados_idades '!Q32/'Desempregados_idades '!S32 -> 0.4889406286 | P33: ='Desempregados_idades '!R32/'Desempregados_idades '!S32 -> 0.1949941793 | R33: ='Desempregados_idades '!U32/'Desempregados_idades '!Y32 -> 0.08843085106 | S33: ='Desempregados_idades '!V32/'Desempregados_idades '!Y32 -> 0.2207446809 | T33: ='Desempregados_idades '!W32/'Desempregados_idades '!Y32 -> 0.4853723404 | U33: ='Desempregados_idades '!X32/'Desempregados_idades '!Y32 -> 0.2054521277
B34: Santa Clara | C34: ='Desempregados_idades '!C33/'Desempregados_idades '!G33 -> 0.135334873 | D34: ='Desempregados_idades '!D33/'Desempregados_idades '!G33 -> 0.254965358 | E34: ='Desempregados_idades '!E33/'Desempregados_idades '!G33 -> 0.4554272517 | F34: ='Desempregados_idades '!F33/'Desempregados_idades '!G33 -> 0.1542725173 | H34: ='Desempregados_idades '!I33/'Desempregados_idades '!M33 -> 0.1322596388 | I34: ='Desempregados_idades '!J33/'Desempregados_idades '!M33 -> 0.2313323572 | J34: ='Desempregados_idades '!K33/'Desempregados_idades '!M33 -> 0.4690092728 | K34: ='Desempregados_idades '!L33/'Desempregados_idades '!M33 -> 0.1673987311 | M34: ='Desempregados_idades '!O33/'Desempregados_idades '!S33 -> 0.1347482725 | N34: ='Desempregados_idades '!P33/'Desempregados_idades '!S33 -> 0.2359328727 | O34: ='Desempregados_idades '!Q33/'Desempregados_idades '!S33 -> 0.4590325765 | P34: ='Desempregados_idades '!R33/'Desempregados_idades '!S33 -> 0.1702862784 | R34: ='Desempregados_idades '!U33/'Desempregados_idades '!Y33 -> 0.1293340671 | S34: ='Desempregados_idades '!V33/'Desempregados_idades '!Y33 -> 0.2272977435 | T34: ='Desempregados_idades '!W33/'Desempregados_idades '!Y33 -> 0.4639515685 | U34: ='Desempregados_idades '!X33/'Desempregados_idades '!Y33 -> 0.1794166208
B35: Santa Maria Maior | C35: ='Desempregados_idades '!C34/'Desempregados_idades '!G34 -> 0.095636026 | D35: ='Desempregados_idades '!D34/'Desempregados_idades '!G34 -> 0.2358402971 | E35: ='Desempregados_idades '!E34/'Desempregados_idades '!G34 -> 0.4846796657 | F35: ='Desempregados_idades '!F34/'Desempregados_idades '!G34 -> 0.1838440111 | H35: ='Desempregados_idades '!I34/'Desempregados_idades '!M34 -> 0.07928118393 | I35: ='Desempregados_idades '!J34/'Desempregados_idades '!M34 -> 0.2040169133 | J35: ='Desempregados_idades '!K34/'Desempregados_idades '!M34 -> 0.5221987315 | K35: ='Desempregados_idades '!L34/'Desempregados_idades '!M34 -> 0.1945031712 | M35: ='Desempregados_idades '!O34/'Desempregados_idades '!S34 -> 0.06836616454 | N35: ='Desempregados_idades '!P34/'Desempregados_idades '!S34 -> 0.1761297798 | O35: ='Desempregados_idades '!Q34/'Desempregados_idades '!S34 -> 0.5422943221 | P35: ='Desempregados_idades '!R34/'Desempregados_idades '!S34 -> 0.2132097335 | R35: ='Desempregados_idades '!U34/'Desempregados_idades '!Y34 -> 0.0719895288 | S35: ='Desempregados_idades '!V34/'Desempregados_idades '!Y34 -> 0.1780104712 | T35: ='Desempregados_idades '!W34/'Desempregados_idades '!Y34 -> 0.530104712 | U35: ='Desempregados_idades '!X34/'Desempregados_idades '!Y34 -> 0.219895288
B36: Santo António | C36: ='Desempregados_idades '!C35/'Desempregados_idades '!G35 -> 0.07197943445 | D36: ='Desempregados_idades '!D35/'Desempregados_idades '!G35 -> 0.2416452442 | E36: ='Desempregados_idades '!E35/'Desempregados_idades '!G35 -> 0.469151671 | F36: ='Desempregados_idades '!F35/'Desempregados_idades '!G35 -> 0.2172236504 | H36: ='Desempregados_idades '!I35/'Desempregados_idades '!M35 -> 0.07055630936 | I36: ='Desempregados_idades '!J35/'Desempregados_idades '!M35 -> 0.2170963365 | J36: ='Desempregados_idades '!K35/'Desempregados_idades '!M35 -> 0.4911804613 | K36: ='Desempregados_idades '!L35/'Desempregados_idades '!M35 -> 0.2211668928 | M36: ='Desempregados_idades '!O35/'Desempregados_idades '!S35 -> 0.07113543092 | N36: ='Desempregados_idades '!P35/'Desempregados_idades '!S35 -> 0.2216142271 | O36: ='Desempregados_idades '!Q35/'Desempregados_idades '!S35 -> 0.4897400821 | P36: ='Desempregados_idades '!R35/'Desempregados_idades '!S35 -> 0.2175102599 | R36: ='Desempregados_idades '!U35/'Desempregados_idades '!Y35 -> 0.07211538462 | S36: ='Desempregados_idades '!V35/'Desempregados_idades '!Y35 -> 0.2227564103 | T36: ='Desempregados_idades '!W35/'Desempregados_idades '!Y35 -> 0.4663461538 | U36: ='Desempregados_idades '!X35/'Desempregados_idades '!Y35 -> 0.2387820513
B37: São Domingos de Benfica | C37: ='Desempregados_idades '!C36/'Desempregados_idades '!G36 -> 0.1004155125 | D37: ='Desempregados_idades '!D36/'Desempregados_idades '!G36 -> 0.2250692521 | E37: ='Desempregados_idades '!E36/'Desempregados_idades '!G36 -> 0.4688365651 | F37: ='Desempregados_idades '!F36/'Desempregados_idades '!G36 -> 0.2056786704 | H37: ='Desempregados_idades '!I36/'Desempregados_idades '!M36 -> 0.08728943338 | I37: ='Desempregados_idades '!J36/'Desempregados_idades '!M36 -> 0.2052067381 | J37: ='Desempregados_idades '!K36/'Desempregados_idades '!M36 -> 0.4839203675 | K37: ='Desempregados_idades '!L36/'Desempregados_idades '!M36 -> 0.2235834609 | M37: ='Desempregados_idades '!O36/'Desempregados_idades '!S36 -> 0.09662576687 | N37: ='Desempregados_idades '!P36/'Desempregados_idades '!S36 -> 0.2193251534 | O37: ='Desempregados_idades '!Q36/'Desempregados_idades '!S36 -> 0.4547546012 | P37: ='Desempregados_idades '!R36/'Desempregados_idades '!S36 -> 0.2292944785 | R37: ='Desempregados_idades '!U36/'Desempregados_idades '!Y36 -> 0.08422791082 | S37: ='Desempregados_idades '!V36/'Desempregados_idades '!Y36 -> 0.2287365813 | T37: ='Desempregados_idades '!W36/'Desempregados_idades '!Y36 -> 0.4591246903 | U37: ='Desempregados_idades '!X36/'Desempregados_idades '!Y36 -> 0.2279108175
B38: São Vicente | C38: ='Desempregados_idades '!C37/'Desempregados_idades '!G37 -> 0.1074540174 | D38: ='Desempregados_idades '!D37/'Desempregados_idades '!G37 -> 0.2352371733 | E38: ='Desempregados_idades '!E37/'Desempregados_idades '!G37 -> 0.4714424008 | F38: ='Desempregados_idades '!F37/'Desempregados_idades '!G37 -> 0.1858664085 | H38: ='Desempregados_idades '!I37/'Desempregados_idades '!M37 -> 0.08113804004 | I38: ='Desempregados_idades '!J37/'Desempregados_idades '!M37 -> 0.2065331928 | J38: ='Desempregados_idades '!K37/'Desempregados_idades '!M37 -> 0.5047418335 | K38: ='Desempregados_idades '!L37/'Desempregados_idades '!M37 -> 0.2075869336 | M38: ='Desempregados_idades '!O37/'Desempregados_idades '!S37 -> 0.07978142077 | N38: ='Desempregados_idades '!P37/'Desempregados_idades '!S37 -> 0.2098360656 | O38: ='Desempregados_idades '!Q37/'Desempregados_idades '!S37 -> 0.5027322404 | P38: ='Desempregados_idades '!R37/'Desempregados_idades '!S37 -> 0.2076502732 | R38: ='Desempregados_idades '!U37/'Desempregados_idades '!Y37 -> 0.06970849176 | S38: ='Desempregados_idades '!V37/'Desempregados_idades '!Y37 -> 0.2103929024 | T38: ='Desempregados_idades '!W37/'Desempregados_idades '!Y37 -> 0.4904942966 | U38: ='Desempregados_idades '!X37/'Desempregados_idades '!Y37 -> 0.2294043093
B40: Fonte: Instituto de Emprego e Formação Profissional
B41: Cálculos: OLCPL

Sheet Desempregados_ escolaridade
A5: Q.5 | B5: Número de desempregados inscritos nos Centros de Emprego, escolaridade, 2014
C7: Número de desempregados inscritos nos Centros de Emprego, escolaridade 2014
C8: 1º TRIMESTRE | K8: 2º TRIMESTRE | S8: 3º TRIMESTRE | AA8: 4º TRIMESTRE | AG8: 4
B9: Unidade: Nº | C9: < 1º Ciclo EB | D9: 1º Ciclo EB | E9: 2º Ciclo EB | F9: 3º Ciclo EB | G9: Secundário | H9: Superior | I9: Total | K9: < 1º Ciclo EB | L9: 1º Ciclo EB | M9: 2º Ciclo EB | N9: 3º Ciclo EB | O9: Secundário | P9: Superior | Q9: Total | S9: < 1º Ciclo EB | T9: 1º Ciclo EB | U9: 2º Ciclo EB | V9: 3º Ciclo EB | W9: Secundário | X9: Superior | Y9: Total | AA9: < 1º Ciclo EB | AB9: 1º Ciclo EB | AC9: 2º Ciclo EB | AD9: 3º Ciclo EB | AE9: Secundário | AF9: Superior | AG9: Total
B10: Portugal Continental | C10: 36015 | D10: 139252 | E10: 104097 | F10: 133291 | G10: 154322 | H10: 86524 | I10: 653501 | K10: 32958 | L10: 128710 | M10: 93072 | N10: 117609 | O10: 133310 | P10: 75020 | Q10: 580679 | S10: 32280 | T10: 123727 | U10: 88872 | V10: 112991 | W10: 137229 | X10: 87741 | Y10: 582840 | AA10: 31988 | AB10: 122338 | AC10: 89852 | AD10: 111792 | AE10: 133526 | AF10: 74816 | AG10: 564312
B11: AML | C11: 9626 | D11: 26300 | E11: 24922 | F11: 34833 | G11: 44376 | H11: 24455 | I11: 164512 | K11: 8876 | L11: 24606 | M11: 22674 | N11: 31437 | O11: 39654 | P11: 21518 | Q11: 148765 | S11: 8429 | T11: 23498 | U11: 21418 | V11: 30066 | W11: 40429 | X11: 23930 | Y11: 147770 | AA11: 8285 | AB11: 22853 | AC11: 20882 | AD11: 28263 | AE11: 37674 | AF11: 20900 | AG11: 138857
B12: Distrito de Lisboa | C12: 6946 | D12: 20864 | E12: 18958 | F12: 26248 | G12: 34766 | H12: 20018 | I12: 127800 | K12: 6393 | L12: 19433 | M12: 17303 | N12: 23744 | O12: 30698 | P12: 17789 | Q12: 115360 | S12: 6104 | T12: 18443 | U12: 16140 | V12: 22070 | W12: 30820 | X12: 19458 | Y12: 113035 | AA12: 5755 | AB12: 17864 | AC12: 15520 | AD12: 20645 | AE12: 28415 | AF12: 16880 | AG12: 105079
B13: Concelho de Lisboa | C13: 3013 | D13: 5499 | E13: 4705 | F13: 5570 | G13: 7649 | H13: 7514 | I13: 33950 | K13: =SUM(K14:K38) -> 2766 | L13: =SUM(L14:L38) -> 5221 | M13: 4393 | N13: 5310 | O13: 6807 | P13: 6671 | Q13: 31168 | S13: 2627 | T13: 5016 | U13: 4093 | V13: 4897 | W13: 6742 | X13: 7048 | Y13: =SUM(S13:X13) -> 30423 | AA13: 2443 | AB13: 4819 | AC13: 3843 | AD13: 4271 | AE13: 5779 | AF13: 6179 | AG13: 27334
B14: Ajuda | C14: 110 | D14: 208 | E14: 130 | F14: 179 | G14: 209 | H14: 145 | I14: 981 | K14: 109 | L14: 198 | M14: 152 | N14: 174 | O14: 193 | P14: 120 | Q14: 946 | S14: 112 | T14: 201 | U14: 135 | V14: 175 | W14: 199 | X14: 143 | Y14: =SUM(S14:X14) -> 965 | AA14: 114 | AB14: 191 | AC14: 127 | AD14: 141 | AE14: 164 | AF14: 110 | AG14: 847
B15: Alcântara | C15: 48 | D15: 118 | E15: 136 | F15: 144 | G15: 230 | H15: 176 | I15: 852 | K15: 40 | L15: 109 | M15: 123 | N15: 156 | O15: 190 | P15: 153 | Q15: 771 | S15: 29 | T15: 117 | U15: 106 | V15: 133 | W15: 194 | X15: 172 | Y15: =SUM(S15:X15) -> 751 | AA15: 24 | AB15: 125 | AC15: 109 | AD15: 117 | AE15: 143 | AF15: 142 | AG15: 660
B16: Alvalade | C16: 61 | D16: 127 | E16: 124 | F16: 212 | G16: 399 | H16: 521 | I16: 1444 | K16: 57 | L16: 121 | M16: 113 | N16: 181 | O16: 315 | P16: 453 | Q16: 1240 | S16: 59 | T16: 128 | U16: 104 | V16: 180 | W16: 304 | X16: 447 | Y16: 1222 | AA16: 53 | AB16: 120 | AC16: 82 | AD16: 150 | AE16: 261 | AF16: 407 | AG16: 1073
B17: Areeiro | C17: 54 | D17: 116 | E17: 107 | F17: 169 | G17: 308 | H17: 384 | I17: 1138 | K17: 50 | L17: 106 | M17: 96 | N17: 159 | O17: 261 | P17: 343 | Q17: 1015 | S17: 52 | T17: 94 | U17: 96 | V17: 140 | W17: 246 | X17: 367 | Y17: 995 | AA17: 45 | AB17: 87 | AC17: 79 | AD17: 120 | AE17: 226 | AF17: 342 | AG17: 899
B18: Arroios | C18: 386 | D18: 291 | E18: 299 | F18: 396 | G18: 584 | H18: 517 | I18: 2473 | K18: 318 | L18: 273 | M18: 280 | N18: 373 | O18: 540 | P18: 449 | Q18: 2233 | S18: 246 | T18: 256 | U18: 265 | V18: 342 | W18: 539 | X18: 509 | Y18: 2157 | AA18: 217 | AB18: 268 | AC18: 267 | AD18: 322 | AE18: 465 | AF18: 422 | AG18: 1961
B19: Avenidas Novas | C19: 64 | D19: 99 | E19: 88 | F19: 129 | G19: 317 | H19: 437 | I19: 1134 | K19: 72 | L19: 87 | M19: 88 | N19: 112 | O19: 268 | P19: 384 | Q19: 1011 | S19: 67 | T19: 79 | U19: 94 | V19: 95 | W19: 250 | X19: 421 | Y19: 1006 | AA19: 59 | AB19: 81 | AC19: 83 | AD19: 91 | AE19: 221 | AF19: 357 | AG19: 892
B20: Beato | C20: 153 | D20: 240 | E20: 231 | F20: 215 | G20: 192 | H20: 97 | I20: 1128 | K20: 134 | L20: 232 | M20: 222 | N20: 202 | O20: 178 | P20: 94 | Q20: 1062 | S20: 128 | T20: 227 | U20: 194 | V20: 164 | W20: 182 | X20: 91 | Y20: 986 | AA20: 125 | AB20: 220 | AC20: 182 | AD20: 141 | AE20: 150 | AF20: 66 | AG20: 884
B21: Belém | C21: 1 | D21: 24 | E21: 41 | F21: 56 | G21: 162 | H21: 252 | I21: 536 | K21: 5 | L21: 24 | M21: 37 | N21: 64 | O21: 139 | P21: 211 | Q21: 480 | S21: 7 | T21: 24 | U21: 35 | V21: 67 | W21: 140 | X21: 219 | Y21: 492 | AA21: 6 | AB21: 27 | AC21: 39 | AD21: 54 | AE21: 110 | AF21: 182 | AG21: 418
B22: Benfica | C22: 135 | D22: 350 | E22: 279 | F22: 384 | G22: 584 | H22: 572 | I22: 2304 | K22: 126 | L22: 336 | M22: 261 | N22: 392 | O22: 554 | P22: 493 | Q22: 2162 | S22: 117 | T22: 315 | U22: 222 | V22: 337 | W22: 530 | X22: 482 | Y22: 2003 | AA22: 130 | AB22: 314 | AC22: 253 | AD22: 313 | AE22: 501 | AF22: 449 | AG22: 1960
B23: Campo de Ourique | C23: 39 | D23: 138 | E23: 129 | F23: 195 | G23: 304 | H23: 283 | I23: 1088 | K23: 31 | L23: 137 | M23: 120 | N23: 205 | O23: 261 | P23: 278 | Q23: 1032 | S23: 35 | T23: 128 | U23: 117 | V23: 187 | W23: 283 | X23: 287 | Y23: 1037 | AA23: 39 | AB23: 118 | AC23: 120 | AD23: 181 | AE23: 268 | AF23: 238 | AG23: 964
B24: Campolide | C24: 48 | D24: 153 | E24: 158 | F24: 175 | G24: 212 | H24: 169 | I24: 915 | K24: 43 | L24: 143 | M24: 138 | N24: 142 | O24: 164 | P24: 127 | Q24: 757 | S24: 41 | T24: 144 | U24: 135 | V24: 141 | W24: 180 | X24: 132 | Y24: 773 | AA24: 47 | AB24: 148 | AC24: 142 | AD24: 122 | AE24: 155 | AF24: 128 | AG24: 742
B25: Carnide | C25: 116 | D25: 251 | E25: 184 | F25: 231 | G25: 206 | H25: 242 | I25: 1230 | K25: 112 | L25: 235 | M25: 173 | N25: 242 | O25: 188 | P25: 222 | Q25: 1172 | S25: 121 | T25: 223 | U25: 177 | V25: 219 | W25: 188 | X25: 221 | Y25: 1149 | AA25: 113 | AB25: 228 | AC25: 158 | AD25: 197 | AE25: 167 | AF25: 209 | AG25: 1072
B26: Estrela | C26: 36 | D26: 92 | E26: 84 | F26: 150 | G26: 252 | H26: 291 | I26: 905 | K26: 27 | L26: 98 | M26: 90 | N26: 151 | O26: 221 | P26: 257 | Q26: 844 | S26: 33 | T26: 90 | U26: 83 | V26: 133 | W26: 231 | X26: 272 | Y26: 842 | AA26: 22 | AB26: 89 | AC26: 75 | AD26: 109 | AE26: 208 | AF26: 240 | AG26: 743
B27: Lumiar | C27: 148 | D27: 317 | E27: 206 | F27: 279 | G27: 463 | H27: 817 | I27: 2230 | K27: 144 | L27: 294 | M27: 185 | N27: 263 | O27: 434 | P27: 719 | Q27: 2039 | S27: 139 | T27: 295 | U27: 186 | V27: 235 | W27: 375 | X27: 745 | Y27: 1975 | AA27: 137 | AB27: 269 | AC27: 176 | AD27: 227 | AE27: 370 | AF27: 684 | AG27: 1863
B28: Marvila | C28: 357 | D28: 962 | E28: 669 | F28: 599 | G28: 526 | H28: 222 | I28: 3335 | K28: 328 | L28: 900 | M28: 612 | N28: 578 | O28: 443 | P28: 180 | Q28: 3041 | S28: 333 | T28: 828 | U28: 565 | V28: 565 | W28: 443 | X28: 204 | Y28: 2938 | AA28: 298 | AB28: 772 | AC28: 498 | AD28: 450 | AE28: 363 | AF28: 144 | AG28: 2525
B29: Misericórdia | C29: 79 | D29: 130 | E29: 133 | F29: 141 | G29: 227 | H29: 200 | I29: 910 | K29: 75 | L29: 123 | M29: 116 | N29: 142 | O29: 212 | P29: 158 | Q29: 826 | S29: 64 | T29: 109 | U29: 111 | V29: 124 | W29: 200 | X29: 168 | Y29: 776 | AA29: 55 | AB29: 109 | AC29: 109 | AD29: 106 | AE29: 177 | AF29: 157 | AG29: 713
B30: Olivais | C30: 12 | D30: 31 | E30: 25 | F30: 36 | G30: 48 | H30: 41 | I30: 193 | K30: 21 | L30: 58 | M30: 54 | N30: 57 | O30: 83 | P30: 70 | Q30: 343 | S30: 22 | T30: 63 | U30: 76 | V30: 81 | W30: 117 | X30: 109 | Y30: 468 | AA30: 28 | AB30: 80 | AC30: 78 | AD30: 94 | AE30: 135 | AF30: 134 | AG30: 549
B31: Parque das Nações | C31: 206 | D31: 526 | E31: 451 | F31: 477 | G31: 582 | H31: 489 | I31: 2731 | K31: 201 | L31: 490 | M31: 414 | N31: 405 | O31: 495 | P31: 438 | Q31: 2443 | S31: 206 | T31: 450 | U31: 355 | V31: 364 | W31: 460 | X31: 445 | Y31: 2280 | AA31: 178 | AB31: 386 | AC31: 283 | AD31: 285 | AE31: 348 | AF31: 347 | AG31: 1827
B32: Penha de França | C32: 193 | D32: 274 | E32: 275 | F32: 351 | G32: 443 | H32: 352 | I32: 1888 | K32: 171 | L32: 232 | M32: 263 | N32: 327 | O32: 408 | P32: 323 | Q32: 1724 | S32: 152 | T32: 224 | U32: 245 | V32: 309 | W32: 433 | X32: 355 | Y32: 1718 | AA32: 129 | AB32: 223 | AC32: 239 | AD32: 287 | AE32: 343 | AF32: 283 | AG32: 1504
B33: Santa Clara | C33: 405 | D33: 523 | E33: 409 | F33: 331 | G33: 321 | H33: 176 | I33: 2165 | K33: 410 | L33: 534 | M33: 377 | N33: 292 | O33: 270 | P33: 166 | Q33: 2049 | S33: 401 | T33: 530 | U33: 353 | V33: 274 | W33: 310 | X33: 158 | Y33: 2026 | AA33: 381 | AB33: 508 | AC33: 331 | AD33: 237 | AE33: 219 | AF33: 141 | AG33: 1817
B34: Santa Maria Maior | C34: 176 | D34: 164 | E34: 173 | F34: 204 | G34: 189 | H34: 171 | I34: 1077 | K34: 140 | L34: 151 | M34: 149 | N34: 194 | O34: 182 | P34: 130 | Q34: 946 | S34: 121 | T34: 154 | U34: 128 | V34: 155 | W34: 171 | X34: 134 | Y34: 863 | AA34: 107 | AB34: 130 | AC34: 122 | AD34: 141 | AE34: 150 | AF34: 114 | AG34: 764
B35: Santo António | C35: 67 | D35: 90 | E35: 95 | F35: 118 | G35: 198 | H35: 210 | I35: 778 | K35: 49 | L35: 78 | M35: 81 | N35: 111 | O35: 203 | P35: 215 | Q35: 737 | S35: 44 | T35: 81 | U35: 74 | V35: 105 | W35: 211 | X35: 216 | Y35: 731 | AA35: 46 | AB35: 78 | AC35: 67 | AD35: 96 | AE35: 154 | AF35: 183 | AG35: 624
B36: São Domingos de Benfica | C36: 27 | D36: 110 | E36: 122 | F36: 194 | G36: 426 | H36: 565 | I36: 1444 | K36: 26 | L36: 103 | M36: 104 | N36: 186 | O36: 372 | P36: 515 | Q36: 1306 | S36: 27 | T36: 95 | U36: 105 | V36: 188 | W36: 325 | X36: 564 | Y36: 1304 | AA36: 27 | AB36: 99 | AC36: 99 | AD36: 154 | AE36: 311 | AF36: 521 | AG36: 1211
B37: São Vicente | C37: 91 | D37: 164 | E37: 152 | F37: 198 | G37: 253 | H37: 175 | I37: 1033 | K37: 77 | L37: 157 | M37: 142 | N37: 197 | O37: 225 | P37: 151 | Q37: 949 | S37: 71 | T37: 157 | U37: 127 | V37: 180 | W37: 220 | X37: 160 | Y37: 915 | AA37: 62 | AB37: 145 | AC37: 122 | AD37: 130 | AE37: 166 | AF37: 164 | AG37: 789
B38: Freg. Não Codificada | C38: 1 | D38: 1 | E38: 5 | F38: 7 | G38: 14 | H38: 10 | I38: 38 | K38: - | L38: 2 | M38: 3 | N38: 5 | O38: 8 | P38: 22 | Q38: 40 | S38: 0 | T38: 4 | U38: 5 | V38: 4 | W38: 11 | X38: 27 | Y38: 51 | AA38: 1 | AB38: 4 | AC38: 3 | AD38: 6 | AE38: 4 | AF38: 15 | AG38: 33
B40: Fonte: Instituto de Emprego e Formação Profissional
B41: Cálculos: OLCPL
B42: Notas n.d.: não disponível (para valores =< 5, por razões de confidencialidade dados não disponibilizados pela fonte)

Sheet Desempregados escolaridad %
A5: Q.6 | B5: Desempregados inscritos nos Centros de Emprego, escolaridade, 2014, (%)
C7: Desempregados inscritos nos Centros de Emprego, escolaridade
C8: %
C9: 1º TRIMESTRE | J9: 2º TRIMESTRE | Q9: 3º TRIMESTRE | X9: 4º TRIMESTRE
B10: Unidade: Nº e % | C10: < 1º Ciclo EB | D10: 1º Ciclo EB | E10: 2º Ciclo EB | F10: 3º Ciclo EB | G10: Secundário | H10: Superior | J10: < 1º Ciclo EB | K10: 1º Ciclo EB | L10: 2º Ciclo EB | M10: 3º Ciclo EB | N10: Secundário | O10: Superior | Q10: < 1º Ciclo EB | R10: 1º Ciclo EB | S10: 2º Ciclo EB | T10: 3º Ciclo EB | U10: Secundário | V10: Superior | X10: < 1º Ciclo EB | Y10: 1º Ciclo EB | Z10: 2º Ciclo EB | AA10: 3º Ciclo EB | AB10: Secundário | AC10: Superior
B11: Portugal Continental | C11: ='Desempregados_ escolaridade'!C10/'Desempregados_ escolaridade'!I10 -> 0.05511085675 | D11: ='Desempregados_ escolaridade'!D10/'Desempregados_ escolaridade'!I10 -> 0.2130861315 | E11: ='Desempregados_ escolaridade'!E10/'Desempregados_ escolaridade'!I10 -> 0.1592912635 | F11: ='Desempregados_ escolaridade'!F10/'Desempregados_ escolaridade'!I10 -> 0.2039644928 | G11: ='Desempregados_ escolaridade'!G10/'Desempregados_ escolaridade'!I10 -> 0.2361465399 | H11: ='Desempregados_ escolaridade'!H10/'Desempregados_ escolaridade'!I10 -> 0.1324007155 | J11: ='Desempregados_ escolaridade'!K10/'Desempregados_ escolaridade'!Q10 -> 0.05675769229 | K11: ='Desempregados_ escolaridade'!L10/'Desempregados_ escolaridade'!Q10 -> 0.2216543047 | L11: ='Desempregados_ escolaridade'!M10/'Desempregados_ escolaridade'!Q10 -> 0.1602813258 | M11: ='Desempregados_ escolaridade'!N10/'Desempregados_ escolaridade'!Q10 -> 0.2025370299 | N11: ='Desempregados_ escolaridade'!O10/'Desempregados_ escolaridade'!Q10 -> 0.2295760653 | O11: ='Desempregados_ escolaridade'!P10/'Desempregados_ escolaridade'!Q10 -> 0.129193582 | Q11: ='Desempregados_ escolaridade'!S10/'Desempregados_ escolaridade'!Y10 -> 0.05538398188 | R11: ='Desempregados_ escolaridade'!T10/'Desempregados_ escolaridade'!Y10 -> 0.2122829593 | S11: ='Desempregados_ escolaridade'!U10/'Desempregados_ escolaridade'!Y10 -> 0.1524809553 | T11: ='Desempregados_ escolaridade'!V10/'Desempregados_ escolaridade'!Y10 -> 0.1938628097 | U11: ='Desempregados_ escolaridade'!W10/'Desempregados_ escolaridade'!Y10 -> 0.2354488367 | V11: ='Desempregados_ escolaridade'!X10/'Desempregados_ escolaridade'!Y10 -> 0.1505404571 | X11: ='Desempregados_ escolaridade'!AA10/'Desempregados_ escolaridade'!AG10 -> 0.05668495442 | Y11: ='Desempregados_ escolaridade'!AB10/'Desempregados_ escolaridade'!AG10 -> 0.2167914203 | Z11: ='Desempregados_ escolaridade'!AC10/'Desempregados_ escolaridade'!AG10 -> 0.1592239754 | AA11: ='Desempregados_ escolaridade'!AD10/'Desempregados_ escolaridade'!AG10 -> 0.198103177 | AB11: ='Desempregados_ escolaridade'!AE10/'Desempregados_ escolaridade'!AG10 -> 0.2366173323 | AC11: ='Desempregados_ escolaridade'!AF10/'Desempregados_ escolaridade'!AG10 -> 0.1325791406
B12: AML | C12: ='Desempregados_ escolaridade'!C11/'Desempregados_ escolaridade'!I11 -> 0.05851244894 | D12: ='Desempregados_ escolaridade'!D11/'Desempregados_ escolaridade'!I11 -> 0.1598667574 | E12: ='Desempregados_ escolaridade'!E11/'Desempregados_ escolaridade'!I11 -> 0.1514904688 | F12: ='Desempregados_ escolaridade'!F11/'Desempregados_ escolaridade'!I11 -> 0.2117353141 | G12: ='Desempregados_ escolaridade'!G11/'Desempregados_ escolaridade'!I11 -> 0.2697432406 | H12: ='Desempregados_ escolaridade'!H11/'Desempregados_ escolaridade'!I11 -> 0.1486517701 | J12: ='Desempregados_ escolaridade'!K11/'Desempregados_ escolaridade'!Q11 -> 0.05966457164 | K12: ='Desempregados_ escolaridade'!L11/'Desempregados_ escolaridade'!Q11 -> 0.1654018082 | L12: ='Desempregados_ escolaridade'!M11/'Desempregados_ escolaridade'!Q11 -> 0.1524148825 | M12: ='Desempregados_ escolaridade'!N11/'Desempregados_ escolaridade'!Q11 -> 0.2113198669 | N12: ='Desempregados_ escolaridade'!O11/'Desempregados_ escolaridade'!Q11 -> 0.2665546331 | O12: ='Desempregados_ escolaridade'!P11/'Desempregados_ escolaridade'!Q11 -> 0.1446442376 | Q12: ='Desempregados_ escolaridade'!S11/'Desempregados_ escolaridade'!Y11 -> 0.05704134804 | R12: ='Desempregados_ escolaridade'!T11/'Desempregados_ escolaridade'!Y11 -> 0.1590173919 | S12: ='Desempregados_ escolaridade'!U11/'Desempregados_ escolaridade'!Y11 -> 0.1449414631 | T12: ='Desempregados_ escolaridade'!V11/'Desempregados_ escolaridade'!Y11 -> 0.203464844 | U12: ='Desempregados_ escolaridade'!W11/'Desempregados_ escolaridade'!Y11 -> 0.2735940989 | V12: ='Desempregados_ escolaridade'!X11/'Desempregados_ escolaridade'!Y11 -> 0.161940854 | X12: ='Desempregados_ escolaridade'!AA11/'Desempregados_ escolaridade'!AG11 -> 0.05966569924 | Y12: ='Desempregados_ escolaridade'!AB11/'Desempregados_ escolaridade'!AG11 -> 0.1645793874 | Z12: ='Desempregados_ escolaridade'!AC11/'Desempregados_ escolaridade'!AG11 -> 0.1503849284 | AA12: ='Desempregados_ escolaridade'!AD11/'Desempregados_ escolaridade'!AG11 -> 0.2035403329 | AB12: ='Desempregados_ escolaridade'!AE11/'Desempregados_ escolaridade'!AG11 -> 0.2713150939 | AC12: ='Desempregados_ escolaridade'!AF11/'Desempregados_ escolaridade'!AG11 -> 0.1505145581
B13: Distrito de Lisboa | C13: ='Desempregados_ escolaridade'!C12/'Desempregados_ escolaridade'!I12 -> 0.05435054773 | D13: ='Desempregados_ escolaridade'!D12/'Desempregados_ escolaridade'!I12 -> 0.1632550861 | E13: ='Desempregados_ escolaridade'!E12/'Desempregados_ escolaridade'!I12 -> 0.1483411581 | F13: ='Desempregados_ escolaridade'!F12/'Desempregados_ escolaridade'!I12 -> 0.2053834116 | G13: ='Desempregados_ escolaridade'!G12/'Desempregados_ escolaridade'!I12 -> 0.2720344288 | H13: ='Desempregados_ escolaridade'!H12/'Desempregados_ escolaridade'!I12 -> 0.1566353678 | J13: ='Desempregados_ escolaridade'!K12/'Desempregados_ escolaridade'!Q12 -> 0.05541782247 | K13: ='Desempregados_ escolaridade'!L12/'Desempregados_ escolaridade'!Q12 -> 0.1684552705 | L13: ='Desempregados_ escolaridade'!M12/'Desempregados_ escolaridade'!Q12 -> 0.1499913315 | M13: ='Desempregados_ escolaridade'!N12/'Desempregados_ escolaridade'!Q12 -> 0.2058252427 | N13: ='Desempregados_ escolaridade'!O12/'Desempregados_ escolaridade'!Q12 -> 0.2661061026 | O13: ='Desempregados_ escolaridade'!P12/'Desempregados_ escolaridade'!Q12 -> 0.1542042302 | Q13: ='Desempregados_ escolaridade'!S12/'Desempregados_ escolaridade'!Y12 -> 0.05400097315 | R13: ='Desempregados_ escolaridade'!T12/'Desempregados_ escolaridade'!Y12 -> 0.1631618525 | S13: ='Desempregados_ escolaridade'!U12/'Desempregados_ escolaridade'!Y12 -> 0.1427876321 | T13: ='Desempregados_ escolaridade'!V12/'Desempregados_ escolaridade'!Y12 -> 0.1952492591 | U13: ='Desempregados_ escolaridade'!W12/'Desempregados_ escolaridade'!Y12 -> 0.272658911 | V13: ='Desempregados_ escolaridade'!X12/'Desempregados_ escolaridade'!Y12 -> 0.1721413721 | X13: ='Desempregados_ escolaridade'!AA12/'Desempregados_ escolaridade'!AG12 -> 0.05476831717 | Y13: ='Desempregados_ escolaridade'!AB12/'Desempregados_ escolaridade'!AG12 -> 0.1700054245 | Z13: ='Desempregados_ escolaridade'!AC12/'Desempregados_ escolaridade'!AG12 -> 0.1476983983 | AA13: ='Desempregados_ escolaridade'!AD12/'Desempregados_ escolaridade'!AG12 -> 0.1964712264 | AB13: ='Desempregados_ escolaridade'!AE12/'Desempregados_ escolaridade'!AG12 -> 0.2704155921 | AC13: ='Desempregados_ escolaridade'!AF12/'Desempregados_ escolaridade'!AG12 -> 0.1606410415
B14: Concelho de Lisboa | C14: ='Desempregados_ escolaridade'!C13/'Desempregados_ escolaridade'!I13 -> 0.08874815906 | D14: ='Desempregados_ escolaridade'!D13/'Desempregados_ escolaridade'!I13 -> 0.1619734904 | E14: ='Desempregados_ escolaridade'!E13/'Desempregados_ escolaridade'!I13 -> 0.1385861561 | F14: ='Desempregados_ escolaridade'!F13/'Desempregados_ escolaridade'!I13 -> 0.1640648012 | G14: ='Desempregados_ escolaridade'!G13/'Desempregados_ escolaridade'!I13 -> 0.2253019146 | H14: ='Desempregados_ escolaridade'!H13/'Desempregados_ escolaridade'!I13 -> 0.2213254786 | J14: ='Desempregados_ escolaridade'!K13/'Desempregados_ escolaridade'!Q13 -> 0.08874486653 | K14: ='Desempregados_ escolaridade'!L13/'Desempregados_ escolaridade'!Q13 -> 0.1675115503 | L14: ='Desempregados_ escolaridade'!M13/'Desempregados_ escolaridade'!Q13 -> 0.1409458419 | M14: ='Desempregados_ escolaridade'!N13/'Desempregados_ escolaridade'!Q13 -> 0.1703670431 | N14: ='Desempregados_ escolaridade'!O13/'Desempregados_ escolaridade'!Q13 -> 0.2183970739 | O14: ='Desempregados_ escolaridade'!P13/'Desempregados_ escolaridade'!Q13 -> 0.2140336242 | Q14: ='Desempregados_ escolaridade'!S13/'Desempregados_ escolaridade'!Y13 -> 0.08634914374 | R14: ='Desempregados_ escolaridade'!T13/'Desempregados_ escolaridade'!Y13 -> 0.1648752589 | S14: ='Desempregados_ escolaridade'!U13/'Desempregados_ escolaridade'!Y13 -> 0.1345363705 | T14: ='Desempregados_ escolaridade'!V13/'Desempregados_ escolaridade'!Y13 -> 0.1609637445 | U14: ='Desempregados_ escolaridade'!W13/'Desempregados_ escolaridade'!Y13 -> 0.2216086513 | V14: ='Desempregados_ escolaridade'!X13/'Desempregados_ escolaridade'!Y13 -> 0.231666831 | X14: ='Desempregados_ escolaridade'!AA13/'Desempregados_ escolaridade'!AG13 -> 0.08937586888 | Y14: ='Desempregados_ escolaridade'!AB13/'Desempregados_ escolaridade'!AG13 -> 0.176300578 | Z14: ='Desempregados_ escolaridade'!AC13/'Desempregados_ escolaridade'!AG13 -> 0.1405941319 | AA14: ='Desempregados_ escolaridade'!AD13/'Desempregados_ escolaridade'!AG13 -> 0.1562522865 | AB14: ='Desempregados_ escolaridade'!AE13/'Desempregados_ escolaridade'!AG13 -> 0.2114216726 | AC14: ='Desempregados_ escolaridade'!AF13/'Desempregados_ escolaridade'!AG13 -> 0.2260554621
B15: Ajuda | C15: ='Desempregados_ escolaridade'!C14/'Desempregados_ escolaridade'!I14 -> 0.1121304791 | D15: ='Desempregados_ escolaridade'!D14/'Desempregados_ escolaridade'!I14 -> 0.2120285423 | E15: ='Desempregados_ escolaridade'!E14/'Desempregados_ escolaridade'!I14 -> 0.1325178389 | F15: ='Desempregados_ escolaridade'!F14/'Desempregados_ escolaridade'!I14 -> 0.1824668705 | G15: ='Desempregados_ escolaridade'!G14/'Desempregados_ escolaridade'!I14 -> 0.2130479103 | H15: ='Desempregados_ escolaridade'!H14/'Desempregados_ escolaridade'!I14 -> 0.1478083588 | J15: ='Desempregados_ escolaridade'!K14/'Desempregados_ escolaridade'!Q14 -> 0.1152219873 | K15: ='Desempregados_ escolaridade'!L14/'Desempregados_ escolaridade'!Q14 -> 0.2093023256 | L15: ='Desempregados_ escolaridade'!M14/'Desempregados_ escolaridade'!Q14 -> 0.1606765328 | M15: ='Desempregados_ escolaridade'!N14/'Desempregados_ escolaridade'!Q14 -> 0.1839323467 | N15: ='Desempregados_ escolaridade'!O14/'Desempregados_ escolaridade'!Q14 -> 0.2040169133 | O15: ='Desempregados_ escolaridade'!P14/'Desempregados_ escolaridade'!Q14 -> 0.1268498943 | Q15: ='Desempregados_ escolaridade'!S14/'Desempregados_ escolaridade'!Y14 -> 0.1160621762 | R15: ='Desempregados_ escolaridade'!T14/'Desempregados_ escolaridade'!Y14 -> 0.2082901554 | S15: ='Desempregados_ escolaridade'!U14/'Desempregados_ escolaridade'!Y14 -> 0.1398963731 | T15: ='Desempregados_ escolaridade'!V14/'Desempregados_ escolaridade'!Y14 -> 0.1813471503 | U15: ='Desempregados_ escolaridade'!W14/'Desempregados_ escolaridade'!Y14 -> 0.2062176166 | V15: ='Desempregados_ escolaridade'!X14/'Desempregados_ escolaridade'!Y14 -> 0.1481865285 | X15: ='Desempregados_ escolaridade'!AA14/'Desempregados_ escolaridade'!AG14 -> 0.13459268 | Y15: ='Desempregados_ escolaridade'!AB14/'Desempregados_ escolaridade'!AG14 -> 0.225501771 | Z15: ='Desempregados_ escolaridade'!AC14/'Desempregados_ escolaridade'!AG14 -> 0.1499409681 | AA15: ='Desempregados_ escolaridade'!AD14/'Desempregados_ escolaridade'!AG14 -> 0.1664698937 | AB15: ='Desempregados_ escolaridade'!AE14/'Desempregados_ escolaridade'!AG14 -> 0.1936245573 | AC15: ='Desempregados_ escolaridade'!AF14/'Desempregados_ escolaridade'!AG14 -> 0.1298701299
B16: Alcântara | C16: ='Desempregados_ escolaridade'!C15/'Desempregados_ escolaridade'!I15 -> 0.05633802817 | D16: ='Desempregados_ escolaridade'!D15/'Desempregados_ escolaridade'!I15 -> 0.1384976526 | E16: ='Desempregados_ escolaridade'!E15/'Desempregados_ escolaridade'!I15 -> 0.1596244131 | F16: ='Desempregados_ escolaridade'!F15/'Desempregados_ escolaridade'!I15 -> 0.1690140845 | G16: ='Desempregados_ escolaridade'!G15/'Desempregados_ escolaridade'!I15 -> 0.2699530516 | H16: ='Desempregados_ escolaridade'!H15/'Desempregados_ escolaridade'!I15 -> 0.20657277 | J16: ='Desempregados_ escolaridade'!K15/'Desempregados_ escolaridade'!Q15 -> 0.05188067445 | K16: ='Desempregados_ escolaridade'!L15/'Desempregados_ escolaridade'!Q15 -> 0.1413748379 | L16: ='Desempregados_ escolaridade'!M15/'Desempregados_ escolaridade'!Q15 -> 0.1595330739 | M16: ='Desempregados_ escolaridade'!N15/'Desempregados_ escolaridade'!Q15 -> 0.2023346304 | N16: ='Desempregados_ escolaridade'!O15/'Desempregados_ escolaridade'!Q15 -> 0.2464332036 | O16: ='Desempregados_ escolaridade'!P15/'Desempregados_ escolaridade'!Q15 -> 0.1984435798 | Q16: ='Desempregados_ escolaridade'!S15/'Desempregados_ escolaridade'!Y15 -> 0.03861517976 | R16: ='Desempregados_ escolaridade'!T15/'Desempregados_ escolaridade'!Y15 -> 0.155792277 | S16: ='Desempregados_ escolaridade'!U15/'Desempregados_ escolaridade'!Y15 -> 0.1411451398 | T16: ='Desempregados_ escolaridade'!V15/'Desempregados_ escolaridade'!Y15 -> 0.1770972037 | U16: ='Desempregados_ escolaridade'!W15/'Desempregados_ escolaridade'!Y15 -> 0.258322237 | V16: ='Desempregados_ escolaridade'!X15/'Desempregados_ escolaridade'!Y15 -> 0.2290279627 | X16: ='Desempregados_ escolaridade'!AA15/'Desempregados_ escolaridade'!AG15 -> 0.03636363636 | Y16: ='Desempregados_ escolaridade'!AB15/'Desempregados_ escolaridade'!AG15 -> 0.1893939394 | Z16: ='Desempregados_ escolaridade'!AC15/'Desempregados_ escolaridade'!AG15 -> 0.1651515152 | AA16: ='Desempregados_ escolaridade'!AD15/'Desempregados_ escolaridade'!AG15 -> 0.1772727273 | AB16: ='Desempregados_ escolaridade'!AE15/'Desempregados_ escolaridade'!AG15 -> 0.2166666667 | AC16: ='Desempregados_ escolaridade'!AF15/'Desempregados_ escolaridade'!AG15 -> 0.2151515152
B17: Alvalade | C17: ='Desempregados_ escolaridade'!C16/'Desempregados_ escolaridade'!I16 -> 0.04224376731 | D17: ='Desempregados_ escolaridade'!D16/'Desempregados_ escolaridade'!I16 -> 0.0879501385 | E17: ='Desempregados_ escolaridade'!E16/'Desempregados_ escolaridade'!I16 -> 0.08587257618 | F17: ='Desempregados_ escolaridade'!F16/'Desempregados_ escolaridade'!I16 -> 0.1468144044 | G17: ='Desempregados_ escolaridade'!G16/'Desempregados_ escolaridade'!I16 -> 0.2763157895 | H17: ='Desempregados_ escolaridade'!H16/'Desempregados_ escolaridade'!I16 -> 0.3608033241 | J17: ='Desempregados_ escolaridade'!K16/'Desempregados_ escolaridade'!Q16 -> 0.04596774194 | K17: ='Desempregados_ escolaridade'!L16/'Desempregados_ escolaridade'!Q16 -> 0.09758064516 | L17: ='Desempregados_ escolaridade'!M16/'Desempregados_ escolaridade'!Q16 -> 0.09112903226 | M17: ='Desempregados_ escolaridade'!N16/'Desempregados_ escolaridade'!Q16 -> 0.1459677419 | N17: ='Desempregados_ escolaridade'!O16/'Desempregados_ escolaridade'!Q16 -> 0.2540322581 | O17: ='Desempregados_ escolaridade'!P16/'Desempregados_ escolaridade'!Q16 -> 0.3653225806 | Q17: ='Desempregados_ escolaridade'!S16/'Desempregados_ escolaridade'!Y16 -> 0.04828150573 | R17: ='Desempregados_ escolaridade'!T16/'Desempregados_ escolaridade'!Y16 -> 0.1047463175 | S17: ='Desempregados_ escolaridade'!U16/'Desempregados_ escolaridade'!Y16 -> 0.08510638298 | T17: ='Desempregados_ escolaridade'!V16/'Desempregados_ escolaridade'!Y16 -> 0.147299509 | U17: ='Desempregados_ escolaridade'!W16/'Desempregados_ escolaridade'!Y16 -> 0.2487725041 | V17: ='Desempregados_ escolaridade'!X16/'Desempregados_ escolaridade'!Y16 -> 0.3657937807 | X17: ='Desempregados_ escolaridade'!AA16/'Desempregados_ escolaridade'!AG16 -> 0.04939422181 | Y17: ='Desempregados_ escolaridade'!AB16/'Desempregados_ escolaridade'!AG16 -> 0.1118359739 | Z17: ='Desempregados_ escolaridade'!AC16/'Desempregados_ escolaridade'!AG16 -> 0.07642124884 | AA17: ='Desempregados_ escolaridade'!AD16/'Desempregados_ escolaridade'!AG16 -> 0.1397949674 | AB17: ='Desempregados_ escolaridade'!AE16/'Desempregados_ escolaridade'!AG16 -> 0.2432432432 | AC17: ='Desempregados_ escolaridade'!AF16/'Desempregados_ escolaridade'!AG16 -> 0.3793103448
B18: Areeiro | C18: ='Desempregados_ escolaridade'!C17/'Desempregados_ escolaridade'!I17 -> 0.0474516696 | D18: ='Desempregados_ escolaridade'!D17/'Desempregados_ escolaridade'!I17 -> 0.1019332162 | E18: ='Desempregados_ escolaridade'!E17/'Desempregados_ escolaridade'!I17 -> 0.09402460457 | F18: ='Desempregados_ escolaridade'!F17/'Desempregados_ escolaridade'!I17 -> 0.1485061511 | G18: ='Desempregados_ escolaridade'!G17/'Desempregados_ escolaridade'!I17 -> 0.2706502636 | H18: ='Desempregados_ escolaridade'!H17/'Desempregados_ escolaridade'!I17 -> 0.3374340949 | J18: ='Desempregados_ escolaridade'!K17/'Desempregados_ escolaridade'!Q17 -> 0.04926108374 | K18: ='Desempregados_ escolaridade'!L17/'Desempregados_ escolaridade'!Q17 -> 0.1044334975 | L18: ='Desempregados_ escolaridade'!M17/'Desempregados_ escolaridade'!Q17 -> 0.09458128079 | M18: ='Desempregados_ escolaridade'!N17/'Desempregados_ escolaridade'!Q17 -> 0.1566502463 | N18: ='Desempregados_ escolaridade'!O17/'Desempregados_ escolaridade'!Q17 -> 0.2571428571 | O18: ='Desempregados_ escolaridade'!P17/'Desempregados_ escolaridade'!Q17 -> 0.3379310345 | Q18: ='Desempregados_ escolaridade'!S17/'Desempregados_ escolaridade'!Y17 -> 0.05226130653 | R18: ='Desempregados_ escolaridade'!T17/'Desempregados_ escolaridade'!Y17 -> 0.09447236181 | S18: ='Desempregados_ escolaridade'!U17/'Desempregados_ escolaridade'!Y17 -> 0.09648241206 | T18: ='Desempregados_ escolaridade'!V17/'Desempregados_ escolaridade'!Y17 -> 0.1407035176 | U18: ='Desempregados_ escolaridade'!W17/'Desempregados_ escolaridade'!Y17 -> 0.2472361809 | V18: ='Desempregados_ escolaridade'!X17/'Desempregados_ escolaridade'!Y17 -> 0.3688442211 | X18: ='Desempregados_ escolaridade'!AA17/'Desempregados_ escolaridade'!AG17 -> 0.05005561735 | Y18: ='Desempregados_ escolaridade'!AB17/'Desempregados_ escolaridade'!AG17 -> 0.09677419355 | Z18: ='Desempregados_ escolaridade'!AC17/'Desempregados_ escolaridade'!AG17 -> 0.08787541713 | AA18: ='Desempregados_ escolaridade'!AD17/'Desempregados_ escolaridade'!AG17 -> 0.1334816463 | AB18: ='Desempregados_ escolaridade'!AE17/'Desempregados_ escolaridade'!AG17 -> 0.2513904338 | AC18: ='Desempregados_ escolaridade'!AF17/'Desempregados_ escolaridade'!AG17 -> 0.3804226919
B19: Arroios | C19: ='Desempregados_ escolaridade'!C18/'Desempregados_ escolaridade'!I18 -> 0.1560857258 | D19: ='Desempregados_ escolaridade'!D18/'Desempregados_ escolaridade'!I18 -> 0.1176708451 | E19: ='Desempregados_ escolaridade'!E18/'Desempregados_ escolaridade'!I18 -> 0.1209057825 | F19: ='Desempregados_ escolaridade'!F18/'Desempregados_ escolaridade'!I18 -> 0.1601293975 | G19: ='Desempregados_ escolaridade'!G18/'Desempregados_ escolaridade'!I18 -> 0.2361504246 | H19: ='Desempregados_ escolaridade'!H18/'Desempregados_ escolaridade'!I18 -> 0.2090578245 | J19: ='Desempregados_ escolaridade'!K18/'Desempregados_ escolaridade'!Q18 -> 0.1424093148 | K19: ='Desempregados_ escolaridade'!L18/'Desempregados_ escolaridade'!Q18 -> 0.1222570533 | L19: ='Desempregados_ escolaridade'!M18/'Desempregados_ escolaridade'!Q18 -> 0.1253918495 | M19: ='Desempregados_ escolaridade'!N18/'Desempregados_ escolaridade'!Q18 -> 0.1670398567 | N19: ='Desempregados_ escolaridade'!O18/'Desempregados_ escolaridade'!Q18 -> 0.2418271384 | O19: ='Desempregados_ escolaridade'!P18/'Desempregados_ escolaridade'!Q18 -> 0.2010747873 | Q19: ='Desempregados_ escolaridade'!S18/'Desempregados_ escolaridade'!Y18 -> 0.1140472879 | R19: ='Desempregados_ escolaridade'!T18/'Desempregados_ escolaridade'!Y18 -> 0.1186833565 | S19: ='Desempregados_ escolaridade'!U18/'Desempregados_ escolaridade'!Y18 -> 0.1228558183 | T19: ='Desempregados_ escolaridade'!V18/'Desempregados_ escolaridade'!Y18 -> 0.1585535466 | U19: ='Desempregados_ escolaridade'!W18/'Desempregados_ escolaridade'!Y18 -> 0.2498840983 | V19: ='Desempregados_ escolaridade'!X18/'Desempregados_ escolaridade'!Y18 -> 0.2359758924 | X19: ='Desempregados_ escolaridade'!AA18/'Desempregados_ escolaridade'!AG18 -> 0.1106578276 | Y19: ='Desempregados_ escolaridade'!AB18/'Desempregados_ escolaridade'!AG18 -> 0.1366649669 | Z19: ='Desempregados_ escolaridade'!AC18/'Desempregados_ escolaridade'!AG18 -> 0.1361550229 | AA19: ='Desempregados_ escolaridade'!AD18/'Desempregados_ escolaridade'!AG18 -> 0.1642019378 | AB19: ='Desempregados_ escolaridade'!AE18/'Desempregados_ escolaridade'!AG18 -> 0.2371239164 | AC19: ='Desempregados_ escolaridade'!AF18/'Desempregados_ escolaridade'!AG18 -> 0.2151963284
B20: Avenidas Novas | C20: ='Desempregados_ escolaridade'!C19/'Desempregados_ escolaridade'!I19 -> 0.05643738977 | D20: ='Desempregados_ escolaridade'!D19/'Desempregados_ escolaridade'!I19 -> 0.0873015873 | E20: ='Desempregados_ escolaridade'!E19/'Desempregados_ escolaridade'!I19 -> 0.07760141093 | F20: ='Desempregados_ escolaridade'!F19/'Desempregados_ escolaridade'!I19 -> 0.1137566138 | G20: ='Desempregados_ escolaridade'!G19/'Desempregados_ escolaridade'!I19 -> 0.2795414462 | H20: ='Desempregados_ escolaridade'!H19/'Desempregados_ escolaridade'!I19 -> 0.385361552 | J20: ='Desempregados_ escolaridade'!K19/'Desempregados_ escolaridade'!Q19 -> 0.07121661721 | K20: ='Desempregados_ escolaridade'!L19/'Desempregados_ escolaridade'!Q19 -> 0.08605341246 | L20: ='Desempregados_ escolaridade'!M19/'Desempregados_ escolaridade'!Q19 -> 0.08704253215 | M20: ='Desempregados_ escolaridade'!N19/'Desempregados_ escolaridade'!Q19 -> 0.1107814045 | N20: ='Desempregados_ escolaridade'!O19/'Desempregados_ escolaridade'!Q19 -> 0.2650840752 | O20: ='Desempregados_ escolaridade'!P19/'Desempregados_ escolaridade'!Q19 -> 0.3798219585 | Q20: ='Desempregados_ escolaridade'!S19/'Desempregados_ escolaridade'!Y19 -> 0.06660039761 | R20: ='Desempregados_ escolaridade'!T19/'Desempregados_ escolaridade'!Y19 -> 0.07852882704 | S20: ='Desempregados_ escolaridade'!U19/'Desempregados_ escolaridade'!Y19 -> 0.09343936382 | T20: ='Desempregados_ escolaridade'!V19/'Desempregados_ escolaridade'!Y19 -> 0.0944333996 | U20: ='Desempregados_ escolaridade'!W19/'Desempregados_ escolaridade'!Y19 -> 0.2485089463 | V20: ='Desempregados_ escolaridade'!X19/'Desempregados_ escolaridade'!Y19 -> 0.4184890656 | X20: ='Desempregados_ escolaridade'!AA19/'Desempregados_ escolaridade'!AG19 -> 0.06614349776 | Y20: ='Desempregados_ escolaridade'!AB19/'Desempregados_ escolaridade'!AG19 -> 0.09080717489 | Z20: ='Desempregados_ escolaridade'!AC19/'Desempregados_ escolaridade'!AG19 -> 0.09304932735 | AA20: ='Desempregados_ escolaridade'!AD19/'Desempregados_ escolaridade'!AG19 -> 0.1020179372 | AB20: ='Desempregados_ escolaridade'!AE19/'Desempregados_ escolaridade'!AG19 -> 0.2477578475 | AC20: ='Desempregados_ escolaridade'!AF19/'Desempregados_ escolaridade'!AG19 -> 0.4002242152
B21: Beato | C21: ='Desempregados_ escolaridade'!C20/'Desempregados_ escolaridade'!I20 -> 0.1356382979 | D21: ='Desempregados_ escolaridade'!D20/'Desempregados_ escolaridade'!I20 -> 0.2127659574 | E21: ='Desempregados_ escolaridade'!E20/'Desempregados_ escolaridade'!I20 -> 0.204787234 | F21: ='Desempregados_ escolaridade'!F20/'Desempregados_ escolaridade'!I20 -> 0.1906028369 | G21: ='Desempregados_ escolaridade'!G20/'Desempregados_ escolaridade'!I20 -> 0.170212766 | H21: ='Desempregados_ escolaridade'!H20/'Desempregados_ escolaridade'!I20 -> 0.0859929078 | J21: ='Desempregados_ escolaridade'!K20/'Desempregados_ escolaridade'!Q20 -> 0.1261770245 | K21: ='Desempregados_ escolaridade'!L20/'Desempregados_ escolaridade'!Q20 -> 0.2184557439 | L21: ='Desempregados_ escolaridade'!M20/'Desempregados_ escolaridade'!Q20 -> 0.209039548 | M21: ='Desempregados_ escolaridade'!N20/'Desempregados_ escolaridade'!Q20 -> 0.1902071563 | N21: ='Desempregados_ escolaridade'!O20/'Desempregados_ escolaridade'!Q20 -> 0.1676082863 | O21: ='Desempregados_ escolaridade'!P20/'Desempregados_ escolaridade'!Q20 -> 0.08851224105 | Q21: ='Desempregados_ escolaridade'!S20/'Desempregados_ escolaridade'!Y20 -> 0.1298174442 | R21: ='Desempregados_ escolaridade'!T20/'Desempregados_ escolaridade'!Y20 -> 0.2302231237 | S21: ='Desempregados_ escolaridade'!U20/'Desempregados_ escolaridade'!Y20 -> 0.1967545639 | T21: ='Desempregados_ escolaridade'!V20/'Desempregados_ escolaridade'!Y20 -> 0.1663286004 | U21: ='Desempregados_ escolaridade'!W20/'Desempregados_ escolaridade'!Y20 -> 0.1845841785 | V21: ='Desempregados_ escolaridade'!X20/'Desempregados_ escolaridade'!Y20 -> 0.09229208925 | X21: ='Desempregados_ escolaridade'!AA20/'Desempregados_ escolaridade'!AG20 -> 0.1414027149 | Y21: ='Desempregados_ escolaridade'!AB20/'Desempregados_ escolaridade'!AG20 -> 0.2488687783 | Z21: ='Desempregados_ escolaridade'!AC20/'Desempregados_ escolaridade'!AG20 -> 0.2058823529 | AA21: ='Desempregados_ escolaridade'!AD20/'Desempregados_ escolaridade'!AG20 -> 0.1595022624 | AB21: ='Desempregados_ escolaridade'!AE20/'Desempregados_ escolaridade'!AG20 -> 0.1696832579 | AC21: ='Desempregados_ escolaridade'!AF20/'Desempregados_ escolaridade'!AG20 -> 0.07466063348
B22: Belém | C22: ='Desempregados_ escolaridade'!C21/'Desempregados_ escolaridade'!I21 -> 0.001865671642 | D22: ='Desempregados_ escolaridade'!D21/'Desempregados_ escolaridade'!I21 -> 0.0447761194 | E22: ='Desempregados_ escolaridade'!E21/'Desempregados_ escolaridade'!I21 -> 0.07649253731 | F22: ='Desempregados_ escolaridade'!F21/'Desempregados_ escolaridade'!I21 -> 0.1044776119 | G22: ='Desempregados_ escolaridade'!G21/'Desempregados_ escolaridade'!I21 -> 0.302238806 | H22: ='Desempregados_ escolaridade'!H21/'Desempregados_ escolaridade'!I21 -> 0.4701492537 | J22: ='Desempregados_ escolaridade'!K21/'Desempregados_ escolaridade'!Q21 -> 0.01041666667 | K22: ='Desempregados_ escolaridade'!L21/'Desempregados_ escolaridade'!Q21 -> 0.05 | L22: ='Desempregados_ escolaridade'!M21/'Desempregados_ escolaridade'!Q21 -> 0.07708333333 | M22: ='Desempregados_ escolaridade'!N21/'Desempregados_ escolaridade'!Q21 -> 0.1333333333 | N22: ='Desempregados_ escolaridade'!O21/'Desempregados_ escolaridade'!Q21 -> 0.2895833333 | O22: ='Desempregados_ escolaridade'!P21/'Desempregados_ escolaridade'!Q21 -> 0.4395833333 | Q22: ='Desempregados_ escolaridade'!S21/'Desempregados_ escolaridade'!Y21 -> 0.01422764228 | R22: ='Desempregados_ escolaridade'!T21/'Desempregados_ escolaridade'!Y21 -> 0.0487804878 | S22: ='Desempregados_ escolaridade'!U21/'Desempregados_ escolaridade'!Y21 -> 0.07113821138 | T22: ='Desempregados_ escolaridade'!V21/'Desempregados_ escolaridade'!Y21 -> 0.1361788618 | U22: ='Desempregados_ escolaridade'!W21/'Desempregados_ escolaridade'!Y21 -> 0.2845528455 | V22: ='Desempregados_ escolaridade'!X21/'Desempregados_ escolaridade'!Y21 -> 0.4451219512 | X22: ='Desempregados_ escolaridade'!AA21/'Desempregados_ escolaridade'!AG21 -> 0.01435406699 | Y22: ='Desempregados_ escolaridade'!AB21/'Desempregados_ escolaridade'!AG21 -> 0.06459330144 | Z22: ='Desempregados_ escolaridade'!AC21/'Desempregados_ escolaridade'!AG21 -> 0.09330143541 | AA22: ='Desempregados_ escolaridade'!AD21/'Desempregados_ escolaridade'!AG21 -> 0.1291866029 | AB22: ='Desempregados_ escolaridade'!AE21/'Desempregados_ escolaridade'!AG21 -> 0.2631578947 | AC22: ='Desempregados_ escolaridade'!AF21/'Desempregados_ escolaridade'!AG21 -> 0.4354066986
B23: Benfica | C23: ='Desempregados_ escolaridade'!C22/'Desempregados_ escolaridade'!I22 -> 0.05859375 | D23: ='Desempregados_ escolaridade'!D22/'Desempregados_ escolaridade'!I22 -> 0.1519097222 | E23: ='Desempregados_ escolaridade'!E22/'Desempregados_ escolaridade'!I22 -> 0.12109375 | F23: ='Desempregados_ escolaridade'!F22/'Desempregados_ escolaridade'!I22 -> 0.1666666667 | G23: ='Desempregados_ escolaridade'!G22/'Desempregados_ escolaridade'!I22 -> 0.2534722222 | H23: ='Desempregados_ escolaridade'!H22/'Desempregados_ escolaridade'!I22 -> 0.2482638889 | J23: ='Desempregados_ escolaridade'!K22/'Desempregados_ escolaridade'!Q22 -> 0.05827937095 | K23: ='Desempregados_ escolaridade'!L22/'Desempregados_ escolaridade'!Q22 -> 0.1554116559 | L23: ='Desempregados_ escolaridade'!M22/'Desempregados_ escolaridade'!Q22 -> 0.1207215541 | M23: ='Desempregados_ escolaridade'!N22/'Desempregados_ escolaridade'!Q22 -> 0.1813135985 | N23: ='Desempregados_ escolaridade'!O22/'Desempregados_ escolaridade'!Q22 -> 0.2562442183 | O23: ='Desempregados_ escolaridade'!P22/'Desempregados_ escolaridade'!Q22 -> 0.2280296022 | Q23: ='Desempregados_ escolaridade'!S22/'Desempregados_ escolaridade'!Y22 -> 0.05841238143 | R23: ='Desempregados_ escolaridade'!T22/'Desempregados_ escolaridade'!Y22 -> 0.1572641038 | S23: ='Desempregados_ escolaridade'!U22/'Desempregados_ escolaridade'!Y22 -> 0.1108337494 | T23: ='Desempregados_ escolaridade'!V22/'Desempregados_ escolaridade'!Y22 -> 0.1682476286 | U23: ='Desempregados_ escolaridade'!W22/'Desempregados_ escolaridade'!Y22 -> 0.2646030954 | V23: ='Desempregados_ escolaridade'!X22/'Desempregados_ escolaridade'!Y22 -> 0.2406390414 | X23: ='Desempregados_ escolaridade'!AA22/'Desempregados_ escolaridade'!AG22 -> 0.06632653061 | Y23: ='Desempregados_ escolaridade'!AB22/'Desempregados_ escolaridade'!AG22 -> 0.1602040816 | Z23: ='Desempregados_ escolaridade'!AC22/'Desempregados_ escolaridade'!AG22 -> 0.1290816327 | AA23: ='Desempregados_ escolaridade'!AD22/'Desempregados_ escolaridade'!AG22 -> 0.1596938776 | AB23: ='Desempregados_ escolaridade'!AE22/'Desempregados_ escolaridade'!AG22 -> 0.2556122449 | AC23: ='Desempregados_ escolaridade'!AF22/'Desempregados_ escolaridade'!AG22 -> 0.2290816327
B24: Campo de Ourique | C24: ='Desempregados_ escolaridade'!C23/'Desempregados_ escolaridade'!I23 -> 0.03584558824 | D24: ='Desempregados_ escolaridade'!D23/'Desempregados_ escolaridade'!I23 -> 0.1268382353 | E24: ='Desempregados_ escolaridade'!E23/'Desempregados_ escolaridade'!I23 -> 0.1185661765 | F24: ='Desempregados_ escolaridade'!F23/'Desempregados_ escolaridade'!I23 -> 0.1792279412 | G24: ='Desempregados_ escolaridade'!G23/'Desempregados_ escolaridade'!I23 -> 0.2794117647 | H24: ='Desempregados_ escolaridade'!H23/'Desempregados_ escolaridade'!I23 -> 0.2601102941 | J24: ='Desempregados_ escolaridade'!K23/'Desempregados_ escolaridade'!Q23 -> 0.03003875969 | K24: ='Desempregados_ escolaridade'!L23/'Desempregados_ escolaridade'!Q23 -> 0.132751938 | L24: ='Desempregados_ escolaridade'!M23/'Desempregados_ escolaridade'!Q23 -> 0.1162790698 | M24: ='Desempregados_ escolaridade'!N23/'Desempregados_ escolaridade'!Q23 -> 0.1986434109 | N24: ='Desempregados_ escolaridade'!O23/'Desempregados_ escolaridade'!Q23 -> 0.2529069767 | O24: ='Desempregados_ escolaridade'!P23/'Desempregados_ escolaridade'!Q23 -> 0.269379845 | Q24: ='Desempregados_ escolaridade'!S23/'Desempregados_ escolaridade'!Y23 -> 0.0337512054 | R24: ='Desempregados_ escolaridade'!T23/'Desempregados_ escolaridade'!Y23 -> 0.1234329797 | S24: ='Desempregados_ escolaridade'!U23/'Desempregados_ escolaridade'!Y23 -> 0.1128254581 | T24: ='Desempregados_ escolaridade'!V23/'Desempregados_ escolaridade'!Y23 -> 0.1803278689 | U24: ='Desempregados_ escolaridade'!W23/'Desempregados_ escolaridade'!Y23 -> 0.2729026037 | V24: ='Desempregados_ escolaridade'!X23/'Desempregados_ escolaridade'!Y23 -> 0.2767598843 | X24: ='Desempregados_ escolaridade'!AA23/'Desempregados_ escolaridade'!AG23 -> 0.04045643154 | Y24: ='Desempregados_ escolaridade'!AB23/'Desempregados_ escolaridade'!AG23 -> 0.122406639 | Z24: ='Desempregados_ escolaridade'!AC23/'Desempregados_ escolaridade'!AG23 -> 0.1244813278 | AA24: ='Desempregados_ escolaridade'!AD23/'Desempregados_ escolaridade'!AG23 -> 0.1877593361 | AB24: ='Desempregados_ escolaridade'!AE23/'Desempregados_ escolaridade'!AG23 -> 0.2780082988 | AC24: ='Desempregados_ escolaridade'!AF23/'Desempregados_ escolaridade'!AG23 -> 0.2468879668
B25: Campolide | C25: ='Desempregados_ escolaridade'!C24/'Desempregados_ escolaridade'!I24 -> 0.05245901639 | D25: ='Desempregados_ escolaridade'!D24/'Desempregados_ escolaridade'!I24 -> 0.1672131148 | E25: ='Desempregados_ escolaridade'!E24/'Desempregados_ escolaridade'!I24 -> 0.1726775956 | F25: ='Desempregados_ escolaridade'!F24/'Desempregados_ escolaridade'!I24 -> 0.1912568306 | G25: ='Desempregados_ escolaridade'!G24/'Desempregados_ escolaridade'!I24 -> 0.2316939891 | H25: ='Desempregados_ escolaridade'!H24/'Desempregados_ escolaridade'!I24 -> 0.1846994536 | J25: ='Desempregados_ escolaridade'!K24/'Desempregados_ escolaridade'!Q24 -> 0.05680317041 | K25: ='Desempregados_ escolaridade'!L24/'Desempregados_ escolaridade'!Q24 -> 0.1889035667 | L25: ='Desempregados_ escolaridade'!M24/'Desempregados_ escolaridade'!Q24 -> 0.1822985469 | M25: ='Desempregados_ escolaridade'!N24/'Desempregados_ escolaridade'!Q24 -> 0.1875825627 | N25: ='Desempregados_ escolaridade'!O24/'Desempregados_ escolaridade'!Q24 -> 0.2166446499 | O25: ='Desempregados_ escolaridade'!P24/'Desempregados_ escolaridade'!Q24 -> 0.1677675033 | Q25: ='Desempregados_ escolaridade'!S24/'Desempregados_ escolaridade'!Y24 -> 0.05304010349 | R25: ='Desempregados_ escolaridade'!T24/'Desempregados_ escolaridade'!Y24 -> 0.1862871928 | S25: ='Desempregados_ escolaridade'!U24/'Desempregados_ escolaridade'!Y24 -> 0.1746442432 | T25: ='Desempregados_ escolaridade'!V24/'Desempregados_ escolaridade'!Y24 -> 0.1824062096 | U25: ='Desempregados_ escolaridade'!W24/'Desempregados_ escolaridade'!Y24 -> 0.2328589909 | V25: ='Desempregados_ escolaridade'!X24/'Desempregados_ escolaridade'!Y24 -> 0.17076326 | X25: ='Desempregados_ escolaridade'!AA24/'Desempregados_ escolaridade'!AG24 -> 0.06334231806 | Y25: ='Desempregados_ escolaridade'!AB24/'Desempregados_ escolaridade'!AG24 -> 0.1994609164 | Z25: ='Desempregados_ escolaridade'!AC24/'Desempregados_ escolaridade'!AG24 -> 0.1913746631 | AA25: ='Desempregados_ escolaridade'!AD24/'Desempregados_ escolaridade'!AG24 -> 0.1644204852 | AB25: ='Desempregados_ escolaridade'!AE24/'Desempregados_ escolaridade'!AG24 -> 0.2088948787 | AC25: ='Desempregados_ escolaridade'!AF24/'Desempregados_ escolaridade'!AG24 -> 0.1725067385
B26: Carnide | C26: ='Desempregados_ escolaridade'!C25/'Desempregados_ escolaridade'!I25 -> 0.09430894309 | D26: ='Desempregados_ escolaridade'!D25/'Desempregados_ escolaridade'!I25 -> 0.2040650407 | E26: ='Desempregados_ escolaridade'!E25/'Desempregados_ escolaridade'!I25 -> 0.1495934959 | F26: ='Desempregados_ escolaridade'!F25/'Desempregados_ escolaridade'!I25 -> 0.187804878 | G26: ='Desempregados_ escolaridade'!G25/'Desempregados_ escolaridade'!I25 -> 0.1674796748 | H26: ='Desempregados_ escolaridade'!H25/'Desempregados_ escolaridade'!I25 -> 0.1967479675 | J26: ='Desempregados_ escolaridade'!K25/'Desempregados_ escolaridade'!Q25 -> 0.09556313993 | K26: ='Desempregados_ escolaridade'!L25/'Desempregados_ escolaridade'!Q25 -> 0.2005119454 | L26: ='Desempregados_ escolaridade'!M25/'Desempregados_ escolaridade'!Q25 -> 0.1476109215 | M26: ='Desempregados_ escolaridade'!N25/'Desempregados_ escolaridade'!Q25 -> 0.2064846416 | N26: ='Desempregados_ escolaridade'!O25/'Desempregados_ escolaridade'!Q25 -> 0.1604095563 | O26: ='Desempregados_ escolaridade'!P25/'Desempregados_ escolaridade'!Q25 -> 0.1894197952 | Q26: ='Desempregados_ escolaridade'!S25/'Desempregados_ escolaridade'!Y25 -> 0.1053089643 | R26: ='Desempregados_ escolaridade'!T25/'Desempregados_ escolaridade'!Y25 -> 0.1940818103 | S26: ='Desempregados_ escolaridade'!U25/'Desempregados_ escolaridade'!Y25 -> 0.1540469974 | T26: ='Desempregados_ escolaridade'!V25/'Desempregados_ escolaridade'!Y25 -> 0.1906005222 | U26: ='Desempregados_ escolaridade'!W25/'Desempregados_ escolaridade'!Y25 -> 0.1636205396 | V26: ='Desempregados_ escolaridade'!X25/'Desempregados_ escolaridade'!Y25 -> 0.1923411662 | X26: ='Desempregados_ escolaridade'!AA25/'Desempregados_ escolaridade'!AG25 -> 0.1054104478 | Y26: ='Desempregados_ escolaridade'!AB25/'Desempregados_ escolaridade'!AG25 -> 0.2126865672 | Z26: ='Desempregados_ escolaridade'!AC25/'Desempregados_ escolaridade'!AG25 -> 0.1473880597 | AA26: ='Desempregados_ escolaridade'!AD25/'Desempregados_ escolaridade'!AG25 -> 0.1837686567 | AB26: ='Desempregados_ escolaridade'!AE25/'Desempregados_ escolaridade'!AG25 -> 0.1557835821 | AC26: ='Desempregados_ escolaridade'!AF25/'Desempregados_ escolaridade'!AG25 -> 0.1949626866
B27: Estrela | C27: ='Desempregados_ escolaridade'!C26/'Desempregados_ escolaridade'!I26 -> 0.03977900552 | D27: ='Desempregados_ escolaridade'!D26/'Desempregados_ escolaridade'!I26 -> 0.1016574586 | E27: ='Desempregados_ escolaridade'!E26/'Desempregados_ escolaridade'!I26 -> 0.09281767956 | F27: ='Desempregados_ escolaridade'!F26/'Desempregados_ escolaridade'!I26 -> 0.1657458564 | G27: ='Desempregados_ escolaridade'!G26/'Desempregados_ escolaridade'!I26 -> 0.2784530387 | H27: ='Desempregados_ escolaridade'!H26/'Desempregados_ escolaridade'!I26 -> 0.3215469613 | J27: ='Desempregados_ escolaridade'!K26/'Desempregados_ escolaridade'!Q26 -> 0.03199052133 | K27: ='Desempregados_ escolaridade'!L26/'Desempregados_ escolaridade'!Q26 -> 0.1161137441 | L27: ='Desempregados_ escolaridade'!M26/'Desempregados_ escolaridade'!Q26 -> 0.1066350711 | M27: ='Desempregados_ escolaridade'!N26/'Desempregados_ escolaridade'!Q26 -> 0.1789099526 | N27: ='Desempregados_ escolaridade'!O26/'Desempregados_ escolaridade'!Q26 -> 0.2618483412 | O27: ='Desempregados_ escolaridade'!P26/'Desempregados_ escolaridade'!Q26 -> 0.3045023697 | Q27: ='Desempregados_ escolaridade'!S26/'Desempregados_ escolaridade'!Y26 -> 0.03919239905 | R27: ='Desempregados_ escolaridade'!T26/'Desempregados_ escolaridade'!Y26 -> 0.106888361 | S27: ='Desempregados_ escolaridade'!U26/'Desempregados_ escolaridade'!Y26 -> 0.09857482185 | T27: ='Desempregados_ escolaridade'!V26/'Desempregados_ escolaridade'!Y26 -> 0.1579572447 | U27: ='Desempregados_ escolaridade'!W26/'Desempregados_ escolaridade'!Y26 -> 0.2743467933 | V27: ='Desempregados_ escolaridade'!X26/'Desempregados_ escolaridade'!Y26 -> 0.32304038 | X27: ='Desempregados_ escolaridade'!AA26/'Desempregados_ escolaridade'!AG26 -> 0.02960969044 | Y27: ='Desempregados_ escolaridade'!AB26/'Desempregados_ escolaridade'!AG26 -> 0.1197846568 | Z27: ='Desempregados_ escolaridade'!AC26/'Desempregados_ escolaridade'!AG26 -> 0.1009421265 | AA27: ='Desempregados_ escolaridade'!AD26/'Desempregados_ escolaridade'!AG26 -> 0.1467025572 | AB27: ='Desempregados_ escolaridade'!AE26/'Desempregados_ escolaridade'!AG26 -> 0.2799461642 | AC27: ='Desempregados_ escolaridade'!AF26/'Desempregados_ escolaridade'!AG26 -> 0.3230148048
B28: Lumiar | C28: ='Desempregados_ escolaridade'!C27/'Desempregados_ escolaridade'!I27 -> 0.066367713 | D28: ='Desempregados_ escolaridade'!D27/'Desempregados_ escolaridade'!I27 -> 0.1421524664 | E28: ='Desempregados_ escolaridade'!E27/'Desempregados_ escolaridade'!I27 -> 0.09237668161 | F28: ='Desempregados_ escolaridade'!F27/'Desempregados_ escolaridade'!I27 -> 0.1251121076 | G28: ='Desempregados_ escolaridade'!G27/'Desempregados_ escolaridade'!I27 -> 0.2076233184 | H28: ='Desempregados_ escolaridade'!H27/'Desempregados_ escolaridade'!I27 -> 0.366367713 | J28: ='Desempregados_ escolaridade'!K27/'Desempregados_ escolaridade'!Q27 -> 0.07062285434 | K28: ='Desempregados_ escolaridade'!L27/'Desempregados_ escolaridade'!Q27 -> 0.1441883276 | L28: ='Desempregados_ escolaridade'!M27/'Desempregados_ escolaridade'!Q27 -> 0.09073075037 | M28: ='Desempregados_ escolaridade'!N27/'Desempregados_ escolaridade'!Q27 -> 0.1289847965 | N28: ='Desempregados_ escolaridade'!O27/'Desempregados_ escolaridade'!Q27 -> 0.212849436 | O28: ='Desempregados_ escolaridade'!P27/'Desempregados_ escolaridade'!Q27 -> 0.3526238352 | Q28: ='Desempregados_ escolaridade'!S27/'Desempregados_ escolaridade'!Y27 -> 0.07037974684 | R28: ='Desempregados_ escolaridade'!T27/'Desempregados_ escolaridade'!Y27 -> 0.1493670886 | S28: ='Desempregados_ escolaridade'!U27/'Desempregados_ escolaridade'!Y27 -> 0.09417721519 | T28: ='Desempregados_ escolaridade'!V27/'Desempregados_ escolaridade'!Y27 -> 0.1189873418 | U28: ='Desempregados_ escolaridade'!W27/'Desempregados_ escolaridade'!Y27 -> 0.1898734177 | V28: ='Desempregados_ escolaridade'!X27/'Desempregados_ escolaridade'!Y27 -> 0.3772151899 | X28: ='Desempregados_ escolaridade'!AA27/'Desempregados_ escolaridade'!AG27 -> 0.07353730542 | Y28: ='Desempregados_ escolaridade'!AB27/'Desempregados_ escolaridade'!AG27 -> 0.1443907676 | Z28: ='Desempregados_ escolaridade'!AC27/'Desempregados_ escolaridade'!AG27 -> 0.09447128288 | AA28: ='Desempregados_ escolaridade'!AD27/'Desempregados_ escolaridade'!AG27 -> 0.1218464842 | AB28: ='Desempregados_ escolaridade'!AE27/'Desempregados_ escolaridade'!AG27 -> 0.1986044015 | AC28: ='Desempregados_ escolaridade'!AF27/'Desempregados_ escolaridade'!AG27 -> 0.3671497585
B29: Marvila | C29: ='Desempregados_ escolaridade'!C28/'Desempregados_ escolaridade'!I28 -> 0.1070464768 | D29: ='Desempregados_ escolaridade'!D28/'Desempregados_ escolaridade'!I28 -> 0.2884557721 | E29: ='Desempregados_ escolaridade'!E28/'Desempregados_ escolaridade'!I28 -> 0.2005997001 | F29: ='Desempregados_ escolaridade'!F28/'Desempregados_ escolaridade'!I28 -> 0.1796101949 | G29: ='Desempregados_ escolaridade'!G28/'Desempregados_ escolaridade'!I28 -> 0.1577211394 | H29: ='Desempregados_ escolaridade'!H28/'Desempregados_ escolaridade'!I28 -> 0.06656671664 | J29: ='Desempregados_ escolaridade'!K28/'Desempregados_ escolaridade'!Q28 -> 0.1078592568 | K29: ='Desempregados_ escolaridade'!L28/'Desempregados_ escolaridade'!Q28 -> 0.2959552779 | L29: ='Desempregados_ escolaridade'!M28/'Desempregados_ escolaridade'!Q28 -> 0.201249589 | M29: ='Desempregados_ escolaridade'!N28/'Desempregados_ escolaridade'!Q28 -> 0.1900690562 | N29: ='Desempregados_ escolaridade'!O28/'Desempregados_ escolaridade'!Q28 -> 0.1456757646 | O29: ='Desempregados_ escolaridade'!P28/'Desempregados_ escolaridade'!Q28 -> 0.05919105557 | Q29: ='Desempregados_ escolaridade'!S28/'Desempregados_ escolaridade'!Y28 -> 0.1133424098 | R29: ='Desempregados_ escolaridade'!T28/'Desempregados_ escolaridade'!Y28 -> 0.2818243703 | S29: ='Desempregados_ escolaridade'!U28/'Desempregados_ escolaridade'!Y28 -> 0.1923076923 | T29: ='Desempregados_ escolaridade'!V28/'Desempregados_ escolaridade'!Y28 -> 0.1923076923 | U29: ='Desempregados_ escolaridade'!W28/'Desempregados_ escolaridade'!Y28 -> 0.1507828455 | V29: ='Desempregados_ escolaridade'!X28/'Desempregados_ escolaridade'!Y28 -> 0.06943498979 | X29: ='Desempregados_ escolaridade'!AA28/'Desempregados_ escolaridade'!AG28 -> 0.118019802 | Y29: ='Desempregados_ escolaridade'!AB28/'Desempregados_ escolaridade'!AG28 -> 0.3057425743 | Z29: ='Desempregados_ escolaridade'!AC28/'Desempregados_ escolaridade'!AG28 -> 0.1972277228 | AA29: ='Desempregados_ escolaridade'!AD28/'Desempregados_ escolaridade'!AG28 -> 0.1782178218 | AB29: ='Desempregados_ escolaridade'!AE28/'Desempregados_ escolaridade'!AG28 -> 0.1437623762 | AC29: ='Desempregados_ escolaridade'!AF28/'Desempregados_ escolaridade'!AG28 -> 0.05702970297
B30: Misericórdia | C30: ='Desempregados_ escolaridade'!C29/'Desempregados_ escolaridade'!I29 -> 0.08681318681 | D30: ='Desempregados_ escolaridade'!D29/'Desempregados_ escolaridade'!I29 -> 0.1428571429 | E30: ='Desempregados_ escolaridade'!E29/'Desempregados_ escolaridade'!I29 -> 0.1461538462 | F30: ='Desempregados_ escolaridade'!F29/'Desempregados_ escolaridade'!I29 -> 0.1549450549 | G30: ='Desempregados_ escolaridade'!G29/'Desempregados_ escolaridade'!I29 -> 0.2494505495 | H30: ='Desempregados_ escolaridade'!H29/'Desempregados_ escolaridade'!I29 -> 0.2197802198 | J30: ='Desempregados_ escolaridade'!K29/'Desempregados_ escolaridade'!Q29 -> 0.09079903148 | K30: ='Desempregados_ escolaridade'!L29/'Desempregados_ escolaridade'!Q29 -> 0.1489104116 | L30: ='Desempregados_ escolaridade'!M29/'Desempregados_ escolaridade'!Q29 -> 0.1404358354 | M30: ='Desempregados_ escolaridade'!N29/'Desempregados_ escolaridade'!Q29 -> 0.1719128329 | N30: ='Desempregados_ escolaridade'!O29/'Desempregados_ escolaridade'!Q29 -> 0.2566585956 | O30: ='Desempregados_ escolaridade'!P29/'Desempregados_ escolaridade'!Q29 -> 0.191283293 | Q30: ='Desempregados_ escolaridade'!S29/'Desempregados_ escolaridade'!Y29 -> 0.0824742268 | R30: ='Desempregados_ escolaridade'!T29/'Desempregados_ escolaridade'!Y29 -> 0.1404639175 | S30: ='Desempregados_ escolaridade'!U29/'Desempregados_ escolaridade'!Y29 -> 0.1430412371 | T30: ='Desempregados_ escolaridade'!V29/'Desempregados_ escolaridade'!Y29 -> 0.1597938144 | U30: ='Desempregados_ escolaridade'!W29/'Desempregados_ escolaridade'!Y29 -> 0.2577319588 | V30: ='Desempregados_ escolaridade'!X29/'Desempregados_ escolaridade'!Y29 -> 0.2164948454 | X30: ='Desempregados_ escolaridade'!AA29/'Desempregados_ escolaridade'!AG29 -> 0.07713884993 | Y30: ='Desempregados_ escolaridade'!AB29/'Desempregados_ escolaridade'!AG29 -> 0.1528751753 | Z30: ='Desempregados_ escolaridade'!AC29/'Desempregados_ escolaridade'!AG29 -> 0.1528751753 | AA30: ='Desempregados_ escolaridade'!AD29/'Desempregados_ escolaridade'!AG29 -> 0.1486676017 | AB30: ='Desempregados_ escolaridade'!AE29/'Desempregados_ escolaridade'!AG29 -> 0.2482468443 | AC30: ='Desempregados_ escolaridade'!AF29/'Desempregados_ escolaridade'!AG29 -> 0.2201963534
B31: Olivais | C31: ='Desempregados_ escolaridade'!C30/'Desempregados_ escolaridade'!I30 -> 0.0621761658 | D31: ='Desempregados_ escolaridade'!D30/'Desempregados_ escolaridade'!I30 -> 0.1606217617 | E31: ='Desempregados_ escolaridade'!E30/'Desempregados_ escolaridade'!I30 -> 0.1295336788 | F31: ='Desempregados_ escolaridade'!F30/'Desempregados_ escolaridade'!I30 -> 0.1865284974 | G31: ='Desempregados_ escolaridade'!G30/'Desempregados_ escolaridade'!I30 -> 0.2487046632 | H31: ='Desempregados_ escolaridade'!H30/'Desempregados_ escolaridade'!I30 -> 0.2124352332 | J31: ='Desempregados_ escolaridade'!K30/'Desempregados_ escolaridade'!Q30 -> 0.0612244898 | K31: ='Desempregados_ escolaridade'!L30/'Desempregados_ escolaridade'!Q30 -> 0.1690962099 | L31: ='Desempregados_ escolaridade'!M30/'Desempregados_ escolaridade'!Q30 -> 0.1574344023 | M31: ='Desempregados_ escolaridade'!N30/'Desempregados_ escolaridade'!Q30 -> 0.166180758 | N31: ='Desempregados_ escolaridade'!O30/'Desempregados_ escolaridade'!Q30 -> 0.2419825073 | O31: ='Desempregados_ escolaridade'!P30/'Desempregados_ escolaridade'!Q30 -> 0.2040816327 | Q31: ='Desempregados_ escolaridade'!S30/'Desempregados_ escolaridade'!Y30 -> 0.04700854701 | R31: ='Desempregados_ escolaridade'!T30/'Desempregados_ escolaridade'!Y30 -> 0.1346153846 | S31: ='Desempregados_ escolaridade'!U30/'Desempregados_ escolaridade'!Y30 -> 0.1623931624 | T31: ='Desempregados_ escolaridade'!V30/'Desempregados_ escolaridade'!Y30 -> 0.1730769231 | U31: ='Desempregados_ escolaridade'!W30/'Desempregados_ escolaridade'!Y30 -> 0.25 | V31: ='Desempregados_ escolaridade'!X30/'Desempregados_ escolaridade'!Y30 -> 0.2329059829 | X31: ='Desempregados_ escolaridade'!AA30/'Desempregados_ escolaridade'!AG30 -> 0.05100182149 | Y31: ='Desempregados_ escolaridade'!AB30/'Desempregados_ escolaridade'!AG30 -> 0.14571949 | Z31: ='Desempregados_ escolaridade'!AC30/'Desempregados_ escolaridade'!AG30 -> 0.1420765027 | AA31: ='Desempregados_ escolaridade'!AD30/'Desempregados_ escolaridade'!AG30 -> 0.1712204007 | AB31: ='Desempregados_ escolaridade'!AE30/'Desempregados_ escolaridade'!AG30 -> 0.2459016393 | AC31: ='Desempregados_ escolaridade'!AF30/'Desempregados_ escolaridade'!AG30 -> 0.2440801457
B32: Parque das Nações | C32: ='Desempregados_ escolaridade'!C31/'Desempregados_ escolaridade'!I31 -> 0.07543024533 | D32: ='Desempregados_ escolaridade'!D31/'Desempregados_ escolaridade'!I31 -> 0.192603442 | E32: ='Desempregados_ escolaridade'!E31/'Desempregados_ escolaridade'!I31 -> 0.165140974 | F32: ='Desempregados_ escolaridade'!F31/'Desempregados_ escolaridade'!I31 -> 0.1746612962 | G32: ='Desempregados_ escolaridade'!G31/'Desempregados_ escolaridade'!I31 -> 0.2131087514 | H32: ='Desempregados_ escolaridade'!H31/'Desempregados_ escolaridade'!I31 -> 0.1790552911 | J32: ='Desempregados_ escolaridade'!K31/'Desempregados_ escolaridade'!Q31 -> 0.0822758903 | K32: ='Desempregados_ escolaridade'!L31/'Desempregados_ escolaridade'!Q31 -> 0.2005730659 | L32: ='Desempregados_ escolaridade'!M31/'Desempregados_ escolaridade'!Q31 -> 0.169463774 | M32: ='Desempregados_ escolaridade'!N31/'Desempregados_ escolaridade'!Q31 -> 0.165779779 | N32: ='Desempregados_ escolaridade'!O31/'Desempregados_ escolaridade'!Q31 -> 0.2026197298 | O32: ='Desempregados_ escolaridade'!P31/'Desempregados_ escolaridade'!Q31 -> 0.1792877609 | Q32: ='Desempregados_ escolaridade'!S31/'Desempregados_ escolaridade'!Y31 -> 0.09035087719 | R32: ='Desempregados_ escolaridade'!T31/'Desempregados_ escolaridade'!Y31 -> 0.1973684211 | S32: ='Desempregados_ escolaridade'!U31/'Desempregados_ escolaridade'!Y31 -> 0.1557017544 | T32: ='Desempregados_ escolaridade'!V31/'Desempregados_ escolaridade'!Y31 -> 0.1596491228 | U32: ='Desempregados_ escolaridade'!W31/'Desempregados_ escolaridade'!Y31 -> 0.201754386 | V32: ='Desempregados_ escolaridade'!X31/'Desempregados_ escolaridade'!Y31 -> 0.1951754386 | X32: ='Desempregados_ escolaridade'!AA31/'Desempregados_ escolaridade'!AG31 -> 0.09742747674 | Y32: ='Desempregados_ escolaridade'!AB31/'Desempregados_ escolaridade'!AG31 -> 0.2112753147 | Z32: ='Desempregados_ escolaridade'!AC31/'Desempregados_ escolaridade'!AG31 -> 0.1548987411 | AA32: ='Desempregados_ escolaridade'!AD31/'Desempregados_ escolaridade'!AG31 -> 0.1559934319 | AB32: ='Desempregados_ escolaridade'!AE31/'Desempregados_ escolaridade'!AG31 -> 0.1904761905 | AC32: ='Desempregados_ escolaridade'!AF31/'Desempregados_ escolaridade'!AG31 -> 0.1899288451
B33: Penha de França | C33: ='Desempregados_ escolaridade'!C32/'Desempregados_ escolaridade'!I32 -> 0.1022245763 | D33: ='Desempregados_ escolaridade'!D32/'Desempregados_ escolaridade'!I32 -> 0.1451271186 | E33: ='Desempregados_ escolaridade'!E32/'Desempregados_ escolaridade'!I32 -> 0.1456567797 | F33: ='Desempregados_ escolaridade'!F32/'Desempregados_ escolaridade'!I32 -> 0.1859110169 | G33: ='Desempregados_ escolaridade'!G32/'Desempregados_ escolaridade'!I32 -> 0.2346398305 | H33: ='Desempregados_ escolaridade'!H32/'Desempregados_ escolaridade'!I32 -> 0.186440678 | J33: ='Desempregados_ escolaridade'!K32/'Desempregados_ escolaridade'!Q32 -> 0.09918793503 | K33: ='Desempregados_ escolaridade'!L32/'Desempregados_ escolaridade'!Q32 -> 0.1345707657 | L33: ='Desempregados_ escolaridade'!M32/'Desempregados_ escolaridade'!Q32 -> 0.1525522042 | M33: ='Desempregados_ escolaridade'!N32/'Desempregados_ escolaridade'!Q32 -> 0.189675174 | N33: ='Desempregados_ escolaridade'!O32/'Desempregados_ escolaridade'!Q32 -> 0.2366589327 | O33: ='Desempregados_ escolaridade'!P32/'Desempregados_ escolaridade'!Q32 -> 0.1873549884 | Q33: ='Desempregados_ escolaridade'!S32/'Desempregados_ escolaridade'!Y32 -> 0.0884749709 | R33: ='Desempregados_ escolaridade'!T32/'Desempregados_ escolaridade'!Y32 -> 0.1303841676 | S33: ='Desempregados_ escolaridade'!U32/'Desempregados_ escolaridade'!Y32 -> 0.1426076834 | T33: ='Desempregados_ escolaridade'!V32/'Desempregados_ escolaridade'!Y32 -> 0.1798603027 | U33: ='Desempregados_ escolaridade'!W32/'Desempregados_ escolaridade'!Y32 -> 0.2520372526 | V33: ='Desempregados_ escolaridade'!X32/'Desempregados_ escolaridade'!Y32 -> 0.2066356228 | X33: ='Desempregados_ escolaridade'!AA32/'Desempregados_ escolaridade'!AG32 -> 0.0857712766 | Y33: ='Desempregados_ escolaridade'!AB32/'Desempregados_ escolaridade'!AG32 -> 0.1482712766 | Z33: ='Desempregados_ escolaridade'!AC32/'Desempregados_ escolaridade'!AG32 -> 0.1589095745 | AA33: ='Desempregados_ escolaridade'!AD32/'Desempregados_ escolaridade'!AG32 -> 0.1908244681 | AB33: ='Desempregados_ escolaridade'!AE32/'Desempregados_ escolaridade'!AG32 -> 0.2280585106 | AC33: ='Desempregados_ escolaridade'!AF32/'Desempregados_ escolaridade'!AG32 -> 0.1881648936
B34: Santa Clara | C34: ='Desempregados_ escolaridade'!C33/'Desempregados_ escolaridade'!I33 -> 0.1870669746 | D34: ='Desempregados_ escolaridade'!D33/'Desempregados_ escolaridade'!I33 -> 0.2415704388 | E34: ='Desempregados_ escolaridade'!E33/'Desempregados_ escolaridade'!I33 -> 0.1889145497 | F34: ='Desempregados_ escolaridade'!F33/'Desempregados_ escolaridade'!I33 -> 0.152886836 | G34: ='Desempregados_ escolaridade'!G33/'Desempregados_ escolaridade'!I33 -> 0.1482678984 | H34: ='Desempregados_ escolaridade'!H33/'Desempregados_ escolaridade'!I33 -> 0.08129330254 | J34: ='Desempregados_ escolaridade'!K33/'Desempregados_ escolaridade'!Q33 -> 0.2000976086 | K34: ='Desempregados_ escolaridade'!L33/'Desempregados_ escolaridade'!Q33 -> 0.2606149341 | L34: ='Desempregados_ escolaridade'!M33/'Desempregados_ escolaridade'!Q33 -> 0.1839921913 | M34: ='Desempregados_ escolaridade'!N33/'Desempregados_ escolaridade'!Q33 -> 0.1425085408 | N34: ='Desempregados_ escolaridade'!O33/'Desempregados_ escolaridade'!Q33 -> 0.1317715959 | O34: ='Desempregados_ escolaridade'!P33/'Desempregados_ escolaridade'!Q33 -> 0.08101512933 | Q34: ='Desempregados_ escolaridade'!S33/'Desempregados_ escolaridade'!Y33 -> 0.1979269497 | R34: ='Desempregados_ escolaridade'!T33/'Desempregados_ escolaridade'!Y33 -> 0.2615992103 | S34: ='Desempregados_ escolaridade'!U33/'Desempregados_ escolaridade'!Y33 -> 0.1742349457 | T34: ='Desempregados_ escolaridade'!V33/'Desempregados_ escolaridade'!Y33 -> 0.1352418559 | U34: ='Desempregados_ escolaridade'!W33/'Desempregados_ escolaridade'!Y33 -> 0.1530108588 | V34: ='Desempregados_ escolaridade'!X33/'Desempregados_ escolaridade'!Y33 -> 0.07798617966 | X34: ='Desempregados_ escolaridade'!AA33/'Desempregados_ escolaridade'!AG33 -> 0.2096862961 | Y34: ='Desempregados_ escolaridade'!AB33/'Desempregados_ escolaridade'!AG33 -> 0.2795817281 | Z34: ='Desempregados_ escolaridade'!AC33/'Desempregados_ escolaridade'!AG33 -> 0.1821684095 | AA34: ='Desempregados_ escolaridade'!AD33/'Desempregados_ escolaridade'!AG33 -> 0.1304347826 | AB34: ='Desempregados_ escolaridade'!AE33/'Desempregados_ escolaridade'!AG33 -> 0.1205283434 | AC34: ='Desempregados_ escolaridade'!AF33/'Desempregados_ escolaridade'!AG33 -> 0.07760044029
B35: Santa Maria Maior | C35: ='Desempregados_ escolaridade'!C34/'Desempregados_ escolaridade'!I34 -> 0.1634168988 | D35: ='Desempregados_ escolaridade'!D34/'Desempregados_ escolaridade'!I34 -> 0.1522748375 | E35: ='Desempregados_ escolaridade'!E34/'Desempregados_ escolaridade'!I34 -> 0.1606313835 | F35: ='Desempregados_ escolaridade'!F34/'Desempregados_ escolaridade'!I34 -> 0.1894150418 | G35: ='Desempregados_ escolaridade'!G34/'Desempregados_ escolaridade'!I34 -> 0.1754874652 | H35: ='Desempregados_ escolaridade'!H34/'Desempregados_ escolaridade'!I34 -> 0.1587743733 | J35: ='Desempregados_ escolaridade'!K34/'Desempregados_ escolaridade'!Q34 -> 0.1479915433 | K35: ='Desempregados_ escolaridade'!L34/'Desempregados_ escolaridade'!Q34 -> 0.1596194503 | L35: ='Desempregados_ escolaridade'!M34/'Desempregados_ escolaridade'!Q34 -> 0.1575052854 | M35: ='Desempregados_ escolaridade'!N34/'Desempregados_ escolaridade'!Q34 -> 0.2050739958 | N35: ='Desempregados_ escolaridade'!O34/'Desempregados_ escolaridade'!Q34 -> 0.1923890063 | O35: ='Desempregados_ escolaridade'!P34/'Desempregados_ escolaridade'!Q34 -> 0.1374207188 | Q35: ='Desempregados_ escolaridade'!S34/'Desempregados_ escolaridade'!Y34 -> 0.1402085747 | R35: ='Desempregados_ escolaridade'!T34/'Desempregados_ escolaridade'!Y34 -> 0.1784472769 | S35: ='Desempregados_ escolaridade'!U34/'Desempregados_ escolaridade'!Y34 -> 0.1483198146 | T35: ='Desempregados_ escolaridade'!V34/'Desempregados_ escolaridade'!Y34 -> 0.1796060255 | U35: ='Desempregados_ escolaridade'!W34/'Desempregados_ escolaridade'!Y34 -> 0.1981460023 | V35: ='Desempregados_ escolaridade'!X34/'Desempregados_ escolaridade'!Y34 -> 0.1552723059 | X35: ='Desempregados_ escolaridade'!AA34/'Desempregados_ escolaridade'!AG34 -> 0.140052356 | Y35: ='Desempregados_ escolaridade'!AB34/'Desempregados_ escolaridade'!AG34 -> 0.1701570681 | Z35: ='Desempregados_ escolaridade'!AC34/'Desempregados_ escolaridade'!AG34 -> 0.1596858639 | AA35: ='Desempregados_ escolaridade'!AD34/'Desempregados_ escolaridade'!AG34 -> 0.1845549738 | AB35: ='Desempregados_ escolaridade'!AE34/'Desempregados_ escolaridade'!AG34 -> 0.1963350785 | AC35: ='Desempregados_ escolaridade'!AF34/'Desempregados_ escolaridade'!AG34 -> 0.1492146597
B36: Santo António | C36: ='Desempregados_ escolaridade'!C35/'Desempregados_ escolaridade'!I35 -> 0.08611825193 | D36: ='Desempregados_ escolaridade'!D35/'Desempregados_ escolaridade'!I35 -> 0.1156812339 | E36: ='Desempregados_ escolaridade'!E35/'Desempregados_ escolaridade'!I35 -> 0.1221079692 | F36: ='Desempregados_ escolaridade'!F35/'Desempregados_ escolaridade'!I35 -> 0.1516709512 | G36: ='Desempregados_ escolaridade'!G35/'Desempregados_ escolaridade'!I35 -> 0.2544987147 | H36: ='Desempregados_ escolaridade'!H35/'Desempregados_ escolaridade'!I35 -> 0.2699228792 | J36: ='Desempregados_ escolaridade'!K35/'Desempregados_ escolaridade'!Q35 -> 0.06648575305 | K36: ='Desempregados_ escolaridade'!L35/'Desempregados_ escolaridade'!Q35 -> 0.105834464 | L36: ='Desempregados_ escolaridade'!M35/'Desempregados_ escolaridade'!Q35 -> 0.1099050204 | M36: ='Desempregados_ escolaridade'!N35/'Desempregados_ escolaridade'!Q35 -> 0.1506105834 | N36: ='Desempregados_ escolaridade'!O35/'Desempregados_ escolaridade'!Q35 -> 0.2754409769 | O36: ='Desempregados_ escolaridade'!P35/'Desempregados_ escolaridade'!Q35 -> 0.2917232022 | Q36: ='Desempregados_ escolaridade'!S35/'Desempregados_ escolaridade'!Y35 -> 0.06019151847 | R36: ='Desempregados_ escolaridade'!T35/'Desempregados_ escolaridade'!Y35 -> 0.1108071135 | S36: ='Desempregados_ escolaridade'!U35/'Desempregados_ escolaridade'!Y35 -> 0.1012311902 | T36: ='Desempregados_ escolaridade'!V35/'Desempregados_ escolaridade'!Y35 -> 0.1436388509 | U36: ='Desempregados_ escolaridade'!W35/'Desempregados_ escolaridade'!Y35 -> 0.2886456908 | V36: ='Desempregados_ escolaridade'!X35/'Desempregados_ escolaridade'!Y35 -> 0.2954856361 | X36: ='Desempregados_ escolaridade'!AA35/'Desempregados_ escolaridade'!AG35 -> 0.07371794872 | Y36: ='Desempregados_ escolaridade'!AB35/'Desempregados_ escolaridade'!AG35 -> 0.125 | Z36: ='Desempregados_ escolaridade'!AC35/'Desempregados_ escolaridade'!AG35 -> 0.1073717949 | AA36: ='Desempregados_ escolaridade'!AD35/'Desempregados_ escolaridade'!AG35 -> 0.1538461538 | AB36: ='Desempregados_ escolaridade'!AE35/'Desempregados_ escolaridade'!AG35 -> 0.2467948718 | AC36: ='Desempregados_ escolaridade'!AF35/'Desempregados_ escolaridade'!AG35 -> 0.2932692308
B37: São Domingos de Benfica | C37: ='Desempregados_ escolaridade'!C36/'Desempregados_ escolaridade'!I36 -> 0.01869806094 | D37: ='Desempregados_ escolaridade'!D36/'Desempregados_ escolaridade'!I36 -> 0.07617728532 | E37: ='Desempregados_ escolaridade'!E36/'Desempregados_ escolaridade'!I36 -> 0.08448753463 | F37: ='Desempregados_ escolaridade'!F36/'Desempregados_ escolaridade'!I36 -> 0.1343490305 | G37: ='Desempregados_ escolaridade'!G36/'Desempregados_ escolaridade'!I36 -> 0.2950138504 | H37: ='Desempregados_ escolaridade'!H36/'Desempregados_ escolaridade'!I36 -> 0.3912742382 | J37: ='Desempregados_ escolaridade'!K36/'Desempregados_ escolaridade'!Q36 -> 0.01990811639 | K37: ='Desempregados_ escolaridade'!L36/'Desempregados_ escolaridade'!Q36 -> 0.07886676876 | L37: ='Desempregados_ escolaridade'!M36/'Desempregados_ escolaridade'!Q36 -> 0.07963246554 | M37: ='Desempregados_ escolaridade'!N36/'Desempregados_ escolaridade'!Q36 -> 0.1424196018 | N37: ='Desempregados_ escolaridade'!O36/'Desempregados_ escolaridade'!Q36 -> 0.2848392037 | O37: ='Desempregados_ escolaridade'!P36/'Desempregados_ escolaridade'!Q36 -> 0.3943338438 | Q37: ='Desempregados_ escolaridade'!S36/'Desempregados_ escolaridade'!Y36 -> 0.02070552147 | R37: ='Desempregados_ escolaridade'!T36/'Desempregados_ escolaridade'!Y36 -> 0.07285276074 | S37: ='Desempregados_ escolaridade'!U36/'Desempregados_ escolaridade'!Y36 -> 0.08052147239 | T37: ='Desempregados_ escolaridade'!V36/'Desempregados_ escolaridade'!Y36 -> 0.1441717791 | U37: ='Desempregados_ escolaridade'!W36/'Desempregados_ escolaridade'!Y36 -> 0.2492331288 | V37: ='Desempregados_ escolaridade'!X36/'Desempregados_ escolaridade'!Y36 -> 0.4325153374 | X37: ='Desempregados_ escolaridade'!AA36/'Desempregados_ escolaridade'!AG36 -> 0.02229562345 | Y37: ='Desempregados_ escolaridade'!AB36/'Desempregados_ escolaridade'!AG36 -> 0.08175061932 | Z37: ='Desempregados_ escolaridade'!AC36/'Desempregados_ escolaridade'!AG36 -> 0.08175061932 | AA37: ='Desempregados_ escolaridade'!AD36/'Desempregados_ escolaridade'!AG36 -> 0.1271676301 | AB37: ='Desempregados_ escolaridade'!AE36/'Desempregados_ escolaridade'!AG36 -> 0.2568125516 | AC37: ='Desempregados_ escolaridade'!AF36/'Desempregados_ escolaridade'!AG36 -> 0.4302229562
B38: São Vicente | C38: ='Desempregados_ escolaridade'!C37/'Desempregados_ escolaridade'!I37 -> 0.0880929332 | D38: ='Desempregados_ escolaridade'!D37/'Desempregados_ escolaridade'!I37 -> 0.1587608906 | E38: ='Desempregados_ escolaridade'!E37/'Desempregados_ escolaridade'!I37 -> 0.1471442401 | F38: ='Desempregados_ escolaridade'!F37/'Desempregados_ escolaridade'!I37 -> 0.1916747338 | G38: ='Desempregados_ escolaridade'!G37/'Desempregados_ escolaridade'!I37 -> 0.2449177154 | H38: ='Desempregados_ escolaridade'!H37/'Desempregados_ escolaridade'!I37 -> 0.1694094869 | J38: ='Desempregados_ escolaridade'!K37/'Desempregados_ escolaridade'!Q37 -> 0.08113804004 | K38: ='Desempregados_ escolaridade'!L37/'Desempregados_ escolaridade'!Q37 -> 0.1654373024 | L38: ='Desempregados_ escolaridade'!M37/'Desempregados_ escolaridade'!Q37 -> 0.1496311907 | M38: ='Desempregados_ escolaridade'!N37/'Desempregados_ escolaridade'!Q37 -> 0.2075869336 | N38: ='Desempregados_ escolaridade'!O37/'Desempregados_ escolaridade'!Q37 -> 0.2370916754 | O38: ='Desempregados_ escolaridade'!P37/'Desempregados_ escolaridade'!Q37 -> 0.1591148577 | Q38: ='Desempregados_ escolaridade'!S37/'Desempregados_ escolaridade'!Y37 -> 0.07759562842 | R38: ='Desempregados_ escolaridade'!T37/'Desempregados_ escolaridade'!Y37 -> 0.1715846995 | S38: ='Desempregados_ escolaridade'!U37/'Desempregados_ escolaridade'!Y37 -> 0.1387978142 | T38: ='Desempregados_ escolaridade'!V37/'Desempregados_ escolaridade'!Y37 -> 0.1967213115 | U38: ='Desempregados_ escolaridade'!W37/'Desempregados_ escolaridade'!Y37 -> 0.2404371585 | V38: ='Desempregados_ escolaridade'!X37/'Desempregados_ escolaridade'!Y37 -> 0.174863388 | X38: ='Desempregados_ escolaridade'!AA37/'Desempregados_ escolaridade'!AG37 -> 0.07858048162 | Y38: ='Desempregados_ escolaridade'!AB37/'Desempregados_ escolaridade'!AG37 -> 0.1837769328 | Z38: ='Desempregados_ escolaridade'!AC37/'Desempregados_ escolaridade'!AG37 -> 0.154626109 | AA38: ='Desempregados_ escolaridade'!AD37/'Desempregados_ escolaridade'!AG37 -> 0.164765526 | AB38: ='Desempregados_ escolaridade'!AE37/'Desempregados_ escolaridade'!AG37 -> 0.2103929024 | AC38: ='Desempregados_ escolaridade'!AF37/'Desempregados_ escolaridade'!AG37 -> 0.2078580482
B39: Freg. Não Codificada | C39: ='Desempregados_ escolaridade'!C38/'Desempregados_ escolaridade'!I38 -> 0.02631578947 | D39: ='Desempregados_ escolaridade'!D38/'Desempregados_ escolaridade'!I38 -> 0.02631578947 | E39: ='Desempregados_ escolaridade'!E38/'Desempregados_ escolaridade'!I38 -> 0.1315789474 | F39: ='Desempregados_ escolaridade'!F38/'Desempregados_ escolaridade'!I38 -> 0.1842105263 | G39: ='Desempregados_ escolaridade'!G38/'Desempregados_ escolaridade'!I38 -> 0.3684210526 | H39: ='Desempregados_ escolaridade'!H38/'Desempregados_ escolaridade'!I38 -> 0.2631578947 | J39: - | K39: ='Desempregados_ escolaridade'!L38/'Desempregados_ escolaridade'!Q38 -> 0.05 | L39: ='Desempregados_ escolaridade'!M38/'Desempregados_ escolaridade'!Q38 -> 0.075 | M39: ='Desempregados_ escolaridade'!N38/'Desempregados_ escolaridade'!Q38 -> 0.125 | N39: ='Desempregados_ escolaridade'!O38/'Desempregados_ escolaridade'!Q38 -> 0.2 | O39: ='Desempregados_ escolaridade'!P38/'Desempregados_ escolaridade'!Q38 -> 0.55 | Q39: ='Desempregados_ escolaridade'!S38/'Desempregados_ escolaridade'!Y38 -> 0 | R39: ='Desempregados_ escolaridade'!T38/'Desempregados_ escolaridade'!Y38 -> 0.07843137255 | S39: ='Desempregados_ escolaridade'!U38/'Desempregados_ escolaridade'!Y38 -> 0.09803921569 | T39: ='Desempregados_ escolaridade'!V38/'Desempregados_ escolaridade'!Y38 -> 0.07843137255 | U39: ='Desempregados_ escolaridade'!W38/'Desempregados_ escolaridade'!Y38 -> 0.2156862745 | V39: ='Desempregados_ escolaridade'!X38/'Desempregados_ escolaridade'!Y38 -> 0.5294117647 | X39: ='Desempregados_ escolaridade'!AA38/'Desempregados_ escolaridade'!AG38 -> 0.0303030303 | Y39: ='Desempregados_ escolaridade'!AB38/'Desempregados_ escolaridade'!AG38 -> 0.1212121212 | Z39: ='Desempregados_ escolaridade'!AC38/'Desempregados_ escolaridade'!AG38 -> 0.09090909091 | AA39: ='Desempregados_ escolaridade'!AD38/'Desempregados_ escolaridade'!AG38 -> 0.1818181818 | AB39: ='Desempregados_ escolaridade'!AE38/'Desempregados_ escolaridade'!AG38 -> 0.1212121212 | AC39: ='Desempregados_ escolaridade'!AF38/'Desempregados_ escolaridade'!AG38 -> 0.4545454545
B41: Fonte: Instituto de Emprego e Formação Profissional
B42: Cálculos: OLCPL

Sheet DLD Genero
A5: Q.7 | B5: Número de desempregados de longa duração inscritos nos Centros de Emprego, género, 2014
C7: Número de desempregados de longa duração inscritos nos Centros de Emprego, género 2014
C8: 1º TRIMESTRE | G8: 2º TRIMESTRE | I8: 2 | K8: 3º TRIMESTRE | O8: 4º TRIMESTRE | Q8: 4
B9: Unidade: Nº | C9: Fem | D9: Masc | E9: Total | G9: Fem | H9: Masc | I9: Total | K9: Fem | L9: Masc | M9: Total | O9: Fem | P9: Masc | Q9: Total
B10: Portugal Continental | C10: 162589 | D10: 153691 | E10: 316280 | G10: 151542 | H10: 143173 | I10: 294715 | K10: 155281 | L10: 140161 | M10: 295442 | O10: 145282 | P10: 133036 | Q10: =SUM(O10+P10) -> 278318
B11: AML | C11: 36003 | D11: 38621 | E11: 74624 | G11: 6738 | H11: 8066 | I11: 14804 | K11: 34966 | L11: 35204 | M11: 70170 | O11: 31335 | P11: 32204 | Q11: 63539
B12: Distrito de Lisboa | C12: 27690 | D12: 30566 | E12: 58256 | G12: 26235 | H12: 28738 | I12: =SUM(G12:H12) -> 54973 | K12: 27458 | L12: 26451 | M12: 53909 | O12: 23236 | P12: 24784 | Q12: 48020
B13: Concelho de Lisboa | C13: 7167 | D13: 8611 | E13: 15778 | G13: =SUM(G14:G38) -> 6738 | H13: =SUM(H14:H38) -> 8066 | I13: 14804 | K13: 6905 | L13: 7885 | M13: 14790 | O13: 5943 | P13: 7107 | Q13: 13050
B14: Ajuda | C14: 244 | D14: 254 | E14: 498 | G14: 238 | H14: 229 | I14: 467 | K14: 244 | L14: 236 | M14: 480 | O14: 204 | P14: 211 | Q14: 415
B15: Alcântara | C15: 173 | D15: 208 | E15: 381 | G15: 170 | H15: 191 | I15: 361 | K15: 168 | L15: 190 | M15: 358 | O15: 133 | P15: 155 | Q15: 288
B16: Alvalade | C16: 355 | D16: 347 | E16: 702 | G16: 298 | H16: 337 | I16: 635 | K16: 301 | L16: 326 | M16: 627 | O16: 245 | P16: 257 | Q16: 502
B17: Areeiro | C17: 290 | D17: 256 | E17: 546 | G17: 262 | H17: 242 | I17: 504 | K17: 258 | L17: 229 | M17: 487 | O17: 225 | P17: 214 | Q17: 439
B18: Arroios | C18: 432 | D18: 623 | E18: 1055 | G18: 381 | H18: 597 | I18: 978 | K18: 374 | L18: 599 | M18: 973 | O18: 313 | P18: 526 | Q18: 839
B19: Avenidas Novas | C19: 282 | D19: 236 | E19: 518 | G19: 246 | H19: 225 | I19: 471 | K19: 245 | L19: 223 | M19: 468 | O19: 191 | P19: 203 | Q19: 394
B20: Beato | C20: 198 | D20: 300 | E20: 498 | G20: 177 | H20: 293 | I20: 470 | K20: 186 | L20: 289 | M20: 475 | O20: 167 | P20: 244 | Q20: 411
B21: Belém | C21: 143 | D21: 134 | E21: 277 | G21: 121 | H21: 114 | I21: 235 | K21: 126 | L21: 116 | M21: 242 | O21: 99 | P21: 96 | Q21: 195
B22: Benfica | C22: 513 | D22: 582 | E22: 1095 | G22: 511 | H22: 528 | I22: 1039 | K22: 493 | L22: 493 | M22: 986 | O22: 489 | P22: 464 | Q22: 953
B23: Campo de Ourique | C23: 269 | D23: 253 | E23: 522 | G23: 238 | H23: 235 | I23: 473 | K23: 260 | L23: 232 | M23: 492 | O23: 245 | P23: 227 | Q23: 472
B24: Campolide | C24: 177 | D24: 213 | E24: 390 | G24: 153 | H24: 180 | I24: 333 | K24: 151 | L24: 171 | M24: 322 | O24: 150 | P24: 195 | Q24: 345
B25: Carnide | C25: 253 | D25: 296 | E25: 549 | G25: 265 | H25: 304 | I25: 569 | K25: 266 | L25: 293 | M25: 559 | O25: 242 | P25: 299 | Q25: 541
B26: Estrela | C26: 212 | D26: 213 | E26: 425 | G26: 201 | H26: 205 | I26: 406 | K26: 210 | L26: 195 | M26: 405 | O26: 169 | P26: 176 | Q26: 345
B27: Lumiar | C27: 459 | D27: 506 | E27: 965 | G27: 462 | H27: 476 | I27: 938 | K27: 453 | L27: 465 | M27: 918 | O27: 416 | P27: 481 | Q27: 897
B28: Marvila | C28: 658 | D28: 970 | E28: 1628 | G28: 643 | H28: 899 | I28: 1542 | K28: 690 | L28: 894 | M28: 1584 | O28: 587 | P28: 792 | Q28: 1379
B29: Misericórdia | C29: 171 | D29: 231 | E29: 402 | G29: 147 | H29: 218 | I29: 365 | K29: 156 | L29: 206 | M29: 362 | O29: 124 | P29: 175 | Q29: 299
B30: Olivais | C30: 12 | D30: 6 | E30: 18 | G30: 33 | H30: 19 | I30: 52 | K30: 38 | L30: 30 | M30: 68 | O30: 47 | P30: 45 | Q30: 92
B31: Parque das Nações | C31: 638 | D31: 809 | E31: 1447 | G31: 607 | H31: 778 | I31: 1385 | K31: 619 | L31: 750 | M31: 1369 | O31: 496 | P31: 630 | Q31: 1126
B32: Penha de França | C32: 405 | D32: 484 | E32: 889 | G32: 365 | H32: 453 | I32: 818 | K32: 376 | L32: 427 | M32: 803 | O32: 293 | P32: 363 | Q32: 656
B33: Santa Clara | C33: 412 | D33: 615 | E33: 1027 | G33: 394 | H33: 587 | I33: 981 | K33: 421 | L33: 588 | M33: 1009 | O33: 396 | P33: 532 | Q33: 928
B34: Santa Maria Maior | C34: 172 | D34: 266 | E34: 438 | G34: 161 | H34: 243 | I34: 404 | K34: 171 | L34: 236 | M34: 407 | O34: 135 | P34: 208 | Q34: 343
B35: Santo António | C35: 148 | D35: 184 | E35: 332 | G35: 146 | H35: 161 | I35: 307 | K35: 150 | L35: 155 | M35: 305 | O35: 111 | P35: 129 | Q35: 240
B36: São Domingos de Benfica | C36: 339 | D36: 340 | E36: 679 | G36: 313 | H36: 306 | I36: 619 | K36: 334 | L36: 317 | M36: 651 | O36: 292 | P36: 294 | Q36: 586
B37: São Vicente | C37: 207 | D37: 278 | E37: 485 | G37: 194 | H37: 240 | I37: 434 | K37: 197 | L37: 218 | M37: 415 | O37: 165 | P37: 186 | Q37: 351
B38: Freg. Não Codificada | C38: 5 | D38: 7 | E38: 12 | G38: 12 | H38: 6 | I38: 18 | K38: 18 | L38: 7 | M38: 25 | O38: 9 | P38: 5 | Q38: 14
B40: Fonte: Instituto de Emprego e Formação Profissional
B41: Cálculos: OLCPL
B42: Notas n.d.: não disponível (para valores =< 5, por razões de confidencialidade dados não disponibilizados pela fonte)

Sheet DLD Genero %
A5: Q.8 | B5: Desempregados de longa duração inscritos nos Centros de Emprego, género, 2014 (%)
C7: Desempregados de longa duração inscritos nos Centros de Emprego, Género
C8: %
C9: 1º TRIMESTRE | F9: 2º TRIMESTRE | I9: 3º TRIMESTRE | L9: 4º TRIMESTRE
B10: Unidade: Nº e % | C10: Fem | D10: Masc | F10: Fem | G10: Masc | H10: Fem | I10: Fem | J10: Masc | L10: Fem | M10: Masc
B11: Portugal Continental | C11: ='DLD Genero '!C10/'DLD Genero '!E10 -> 0.5140666498 | D11: ='DLD Genero '!D10/'DLD Genero '!E10 -> 0.4859333502 | F11: ='DLD Genero '!G10/'DLD Genero '!I10 -> 0.5141984629 | G11: ='DLD Genero '!H10/'DLD Genero '!I10 -> 0.4858015371 | I11: ='DLD Genero '!K10/'DLD Genero '!M10 -> 0.5255887788 | J11: ='DLD Genero '!L10/'DLD Genero '!M10 -> 0.4744112212 | L11: ='DLD Genero '!O10/'DLD Genero '!Q10 -> 0.5220000144 | M11: ='DLD Genero '!P10/'DLD Genero '!Q10 -> 0.4779999856
B12: AML | C12: ='DLD Genero '!C11/'DLD Genero '!E11 -> 0.4824587264 | D12: ='DLD Genero '!D11/'DLD Genero '!E11 -> 0.5175412736 | F12: ='DLD Genero '!G11/'DLD Genero '!I11 -> 0.4551472575 | G12: ='DLD Genero '!H11/'DLD Genero '!I11 -> 0.5448527425 | I12: ='DLD Genero '!K11/'DLD Genero '!M11 -> 0.4983041186 | J12: ='DLD Genero '!L11/'DLD Genero '!M11 -> 0.5016958814 | L12: ='DLD Genero '!O11/'DLD Genero '!Q11 -> 0.4931616802 | M12: ='DLD Genero '!P11/'DLD Genero '!Q11 -> 0.5068383198
B13: Distrito de Lisboa | C13: ='DLD Genero '!C12/'DLD Genero '!E12 -> 0.4753158473 | D13: ='DLD Genero '!D12/'DLD Genero '!E12 -> 0.5246841527 | F13: ='DLD Genero '!G12/'DLD Genero '!I12 -> 0.4772342786 | G13: ='DLD Genero '!H12/'DLD Genero '!I12 -> 0.5227657214 | I13: ='DLD Genero '!K12/'DLD Genero '!M12 -> 0.5093398134 | J13: ='DLD Genero '!L12/'DLD Genero '!M12 -> 0.4906601866 | L13: ='DLD Genero '!O12/'DLD Genero '!Q12 -> 0.483881716 | M13: ='DLD Genero '!P12/'DLD Genero '!Q12 -> 0.516118284
B14: Concelho de Lisboa | C14: ='DLD Genero '!C13/'DLD Genero '!E13 -> 0.4542400811 | D14: ='DLD Genero '!D13/'DLD Genero '!E13 -> 0.5457599189 | F14: ='DLD Genero '!G13/'DLD Genero '!I13 -> 0.4551472575 | G14: ='DLD Genero '!H13/'DLD Genero '!I13 -> 0.5448527425 | I14: ='DLD Genero '!K13/'DLD Genero '!M13 -> 0.4668695064 | J14: ='DLD Genero '!L13/'DLD Genero '!M13 -> 0.5331304936 | L14: ='DLD Genero '!O13/'DLD Genero '!Q13 -> 0.4554022989 | M14: ='DLD Genero '!P13/'DLD Genero '!Q13 -> 0.5445977011
B15: Ajuda | C15: ='DLD Genero '!C14/'DLD Genero '!E14 -> 0.4899598394 | D15: ='DLD Genero '!D14/'DLD Genero '!E14 -> 0.5100401606 | F15: ='DLD Genero '!G14/'DLD Genero '!I14 -> 0.5096359743 | G15: ='DLD Genero '!H14/'DLD Genero '!I14 -> 0.4903640257 | I15: ='DLD Genero '!K14/'DLD Genero '!M14 -> 0.5083333333 | J15: ='DLD Genero '!L14/'DLD Genero '!M14 -> 0.4916666667 | L15: ='DLD Genero '!O14/'DLD Genero '!Q14 -> 0.4915662651 | M15: ='DLD Genero '!P14/'DLD Genero '!Q14 -> 0.5084337349
B16: Alcântara | C16: ='DLD Genero '!C15/'DLD Genero '!E15 -> 0.4540682415 | D16: ='DLD Genero '!D15/'DLD Genero '!E15 -> 0.5459317585 | F16: ='DLD Genero '!G15/'DLD Genero '!I15 -> 0.4709141274 | G16: ='DLD Genero '!H15/'DLD Genero '!I15 -> 0.5290858726 | I16: ='DLD Genero '!K15/'DLD Genero '!M15 -> 0.469273743 | J16: ='DLD Genero '!L15/'DLD Genero '!M15 -> 0.530726257 | L16: ='DLD Genero '!O15/'DLD Genero '!Q15 -> 0.4618055556 | M16: ='DLD Genero '!P15/'DLD Genero '!Q15 -> 0.5381944444
B17: Alvalade | C17: ='DLD Genero '!C16/'DLD Genero '!E16 -> 0.5056980057 | D17: ='DLD Genero '!D16/'DLD Genero '!E16 -> 0.4943019943 | F17: ='DLD Genero '!G16/'DLD Genero '!I16 -> 0.4692913386 | G17: ='DLD Genero '!H16/'DLD Genero '!I16 -> 0.5307086614 | I17: ='DLD Genero '!K16/'DLD Genero '!M16 -> 0.4800637959 | J17: ='DLD Genero '!L16/'DLD Genero '!M16 -> 0.5199362041 | L17: ='DLD Genero '!O16/'DLD Genero '!Q16 -> 0.4880478088 | M17: ='DLD Genero '!P16/'DLD Genero '!Q16 -> 0.5119521912
B18: Areeiro | C18: ='DLD Genero '!C17/'DLD Genero '!E17 -> 0.5311355311 | D18: ='DLD Genero '!D17/'DLD Genero '!E17 -> 0.4688644689 | F18: ='DLD Genero '!G17/'DLD Genero '!I17 -> 0.5198412698 | G18: ='DLD Genero '!H17/'DLD Genero '!I17 -> 0.4801587302 | I18: ='DLD Genero '!K17/'DLD Genero '!M17 -> 0.5297741273 | J18: ='DLD Genero '!L17/'DLD Genero '!M17 -> 0.4702258727 | L18: ='DLD Genero '!O17/'DLD Genero '!Q17 -> 0.5125284738 | M18: ='DLD Genero '!P17/'DLD Genero '!Q17 -> 0.4874715262
B19: Arroios | C19: ='DLD Genero '!C18/'DLD Genero '!E18 -> 0.409478673 | D19: ='DLD Genero '!D18/'DLD Genero '!E18 -> 0.590521327 | F19: ='DLD Genero '!G18/'DLD Genero '!I18 -> 0.3895705521 | G19: ='DLD Genero '!H18/'DLD Genero '!I18 -> 0.6104294479 | I19: ='DLD Genero '!K18/'DLD Genero '!M18 -> 0.3843782117 | J19: ='DLD Genero '!L18/'DLD Genero '!M18 -> 0.6156217883 | L19: ='DLD Genero '!O18/'DLD Genero '!Q18 -> 0.3730631704 | M19: ='DLD Genero '!P18/'DLD Genero '!Q18 -> 0.6269368296
B20: Avenidas Novas | C20: ='DLD Genero '!C19/'DLD Genero '!E19 -> 0.5444015444 | D20: ='DLD Genero '!D19/'DLD Genero '!E19 -> 0.4555984556 | F20: ='DLD Genero '!G19/'DLD Genero '!I19 -> 0.5222929936 | G20: ='DLD Genero '!H19/'DLD Genero '!I19 -> 0.4777070064 | I20: ='DLD Genero '!K19/'DLD Genero '!M19 -> 0.5235042735 | J20: ='DLD Genero '!L19/'DLD Genero '!M19 -> 0.4764957265 | L20: ='DLD Genero '!O19/'DLD Genero '!Q19 -> 0.4847715736 | M20: ='DLD Genero '!P19/'DLD Genero '!Q19 -> 0.5152284264
B21: Beato | C21: ='DLD Genero '!C20/'DLD Genero '!E20 -> 0.3975903614 | D21: ='DLD Genero '!D20/'DLD Genero '!E20 -> 0.6024096386 | F21: ='DLD Genero '!G20/'DLD Genero '!I20 -> 0.3765957447 | G21: ='DLD Genero '!H20/'DLD Genero '!I20 -> 0.6234042553 | I21: ='DLD Genero '!K20/'DLD Genero '!M20 -> 0.3915789474 | J21: ='DLD Genero '!L20/'DLD Genero '!M20 -> 0.6084210526 | L21: ='DLD Genero '!O20/'DLD Genero '!Q20 -> 0.4063260341 | M21: ='DLD Genero '!P20/'DLD Genero '!Q20 -> 0.5936739659
B22: Belém | C22: ='DLD Genero '!C21/'DLD Genero '!E21 -> 0.5162454874 | D22: ='DLD Genero '!D21/'DLD Genero '!E21 -> 0.4837545126 | F22: ='DLD Genero '!G21/'DLD Genero '!I21 -> 0.514893617 | G22: ='DLD Genero '!H21/'DLD Genero '!I21 -> 0.485106383 | I22: ='DLD Genero '!K21/'DLD Genero '!M21 -> 0.520661157 | J22: ='DLD Genero '!L21/'DLD Genero '!M21 -> 0.479338843 | L22: ='DLD Genero '!O21/'DLD Genero '!Q21 -> 0.5076923077 | M22: ='DLD Genero '!P21/'DLD Genero '!Q21 -> 0.4923076923
B23: Benfica | C23: ='DLD Genero '!C22/'DLD Genero '!E22 -> 0.4684931507 | D23: ='DLD Genero '!D22/'DLD Genero '!E22 -> 0.5315068493 | F23: ='DLD Genero '!G22/'DLD Genero '!I22 -> 0.4918190568 | G23: ='DLD Genero '!H22/'DLD Genero '!I22 -> 0.5081809432 | I23: ='DLD Genero '!K22/'DLD Genero '!M22 -> 0.5 | J23: ='DLD Genero '!L22/'DLD Genero '!M22 -> 0.5 | L23: ='DLD Genero '!O22/'DLD Genero '!Q22 -> 0.5131164743 | M23: ='DLD Genero '!P22/'DLD Genero '!Q22 -> 0.4868835257
B24: Campo de Ourique | C24: ='DLD Genero '!C23/'DLD Genero '!E23 -> 0.5153256705 | D24: ='DLD Genero '!D23/'DLD Genero '!E23 -> 0.4846743295 | F24: ='DLD Genero '!G23/'DLD Genero '!I23 -> 0.5031712474 | G24: ='DLD Genero '!H23/'DLD Genero '!I23 -> 0.4968287526 | I24: ='DLD Genero '!K23/'DLD Genero '!M23 -> 0.5284552846 | J24: ='DLD Genero '!L23/'DLD Genero '!M23 -> 0.4715447154 | L24: ='DLD Genero '!O23/'DLD Genero '!Q23 -> 0.5190677966 | M24: ='DLD Genero '!P23/'DLD Genero '!Q23 -> 0.4809322034
B25: Campolide | C25: ='DLD Genero '!C24/'DLD Genero '!E24 -> 0.4538461538 | D25: ='DLD Genero '!D24/'DLD Genero '!E24 -> 0.5461538462 | F25: ='DLD Genero '!G24/'DLD Genero '!I24 -> 0.4594594595 | G25: ='DLD Genero '!H24/'DLD Genero '!I24 -> 0.5405405405 | I25: ='DLD Genero '!K24/'DLD Genero '!M24 -> 0.4689440994 | J25: ='DLD Genero '!L24/'DLD Genero '!M24 -> 0.5310559006 | L25: ='DLD Genero '!O24/'DLD Genero '!Q24 -> 0.4347826087 | M25: ='DLD Genero '!P24/'DLD Genero '!Q24 -> 0.5652173913
B26: Carnide | C26: ='DLD Genero '!C25/'DLD Genero '!E25 -> 0.4608378871 | D26: ='DLD Genero '!D25/'DLD Genero '!E25 -> 0.5391621129 | F26: ='DLD Genero '!G25/'DLD Genero '!I25 -> 0.4657293497 | G26: ='DLD Genero '!H25/'DLD Genero '!I25 -> 0.5342706503 | I26: ='DLD Genero '!K25/'DLD Genero '!M25 -> 0.4758497317 | J26: ='DLD Genero '!L25/'DLD Genero '!M25 -> 0.5241502683 | L26: ='DLD Genero '!O25/'DLD Genero '!Q25 -> 0.4473197782 | M26: ='DLD Genero '!P25/'DLD Genero '!Q25 -> 0.5526802218
B27: Estrela | C27: ='DLD Genero '!C26/'DLD Genero '!E26 -> 0.4988235294 | D27: ='DLD Genero '!D26/'DLD Genero '!E26 -> 0.5011764706 | F27: ='DLD Genero '!G26/'DLD Genero '!I26 -> 0.4950738916 | G27: ='DLD Genero '!H26/'DLD Genero '!I26 -> 0.5049261084 | I27: ='DLD Genero '!K26/'DLD Genero '!M26 -> 0.5185185185 | J27: ='DLD Genero '!L26/'DLD Genero '!M26 -> 0.4814814815 | L27: ='DLD Genero '!O26/'DLD Genero '!Q26 -> 0.4898550725 | M27: ='DLD Genero '!P26/'DLD Genero '!Q26 -> 0.5101449275
B28: Lumiar | C28: ='DLD Genero '!C27/'DLD Genero '!E27 -> 0.4756476684 | D28: ='DLD Genero '!D27/'DLD Genero '!E27 -> 0.5243523316 | F28: ='DLD Genero '!G27/'DLD Genero '!I27 -> 0.4925373134 | G28: ='DLD Genero '!H27/'DLD Genero '!I27 -> 0.5074626866 | I28: ='DLD Genero '!K27/'DLD Genero '!M27 -> 0.4934640523 | J28: ='DLD Genero '!L27/'DLD Genero '!M27 -> 0.5065359477 | L28: ='DLD Genero '!O27/'DLD Genero '!Q27 -> 0.4637681159 | M28: ='DLD Genero '!P27/'DLD Genero '!Q27 -> 0.5362318841
B29: Marvila | C29: ='DLD Genero '!C28/'DLD Genero '!E28 -> 0.4041769042 | D29: ='DLD Genero '!D28/'DLD Genero '!E28 -> 0.5958230958 | F29: ='DLD Genero '!G28/'DLD Genero '!I28 -> 0.4169909209 | G29: ='DLD Genero '!H28/'DLD Genero '!I28 -> 0.5830090791 | I29: ='DLD Genero '!K28/'DLD Genero '!M28 -> 0.4356060606 | J29: ='DLD Genero '!L28/'DLD Genero '!M28 -> 0.5643939394 | L29: ='DLD Genero '!O28/'DLD Genero '!Q28 -> 0.4256707759 | M29: ='DLD Genero '!P28/'DLD Genero '!Q28 -> 0.5743292241
B30: Misericórdia | C30: ='DLD Genero '!C29/'DLD Genero '!E29 -> 0.4253731343 | D30: ='DLD Genero '!D29/'DLD Genero '!E29 -> 0.5746268657 | F30: ='DLD Genero '!G29/'DLD Genero '!I29 -> 0.402739726 | G30: ='DLD Genero '!H29/'DLD Genero '!I29 -> 0.597260274 | I30: ='DLD Genero '!K29/'DLD Genero '!M29 -> 0.4309392265 | J30: ='DLD Genero '!L29/'DLD Genero '!M29 -> 0.5690607735 | L30: ='DLD Genero '!O29/'DLD Genero '!Q29 -> 0.4147157191 | M30: ='DLD Genero '!P29/'DLD Genero '!Q29 -> 0.5852842809
B31: Olivais | C31: ='DLD Genero '!C30/'DLD Genero '!E30 -> 0.6666666667 | D31: ='DLD Genero '!D30/'DLD Genero '!E30 -> 0.3333333333 | F31: ='DLD Genero '!G30/'DLD Genero '!I30 -> 0.6346153846 | G31: ='DLD Genero '!H30/'DLD Genero '!I30 -> 0.3653846154 | I31: ='DLD Genero '!K30/'DLD Genero '!M30 -> 0.5588235294 | J31: ='DLD Genero '!L30/'DLD Genero '!M30 -> 0.4411764706 | L31: ='DLD Genero '!O30/'DLD Genero '!Q30 -> 0.5108695652 | M31: ='DLD Genero '!P30/'DLD Genero '!Q30 -> 0.4891304348
B32: Parque das Nações | C32: ='DLD Genero '!C31/'DLD Genero '!E31 -> 0.4409122322 | D32: ='DLD Genero '!D31/'DLD Genero '!E31 -> 0.5590877678 | F32: ='DLD Genero '!G31/'DLD Genero '!I31 -> 0.438267148 | G32: ='DLD Genero '!H31/'DLD Genero '!I31 -> 0.561732852 | I32: ='DLD Genero '!K31/'DLD Genero '!M31 -> 0.4521548576 | J32: ='DLD Genero '!L31/'DLD Genero '!M31 -> 0.5478451424 | L32: ='DLD Genero '!O31/'DLD Genero '!Q31 -> 0.4404973357 | M32: ='DLD Genero '!P31/'DLD Genero '!Q31 -> 0.5595026643
B33: Penha de França | C33: ='DLD Genero '!C32/'DLD Genero '!E32 -> 0.455568054 | D33: ='DLD Genero '!D32/'DLD Genero '!E32 -> 0.544431946 | F33: ='DLD Genero '!G32/'DLD Genero '!I32 -> 0.4462102689 | G33: ='DLD Genero '!H32/'DLD Genero '!I32 -> 0.5537897311 | I33: ='DLD Genero '!K32/'DLD Genero '!M32 -> 0.4682440847 | J33: ='DLD Genero '!L32/'DLD Genero '!M32 -> 0.5317559153 | L33: ='DLD Genero '!O32/'DLD Genero '!Q32 -> 0.4466463415 | M33: ='DLD Genero '!P32/'DLD Genero '!Q32 -> 0.5533536585
B34: Santa Clara | C34: ='DLD Genero '!C33/'DLD Genero '!E33 -> 0.4011684518 | D34: ='DLD Genero '!D33/'DLD Genero '!E33 -> 0.5988315482 | F34: ='DLD Genero '!G33/'DLD Genero '!I33 -> 0.4016309888 | G34: ='DLD Genero '!H33/'DLD Genero '!I33 -> 0.5983690112 | I34: ='DLD Genero '!K33/'DLD Genero '!M33 -> 0.4172447968 | J34: ='DLD Genero '!L33/'DLD Genero '!M33 -> 0.5827552032 | L34: ='DLD Genero '!O33/'DLD Genero '!Q33 -> 0.4267241379 | M34: ='DLD Genero '!P33/'DLD Genero '!Q33 -> 0.5732758621
B35: Santa Maria Maior | C35: ='DLD Genero '!C34/'DLD Genero '!E34 -> 0.3926940639 | D35: ='DLD Genero '!D34/'DLD Genero '!E34 -> 0.6073059361 | F35: ='DLD Genero '!G34/'DLD Genero '!I34 -> 0.3985148515 | G35: ='DLD Genero '!H34/'DLD Genero '!I34 -> 0.6014851485 | I35: ='DLD Genero '!K34/'DLD Genero '!M34 -> 0.4201474201 | J35: ='DLD Genero '!L34/'DLD Genero '!M34 -> 0.5798525799 | L35: ='DLD Genero '!O34/'DLD Genero '!Q34 -> 0.3935860058 | M35: ='DLD Genero '!P34/'DLD Genero '!Q34 -> 0.6064139942
B36: Santo António | C36: ='DLD Genero '!C35/'DLD Genero '!E35 -> 0.4457831325 | D36: ='DLD Genero '!D35/'DLD Genero '!E35 -> 0.5542168675 | F36: ='DLD Genero '!G35/'DLD Genero '!I35 -> 0.4755700326 | G36: ='DLD Genero '!H35/'DLD Genero '!I35 -> 0.5244299674 | I36: ='DLD Genero '!K35/'DLD Genero '!M35 -> 0.4918032787 | J36: ='DLD Genero '!L35/'DLD Genero '!M35 -> 0.5081967213 | L36: ='DLD Genero '!O35/'DLD Genero '!Q35 -> 0.4625 | M36: ='DLD Genero '!P35/'DLD Genero '!Q35 -> 0.5375
B37: São Domingos de Benfica | C37: ='DLD Genero '!C36/'DLD Genero '!E36 -> 0.499263623 | D37: ='DLD Genero '!D36/'DLD Genero '!E36 -> 0.500736377 | F37: ='DLD Genero '!G36/'DLD Genero '!I36 -> 0.5056542811 | G37: ='DLD Genero '!H36/'DLD Genero '!I36 -> 0.4943457189 | I37: ='DLD Genero '!K36/'DLD Genero '!M36 -> 0.5130568356 | J37: ='DLD Genero '!L36/'DLD Genero '!M36 -> 0.4869431644 | L37: ='DLD Genero '!O36/'DLD Genero '!Q36 -> 0.4982935154 | M37: ='DLD Genero '!P36/'DLD Genero '!Q36 -> 0.5017064846
B38: São Vicente | C38: ='DLD Genero '!C37/'DLD Genero '!E37 -> 0.4268041237 | D38: ='DLD Genero '!D37/'DLD Genero '!E37 -> 0.5731958763 | F38: ='DLD Genero '!G37/'DLD Genero '!I37 -> 0.4470046083 | G38: ='DLD Genero '!H37/'DLD Genero '!I37 -> 0.5529953917 | I38: ='DLD Genero '!K37/'DLD Genero '!M37 -> 0.4746987952 | J38: ='DLD Genero '!L37/'DLD Genero '!M37 -> 0.5253012048 | L38: ='DLD Genero '!O37/'DLD Genero '!Q37 -> 0.4700854701 | M38: ='DLD Genero '!P37/'DLD Genero '!Q37 -> 0.5299145299
B39: Freg. Não Codificada | C39: ='DLD Genero '!C38/'DLD Genero '!E38 -> 0.4166666667 | D39: ='DLD Genero '!D38/'DLD Genero '!E38 -> 0.5833333333 | F39: ='DLD Genero '!G38/'DLD Genero '!I38 -> 0.6666666667 | G39: ='DLD Genero '!H38/'DLD Genero '!I38 -> 0.3333333333 | I39: ='DLD Genero '!K38/'DLD Genero '!M38 -> 0.72 | J39: ='DLD Genero '!L38/'DLD Genero '!M38 -> 0.28 | L39: ='DLD Genero '!O38/'DLD Genero '!Q38 -> 0.6428571429 | M39: ='DLD Genero '!P38/'DLD Genero '!Q38 -> 0.3571428571
B41: Fonte: Instituto de Emprego e Formação Profissional
B42: Cálculos: OLCPL

Sheet DLD Idades
A5: Q.9 | B5: Número de desempregados de longa duração inscritos nos Centros de Emprego, idade, 2014
C7: Número de desempregados de longa duração inscritos nos Centros de Emprego, idade
C8: 1º TRIMESTRE | I8: 2º TRIMESTRE | O8: 3º TRIMESTRE | U8: 4º TRIMESTRE
B9: Unidade: Nº | C9: < 25 Anos | D9: 25 - 34 Anos | E9: 35 - 54 Anos | F9: 55 Anos e + | G9: Total | I9: < 25 Anos | J9: 25 - 34 Anos | K9: 35 - 54 Anos | L9: 55 Anos e + | M9: Total | O9: < 25 Anos | P9: 25 - 34 Anos | Q9: 35 - 54 Anos | R9: 55 Anos e + | S9: Total | U9: < 25 Anos | V9: 25 - 34 Anos | W9: 35 - 54 Anos | X9: 55 Anos e + | Y9: Total
B10: Portugal Continental | C10: 17299 | D10: 48321 | E10: 161651 | F10: 89009 | G10: 316280 | I10: 13485 | J10: 40895 | K10: 152197 | L10: 88138 | M10: 294715 | O10: 15178 | P10: 41507 | Q10: 150317 | R10: 88440 | S10: 295442 | U10: 15662 | V10: 38619 | W10: 137784 | X10: 86253 | Y10: 278318
B11: AML | C11: 2771 | D11: 10797 | E11: 40457 | F11: 20599 | G11: 74624 | I11: 2184 | J11: 9051 | K11: 38551 | L11: 20786 | M11: 70572 | O11: 2357 | P11: 8908 | Q11: 37765 | R11: 21140 | S11: 70170 | U11: 2261 | V11: 8107 | W11: 33221 | X11: 19950 | Y11: 63539
B12: Distrito de Lisboa | C12: 2085 | D12: 8327 | E12: 31630 | F12: 16214 | G12: 58256 | I12: 1622 | J12: 6841 | K12: 30058 | L12: 16452 | M12: =SUM(I12:L12) -> 54973 | O12: 1757 | P12: 6641 | Q12: 28950 | R12: 16561 | S12: 53909 | U12: 1673 | V12: 5808 | W12: 25070 | X12: 15469 | Y12: 48020
B13: Concelho de Lisboa | C13: 595 | D13: 2446 | E13: 8488 | F13: 4249 | G13: 15778 | I13: =SUM(I14:I38) -> 524 | J13: =SUM(J14:J38) -> 2029 | K13: 8028 | L13: 4223 | M13: 14804 | O13: 547 | P13: 1981 | Q13: 7941 | R13: 4321 | S13: 14790 | U13: 494 | V13: 1721 | W13: 6596 | X13: 4239 | Y13: 13050
B14: Ajuda | C14: 24 | D14: 89 | E14: 276 | F14: 109 | G14: 498 | I14: 26 | J14: 81 | K14: 250 | L14: 110 | M14: 467 | O14: 22 | P14: 83 | Q14: 263 | R14: 112 | S14: =SUM(O14:R14) -> 480 | U14: 17 | V14: 75 | W14: 218 | X14: 105 | Y14: 415
B15: Alcântara | C15: 12 | D15: 50 | E15: 215 | F15: 104 | G15: 381 | I15: 6 | J15: 42 | K15: 209 | L15: 104 | M15: 361 | O15: 11 | P15: 45 | Q15: 204 | R15: 98 | S15: =SUM(O15:R15) -> 358 | U15: 6 | V15: 32 | W15: 148 | X15: 102 | Y15: 288
B16: Alvalade | C16: 23 | D16: 108 | E16: 406 | F16: 165 | G16: 702 | I16: 19 | J16: 81 | K16: 379 | L16: 156 | M16: 635 | O16: 24 | P16: 76 | Q16: 357 | R16: 170 | S16: 627 | U16: 16 | V16: 61 | W16: 258 | X16: 167 | Y16: 502
B17: Areeiro | C17: 16 | D17: 70 | E17: 285 | F17: 175 | G17: 546 | I17: 19 | J17: 62 | K17: 254 | L17: 169 | M17: 504 | O17: 18 | P17: 61 | Q17: 252 | R17: 156 | S17: 487 | U17: 18 | V17: 68 | W17: 194 | X17: 159 | Y17: 439
B18: Arroios | C18: 29 | D18: 154 | E18: 606 | F18: 266 | G18: 1055 | I18: 16 | J18: 141 | K18: 554 | L18: 267 | M18: 978 | O18: 13 | P18: 119 | Q18: 540 | R18: 301 | S18: 973 | U18: 18 | V18: 95 | W18: 427 | X18: 299 | Y18: 839
B19: Avenidas Novas | C19: 13 | D19: 78 | E19: 269 | F19: 158 | G19: 518 | I19: 12 | J19: 56 | K19: 245 | L19: 158 | M19: 471 | O19: 14 | P19: 56 | Q19: 245 | R19: 153 | S19: 468 | U19: 13 | V19: 48 | W19: 174 | X19: 159 | Y19: 394
B20: Beato | C20: 31 | D20: 64 | E20: 269 | F20: 134 | G20: 498 | I20: 17 | J20: 53 | K20: 261 | L20: 139 | M20: 470 | O20: 16 | P20: 52 | Q20: 258 | R20: 149 | S20: 475 | U20: 16 | V20: 41 | W20: 212 | X20: 142 | Y20: 411
B21: Belém | C21: 1 | D21: 40 | E21: 163 | F21: 73 | G21: 277 | I21: 1 | J21: 27 | K21: 139 | L21: 68 | M21: 235 | O21: 2 | P21: 29 | Q21: 143 | R21: 68 | S21: 242 | U21: 1 | V21: 25 | W21: 108 | X21: 61 | Y21: 195
B22: Benfica | C22: 34 | D22: 159 | E22: 609 | F22: 293 | G22: 1095 | I22: 35 | J22: 120 | K22: 589 | L22: 295 | M22: 1039 | O22: 39 | P22: 126 | Q22: 528 | R22: 293 | S22: 986 | U22: 32 | V22: 118 | W22: 495 | X22: 308 | Y22: 953
B23: Campo de Ourique | C23: 12 | D23: 74 | E23: 277 | F23: 159 | G23: 522 | I23: 4 | J23: 63 | K23: 246 | L23: 160 | M23: 473 | O23: 11 | P23: 45 | Q23: 272 | R23: 164 | S23: 492 | U23: 4 | V23: 37 | W23: 255 | X23: 176 | Y23: 472
B24: Campolide | C24: 8 | D24: 52 | E24: 216 | F24: 114 | G24: 390 | I24: 9 | J24: 37 | K24: 182 | L24: 105 | M24: 333 | O24: 9 | P24: 32 | Q24: 169 | R24: 112 | S24: 322 | U24: 10 | V24: 25 | W24: 186 | X24: 124 | Y24: 345
B25: Carnide | C25: 46 | D25: 82 | E25: 276 | F25: 145 | G25: 549 | I25: 41 | J25: 76 | K25: 301 | L25: 151 | M25: 569 | O25: 36 | P25: 78 | Q25: 284 | R25: 161 | S25: 559 | U25: 36 | V25: 73 | W25: 273 | X25: 159 | Y25: 541
B26: Estrela | C26: 9 | D26: 56 | E26: 230 | F26: 130 | G26: 425 | I26: 10 | J26: 44 | K26: 217 | L26: 135 | M26: 406 | O26: 9 | P26: 40 | Q26: 213 | R26: 143 | S26: 405 | U26: 10 | V26: 35 | W26: 155 | X26: 145 | Y26: 345
B27: Lumiar | C27: 22 | D27: 152 | E27: 531 | F27: 260 | G27: 965 | I27: 20 | J27: 141 | K27: 515 | L27: 262 | M27: 938 | O27: 31 | P27: 123 | Q27: 520 | R27: 244 | S27: 918 | U27: 27 | V27: 132 | W27: 493 | X27: 245 | Y27: 897
B28: Marvila | C28: 94 | D28: 274 | E28: 843 | F28: 417 | G28: 1628 | I28: 87 | J28: 233 | K28: 791 | L28: 431 | M28: 1542 | O28: 92 | P28: 243 | Q28: 784 | R28: 465 | S28: 1584 | U28: 83 | V28: 190 | W28: 656 | X28: 450 | Y28: 1379
B29: Misericórdia | C29: 8 | D29: 66 | E29: 216 | F29: 112 | G29: 402 | I29: 5 | J29: 46 | K29: 201 | L29: 113 | M29: 365 | O29: 3 | P29: 41 | Q29: 201 | R29: 117 | S29: 362 | U29: 4 | V29: 35 | W29: 150 | X29: 110 | Y29: 299
B30: Olivais | C30: 3 | D30: 1 | E30: 12 | F30: 2 | G30: 18 | I30: 5 | J30: 8 | K30: 28 | L30: 11 | M30: 52 | O30: 7 | P30: 14 | Q30: 37 | R30: 10 | S30: 68 | U30: 9 | V30: 19 | W30: 49 | X30: 15 | Y30: 92
B31: Parque das Nações | C31: 69 | D31: 245 | E31: 764 | F31: 369 | G31: 1447 | I31: 74 | J31: 210 | K31: 753 | L31: 348 | M31: 1385 | O31: 72 | P31: 194 | Q31: 745 | R31: 358 | S31: 1369 | U31: 67 | V31: 157 | W31: 554 | X31: 348 | Y31: 1126
B32: Penha de França | C32: 27 | D32: 142 | E32: 468 | F32: 252 | G32: 889 | I32: 18 | J32: 122 | K32: 444 | L32: 234 | M32: 818 | O32: 17 | P32: 115 | Q32: 441 | R32: 230 | S32: 803 | U32: 17 | V32: 102 | W32: 332 | X32: 205 | Y32: 656
B33: Santa Clara | C33: 61 | D33: 214 | E33: 512 | F33: 240 | G33: 1027 | I33: 56 | J33: 187 | K33: 497 | L33: 241 | M33: 981 | O33: 57 | P33: 202 | Q33: 506 | R33: 244 | S33: 1009 | U33: 55 | V33: 187 | W33: 452 | X33: 234 | Y33: 928
B34: Santa Maria Maior | C34: 15 | D34: 59 | E34: 248 | F34: 116 | G34: 438 | I34: 12 | J34: 46 | K34: 232 | L34: 114 | M34: 404 | O34: 8 | P34: 34 | Q34: 241 | R34: 124 | S34: 407 | U34: 6 | V34: 25 | W34: 194 | X34: 118 | Y34: 343
B35: Santo António | C35: 6 | D35: 42 | E35: 171 | F35: 113 | G35: 332 | I35: 4 | J35: 30 | K35: 162 | L35: 111 | M35: 307 | O35: 5 | P35: 32 | Q35: 162 | R35: 106 | S35: 305 | U35: 7 | V35: 27 | W35: 108 | X35: 98 | Y35: 240
B36: São Domingos de Benfica | C36: 11 | D36: 95 | E36: 365 | F36: 208 | G36: 679 | I36: 14 | J36: 69 | K36: 328 | L36: 208 | M36: 619 | O36: 21 | P36: 87 | Q36: 328 | R36: 215 | S36: 651 | U36: 12 | V36: 73 | W36: 303 | X36: 198 | Y36: 586
B37: São Vicente | C37: 19 | D37: 78 | E37: 254 | F37: 134 | G37: 485 | I37: 13 | J37: 52 | K37: 238 | L37: 131 | M37: 434 | O37: 10 | P37: 48 | Q37: 231 | R37: 126 | S37: 415 | U37: 9 | V37: 38 | W37: 194 | X37: 110 | Y37: 351
B38: Freg. Não Codificada | C38: 2 | D38: 2 | E38: 7 | F38: 1 | G38: 12 | I38: 1 | J38: 2 | K38: 13 | L38: 2 | M38: 18 | O38: - | P38: 6 | Q38: 17 | R38: 2 | S38: 25 | U38: 1 | V38: 3 | W38: 8 | X38: 2 | Y38: 14
B40: Fonte: Instituto de Emprego e Formação Profissional
B41: Cálculos: OLCPL
B42: Notas n.d.: não disponível (para valores =< 5, por razões de confidencialidade dados não disponibilizados pela fonte)

Sheet DLD idades %
A5: Q.10 | B5: Desempregados de longa duração inscritos nos Centros de Emprego, idade (%)
C7: Desempregados de longa duração inscritos nos Centros de Emprego, Idades
C8: %
C9: 1º TRIMESTRE | H9: 2º TRIMESTRE | M9: 3º TRIMESTRE | R9: 4º TRIMESTRE
B10: Unidade: Nº e % | C10: < 25 Anos | D10: 25 - 34 Anos | E10: 35 - 54 Anos | F10: 55 Anos e + | H10: < 25 Anos | I10: 25 - 34 Anos | J10: 35 - 54 Anos | K10: 55 Anos e + | M10: < 25 Anos | N10: 25 - 34 Anos | O10: 35 - 54 Anos | P10: 55 Anos e + | R10: < 25 Anos | S10: 25 - 34 Anos | T10: 35 - 54 Anos | U10: 55 Anos e +
B11: Portugal Continental | C11: ='DLD Idades '!C10/'DLD Idades '!G10 -> 0.05469520678 | D11: ='DLD Idades '!D10/'DLD Idades '!G10 -> 0.152779183 | E11: ='DLD Idades '!E10/'DLD Idades '!G10 -> 0.5111009232 | F11: ='DLD Idades '!F10/'DLD Idades '!G10 -> 0.281424687 | H11: ='DLD Idades '!I10/'DLD Idades '!M10 -> 0.04575606942 | I11: ='DLD Idades '!J10/'DLD Idades '!M10 -> 0.1387611761 | J11: ='DLD Idades '!K10/'DLD Idades '!M10 -> 0.5164209491 | K11: ='DLD Idades '!L10/'DLD Idades '!M10 -> 0.2990618055 | M11: ='DLD Idades '!O10/'DLD Idades '!S10 -> 0.05137387372 | N11: ='DLD Idades '!P10/'DLD Idades '!S10 -> 0.1404911962 | O11: ='DLD Idades '!Q10/'DLD Idades '!S10 -> 0.5087868346 | P11: ='DLD Idades '!R10/'DLD Idades '!S10 -> 0.2993480954 | R11: ='DLD Idades '!U10/'DLD Idades '!Y10 -> 0.05627375879 | S11: ='DLD Idades '!V10/'DLD Idades '!Y10 -> 0.1387585424 | T11: ='DLD Idades '!W10/'DLD Idades '!Y10 -> 0.4950596081 | U11: ='DLD Idades '!X10/'DLD Idades '!Y10 -> 0.3099080907
B12: AML | C12: ='DLD Idades '!C11/'DLD Idades '!G11 -> 0.0371328259 | D12: ='DLD Idades '!D11/'DLD Idades '!G11 -> 0.1446853559 | E12: ='DLD Idades '!E11/'DLD Idades '!G11 -> 0.5421446184 | F12: ='DLD Idades '!F11/'DLD Idades '!G11 -> 0.2760371998 | H12: ='DLD Idades '!I11/'DLD Idades '!M11 -> 0.03094711784 | I12: ='DLD Idades '!J11/'DLD Idades '!M11 -> 0.128251998 | J12: ='DLD Idades '!K11/'DLD Idades '!M11 -> 0.5462648076 | K12: ='DLD Idades '!L11/'DLD Idades '!M11 -> 0.2945360766 | M12: ='DLD Idades '!O11/'DLD Idades '!S11 -> 0.03358985321 | N12: ='DLD Idades '!P11/'DLD Idades '!S11 -> 0.1269488385 | O12: ='DLD Idades '!Q11/'DLD Idades '!S11 -> 0.53819296 | P12: ='DLD Idades '!R11/'DLD Idades '!S11 -> 0.3012683483 | R12: ='DLD Idades '!U11/'DLD Idades '!Y11 -> 0.0355844442 | S12: ='DLD Idades '!V11/'DLD Idades '!Y11 -> 0.1275909284 | T12: ='DLD Idades '!W11/'DLD Idades '!Y11 -> 0.5228442374 | U12: ='DLD Idades '!X11/'DLD Idades '!Y11 -> 0.31398039
B13: Distrito de Lisboa | C13: ='DLD Idades '!C12/'DLD Idades '!G12 -> 0.03579030486 | D13: ='DLD Idades '!D12/'DLD Idades '!G12 -> 0.1429380665 | E13: ='DLD Idades '!E12/'DLD Idades '!G12 -> 0.5429483658 | F13: ='DLD Idades '!F12/'DLD Idades '!G12 -> 0.2783232628 | H13: ='DLD Idades '!I12/'DLD Idades '!M12 -> 0.02950539356 | I13: ='DLD Idades '!J12/'DLD Idades '!M12 -> 0.1244429083 | J13: ='DLD Idades '!K12/'DLD Idades '!M12 -> 0.546777509 | K13: ='DLD Idades '!L12/'DLD Idades '!M12 -> 0.2992741891 | M13: ='DLD Idades '!O12/'DLD Idades '!S12 -> 0.03259196053 | N13: ='DLD Idades '!P12/'DLD Idades '!S12 -> 0.1231890779 | O13: ='DLD Idades '!Q12/'DLD Idades '!S12 -> 0.5370160827 | P13: ='DLD Idades '!R12/'DLD Idades '!S12 -> 0.3072028789 | R13: ='DLD Idades '!U12/'DLD Idades '!Y12 -> 0.03483965015 | S13: ='DLD Idades '!V12/'DLD Idades '!Y12 -> 0.1209496043 | T13: ='DLD Idades '!W12/'DLD Idades '!Y12 -> 0.5220741358 | U13: ='DLD Idades '!X12/'DLD Idades '!Y12 -> 0.3221366097
B14: Concelho de Lisboa | C14: ='DLD Idades '!C13/'DLD Idades '!G13 -> 0.03771073647 | D14: ='DLD Idades '!D13/'DLD Idades '!G13 -> 0.1550259855 | E14: ='DLD Idades '!E13/'DLD Idades '!G13 -> 0.537964254 | F14: ='DLD Idades '!F13/'DLD Idades '!G13 -> 0.269299024 | H14: ='DLD Idades '!I13/'DLD Idades '!M13 -> 0.03539583896 | I14: ='DLD Idades '!J13/'DLD Idades '!M13 -> 0.137057552 | J14: ='DLD Idades '!K13/'DLD Idades '!M13 -> 0.5422858687 | K14: ='DLD Idades '!L13/'DLD Idades '!M13 -> 0.2852607403 | M14: ='DLD Idades '!O13/'DLD Idades '!S13 -> 0.03698444895 | N14: ='DLD Idades '!P13/'DLD Idades '!S13 -> 0.1339418526 | O14: ='DLD Idades '!Q13/'DLD Idades '!S13 -> 0.5369168357 | P14: ='DLD Idades '!R13/'DLD Idades '!S13 -> 0.2921568627 | R14: ='DLD Idades '!U13/'DLD Idades '!Y13 -> 0.03785440613 | S14: ='DLD Idades '!V13/'DLD Idades '!Y13 -> 0.1318773946 | T14: ='DLD Idades '!W13/'DLD Idades '!Y13 -> 0.505440613 | U14: ='DLD Idades '!X13/'DLD Idades '!Y13 -> 0.3248275862
B15: Ajuda | C15: ='DLD Idades '!C14/'DLD Idades '!G14 -> 0.04819277108 | D15: ='DLD Idades '!D14/'DLD Idades '!G14 -> 0.1787148594 | E15: ='DLD Idades '!E14/'DLD Idades '!G14 -> 0.5542168675 | F15: ='DLD Idades '!F14/'DLD Idades '!G14 -> 0.218875502 | H15: ='DLD Idades '!I14/'DLD Idades '!M14 -> 0.0556745182 | I15: ='DLD Idades '!J14/'DLD Idades '!M14 -> 0.1734475375 | J15: ='DLD Idades '!K14/'DLD Idades '!M14 -> 0.5353319058 | K15: ='DLD Idades '!L14/'DLD Idades '!M14 -> 0.2355460385 | M15: ='DLD Idades '!O14/'DLD Idades '!S14 -> 0.04583333333 | N15: ='DLD Idades '!P14/'DLD Idades '!S14 -> 0.1729166667 | O15: ='DLD Idades '!Q14/'DLD Idades '!S14 -> 0.5479166667 | P15: ='DLD Idades '!R14/'DLD Idades '!S14 -> 0.2333333333 | R15: ='DLD Idades '!U14/'DLD Idades '!Y14 -> 0.04096385542 | S15: ='DLD Idades '!V14/'DLD Idades '!Y14 -> 0.1807228916 | T15: ='DLD Idades '!W14/'DLD Idades '!Y14 -> 0.5253012048 | U15: ='DLD Idades '!X14/'DLD Idades '!Y14 -> 0.2530120482
B16: Alcântara | C16: ='DLD Idades '!C15/'DLD Idades '!G15 -> 0.03149606299 | D16: ='DLD Idades '!D15/'DLD Idades '!G15 -> 0.1312335958 | E16: ='DLD Idades '!E15/'DLD Idades '!G15 -> 0.5643044619 | F16: ='DLD Idades '!F15/'DLD Idades '!G15 -> 0.2729658793 | H16: ='DLD Idades '!I15/'DLD Idades '!M15 -> 0.01662049861 | I16: ='DLD Idades '!J15/'DLD Idades '!M15 -> 0.1163434903 | J16: ='DLD Idades '!K15/'DLD Idades '!M15 -> 0.5789473684 | K16: ='DLD Idades '!L15/'DLD Idades '!M15 -> 0.2880886427 | M16: ='DLD Idades '!O15/'DLD Idades '!S15 -> 0.03072625698 | N16: ='DLD Idades '!P15/'DLD Idades '!S15 -> 0.125698324 | O16: ='DLD Idades '!Q15/'DLD Idades '!S15 -> 0.5698324022 | P16: ='DLD Idades '!R15/'DLD Idades '!S15 -> 0.2737430168 | R16: ='DLD Idades '!U15/'DLD Idades '!Y15 -> 0.02083333333 | S16: ='DLD Idades '!V15/'DLD Idades '!Y15 -> 0.1111111111 | T16: ='DLD Idades '!W15/'DLD Idades '!Y15 -> 0.5138888889 | U16: ='DLD Idades '!X15/'DLD Idades '!Y15 -> 0.3541666667
B17: Alvalade | C17: ='DLD Idades '!C16/'DLD Idades '!G16 -> 0.03276353276 | D17: ='DLD Idades '!D16/'DLD Idades '!G16 -> 0.1538461538 | E17: ='DLD Idades '!E16/'DLD Idades '!G16 -> 0.5783475783 | F17: ='DLD Idades '!F16/'DLD Idades '!G16 -> 0.235042735 | H17: ='DLD Idades '!I16/'DLD Idades '!M16 -> 0.02992125984 | I17: ='DLD Idades '!J16/'DLD Idades '!M16 -> 0.1275590551 | J17: ='DLD Idades '!K16/'DLD Idades '!M16 -> 0.5968503937 | K17: ='DLD Idades '!L16/'DLD Idades '!M16 -> 0.2456692913 | M17: ='DLD Idades '!O16/'DLD Idades '!S16 -> 0.03827751196 | N17: ='DLD Idades '!P16/'DLD Idades '!S16 -> 0.1212121212 | O17: ='DLD Idades '!Q16/'DLD Idades '!S16 -> 0.5693779904 | P17: ='DLD Idades '!R16/'DLD Idades '!S16 -> 0.2711323764 | R17: ='DLD Idades '!U16/'DLD Idades '!Y16 -> 0.03187250996 | S17: ='DLD Idades '!V16/'DLD Idades '!Y16 -> 0.1215139442 | T17: ='DLD Idades '!W16/'DLD Idades '!Y16 -> 0.5139442231 | U17: ='DLD Idades '!X16/'DLD Idades '!Y16 -> 0.3326693227
B18: Areeiro | C18: ='DLD Idades '!C17/'DLD Idades '!G17 -> 0.0293040293 | D18: ='DLD Idades '!D17/'DLD Idades '!G17 -> 0.1282051282 | E18: ='DLD Idades '!E17/'DLD Idades '!G17 -> 0.521978022 | F18: ='DLD Idades '!F17/'DLD Idades '!G17 -> 0.3205128205 | H18: ='DLD Idades '!I17/'DLD Idades '!M17 -> 0.0376984127 | I18: ='DLD Idades '!J17/'DLD Idades '!M17 -> 0.123015873 | J18: ='DLD Idades '!K17/'DLD Idades '!M17 -> 0.503968254 | K18: ='DLD Idades '!L17/'DLD Idades '!M17 -> 0.3353174603 | M18: ='DLD Idades '!O17/'DLD Idades '!S17 -> 0.03696098563 | N18: ='DLD Idades '!P17/'DLD Idades '!S17 -> 0.1252566735 | O18: ='DLD Idades '!Q17/'DLD Idades '!S17 -> 0.5174537988 | P18: ='DLD Idades '!R17/'DLD Idades '!S17 -> 0.3203285421 | R18: ='DLD Idades '!U17/'DLD Idades '!Y17 -> 0.0410022779 | S18: ='DLD Idades '!V17/'DLD Idades '!Y17 -> 0.1548974943 | T18: ='DLD Idades '!W17/'DLD Idades '!Y17 -> 0.4419134396 | U18: ='DLD Idades '!X17/'DLD Idades '!Y17 -> 0.3621867882
B19: Arroios | C19: ='DLD Idades '!C18/'DLD Idades '!G18 -> 0.02748815166 | D19: ='DLD Idades '!D18/'DLD Idades '!G18 -> 0.145971564 | E19: ='DLD Idades '!E18/'DLD Idades '!G18 -> 0.5744075829 | F19: ='DLD Idades '!F18/'DLD Idades '!G18 -> 0.2521327014 | H19: ='DLD Idades '!I18/'DLD Idades '!M18 -> 0.0163599182 | I19: ='DLD Idades '!J18/'DLD Idades '!M18 -> 0.1441717791 | J19: ='DLD Idades '!K18/'DLD Idades '!M18 -> 0.5664621677 | K19: ='DLD Idades '!L18/'DLD Idades '!M18 -> 0.273006135 | M19: ='DLD Idades '!O18/'DLD Idades '!S18 -> 0.01336073998 | N19: ='DLD Idades '!P18/'DLD Idades '!S18 -> 0.1223021583 | O19: ='DLD Idades '!Q18/'DLD Idades '!S18 -> 0.5549845838 | P19: ='DLD Idades '!R18/'DLD Idades '!S18 -> 0.309352518 | R19: ='DLD Idades '!U18/'DLD Idades '!Y18 -> 0.02145411204 | S19: ='DLD Idades '!V18/'DLD Idades '!Y18 -> 0.1132300358 | T19: ='DLD Idades '!W18/'DLD Idades '!Y18 -> 0.5089392133 | U19: ='DLD Idades '!X18/'DLD Idades '!Y18 -> 0.3563766389
B20: Avenidas Novas | C20: ='DLD Idades '!C19/'DLD Idades '!G19 -> 0.0250965251 | D20: ='DLD Idades '!D19/'DLD Idades '!G19 -> 0.1505791506 | E20: ='DLD Idades '!E19/'DLD Idades '!G19 -> 0.5193050193 | F20: ='DLD Idades '!F19/'DLD Idades '!G19 -> 0.305019305 | H20: ='DLD Idades '!I19/'DLD Idades '!M19 -> 0.02547770701 | I20: ='DLD Idades '!J19/'DLD Idades '!M19 -> 0.118895966 | J20: ='DLD Idades '!K19/'DLD Idades '!M19 -> 0.5201698514 | K20: ='DLD Idades '!L19/'DLD Idades '!M19 -> 0.3354564756 | M20: ='DLD Idades '!O19/'DLD Idades '!S19 -> 0.02991452991 | N20: ='DLD Idades '!P19/'DLD Idades '!S19 -> 0.1196581197 | O20: ='DLD Idades '!Q19/'DLD Idades '!S19 -> 0.5235042735 | P20: ='DLD Idades '!R19/'DLD Idades '!S19 -> 0.3269230769 | R20: ='DLD Idades '!U19/'DLD Idades '!Y19 -> 0.03299492386 | S20: ='DLD Idades '!V19/'DLD Idades '!Y19 -> 0.1218274112 | T20: ='DLD Idades '!W19/'DLD Idades '!Y19 -> 0.4416243655 | U20: ='DLD Idades '!X19/'DLD Idades '!Y19 -> 0.4035532995
B21: Beato | C21: ='DLD Idades '!C20/'DLD Idades '!G20 -> 0.06224899598 | D21: ='DLD Idades '!D20/'DLD Idades '!G20 -> 0.1285140562 | E21: ='DLD Idades '!E20/'DLD Idades '!G20 -> 0.5401606426 | F21: ='DLD Idades '!F20/'DLD Idades '!G20 -> 0.2690763052 | H21: ='DLD Idades '!I20/'DLD Idades '!M20 -> 0.03617021277 | I21: ='DLD Idades '!J20/'DLD Idades '!M20 -> 0.1127659574 | J21: ='DLD Idades '!K20/'DLD Idades '!M20 -> 0.5553191489 | K21: ='DLD Idades '!L20/'DLD Idades '!M20 -> 0.2957446809 | M21: ='DLD Idades '!O20/'DLD Idades '!S20 -> 0.03368421053 | N21: ='DLD Idades '!P20/'DLD Idades '!S20 -> 0.1094736842 | O21: ='DLD Idades '!Q20/'DLD Idades '!S20 -> 0.5431578947 | P21: ='DLD Idades '!R20/'DLD Idades '!S20 -> 0.3136842105 | R21: ='DLD Idades '!U20/'DLD Idades '!Y20 -> 0.03892944039 | S21: ='DLD Idades '!V20/'DLD Idades '!Y20 -> 0.099756691 | T21: ='DLD Idades '!W20/'DLD Idades '!Y20 -> 0.5158150852 | U21: ='DLD Idades '!X20/'DLD Idades '!Y20 -> 0.3454987835
B22: Belém | C22: ='DLD Idades '!C21/'DLD Idades '!G21 -> 0.003610108303 | D22: ='DLD Idades '!D21/'DLD Idades '!G21 -> 0.1444043321 | E22: ='DLD Idades '!E21/'DLD Idades '!G21 -> 0.5884476534 | F22: ='DLD Idades '!F21/'DLD Idades '!G21 -> 0.2635379061 | H22: ='DLD Idades '!I21/'DLD Idades '!M21 -> 0.004255319149 | I22: ='DLD Idades '!J21/'DLD Idades '!M21 -> 0.114893617 | J22: ='DLD Idades '!K21/'DLD Idades '!M21 -> 0.5914893617 | K22: ='DLD Idades '!L21/'DLD Idades '!M21 -> 0.2893617021 | M22: ='DLD Idades '!O21/'DLD Idades '!S21 -> 0.00826446281 | N22: ='DLD Idades '!P21/'DLD Idades '!S21 -> 0.1198347107 | O22: ='DLD Idades '!Q21/'DLD Idades '!S21 -> 0.5909090909 | P22: ='DLD Idades '!R21/'DLD Idades '!S21 -> 0.2809917355 | R22: ='DLD Idades '!U21/'DLD Idades '!Y21 -> 0.005128205128 | S22: ='DLD Idades '!V21/'DLD Idades '!Y21 -> 0.1282051282 | T22: ='DLD Idades '!W21/'DLD Idades '!Y21 -> 0.5538461538 | U22: ='DLD Idades '!X21/'DLD Idades '!Y21 -> 0.3128205128
B23: Benfica | C23: ='DLD Idades '!C22/'DLD Idades '!G22 -> 0.03105022831 | D23: ='DLD Idades '!D22/'DLD Idades '!G22 -> 0.1452054795 | E23: ='DLD Idades '!E22/'DLD Idades '!G22 -> 0.5561643836 | F23: ='DLD Idades '!F22/'DLD Idades '!G22 -> 0.2675799087 | H23: ='DLD Idades '!I22/'DLD Idades '!M22 -> 0.03368623677 | I23: ='DLD Idades '!J22/'DLD Idades '!M22 -> 0.1154956689 | J23: ='DLD Idades '!K22/'DLD Idades '!M22 -> 0.5668912416 | K23: ='DLD Idades '!L22/'DLD Idades '!M22 -> 0.2839268527 | M23: ='DLD Idades '!O22/'DLD Idades '!S22 -> 0.03955375254 | N23: ='DLD Idades '!P22/'DLD Idades '!S22 -> 0.1277890467 | O23: ='DLD Idades '!Q22/'DLD Idades '!S22 -> 0.5354969574 | P23: ='DLD Idades '!R22/'DLD Idades '!S22 -> 0.2971602434 | R23: ='DLD Idades '!U22/'DLD Idades '!Y22 -> 0.03357817419 | S23: ='DLD Idades '!V22/'DLD Idades '!Y22 -> 0.1238195173 | T23: ='DLD Idades '!W22/'DLD Idades '!Y22 -> 0.519412382 | U23: ='DLD Idades '!X22/'DLD Idades '!Y22 -> 0.3231899265
B24: Campo de Ourique | C24: ='DLD Idades '!C23/'DLD Idades '!G23 -> 0.02298850575 | D24: ='DLD Idades '!D23/'DLD Idades '!G23 -> 0.1417624521 | E24: ='DLD Idades '!E23/'DLD Idades '!G23 -> 0.530651341 | F24: ='DLD Idades '!F23/'DLD Idades '!G23 -> 0.3045977011 | H24: ='DLD Idades '!I23/'DLD Idades '!M23 -> 0.008456659619 | I24: ='DLD Idades '!J23/'DLD Idades '!M23 -> 0.133192389 | J24: ='DLD Idades '!K23/'DLD Idades '!M23 -> 0.5200845666 | K24: ='DLD Idades '!L23/'DLD Idades '!M23 -> 0.3382663848 | M24: ='DLD Idades '!O23/'DLD Idades '!S23 -> 0.02235772358 | N24: ='DLD Idades '!P23/'DLD Idades '!S23 -> 0.09146341463 | O24: ='DLD Idades '!Q23/'DLD Idades '!S23 -> 0.5528455285 | P24: ='DLD Idades '!R23/'DLD Idades '!S23 -> 0.3333333333 | R24: ='DLD Idades '!U23/'DLD Idades '!Y23 -> 0.008474576271 | S24: ='DLD Idades '!V23/'DLD Idades '!Y23 -> 0.07838983051 | T24: ='DLD Idades '!W23/'DLD Idades '!Y23 -> 0.5402542373 | U24: ='DLD Idades '!X23/'DLD Idades '!Y23 -> 0.3728813559
B25: Campolide | C25: ='DLD Idades '!C24/'DLD Idades '!G24 -> 0.02051282051 | D25: ='DLD Idades '!D24/'DLD Idades '!G24 -> 0.1333333333 | E25: ='DLD Idades '!E24/'DLD Idades '!G24 -> 0.5538461538 | F25: ='DLD Idades '!F24/'DLD Idades '!G24 -> 0.2923076923 | H25: ='DLD Idades '!I24/'DLD Idades '!M24 -> 0.02702702703 | I25: ='DLD Idades '!J24/'DLD Idades '!M24 -> 0.1111111111 | J25: ='DLD Idades '!K24/'DLD Idades '!M24 -> 0.5465465465 | K25: ='DLD Idades '!L24/'DLD Idades '!M24 -> 0.3153153153 | M25: ='DLD Idades '!O24/'DLD Idades '!S24 -> 0.02795031056 | N25: ='DLD Idades '!P24/'DLD Idades '!S24 -> 0.09937888199 | O25: ='DLD Idades '!Q24/'DLD Idades '!S24 -> 0.5248447205 | P25: ='DLD Idades '!R24/'DLD Idades '!S24 -> 0.347826087 | R25: ='DLD Idades '!U24/'DLD Idades '!Y24 -> 0.02898550725 | S25: ='DLD Idades '!V24/'DLD Idades '!Y24 -> 0.07246376812 | T25: ='DLD Idades '!W24/'DLD Idades '!Y24 -> 0.5391304348 | U25: ='DLD Idades '!X24/'DLD Idades '!Y24 -> 0.3594202899
B26: Carnide | C26: ='DLD Idades '!C25/'DLD Idades '!G25 -> 0.08378870674 | D26: ='DLD Idades '!D25/'DLD Idades '!G25 -> 0.1493624772 | E26: ='DLD Idades '!E25/'DLD Idades '!G25 -> 0.5027322404 | F26: ='DLD Idades '!F25/'DLD Idades '!G25 -> 0.2641165756 | H26: ='DLD Idades '!I25/'DLD Idades '!M25 -> 0.07205623902 | I26: ='DLD Idades '!J25/'DLD Idades '!M25 -> 0.1335676626 | J26: ='DLD Idades '!K25/'DLD Idades '!M25 -> 0.5289982425 | K26: ='DLD Idades '!L25/'DLD Idades '!M25 -> 0.2653778559 | M26: ='DLD Idades '!O25/'DLD Idades '!S25 -> 0.06440071556 | N26: ='DLD Idades '!P25/'DLD Idades '!S25 -> 0.1395348837 | O26: ='DLD Idades '!Q25/'DLD Idades '!S25 -> 0.5080500894 | P26: ='DLD Idades '!R25/'DLD Idades '!S25 -> 0.2880143113 | R26: ='DLD Idades '!U25/'DLD Idades '!Y25 -> 0.06654343808 | S26: ='DLD Idades '!V25/'DLD Idades '!Y25 -> 0.134935305 | T26: ='DLD Idades '!W25/'DLD Idades '!Y25 -> 0.5046210721 | U26: ='DLD Idades '!X25/'DLD Idades '!Y25 -> 0.2939001848
B27: Estrela | C27: ='DLD Idades '!C26/'DLD Idades '!G26 -> 0.02117647059 | D27: ='DLD Idades '!D26/'DLD Idades '!G26 -> 0.1317647059 | E27: ='DLD Idades '!E26/'DLD Idades '!G26 -> 0.5411764706 | F27: ='DLD Idades '!F26/'DLD Idades '!G26 -> 0.3058823529 | H27: ='DLD Idades '!I26/'DLD Idades '!M26 -> 0.02463054187 | I27: ='DLD Idades '!J26/'DLD Idades '!M26 -> 0.1083743842 | J27: ='DLD Idades '!K26/'DLD Idades '!M26 -> 0.5344827586 | K27: ='DLD Idades '!L26/'DLD Idades '!M26 -> 0.3325123153 | M27: ='DLD Idades '!O26/'DLD Idades '!S26 -> 0.02222222222 | N27: ='DLD Idades '!P26/'DLD Idades '!S26 -> 0.0987654321 | O27: ='DLD Idades '!Q26/'DLD Idades '!S26 -> 0.5259259259 | P27: ='DLD Idades '!R26/'DLD Idades '!S26 -> 0.3530864198 | R27: ='DLD Idades '!U26/'DLD Idades '!Y26 -> 0.02898550725 | S27: ='DLD Idades '!V26/'DLD Idades '!Y26 -> 0.1014492754 | T27: ='DLD Idades '!W26/'DLD Idades '!Y26 -> 0.4492753623 | U27: ='DLD Idades '!X26/'DLD Idades '!Y26 -> 0.4202898551
B28: Lumiar | C28: ='DLD Idades '!C27/'DLD Idades '!G27 -> 0.02279792746 | D28: ='DLD Idades '!D27/'DLD Idades '!G27 -> 0.1575129534 | E28: ='DLD Idades '!E27/'DLD Idades '!G27 -> 0.5502590674 | F28: ='DLD Idades '!F27/'DLD Idades '!G27 -> 0.2694300518 | H28: ='DLD Idades '!I27/'DLD Idades '!M27 -> 0.02132196162 | I28: ='DLD Idades '!J27/'DLD Idades '!M27 -> 0.1503198294 | J28: ='DLD Idades '!K27/'DLD Idades '!M27 -> 0.5490405117 | K28: ='DLD Idades '!L27/'DLD Idades '!M27 -> 0.2793176972 | M28: ='DLD Idades '!O27/'DLD Idades '!S27 -> 0.03376906318 | N28: ='DLD Idades '!P27/'DLD Idades '!S27 -> 0.1339869281 | O28: ='DLD Idades '!Q27/'DLD Idades '!S27 -> 0.5664488017 | P28: ='DLD Idades '!R27/'DLD Idades '!S27 -> 0.265795207 | R28: ='DLD Idades '!U27/'DLD Idades '!Y27 -> 0.03010033445 | S28: ='DLD Idades '!V27/'DLD Idades '!Y27 -> 0.1471571906 | T28: ='DLD Idades '!W27/'DLD Idades '!Y27 -> 0.5496098105 | U28: ='DLD Idades '!X27/'DLD Idades '!Y27 -> 0.2731326644
B29: Marvila | C29: ='DLD Idades '!C28/'DLD Idades '!G28 -> 0.05773955774 | D29: ='DLD Idades '!D28/'DLD Idades '!G28 -> 0.1683046683 | E29: ='DLD Idades '!E28/'DLD Idades '!G28 -> 0.5178132678 | F29: ='DLD Idades '!F28/'DLD Idades '!G28 -> 0.2561425061 | H29: ='DLD Idades '!I28/'DLD Idades '!M28 -> 0.05642023346 | I29: ='DLD Idades '!J28/'DLD Idades '!M28 -> 0.1511024643 | J29: ='DLD Idades '!K28/'DLD Idades '!M28 -> 0.5129701686 | K29: ='DLD Idades '!L28/'DLD Idades '!M28 -> 0.2795071336 | M29: ='DLD Idades '!O28/'DLD Idades '!S28 -> 0.05808080808 | N29: ='DLD Idades '!P28/'DLD Idades '!S28 -> 0.1534090909 | O29: ='DLD Idades '!Q28/'DLD Idades '!S28 -> 0.4949494949 | P29: ='DLD Idades '!R28/'DLD Idades '!S28 -> 0.2935606061 | R29: ='DLD Idades '!U28/'DLD Idades '!Y28 -> 0.06018854242 | S29: ='DLD Idades '!V28/'DLD Idades '!Y28 -> 0.1377810007 | T29: ='DLD Idades '!W28/'DLD Idades '!Y28 -> 0.4757070341 | U29: ='DLD Idades '!X28/'DLD Idades '!Y28 -> 0.3263234228
B30: Misericórdia | C30: ='DLD Idades '!C29/'DLD Idades '!G29 -> 0.01990049751 | D30: ='DLD Idades '!D29/'DLD Idades '!G29 -> 0.1641791045 | E30: ='DLD Idades '!E29/'DLD Idades '!G29 -> 0.5373134328 | F30: ='DLD Idades '!F29/'DLD Idades '!G29 -> 0.2786069652 | H30: ='DLD Idades '!I29/'DLD Idades '!M29 -> 0.01369863014 | I30: ='DLD Idades '!J29/'DLD Idades '!M29 -> 0.1260273973 | J30: ='DLD Idades '!K29/'DLD Idades '!M29 -> 0.5506849315 | K30: ='DLD Idades '!L29/'DLD Idades '!M29 -> 0.3095890411 | M30: ='DLD Idades '!O29/'DLD Idades '!S29 -> 0.008287292818 | N30: ='DLD Idades '!P29/'DLD Idades '!S29 -> 0.1132596685 | O30: ='DLD Idades '!Q29/'DLD Idades '!S29 -> 0.5552486188 | P30: ='DLD Idades '!R29/'DLD Idades '!S29 -> 0.3232044199 | R30: ='DLD Idades '!U29/'DLD Idades '!Y29 -> 0.01337792642 | S30: ='DLD Idades '!V29/'DLD Idades '!Y29 -> 0.1170568562 | T30: ='DLD Idades '!W29/'DLD Idades '!Y29 -> 0.5016722408 | U30: ='DLD Idades '!X29/'DLD Idades '!Y29 -> 0.3678929766
B31: Santa Maria dos Olivais | C31: ='DLD Idades '!C30/'DLD Idades '!G30 -> 0.1666666667 | D31: ='DLD Idades '!D30/'DLD Idades '!G30 -> 0.05555555556 | E31: ='DLD Idades '!E30/'DLD Idades '!G30 -> 0.6666666667 | F31: ='DLD Idades '!F30/'DLD Idades '!G30 -> 0.1111111111 | H31: ='DLD Idades '!I30/'DLD Idades '!M30 -> 0.09615384615 | I31: ='DLD Idades '!J30/'DLD Idades '!M30 -> 0.1538461538 | J31: ='DLD Idades '!K30/'DLD Idades '!M30 -> 0.5384615385 | K31: ='DLD Idades '!L30/'DLD Idades '!M30 -> 0.2115384615 | M31: ='DLD Idades '!O30/'DLD Idades '!S30 -> 0.1029411765 | N31: ='DLD Idades '!P30/'DLD Idades '!S30 -> 0.2058823529 | O31: ='DLD Idades '!Q30/'DLD Idades '!S30 -> 0.5441176471 | P31: ='DLD Idades '!R30/'DLD Idades '!S30 -> 0.1470588235 | R31: ='DLD Idades '!U30/'DLD Idades '!Y30 -> 0.09782608696 | S31: ='DLD Idades '!V30/'DLD Idades '!Y30 -> 0.2065217391 | T31: ='DLD Idades '!W30/'DLD Idades '!Y30 -> 0.5326086957 | U31: ='DLD Idades '!X30/'DLD Idades '!Y30 -> 0.1630434783
B32: Parque das Nações (**) | C32: ='DLD Idades '!C31/'DLD Idades '!G31 -> 0.04768486524 | D32: ='DLD Idades '!D31/'DLD Idades '!G31 -> 0.1693158258 | E32: ='DLD Idades '!E31/'DLD Idades '!G31 -> 0.5279889426 | F32: ='DLD Idades '!F31/'DLD Idades '!G31 -> 0.2550103663 | H32: ='DLD Idades '!I31/'DLD Idades '!M31 -> 0.05342960289 | I32: ='DLD Idades '!J31/'DLD Idades '!M31 -> 0.1516245487 | J32: ='DLD Idades '!K31/'DLD Idades '!M31 -> 0.5436823105 | K32: ='DLD Idades '!L31/'DLD Idades '!M31 -> 0.2512635379 | M32: ='DLD Idades '!O31/'DLD Idades '!S31 -> 0.05259313367 | N32: ='DLD Idades '!P31/'DLD Idades '!S31 -> 0.1417092768 | O32: ='DLD Idades '!Q31/'DLD Idades '!S31 -> 0.5441928415 | P32: ='DLD Idades '!R31/'DLD Idades '!S31 -> 0.261504748 | R32: ='DLD Idades '!U31/'DLD Idades '!Y31 -> 0.0595026643 | S32: ='DLD Idades '!V31/'DLD Idades '!Y31 -> 0.1394316163 | T32: ='DLD Idades '!W31/'DLD Idades '!Y31 -> 0.4920071048 | U32: ='DLD Idades '!X31/'DLD Idades '!Y31 -> 0.3090586146
B33: Penha de França | C33: ='DLD Idades '!C32/'DLD Idades '!G32 -> 0.0303712036 | D33: ='DLD Idades '!D32/'DLD Idades '!G32 -> 0.1597300337 | E33: ='DLD Idades '!E32/'DLD Idades '!G32 -> 0.5264341957 | F33: ='DLD Idades '!F32/'DLD Idades '!G32 -> 0.2834645669 | H33: ='DLD Idades '!I32/'DLD Idades '!M32 -> 0.02200488998 | I33: ='DLD Idades '!J32/'DLD Idades '!M32 -> 0.1491442543 | J33: ='DLD Idades '!K32/'DLD Idades '!M32 -> 0.5427872861 | K33: ='DLD Idades '!L32/'DLD Idades '!M32 -> 0.2860635697 | M33: ='DLD Idades '!O32/'DLD Idades '!S32 -> 0.02117061021 | N33: ='DLD Idades '!P32/'DLD Idades '!S32 -> 0.1432129514 | O33: ='DLD Idades '!Q32/'DLD Idades '!S32 -> 0.5491905355 | P33: ='DLD Idades '!R32/'DLD Idades '!S32 -> 0.2864259029 | R33: ='DLD Idades '!U32/'DLD Idades '!Y32 -> 0.02591463415 | S33: ='DLD Idades '!V32/'DLD Idades '!Y32 -> 0.1554878049 | T33: ='DLD Idades '!W32/'DLD Idades '!Y32 -> 0.506097561 | U33: ='DLD Idades '!X32/'DLD Idades '!Y32 -> 0.3125
B34: Santa Clara | C34: ='DLD Idades '!C33/'DLD Idades '!G33 -> 0.0593962999 | D34: ='DLD Idades '!D33/'DLD Idades '!G33 -> 0.2083739046 | E34: ='DLD Idades '!E33/'DLD Idades '!G33 -> 0.4985394352 | F34: ='DLD Idades '!F33/'DLD Idades '!G33 -> 0.2336903603 | H34: ='DLD Idades '!I33/'DLD Idades '!M33 -> 0.05708460754 | I34: ='DLD Idades '!J33/'DLD Idades '!M33 -> 0.1906218145 | J34: ='DLD Idades '!K33/'DLD Idades '!M33 -> 0.5066258919 | K34: ='DLD Idades '!L33/'DLD Idades '!M33 -> 0.245667686 | M34: ='DLD Idades '!O33/'DLD Idades '!S33 -> 0.05649157582 | N34: ='DLD Idades '!P33/'DLD Idades '!S33 -> 0.2001982161 | O34: ='DLD Idades '!Q33/'DLD Idades '!S33 -> 0.5014866204 | P34: ='DLD Idades '!R33/'DLD Idades '!S33 -> 0.2418235877 | R34: ='DLD Idades '!U33/'DLD Idades '!Y33 -> 0.05926724138 | S34: ='DLD Idades '!V33/'DLD Idades '!Y33 -> 0.2015086207 | T34: ='DLD Idades '!W33/'DLD Idades '!Y33 -> 0.4870689655 | U34: ='DLD Idades '!X33/'DLD Idades '!Y33 -> 0.2521551724
B35: Santa Maria Maior | C35: ='DLD Idades '!C34/'DLD Idades '!G34 -> 0.03424657534 | D35: ='DLD Idades '!D34/'DLD Idades '!G34 -> 0.1347031963 | E35: ='DLD Idades '!E34/'DLD Idades '!G34 -> 0.5662100457 | F35: ='DLD Idades '!F34/'DLD Idades '!G34 -> 0.2648401826 | H35: ='DLD Idades '!I34/'DLD Idades '!M34 -> 0.0297029703 | I35: ='DLD Idades '!J34/'DLD Idades '!M34 -> 0.1138613861 | J35: ='DLD Idades '!K34/'DLD Idades '!M34 -> 0.5742574257 | K35: ='DLD Idades '!L34/'DLD Idades '!M34 -> 0.2821782178 | M35: ='DLD Idades '!O34/'DLD Idades '!S34 -> 0.01965601966 | N35: ='DLD Idades '!P34/'DLD Idades '!S34 -> 0.08353808354 | O35: ='DLD Idades '!Q34/'DLD Idades '!S34 -> 0.5921375921 | P35: ='DLD Idades '!R34/'DLD Idades '!S34 -> 0.3046683047 | R35: ='DLD Idades '!U34/'DLD Idades '!Y34 -> 0.01749271137 | S35: ='DLD Idades '!V34/'DLD Idades '!Y34 -> 0.07288629738 | T35: ='DLD Idades '!W34/'DLD Idades '!Y34 -> 0.5655976676 | U35: ='DLD Idades '!X34/'DLD Idades '!Y34 -> 0.3440233236
B36: Santo António | C36: ='DLD Idades '!C35/'DLD Idades '!G35 -> 0.01807228916 | D36: ='DLD Idades '!D35/'DLD Idades '!G35 -> 0.1265060241 | E36: ='DLD Idades '!E35/'DLD Idades '!G35 -> 0.515060241 | F36: ='DLD Idades '!F35/'DLD Idades '!G35 -> 0.3403614458 | H36: ='DLD Idades '!I35/'DLD Idades '!M35 -> 0.01302931596 | I36: ='DLD Idades '!J35/'DLD Idades '!M35 -> 0.09771986971 | J36: ='DLD Idades '!K35/'DLD Idades '!M35 -> 0.5276872964 | K36: ='DLD Idades '!L35/'DLD Idades '!M35 -> 0.3615635179 | M36: ='DLD Idades '!O35/'DLD Idades '!S35 -> 0.01639344262 | N36: ='DLD Idades '!P35/'DLD Idades '!S35 -> 0.1049180328 | O36: ='DLD Idades '!Q35/'DLD Idades '!S35 -> 0.531147541 | P36: ='DLD Idades '!R35/'DLD Idades '!S35 -> 0.3475409836 | R36: ='DLD Idades '!U35/'DLD Idades '!Y35 -> 0.02916666667 | S36: ='DLD Idades '!V35/'DLD Idades '!Y35 -> 0.1125 | T36: ='DLD Idades '!W35/'DLD Idades '!Y35 -> 0.45 | U36: ='DLD Idades '!X35/'DLD Idades '!Y35 -> 0.4083333333
B37: São Domingos de Benfica | C37: ='DLD Idades '!C36/'DLD Idades '!G36 -> 0.01620029455 | D37: ='DLD Idades '!D36/'DLD Idades '!G36 -> 0.1399116348 | E37: ='DLD Idades '!E36/'DLD Idades '!G36 -> 0.5375552283 | F37: ='DLD Idades '!F36/'DLD Idades '!G36 -> 0.3063328424 | H37: ='DLD Idades '!I36/'DLD Idades '!M36 -> 0.02261712439 | I37: ='DLD Idades '!J36/'DLD Idades '!M36 -> 0.1114701131 | J37: ='DLD Idades '!K36/'DLD Idades '!M36 -> 0.5298869144 | K37: ='DLD Idades '!L36/'DLD Idades '!M36 -> 0.3360258481 | M37: ='DLD Idades '!O36/'DLD Idades '!S36 -> 0.03225806452 | N37: ='DLD Idades '!P36/'DLD Idades '!S36 -> 0.133640553 | O37: ='DLD Idades '!Q36/'DLD Idades '!S36 -> 0.5038402458 | P37: ='DLD Idades '!R36/'DLD Idades '!S36 -> 0.3302611367 | R37: ='DLD Idades '!U36/'DLD Idades '!Y36 -> 0.0204778157 | S37: ='DLD Idades '!V36/'DLD Idades '!Y36 -> 0.1245733788 | T37: ='DLD Idades '!W36/'DLD Idades '!Y36 -> 0.5170648464 | U37: ='DLD Idades '!X36/'DLD Idades '!Y36 -> 0.337883959
B38: São Vicente | C38: ='DLD Idades '!C37/'DLD Idades '!G37 -> 0.03917525773 | D38: ='DLD Idades '!D37/'DLD Idades '!G37 -> 0.1608247423 | E38: ='DLD Idades '!E37/'DLD Idades '!G37 -> 0.5237113402 | F38: ='DLD Idades '!F37/'DLD Idades '!G37 -> 0.2762886598 | H38: ='DLD Idades '!I37/'DLD Idades '!M37 -> 0.02995391705 | I38: ='DLD Idades '!J37/'DLD Idades '!M37 -> 0.1198156682 | J38: ='DLD Idades '!K37/'DLD Idades '!M37 -> 0.5483870968 | K38: ='DLD Idades '!L37/'DLD Idades '!M37 -> 0.301843318 | M38: ='DLD Idades '!O37/'DLD Idades '!S37 -> 0.02409638554 | N38: ='DLD Idades '!P37/'DLD Idades '!S37 -> 0.1156626506 | O38: ='DLD Idades '!Q37/'DLD Idades '!S37 -> 0.556626506 | P38: ='DLD Idades '!R37/'DLD Idades '!S37 -> 0.3036144578 | R38: ='DLD Idades '!U37/'DLD Idades '!Y37 -> 0.02564102564 | S38: ='DLD Idades '!V37/'DLD Idades '!Y37 -> 0.1082621083 | T38: ='DLD Idades '!W37/'DLD Idades '!Y37 -> 0.5527065527 | U38: ='DLD Idades '!X37/'DLD Idades '!Y37 -> 0.3133903134
B39: Freg. Não Codificada | C39: ='DLD Idades '!C38/'DLD Idades '!G38 -> 0.1666666667 | D39: ='DLD Idades '!D38/'DLD Idades '!G38 -> 0.1666666667 | E39: ='DLD Idades '!E38/'DLD Idades '!G38 -> 0.5833333333 | F39: ='DLD Idades '!F38/'DLD Idades '!G38 -> 0.08333333333 | H39: ='DLD Idades '!I38/'DLD Idades '!M38 -> 0.05555555556 | I39: ='DLD Idades '!J38/'DLD Idades '!M38 -> 0.1111111111 | J39: ='DLD Idades '!K38/'DLD Idades '!M38 -> 0.7222222222 | K39: ='DLD Idades '!L38/'DLD Idades '!M38 -> 0.1111111111 | M39: - | N39: ='DLD Idades '!P38/'DLD Idades '!S38 -> 0.24 | O39: ='DLD Idades '!Q38/'DLD Idades '!S38 -> 0.68 | P39: ='DLD Idades '!R38/'DLD Idades '!S38 -> 0.08 | R39: ='DLD Idades '!U38/'DLD Idades '!Y38 -> 0.07142857143 | S39: ='DLD Idades '!V38/'DLD Idades '!Y38 -> 0.2142857143 | T39: ='DLD Idades '!W38/'DLD Idades '!Y38 -> 0.5714285714 | U39: ='DLD Idades '!X38/'DLD Idades '!Y38 -> 0.1428571429
B40: Fonte: Instituto de Emprego e Formação Profissional
B41: Cálculos: OLCPL

Sheet DLD Escolaridade
A5: Q.11 | B5: Número de Desempregados de Longa Duração inscritos nos Centros de Emprego, escolaridade, 2014
C7: Número de desempregados de longa duração inscritos nos Centros de Emprego, escolaridade
C8: 1º TRIMESTRE | K8: 2º TRIMESTRE | S8: 3º TRIMESTRE | AA8: 4º TRIMESTRE | AG8: 4
B9: Unidade: Nº | C9: < 1º Ciclo EB | D9: 1º Ciclo EB | E9: 2º Ciclo EB | F9: 3º Ciclo EB | G9: Secundário | H9: Superior | I9: Total | K9: < 1º Ciclo EB | L9: 1º Ciclo EB | M9: 2º Ciclo EB | N9: 3º Ciclo EB | O9: Secundário | P9: Superior | Q9: Total | S9: < 1º Ciclo EB | T9: 1º Ciclo EB | U9: 2º Ciclo EB | V9: 3º Ciclo EB | W9: Secundário | X9: Superior | Y9: Total | AA9: < 1º Ciclo EB | AB9: 1º Ciclo EB | AC9: 2º Ciclo EB | AD9: 3º Ciclo EB | AE9: Secundário | AF9: Superior | AG9: Total
B10: Portugal Continental | C10: 20900 | D10: 85448 | E10: 51502 | F10: 61159 | G10: 64108 | H10: 33163 | I10: 316280 | K10: 20268 | L10: 81940 | M10: 48307 | N10: 56136 | O10: 58191 | P10: 29873 | Q10: 294715 | S10: 20536 | T10: 80351 | U10: 47111 | V10: 55041 | W10: 59079 | X10: 33324 | Y10: 295442 | AA10: 20321 | AB10: 76997 | AC10: 44781 | AD10: 51111 | AE10: 55104 | AF10: 30004 | AG10: 278318
B11: AML | C11: 5027 | D11: 14521 | E11: 11278 | F11: 15518 | G11: 18932 | H11: 9348 | I11: 74624 | K11: 4879 | L11: 14270 | M11: 10859 | N11: 14450 | O11: 17682 | P11: 8432 | Q11: 70572 | S11: 4862 | T11: 14042 | U11: 10411 | V11: 14061 | W11: 17604 | X11: 9190 | Y11: 70170 | AA11: 4726 | AB11: 13400 | AC11: 9769 | AD11: 12440 | AE11: 15404 | AF11: 7800 | AG11: 63539
B12: Distrito de Lisboa | C12: 3689 | D12: 11727 | E12: 8812 | F12: 11698 | G12: 14697 | H12: 7633 | I12: 58256 | K12: 3555 | L12: 11522 | M12: 8364 | N12: 10959 | O12: 13668 | P12: 6905 | Q12: =SUM(K12:P12) -> 54973 | S12: 3523 | T12: 11161 | U12: 7864 | V12: 10442 | W12: 13463 | X12: 7456 | Y12: 53909 | AA12: 3315 | AB12: 10582 | AC12: 7261 | AD12: 9121 | AE12: 11560 | AF12: 6181 | AG12: =SUM(AA12:AF12) -> 48020
B13: Concelho de Lisboa | C13: 1512 | D13: 3013 | E13: 2183 | F13: 2641 | G13: 3463 | H13: 2966 | I13: 15778 | K13: =SUM(K14:K38) -> 1438 | L13: =SUM(L14:L38) -> 2962 | M13: 2064 | N13: 2542 | O13: 3149 | P13: 2649 | Q13: 14804 | S13: 1465 | T13: 3002 | U13: 2001 | V13: 2471 | W13: 3086 | X13: 2765 | Y13: 14790 | AA13: 1392 | AB13: 2980 | AC13: 1937 | AD13: 2052 | AE13: 2383 | AF13: 2306 | AG13: 13050
B14: Ajuda | C14: 60 | D14: 122 | E14: 69 | F14: 93 | G14: 99 | H14: 55 | I14: 498 | K14: 60 | L14: 112 | M14: 66 | N14: 88 | O14: 89 | P14: 52 | Q14: 467 | S14: 64 | T14: 132 | U14: 59 | V14: 83 | W14: 90 | X14: 52 | Y14: 480 | AA14: 65 | AB14: 123 | AC14: 60 | AD14: 69 | AE14: 62 | AF14: 36 | AG14: 415
B15: Alcântara | C15: 19 | D15: 68 | E15: 52 | F15: 60 | G15: 112 | H15: 70 | I15: 381 | K15: 16 | L15: 63 | M15: 52 | N15: 68 | O15: 99 | P15: 63 | Q15: 361 | S15: 12 | T15: 63 | U15: 39 | V15: 70 | W15: 93 | X15: 81 | Y15: 358 | AA15: 15 | AB15: 66 | AC15: 44 | AD15: 54 | AE15: 51 | AF15: 58 | AG15: 288
B16: Alvalade | C16: 46 | D16: 77 | E16: 58 | F16: 109 | G16: 205 | H16: 207 | I16: 702 | K16: 45 | L16: 76 | M16: 61 | N16: 104 | O16: 167 | P16: 182 | Q16: 635 | S16: 41 | T16: 84 | U16: 58 | V16: 103 | W16: 150 | X16: 191 | Y16: 627 | AA16: 33 | AB16: 81 | AC16: 45 | AD16: 80 | AE16: 119 | AF16: 144 | AG16: 502
B17: Areeiro | C17: 33 | D17: 71 | E17: 54 | F17: 84 | G17: 143 | H17: 161 | I17: 546 | K17: 35 | L17: 61 | M17: 47 | N17: 83 | O17: 126 | P17: 152 | Q17: 504 | S17: 34 | T17: 63 | U17: 40 | V17: 90 | W17: 126 | X17: 134 | Y17: 487 | AA17: 28 | AB17: 57 | AC17: 41 | AD17: 69 | AE17: 114 | AF17: 130 | AG17: 439
B18: Arroios | C18: 165 | D18: 138 | E18: 147 | F18: 176 | G18: 248 | H18: 181 | I18: 1055 | K18: 140 | L18: 140 | M18: 141 | N18: 170 | O18: 238 | P18: 149 | Q18: 978 | S18: 119 | T18: 148 | U18: 135 | V18: 182 | W18: 228 | X18: 161 | Y18: 973 | AA18: 102 | AB18: 151 | AC18: 140 | AD18: 155 | AE18: 160 | AF18: 131 | AG18: 839
B19: Avenidas Novas | C19: 35 | D19: 65 | E19: 41 | F19: 64 | G19: 137 | H19: 176 | I19: 518 | K19: 38 | L19: 61 | M19: 42 | N19: 51 | O19: 123 | P19: 156 | Q19: 471 | S19: 36 | T19: 58 | U19: 48 | V19: 50 | W19: 117 | X19: 159 | Y19: 468 | AA19: 37 | AB19: 57 | AC19: 42 | AD19: 41 | AE19: 97 | AF19: 120 | AG19: 394
B20: Beato | C20: 67 | D20: 117 | E20: 97 | F20: 95 | G20: 82 | H20: 40 | I20: 498 | K20: 59 | L20: 108 | M20: 99 | N20: 93 | O20: 75 | P20: 36 | Q20: 470 | S20: 63 | T20: 116 | U20: 95 | V20: 84 | W20: 85 | X20: 32 | Y20: 475 | AA20: 60 | AB20: 109 | AC20: 96 | AD20: 66 | AE20: 58 | AF20: 22 | AG20: 411
B21: Belém | C21: 1 | D21: 17 | E21: 20 | F21: 37 | G21: 85 | H21: 117 | I21: 277 | K21: 1 | L21: 18 | M21: 15 | N21: 36 | O21: 70 | P21: 95 | Q21: 235 | S21: 1 | T21: 18 | U21: 20 | V21: 41 | W21: 71 | X21: 91 | Y21: 242 | AA21: 1 | AB21: 19 | AC21: 24 | AD21: 27 | AE21: 51 | AF21: 73 | AG21: 195
B22: Benfica | C22: 79 | D22: 191 | E22: 144 | F22: 201 | G22: 266 | H22: 214 | I22: 1095 | K22: 75 | L22: 189 | M22: 125 | N22: 194 | O22: 259 | P22: 197 | Q22: 1039 | S22: 73 | T22: 181 | U22: 98 | V22: 178 | W22: 258 | X22: 198 | Y22: 986 | AA22: 85 | AB22: 184 | AC22: 126 | AD22: 161 | AE22: 218 | AF22: 179 | AG22: 953
B23: Campo de Ourique | C23: 19 | D23: 78 | E23: 56 | F23: 100 | G23: 150 | H23: 119 | I23: 522 | K23: 16 | L23: 77 | M23: 55 | N23: 96 | O23: 117 | P23: 112 | Q23: 473 | S23: 19 | T23: 78 | U23: 54 | V23: 97 | W23: 125 | X23: 119 | Y23: 492 | AA23: 19 | AB23: 87 | AC23: 62 | AD23: 96 | AE23: 116 | AF23: 92 | AG23: 472
B24: Campolide | C24: 23 | D24: 81 | E24: 64 | F24: 73 | G24: 88 | H24: 61 | I24: 390 | K24: 20 | L24: 73 | M24: 56 | N24: 66 | O24: 78 | P24: 40 | Q24: 333 | S24: 19 | T24: 80 | U24: 49 | V24: 61 | W24: 69 | X24: 44 | Y24: 322 | AA24: 20 | AB24: 95 | AC24: 62 | AD24: 55 | AE24: 69 | AF24: 44 | AG24: 345
B25: Carnide | C25: 66 | D25: 127 | E25: 61 | F25: 102 | G25: 86 | H25: 107 | I25: 549 | K25: 71 | L25: 132 | M25: 64 | N25: 110 | O25: 87 | P25: 105 | Q25: 569 | S25: 72 | T25: 138 | U25: 63 | V25: 105 | W25: 86 | X25: 95 | Y25: 559 | AA25: 68 | AB25: 138 | AC25: 67 | AD25: 96 | AE25: 80 | AF25: 92 | AG25: 541
B26: Estrela | C26: 13 | D26: 50 | E26: 50 | F26: 71 | G26: 124 | H26: 117 | I26: 425 | K26: 9 | L26: 57 | M26: 47 | N26: 71 | O26: 113 | P26: 109 | Q26: 406 | S26: 12 | T26: 59 | U26: 42 | V26: 67 | W26: 108 | X26: 117 | Y26: 405 | AA26: 10 | AB26: 58 | AC26: 39 | AD26: 53 | AE26: 92 | AF26: 93 | AG26: 345
B27: Lumiar | C27: 72 | D27: 157 | E27: 85 | F27: 117 | G27: 223 | H27: 311 | I27: 965 | K27: 75 | L27: 160 | M27: 80 | N27: 110 | O27: 228 | P27: 285 | Q27: 938 | S27: 77 | T27: 153 | U27: 87 | V27: 105 | W27: 192 | X27: 304 | Y27: 918 | AA27: 84 | AB27: 164 | AC27: 87 | AD27: 99 | AE27: 181 | AF27: 282 | AG27: 897
B28: Marvila | C28: 204 | D28: 521 | E28: 324 | F28: 281 | G28: 217 | H28: 81 | I28: 1628 | K28: 195 | L28: 530 | M28: 299 | N28: 283 | O28: 173 | P28: 62 | Q28: 1542 | S28: 217 | T28: 528 | U28: 312 | V28: 265 | W28: 186 | X28: 76 | Y28: 1584 | AA28: 195 | AB28: 494 | AC28: 276 | AD28: 208 | AE28: 154 | AF28: 52 | AG28: 1379
B29: Misericórdia | C29: 36 | D29: 76 | E29: 64 | F29: 62 | G29: 101 | H29: 63 | I29: 402 | K29: 29 | L29: 72 | M29: 57 | N29: 64 | O29: 96 | P29: 47 | Q29: 365 | S29: 29 | T29: 64 | U29: 58 | V29: 60 | W29: 96 | X29: 55 | Y29: 362 | AA29: 22 | AB29: 66 | AC29: 58 | AD29: 47 | AE29: 55 | AF29: 51 | AG29: 299
B30: Olivais | C30: 4 | D30: 5 | E30: 2 | F30: 2 | G30: - | H30: 5 | I30: 18 | K30: 3 | L30: 11 | M30: 6 | N30: 11 | O30: 11 | P30: 10 | Q30: 52 | S30: 5 | T30: 8 | U30: 12 | V30: 15 | W30: 13 | X30: 15 | Y30: 68 | AA30: 7 | AB30: 14 | AC30: 16 | AD30: 16 | AE30: 16 | AF30: 23 | AG30: 92
B31: Parque das Nações | C31: 129 | D31: 299 | E31: 223 | F31: 260 | G31: 301 | H31: 235 | I31: 1447 | K31: 130 | L31: 290 | M31: 218 | N31: 237 | O31: 280 | P31: 230 | Q31: 1385 | S31: 150 | T31: 297 | U31: 220 | V31: 225 | W31: 255 | X31: 222 | Y31: 1369 | AA31: 133 | AB31: 285 | AC31: 170 | AD31: 178 | AE31: 193 | AF31: 167 | AG31: 1126
B32: Penha de França | C32: 83 | D32: 156 | E32: 136 | F32: 159 | G32: 216 | H32: 139 | I32: 889 | K32: 71 | L32: 143 | M32: 137 | N32: 153 | O32: 200 | P32: 114 | Q32: 818 | S32: 67 | T32: 138 | U32: 119 | V32: 149 | W32: 196 | X32: 134 | Y32: 803 | AA32: 65 | AB32: 133 | AC32: 121 | AD32: 123 | AE32: 109 | AF32: 105 | AG32: 656
B33: Santa Clara | C33: 214 | D33: 299 | E33: 181 | F33: 143 | G33: 116 | H33: 74 | I33: 1027 | K33: 220 | L33: 294 | M33: 164 | N33: 123 | O33: 107 | P33: 73 | Q33: 981 | S33: 236 | T33: 297 | U33: 173 | V33: 117 | W33: 122 | X33: 64 | Y33: 1009 | AA33: 234 | AB33: 304 | AC33: 156 | AD33: 103 | AE33: 71 | AF33: 60 | AG33: 928
B34: Santa Maria Maior | C34: 61 | D34: 87 | E34: 79 | F34: 86 | G34: 64 | H34: 61 | I34: 438 | K34: 58 | L34: 85 | M34: 71 | N34: 89 | O34: 58 | P34: 43 | Q34: 404 | S34: 55 | T34: 94 | U34: 63 | V34: 79 | W34: 72 | X34: 44 | Y34: 407 | AA34: 47 | AB34: 84 | AC34: 62 | AD34: 61 | AE34: 53 | AF34: 36 | AG34: 343
B35: Santo António | C35: 26 | D35: 46 | E35: 38 | F35: 56 | G35: 88 | H35: 78 | I35: 332 | K35: 21 | L35: 42 | M35: 34 | N35: 46 | O35: 82 | P35: 82 | Q35: 307 | S35: 16 | T35: 46 | U35: 37 | V35: 37 | W35: 86 | X35: 83 | Y35: 305 | AA35: 15 | AB35: 51 | AC35: 32 | AD35: 33 | AE35: 55 | AF35: 54 | AG35: 240
B36: São Domingos de Benfica | C36: 15 | D36: 65 | E36: 63 | F36: 111 | G36: 195 | H36: 230 | I36: 679 | K36: 15 | L36: 68 | M36: 58 | N36: 102 | O36: 174 | P36: 202 | Q36: 619 | S36: 17 | T36: 71 | U36: 55 | V36: 113 | W36: 164 | X36: 231 | Y36: 651 | AA36: 16 | AB36: 70 | AC36: 50 | AD36: 91 | AE36: 154 | AF36: 205 | AG36: 586
B37: São Vicente | C37: 42 | D37: 100 | E37: 72 | F37: 96 | G37: 113 | H37: 62 | I37: 485 | K37: 36 | L37: 99 | M37: 67 | N37: 91 | O37: 97 | P37: 44 | Q37: 434 | S37: 31 | T37: 87 | U37: 63 | V37: 92 | W37: 94 | X37: 48 | Y37: 415 | AA37: 30 | AB37: 89 | AC37: 60 | AD37: 69 | AE37: 54 | AF37: 49 | AG37: 351
B38: Freg. Não Codificada | C38: - | D38: - | E38: 3 | F38: 3 | G38: 4 | H38: 2 | I38: 12 | K38: - | L38: 1 | M38: 3 | N38: 3 | O38: 2 | P38: 9 | Q38: 18 | S38: - | T38: 1 | U38: 2 | V38: 3 | W38: 4 | X38: 15 | Y38: 25 | AA38: 1 | AB38: 1 | AC38: 1 | AD38: 2 | AE38: 1 | AF38: 8 | AG38: 14
B40: Fonte: Instituto de Emprego e Formação Profissional
B41: Cálculos: OLCPL
B42: Notas n.d.: não disponível (para valores =< 5, por razões de confidencialidade dados não disponibilizados pela fonte)

Sheet DLD escolar %
A5: Q.12 | B5: Desempregados de longa duração inscritos nos Centros de Emprego, escolaridade, 2014 (%)
C7: Desempregados de longa duração inscritos nos Centros de Emprego, escolaridade
C8: %
C9: 1º TRIMESTRE | J9: 2º TRIMESTRE | Q9: 3º TRIMESTRE | X9: 4º TRIMESTRE
B10: Unidade: % | C10: < 1º Ciclo EB | D10: 1º Ciclo EB | E10: 2º Ciclo EB | F10: 3º Ciclo EB | G10: Secundário | H10: Superior | J10: < 1º Ciclo EB | K10: 1º Ciclo EB | L10: 2º Ciclo EB | M10: 3º Ciclo EB | N10: Secundário | O10: Superior | Q10: < 1º Ciclo EB | R10: 1º Ciclo EB | S10: 2º Ciclo EB | T10: 3º Ciclo EB | U10: Secundário | V10: Superior | X10: < 1º Ciclo EB | Y10: 1º Ciclo EB | Z10: 2º Ciclo EB | AA10: 3º Ciclo EB | AB10: Secundário | AC10: Superior
B11: Portugal Continental | C11: ='DLD Escolaridade '!C10/'DLD Escolaridade '!I10 -> 0.066080688 | D11: ='DLD Escolaridade '!D10/'DLD Escolaridade '!I10 -> 0.270165676 | E11: ='DLD Escolaridade '!E10/'DLD Escolaridade '!I10 -> 0.162836727 | F11: ='DLD Escolaridade '!F10/'DLD Escolaridade '!I10 -> 0.1933697989 | G11: ='DLD Escolaridade '!G10/'DLD Escolaridade '!I10 -> 0.2026938156 | H11: ='DLD Escolaridade '!H10/'DLD Escolaridade '!I10 -> 0.1048532945 | J11: ='DLD Escolaridade '!K10/'DLD Escolaridade '!Q10 -> 0.06877152503 | K11: ='DLD Escolaridade '!L10/'DLD Escolaridade '!Q10 -> 0.2780313184 | L11: ='DLD Escolaridade '!M10/'DLD Escolaridade '!Q10 -> 0.163910897 | M11: ='DLD Escolaridade '!N10/'DLD Escolaridade '!Q10 -> 0.1904755442 | N11: ='DLD Escolaridade '!O10/'DLD Escolaridade '!Q10 -> 0.1974483823 | O11: ='DLD Escolaridade '!P10/'DLD Escolaridade '!Q10 -> 0.1013623331 | Q11: ='DLD Escolaridade '!S10/'DLD Escolaridade '!Y10 -> 0.06950941302 | R11: ='DLD Escolaridade '!T10/'DLD Escolaridade '!Y10 -> 0.271968779 | S11: ='DLD Escolaridade '!U10/'DLD Escolaridade '!Y10 -> 0.1594593863 | T11: ='DLD Escolaridade '!V10/'DLD Escolaridade '!Y10 -> 0.186300526 | U11: ='DLD Escolaridade '!W10/'DLD Escolaridade '!Y10 -> 0.1999681833 | V11: ='DLD Escolaridade '!X10/'DLD Escolaridade '!Y10 -> 0.1127937125 | X11: ='DLD Escolaridade '!AA10/'DLD Escolaridade '!AG10 -> 0.07301360314 | Y11: ='DLD Escolaridade '!AB10/'DLD Escolaridade '!AG10 -> 0.2766511688 | Z11: ='DLD Escolaridade '!AC10/'DLD Escolaridade '!AG10 -> 0.1608986842 | AA11: ='DLD Escolaridade '!AD10/'DLD Escolaridade '!AG10 -> 0.1836424522 | AB11: ='DLD Escolaridade '!AE10/'DLD Escolaridade '!AG10 -> 0.1979893503 | AC11: ='DLD Escolaridade '!AF10/'DLD Escolaridade '!AG10 -> 0.1078047413
B12: AML | C12: ='DLD Escolaridade '!C11/'DLD Escolaridade '!I11 -> 0.06736438679 | D12: ='DLD Escolaridade '!D11/'DLD Escolaridade '!I11 -> 0.1945888722 | E12: ='DLD Escolaridade '!E11/'DLD Escolaridade '!I11 -> 0.1511310034 | F12: ='DLD Escolaridade '!F11/'DLD Escolaridade '!I11 -> 0.2079491852 | G12: ='DLD Escolaridade '!G11/'DLD Escolaridade '!I11 -> 0.253698542 | H12: ='DLD Escolaridade '!H11/'DLD Escolaridade '!I11 -> 0.1252680103 | J12: ='DLD Escolaridade '!K11/'DLD Escolaridade '!Q11 -> 0.06913506773 | K12: ='DLD Escolaridade '!L11/'DLD Escolaridade '!Q11 -> 0.2022048404 | L12: ='DLD Escolaridade '!M11/'DLD Escolaridade '!Q11 -> 0.1538712237 | M12: ='DLD Escolaridade '!N11/'DLD Escolaridade '!Q11 -> 0.2047554271 | N12: ='DLD Escolaridade '!O11/'DLD Escolaridade '!Q11 -> 0.2505526271 | O12: ='DLD Escolaridade '!P11/'DLD Escolaridade '!Q11 -> 0.1194808139 | Q12: ='DLD Escolaridade '!S11/'DLD Escolaridade '!Y11 -> 0.06928886989 | R12: ='DLD Escolaridade '!T11/'DLD Escolaridade '!Y11 -> 0.2001140088 | S12: ='DLD Escolaridade '!U11/'DLD Escolaridade '!Y11 -> 0.1483682485 | T12: ='DLD Escolaridade '!V11/'DLD Escolaridade '!Y11 -> 0.2003847798 | U12: ='DLD Escolaridade '!W11/'DLD Escolaridade '!Y11 -> 0.2508764429 | V12: ='DLD Escolaridade '!X11/'DLD Escolaridade '!Y11 -> 0.13096765 | X12: ='DLD Escolaridade '!AA11/'DLD Escolaridade '!AG11 -> 0.07437951494 | Y12: ='DLD Escolaridade '!AB11/'DLD Escolaridade '!AG11 -> 0.2108940965 | Z12: ='DLD Escolaridade '!AC11/'DLD Escolaridade '!AG11 -> 0.1537480917 | AA12: ='DLD Escolaridade '!AD11/'DLD Escolaridade '!AG11 -> 0.1957852657 | AB12: ='DLD Escolaridade '!AE11/'DLD Escolaridade '!AG11 -> 0.2424337808 | AC12: ='DLD Escolaridade '!AF11/'DLD Escolaridade '!AG11 -> 0.1227592502
B13: Distrito de Lisboa | C13: ='DLD Escolaridade '!C12/'DLD Escolaridade '!I12 -> 0.06332394946 | D13: ='DLD Escolaridade '!D12/'DLD Escolaridade '!I12 -> 0.2013011535 | E13: ='DLD Escolaridade '!E12/'DLD Escolaridade '!I12 -> 0.1512633892 | F13: ='DLD Escolaridade '!F12/'DLD Escolaridade '!I12 -> 0.2008033507 | G13: ='DLD Escolaridade '!G12/'DLD Escolaridade '!I12 -> 0.2522830266 | H13: ='DLD Escolaridade '!H12/'DLD Escolaridade '!I12 -> 0.1310251305 | J13: ='DLD Escolaridade '!K12/'DLD Escolaridade '!Q12 -> 0.0646681098 | K13: ='DLD Escolaridade '!L12/'DLD Escolaridade '!Q12 -> 0.2095938006 | L13: ='DLD Escolaridade '!M12/'DLD Escolaridade '!Q12 -> 0.1521474178 | M13: ='DLD Escolaridade '!N12/'DLD Escolaridade '!Q12 -> 0.1993524094 | N13: ='DLD Escolaridade '!O12/'DLD Escolaridade '!Q12 -> 0.2486311462 | O13: ='DLD Escolaridade '!P12/'DLD Escolaridade '!Q12 -> 0.1256071162 | Q13: ='DLD Escolaridade '!S12/'DLD Escolaridade '!Y12 -> 0.06535086906 | R13: ='DLD Escolaridade '!T12/'DLD Escolaridade '!Y12 -> 0.2070340759 | S13: ='DLD Escolaridade '!U12/'DLD Escolaridade '!Y12 -> 0.1458754568 | T13: ='DLD Escolaridade '!V12/'DLD Escolaridade '!Y12 -> 0.1936967853 | U13: ='DLD Escolaridade '!W12/'DLD Escolaridade '!Y12 -> 0.2497356657 | V13: ='DLD Escolaridade '!X12/'DLD Escolaridade '!Y12 -> 0.1383071472 | X13: ='DLD Escolaridade '!AA12/'DLD Escolaridade '!AG12 -> 0.06903373594 | Y13: ='DLD Escolaridade '!AB12/'DLD Escolaridade '!AG12 -> 0.220366514 | Z13: ='DLD Escolaridade '!AC12/'DLD Escolaridade '!AG12 -> 0.1512078301 | AA13: ='DLD Escolaridade '!AD12/'DLD Escolaridade '!AG12 -> 0.189941691 | AB13: ='DLD Escolaridade '!AE12/'DLD Escolaridade '!AG12 -> 0.2407330279 | AC13: ='DLD Escolaridade '!AF12/'DLD Escolaridade '!AG12 -> 0.1287172012
B14: Concelho de Lisboa | C14: ='DLD Escolaridade '!C13/'DLD Escolaridade '!I13 -> 0.0958296362 | D14: ='DLD Escolaridade '!D13/'DLD Escolaridade '!I13 -> 0.1909620991 | E14: ='DLD Escolaridade '!E13/'DLD Escolaridade '!I13 -> 0.1383572062 | F14: ='DLD Escolaridade '!F13/'DLD Escolaridade '!I13 -> 0.1673849664 | G14: ='DLD Escolaridade '!G13/'DLD Escolaridade '!I13 -> 0.2194828242 | H14: ='DLD Escolaridade '!H13/'DLD Escolaridade '!I13 -> 0.1879832678 | J14: ='DLD Escolaridade '!K13/'DLD Escolaridade '!Q13 -> 0.09713590921 | K14: ='DLD Escolaridade '!L13/'DLD Escolaridade '!Q13 -> 0.2000810592 | L14: ='DLD Escolaridade '!M13/'DLD Escolaridade '!Q13 -> 0.1394217779 | M14: ='DLD Escolaridade '!N13/'DLD Escolaridade '!Q13 -> 0.1717103486 | N14: ='DLD Escolaridade '!O13/'DLD Escolaridade '!Q13 -> 0.2127127803 | O14: ='DLD Escolaridade '!P13/'DLD Escolaridade '!Q13 -> 0.1789381248 | Q14: ='DLD Escolaridade '!S13/'DLD Escolaridade '!Y13 -> 0.09905341447 | R14: ='DLD Escolaridade '!T13/'DLD Escolaridade '!Y13 -> 0.2029749831 | S14: ='DLD Escolaridade '!U13/'DLD Escolaridade '!Y13 -> 0.1352941176 | T14: ='DLD Escolaridade '!V13/'DLD Escolaridade '!Y13 -> 0.1670723462 | U14: ='DLD Escolaridade '!W13/'DLD Escolaridade '!Y13 -> 0.2086544963 | V14: ='DLD Escolaridade '!X13/'DLD Escolaridade '!Y13 -> 0.1869506423 | X14: ='DLD Escolaridade '!AA13/'DLD Escolaridade '!AG13 -> 0.1066666667 | Y14: ='DLD Escolaridade '!AB13/'DLD Escolaridade '!AG13 -> 0.2283524904 | Z14: ='DLD Escolaridade '!AC13/'DLD Escolaridade '!AG13 -> 0.1484291188 | AA14: ='DLD Escolaridade '!AD13/'DLD Escolaridade '!AG13 -> 0.1572413793 | AB14: ='DLD Escolaridade '!AE13/'DLD Escolaridade '!AG13 -> 0.182605364 | AC14: ='DLD Escolaridade '!AF13/'DLD Escolaridade '!AG13 -> 0.1767049808
B15: Ajuda | C15: ='DLD Escolaridade '!C14/'DLD Escolaridade '!I14 -> 0.1204819277 | D15: ='DLD Escolaridade '!D14/'DLD Escolaridade '!I14 -> 0.2449799197 | E15: ='DLD Escolaridade '!E14/'DLD Escolaridade '!I14 -> 0.1385542169 | F15: ='DLD Escolaridade '!F14/'DLD Escolaridade '!I14 -> 0.186746988 | G15: ='DLD Escolaridade '!G14/'DLD Escolaridade '!I14 -> 0.1987951807 | H15: ='DLD Escolaridade '!H14/'DLD Escolaridade '!I14 -> 0.1104417671 | J15: ='DLD Escolaridade '!K14/'DLD Escolaridade '!Q14 -> 0.1284796574 | K15: ='DLD Escolaridade '!L14/'DLD Escolaridade '!Q14 -> 0.2398286938 | L15: ='DLD Escolaridade '!M14/'DLD Escolaridade '!Q14 -> 0.1413276231 | M15: ='DLD Escolaridade '!N14/'DLD Escolaridade '!Q14 -> 0.1884368308 | N15: ='DLD Escolaridade '!O14/'DLD Escolaridade '!Q14 -> 0.1905781585 | O15: ='DLD Escolaridade '!P14/'DLD Escolaridade '!Q14 -> 0.1113490364 | Q15: ='DLD Escolaridade '!S14/'DLD Escolaridade '!Y14 -> 0.1333333333 | R15: ='DLD Escolaridade '!T14/'DLD Escolaridade '!Y14 -> 0.275 | S15: ='DLD Escolaridade '!U14/'DLD Escolaridade '!Y14 -> 0.1229166667 | T15: ='DLD Escolaridade '!V14/'DLD Escolaridade '!Y14 -> 0.1729166667 | U15: ='DLD Escolaridade '!W14/'DLD Escolaridade '!Y14 -> 0.1875 | V15: ='DLD Escolaridade '!X14/'DLD Escolaridade '!Y14 -> 0.1083333333 | X15: ='DLD Escolaridade '!AA14/'DLD Escolaridade '!AG14 -> 0.156626506 | Y15: ='DLD Escolaridade '!AB14/'DLD Escolaridade '!AG14 -> 0.2963855422 | Z15: ='DLD Escolaridade '!AC14/'DLD Escolaridade '!AG14 -> 0.1445783133 | AA15: ='DLD Escolaridade '!AD14/'DLD Escolaridade '!AG14 -> 0.1662650602 | AB15: ='DLD Escolaridade '!AE14/'DLD Escolaridade '!AG14 -> 0.1493975904 | AC15: ='DLD Escolaridade '!AF14/'DLD Escolaridade '!AG14 -> 0.08674698795
B16: Alcântara | C16: ='DLD Escolaridade '!C15/'DLD Escolaridade '!I15 -> 0.0498687664 | D16: ='DLD Escolaridade '!D15/'DLD Escolaridade '!I15 -> 0.1784776903 | E16: ='DLD Escolaridade '!E15/'DLD Escolaridade '!I15 -> 0.1364829396 | F16: ='DLD Escolaridade '!F15/'DLD Escolaridade '!I15 -> 0.157480315 | G16: ='DLD Escolaridade '!G15/'DLD Escolaridade '!I15 -> 0.2939632546 | H16: ='DLD Escolaridade '!H15/'DLD Escolaridade '!I15 -> 0.1837270341 | J16: ='DLD Escolaridade '!K15/'DLD Escolaridade '!Q15 -> 0.04432132964 | K16: ='DLD Escolaridade '!L15/'DLD Escolaridade '!Q15 -> 0.1745152355 | L16: ='DLD Escolaridade '!M15/'DLD Escolaridade '!Q15 -> 0.1440443213 | M16: ='DLD Escolaridade '!N15/'DLD Escolaridade '!Q15 -> 0.188365651 | N16: ='DLD Escolaridade '!O15/'DLD Escolaridade '!Q15 -> 0.2742382271 | O16: ='DLD Escolaridade '!P15/'DLD Escolaridade '!Q15 -> 0.1745152355 | Q16: ='DLD Escolaridade '!S15/'DLD Escolaridade '!Y15 -> 0.03351955307 | R16: ='DLD Escolaridade '!T15/'DLD Escolaridade '!Y15 -> 0.1759776536 | S16: ='DLD Escolaridade '!U15/'DLD Escolaridade '!Y15 -> 0.1089385475 | T16: ='DLD Escolaridade '!V15/'DLD Escolaridade '!Y15 -> 0.1955307263 | U16: ='DLD Escolaridade '!W15/'DLD Escolaridade '!Y15 -> 0.2597765363 | V16: ='DLD Escolaridade '!X15/'DLD Escolaridade '!Y15 -> 0.2262569832 | X16: ='DLD Escolaridade '!AA15/'DLD Escolaridade '!AG15 -> 0.05208333333 | Y16: ='DLD Escolaridade '!AB15/'DLD Escolaridade '!AG15 -> 0.2291666667 | Z16: ='DLD Escolaridade '!AC15/'DLD Escolaridade '!AG15 -> 0.1527777778 | AA16: ='DLD Escolaridade '!AD15/'DLD Escolaridade '!AG15 -> 0.1875 | AB16: ='DLD Escolaridade '!AE15/'DLD Escolaridade '!AG15 -> 0.1770833333 | AC16: ='DLD Escolaridade '!AF15/'DLD Escolaridade '!AG15 -> 0.2013888889
B17: Alvalade | C17: ='DLD Escolaridade '!C16/'DLD Escolaridade '!I16 -> 0.06552706553 | D17: ='DLD Escolaridade '!D16/'DLD Escolaridade '!I16 -> 0.1096866097 | E17: ='DLD Escolaridade '!E16/'DLD Escolaridade '!I16 -> 0.08262108262 | F17: ='DLD Escolaridade '!F16/'DLD Escolaridade '!I16 -> 0.1552706553 | G17: ='DLD Escolaridade '!G16/'DLD Escolaridade '!I16 -> 0.292022792 | H17: ='DLD Escolaridade '!H16/'DLD Escolaridade '!I16 -> 0.2948717949 | J17: ='DLD Escolaridade '!K16/'DLD Escolaridade '!Q16 -> 0.07086614173 | K17: ='DLD Escolaridade '!L16/'DLD Escolaridade '!Q16 -> 0.1196850394 | L17: ='DLD Escolaridade '!M16/'DLD Escolaridade '!Q16 -> 0.09606299213 | M17: ='DLD Escolaridade '!N16/'DLD Escolaridade '!Q16 -> 0.1637795276 | N17: ='DLD Escolaridade '!O16/'DLD Escolaridade '!Q16 -> 0.262992126 | O17: ='DLD Escolaridade '!P16/'DLD Escolaridade '!Q16 -> 0.2866141732 | Q17: ='DLD Escolaridade '!S16/'DLD Escolaridade '!Y16 -> 0.0653907496 | R17: ='DLD Escolaridade '!T16/'DLD Escolaridade '!Y16 -> 0.1339712919 | S17: ='DLD Escolaridade '!U16/'DLD Escolaridade '!Y16 -> 0.09250398724 | T17: ='DLD Escolaridade '!V16/'DLD Escolaridade '!Y16 -> 0.1642743222 | U17: ='DLD Escolaridade '!W16/'DLD Escolaridade '!Y16 -> 0.2392344498 | V17: ='DLD Escolaridade '!X16/'DLD Escolaridade '!Y16 -> 0.3046251994 | X17: ='DLD Escolaridade '!AA16/'DLD Escolaridade '!AG16 -> 0.06573705179 | Y17: ='DLD Escolaridade '!AB16/'DLD Escolaridade '!AG16 -> 0.1613545817 | Z17: ='DLD Escolaridade '!AC16/'DLD Escolaridade '!AG16 -> 0.08964143426 | AA17: ='DLD Escolaridade '!AD16/'DLD Escolaridade '!AG16 -> 0.1593625498 | AB17: ='DLD Escolaridade '!AE16/'DLD Escolaridade '!AG16 -> 0.2370517928 | AC17: ='DLD Escolaridade '!AF16/'DLD Escolaridade '!AG16 -> 0.2868525896
B18: Areeiro | C18: ='DLD Escolaridade '!C17/'DLD Escolaridade '!I17 -> 0.06043956044 | D18: ='DLD Escolaridade '!D17/'DLD Escolaridade '!I17 -> 0.13003663 | E18: ='DLD Escolaridade '!E17/'DLD Escolaridade '!I17 -> 0.0989010989 | F18: ='DLD Escolaridade '!F17/'DLD Escolaridade '!I17 -> 0.1538461538 | G18: ='DLD Escolaridade '!G17/'DLD Escolaridade '!I17 -> 0.2619047619 | H18: ='DLD Escolaridade '!H17/'DLD Escolaridade '!I17 -> 0.2948717949 | J18: ='DLD Escolaridade '!K17/'DLD Escolaridade '!Q17 -> 0.06944444444 | K18: ='DLD Escolaridade '!L17/'DLD Escolaridade '!Q17 -> 0.121031746 | L18: ='DLD Escolaridade '!M17/'DLD Escolaridade '!Q17 -> 0.09325396825 | M18: ='DLD Escolaridade '!N17/'DLD Escolaridade '!Q17 -> 0.1646825397 | N18: ='DLD Escolaridade '!O17/'DLD Escolaridade '!Q17 -> 0.25 | O18: ='DLD Escolaridade '!P17/'DLD Escolaridade '!Q17 -> 0.3015873016 | Q18: ='DLD Escolaridade '!S17/'DLD Escolaridade '!Y17 -> 0.06981519507 | R18: ='DLD Escolaridade '!T17/'DLD Escolaridade '!Y17 -> 0.1293634497 | S18: ='DLD Escolaridade '!U17/'DLD Escolaridade '!Y17 -> 0.08213552361 | T18: ='DLD Escolaridade '!V17/'DLD Escolaridade '!Y17 -> 0.1848049281 | U18: ='DLD Escolaridade '!W17/'DLD Escolaridade '!Y17 -> 0.2587268994 | V18: ='DLD Escolaridade '!X17/'DLD Escolaridade '!Y17 -> 0.2751540041 | X18: ='DLD Escolaridade '!AA17/'DLD Escolaridade '!AG17 -> 0.06378132118 | Y18: ='DLD Escolaridade '!AB17/'DLD Escolaridade '!AG17 -> 0.1298405467 | Z18: ='DLD Escolaridade '!AC17/'DLD Escolaridade '!AG17 -> 0.09339407745 | AA18: ='DLD Escolaridade '!AD17/'DLD Escolaridade '!AG17 -> 0.1571753986 | AB18: ='DLD Escolaridade '!AE17/'DLD Escolaridade '!AG17 -> 0.2596810934 | AC18: ='DLD Escolaridade '!AF17/'DLD Escolaridade '!AG17 -> 0.2961275626
B19: Arroios | C19: ='DLD Escolaridade '!C18/'DLD Escolaridade '!I18 -> 0.1563981043 | D19: ='DLD Escolaridade '!D18/'DLD Escolaridade '!I18 -> 0.1308056872 | E19: ='DLD Escolaridade '!E18/'DLD Escolaridade '!I18 -> 0.1393364929 | F19: ='DLD Escolaridade '!F18/'DLD Escolaridade '!I18 -> 0.1668246445 | G19: ='DLD Escolaridade '!G18/'DLD Escolaridade '!I18 -> 0.23507109 | H19: ='DLD Escolaridade '!H18/'DLD Escolaridade '!I18 -> 0.171563981 | J19: ='DLD Escolaridade '!K18/'DLD Escolaridade '!Q18 -> 0.1431492843 | K19: ='DLD Escolaridade '!L18/'DLD Escolaridade '!Q18 -> 0.1431492843 | L19: ='DLD Escolaridade '!M18/'DLD Escolaridade '!Q18 -> 0.1441717791 | M19: ='DLD Escolaridade '!N18/'DLD Escolaridade '!Q18 -> 0.1738241309 | N19: ='DLD Escolaridade '!O18/'DLD Escolaridade '!Q18 -> 0.2433537832 | O19: ='DLD Escolaridade '!P18/'DLD Escolaridade '!Q18 -> 0.1523517382 | Q19: ='DLD Escolaridade '!S18/'DLD Escolaridade '!Y18 -> 0.1223021583 | R19: ='DLD Escolaridade '!T18/'DLD Escolaridade '!Y18 -> 0.1521068859 | S19: ='DLD Escolaridade '!U18/'DLD Escolaridade '!Y18 -> 0.1387461459 | T19: ='DLD Escolaridade '!V18/'DLD Escolaridade '!Y18 -> 0.1870503597 | U19: ='DLD Escolaridade '!W18/'DLD Escolaridade '!Y18 -> 0.2343268243 | V19: ='DLD Escolaridade '!X18/'DLD Escolaridade '!Y18 -> 0.1654676259 | X19: ='DLD Escolaridade '!AA18/'DLD Escolaridade '!AG18 -> 0.1215733015 | Y19: ='DLD Escolaridade '!AB18/'DLD Escolaridade '!AG18 -> 0.1799761621 | Z19: ='DLD Escolaridade '!AC18/'DLD Escolaridade '!AG18 -> 0.1668653159 | AA19: ='DLD Escolaridade '!AD18/'DLD Escolaridade '!AG18 -> 0.1847437426 | AB19: ='DLD Escolaridade '!AE18/'DLD Escolaridade '!AG18 -> 0.1907032181 | AC19: ='DLD Escolaridade '!AF18/'DLD Escolaridade '!AG18 -> 0.1561382598
B20: Avenidas Novas | C20: ='DLD Escolaridade '!C19/'DLD Escolaridade '!I19 -> 0.06756756757 | D20: ='DLD Escolaridade '!D19/'DLD Escolaridade '!I19 -> 0.1254826255 | E20: ='DLD Escolaridade '!E19/'DLD Escolaridade '!I19 -> 0.07915057915 | F20: ='DLD Escolaridade '!F19/'DLD Escolaridade '!I19 -> 0.1235521236 | G20: ='DLD Escolaridade '!G19/'DLD Escolaridade '!I19 -> 0.2644787645 | H20: ='DLD Escolaridade '!H19/'DLD Escolaridade '!I19 -> 0.3397683398 | J20: ='DLD Escolaridade '!K19/'DLD Escolaridade '!Q19 -> 0.08067940552 | K20: ='DLD Escolaridade '!L19/'DLD Escolaridade '!Q19 -> 0.1295116773 | L20: ='DLD Escolaridade '!M19/'DLD Escolaridade '!Q19 -> 0.08917197452 | M20: ='DLD Escolaridade '!N19/'DLD Escolaridade '!Q19 -> 0.1082802548 | N20: ='DLD Escolaridade '!O19/'DLD Escolaridade '!Q19 -> 0.2611464968 | O20: ='DLD Escolaridade '!P19/'DLD Escolaridade '!Q19 -> 0.3312101911 | Q20: ='DLD Escolaridade '!S19/'DLD Escolaridade '!Y19 -> 0.07692307692 | R20: ='DLD Escolaridade '!T19/'DLD Escolaridade '!Y19 -> 0.1239316239 | S20: ='DLD Escolaridade '!U19/'DLD Escolaridade '!Y19 -> 0.1025641026 | T20: ='DLD Escolaridade '!V19/'DLD Escolaridade '!Y19 -> 0.1068376068 | U20: ='DLD Escolaridade '!W19/'DLD Escolaridade '!Y19 -> 0.25 | V20: ='DLD Escolaridade '!X19/'DLD Escolaridade '!Y19 -> 0.3397435897 | X20: ='DLD Escolaridade '!AA19/'DLD Escolaridade '!AG19 -> 0.09390862944 | Y20: ='DLD Escolaridade '!AB19/'DLD Escolaridade '!AG19 -> 0.1446700508 | Z20: ='DLD Escolaridade '!AC19/'DLD Escolaridade '!AG19 -> 0.1065989848 | AA20: ='DLD Escolaridade '!AD19/'DLD Escolaridade '!AG19 -> 0.1040609137 | AB20: ='DLD Escolaridade '!AE19/'DLD Escolaridade '!AG19 -> 0.2461928934 | AC20: ='DLD Escolaridade '!AF19/'DLD Escolaridade '!AG19 -> 0.3045685279
B21: Beato | C21: ='DLD Escolaridade '!C20/'DLD Escolaridade '!I20 -> 0.1345381526 | D21: ='DLD Escolaridade '!D20/'DLD Escolaridade '!I20 -> 0.234939759 | E21: ='DLD Escolaridade '!E20/'DLD Escolaridade '!I20 -> 0.1947791165 | F21: ='DLD Escolaridade '!F20/'DLD Escolaridade '!I20 -> 0.1907630522 | G21: ='DLD Escolaridade '!G20/'DLD Escolaridade '!I20 -> 0.1646586345 | H21: ='DLD Escolaridade '!H20/'DLD Escolaridade '!I20 -> 0.08032128514 | J21: ='DLD Escolaridade '!K20/'DLD Escolaridade '!Q20 -> 0.1255319149 | K21: ='DLD Escolaridade '!L20/'DLD Escolaridade '!Q20 -> 0.229787234 | L21: ='DLD Escolaridade '!M20/'DLD Escolaridade '!Q20 -> 0.2106382979 | M21: ='DLD Escolaridade '!N20/'DLD Escolaridade '!Q20 -> 0.1978723404 | N21: ='DLD Escolaridade '!O20/'DLD Escolaridade '!Q20 -> 0.1595744681 | O21: ='DLD Escolaridade '!P20/'DLD Escolaridade '!Q20 -> 0.07659574468 | Q21: ='DLD Escolaridade '!S20/'DLD Escolaridade '!Y20 -> 0.1326315789 | R21: ='DLD Escolaridade '!T20/'DLD Escolaridade '!Y20 -> 0.2442105263 | S21: ='DLD Escolaridade '!U20/'DLD Escolaridade '!Y20 -> 0.2 | T21: ='DLD Escolaridade '!V20/'DLD Escolaridade '!Y20 -> 0.1768421053 | U21: ='DLD Escolaridade '!W20/'DLD Escolaridade '!Y20 -> 0.1789473684 | V21: ='DLD Escolaridade '!X20/'DLD Escolaridade '!Y20 -> 0.06736842105 | X21: ='DLD Escolaridade '!AA20/'DLD Escolaridade '!AG20 -> 0.1459854015 | Y21: ='DLD Escolaridade '!AB20/'DLD Escolaridade '!AG20 -> 0.2652068127 | Z21: ='DLD Escolaridade '!AC20/'DLD Escolaridade '!AG20 -> 0.2335766423 | AA21: ='DLD Escolaridade '!AD20/'DLD Escolaridade '!AG20 -> 0.1605839416 | AB21: ='DLD Escolaridade '!AE20/'DLD Escolaridade '!AG20 -> 0.1411192214 | AC21: ='DLD Escolaridade '!AF20/'DLD Escolaridade '!AG20 -> 0.05352798054
B22: Belém | C22: ='DLD Escolaridade '!C21/'DLD Escolaridade '!I21 -> 0.003610108303 | D22: ='DLD Escolaridade '!D21/'DLD Escolaridade '!I21 -> 0.06137184116 | E22: ='DLD Escolaridade '!E21/'DLD Escolaridade '!I21 -> 0.07220216606 | F22: ='DLD Escolaridade '!F21/'DLD Escolaridade '!I21 -> 0.1335740072 | G22: ='DLD Escolaridade '!G21/'DLD Escolaridade '!I21 -> 0.3068592058 | H22: ='DLD Escolaridade '!H21/'DLD Escolaridade '!I21 -> 0.4223826715 | J22: ='DLD Escolaridade '!K21/'DLD Escolaridade '!Q21 -> 0.004255319149 | K22: ='DLD Escolaridade '!L21/'DLD Escolaridade '!Q21 -> 0.07659574468 | L22: ='DLD Escolaridade '!M21/'DLD Escolaridade '!Q21 -> 0.06382978723 | M22: ='DLD Escolaridade '!N21/'DLD Escolaridade '!Q21 -> 0.1531914894 | N22: ='DLD Escolaridade '!O21/'DLD Escolaridade '!Q21 -> 0.2978723404 | O22: ='DLD Escolaridade '!P21/'DLD Escolaridade '!Q21 -> 0.4042553191 | Q22: ='DLD Escolaridade '!S21/'DLD Escolaridade '!Y21 -> 0.004132231405 | R22: ='DLD Escolaridade '!T21/'DLD Escolaridade '!Y21 -> 0.07438016529 | S22: ='DLD Escolaridade '!U21/'DLD Escolaridade '!Y21 -> 0.0826446281 | T22: ='DLD Escolaridade '!V21/'DLD Escolaridade '!Y21 -> 0.1694214876 | U22: ='DLD Escolaridade '!W21/'DLD Escolaridade '!Y21 -> 0.2933884298 | V22: ='DLD Escolaridade '!X21/'DLD Escolaridade '!Y21 -> 0.3760330579 | X22: ='DLD Escolaridade '!AA21/'DLD Escolaridade '!AG21 -> 0.005128205128 | Y22: ='DLD Escolaridade '!AB21/'DLD Escolaridade '!AG21 -> 0.09743589744 | Z22: ='DLD Escolaridade '!AC21/'DLD Escolaridade '!AG21 -> 0.1230769231 | AA22: ='DLD Escolaridade '!AD21/'DLD Escolaridade '!AG21 -> 0.1384615385 | AB22: ='DLD Escolaridade '!AE21/'DLD Escolaridade '!AG21 -> 0.2615384615 | AC22: ='DLD Escolaridade '!AF21/'DLD Escolaridade '!AG21 -> 0.3743589744
B23: Benfica | C23: ='DLD Escolaridade '!C22/'DLD Escolaridade '!I22 -> 0.07214611872 | D23: ='DLD Escolaridade '!D22/'DLD Escolaridade '!I22 -> 0.1744292237 | E23: ='DLD Escolaridade '!E22/'DLD Escolaridade '!I22 -> 0.1315068493 | F23: ='DLD Escolaridade '!F22/'DLD Escolaridade '!I22 -> 0.1835616438 | G23: ='DLD Escolaridade '!G22/'DLD Escolaridade '!I22 -> 0.2429223744 | H23: ='DLD Escolaridade '!H22/'DLD Escolaridade '!I22 -> 0.19543379 | J23: ='DLD Escolaridade '!K22/'DLD Escolaridade '!Q22 -> 0.07218479307 | K23: ='DLD Escolaridade '!L22/'DLD Escolaridade '!Q22 -> 0.1819056785 | L23: ='DLD Escolaridade '!M22/'DLD Escolaridade '!Q22 -> 0.1203079885 | M23: ='DLD Escolaridade '!N22/'DLD Escolaridade '!Q22 -> 0.1867179981 | N23: ='DLD Escolaridade '!O22/'DLD Escolaridade '!Q22 -> 0.2492781521 | O23: ='DLD Escolaridade '!P22/'DLD Escolaridade '!Q22 -> 0.1896053898 | Q23: ='DLD Escolaridade '!S22/'DLD Escolaridade '!Y22 -> 0.07403651116 | R23: ='DLD Escolaridade '!T22/'DLD Escolaridade '!Y22 -> 0.1835699797 | S23: ='DLD Escolaridade '!U22/'DLD Escolaridade '!Y22 -> 0.09939148073 | T23: ='DLD Escolaridade '!V22/'DLD Escolaridade '!Y22 -> 0.1805273834 | U23: ='DLD Escolaridade '!W22/'DLD Escolaridade '!Y22 -> 0.261663286 | V23: ='DLD Escolaridade '!X22/'DLD Escolaridade '!Y22 -> 0.200811359 | X23: ='DLD Escolaridade '!AA22/'DLD Escolaridade '!AG22 -> 0.08919202518 | Y23: ='DLD Escolaridade '!AB22/'DLD Escolaridade '!AG22 -> 0.1930745016 | Z23: ='DLD Escolaridade '!AC22/'DLD Escolaridade '!AG22 -> 0.1322140609 | AA23: ='DLD Escolaridade '!AD22/'DLD Escolaridade '!AG22 -> 0.1689401889 | AB23: ='DLD Escolaridade '!AE22/'DLD Escolaridade '!AG22 -> 0.2287513116 | AC23: ='DLD Escolaridade '!AF22/'DLD Escolaridade '!AG22 -> 0.1878279119
B24: Campo de Ourique | C24: ='DLD Escolaridade '!C23/'DLD Escolaridade '!I23 -> 0.03639846743 | D24: ='DLD Escolaridade '!D23/'DLD Escolaridade '!I23 -> 0.1494252874 | E24: ='DLD Escolaridade '!E23/'DLD Escolaridade '!I23 -> 0.1072796935 | F24: ='DLD Escolaridade '!F23/'DLD Escolaridade '!I23 -> 0.1915708812 | G24: ='DLD Escolaridade '!G23/'DLD Escolaridade '!I23 -> 0.2873563218 | H24: ='DLD Escolaridade '!H23/'DLD Escolaridade '!I23 -> 0.2279693487 | J24: ='DLD Escolaridade '!K23/'DLD Escolaridade '!Q23 -> 0.03382663848 | K24: ='DLD Escolaridade '!L23/'DLD Escolaridade '!Q23 -> 0.1627906977 | L24: ='DLD Escolaridade '!M23/'DLD Escolaridade '!Q23 -> 0.1162790698 | M24: ='DLD Escolaridade '!N23/'DLD Escolaridade '!Q23 -> 0.2029598309 | N24: ='DLD Escolaridade '!O23/'DLD Escolaridade '!Q23 -> 0.2473572939 | O24: ='DLD Escolaridade '!P23/'DLD Escolaridade '!Q23 -> 0.2367864693 | Q24: ='DLD Escolaridade '!S23/'DLD Escolaridade '!Y23 -> 0.03861788618 | R24: ='DLD Escolaridade '!T23/'DLD Escolaridade '!Y23 -> 0.1585365854 | S24: ='DLD Escolaridade '!U23/'DLD Escolaridade '!Y23 -> 0.1097560976 | T24: ='DLD Escolaridade '!V23/'DLD Escolaridade '!Y23 -> 0.1971544715 | U24: ='DLD Escolaridade '!W23/'DLD Escolaridade '!Y23 -> 0.2540650407 | V24: ='DLD Escolaridade '!X23/'DLD Escolaridade '!Y23 -> 0.2418699187 | X24: ='DLD Escolaridade '!AA23/'DLD Escolaridade '!AG23 -> 0.04025423729 | Y24: ='DLD Escolaridade '!AB23/'DLD Escolaridade '!AG23 -> 0.1843220339 | Z24: ='DLD Escolaridade '!AC23/'DLD Escolaridade '!AG23 -> 0.1313559322 | AA24: ='DLD Escolaridade '!AD23/'DLD Escolaridade '!AG23 -> 0.2033898305 | AB24: ='DLD Escolaridade '!AE23/'DLD Escolaridade '!AG23 -> 0.2457627119 | AC24: ='DLD Escolaridade '!AF23/'DLD Escolaridade '!AG23 -> 0.1949152542
B25: Campolide | C25: ='DLD Escolaridade '!C24/'DLD Escolaridade '!I24 -> 0.05897435897 | D25: ='DLD Escolaridade '!D24/'DLD Escolaridade '!I24 -> 0.2076923077 | E25: ='DLD Escolaridade '!E24/'DLD Escolaridade '!I24 -> 0.1641025641 | F25: ='DLD Escolaridade '!F24/'DLD Escolaridade '!I24 -> 0.1871794872 | G25: ='DLD Escolaridade '!G24/'DLD Escolaridade '!I24 -> 0.2256410256 | H25: ='DLD Escolaridade '!H24/'DLD Escolaridade '!I24 -> 0.1564102564 | J25: ='DLD Escolaridade '!K24/'DLD Escolaridade '!Q24 -> 0.06006006006 | K25: ='DLD Escolaridade '!L24/'DLD Escolaridade '!Q24 -> 0.2192192192 | L25: ='DLD Escolaridade '!M24/'DLD Escolaridade '!Q24 -> 0.1681681682 | M25: ='DLD Escolaridade '!N24/'DLD Escolaridade '!Q24 -> 0.1981981982 | N25: ='DLD Escolaridade '!O24/'DLD Escolaridade '!Q24 -> 0.2342342342 | O25: ='DLD Escolaridade '!P24/'DLD Escolaridade '!Q24 -> 0.1201201201 | Q25: ='DLD Escolaridade '!S24/'DLD Escolaridade '!Y24 -> 0.05900621118 | R25: ='DLD Escolaridade '!T24/'DLD Escolaridade '!Y24 -> 0.248447205 | S25: ='DLD Escolaridade '!U24/'DLD Escolaridade '!Y24 -> 0.152173913 | T25: ='DLD Escolaridade '!V24/'DLD Escolaridade '!Y24 -> 0.1894409938 | U25: ='DLD Escolaridade '!W24/'DLD Escolaridade '!Y24 -> 0.2142857143 | V25: ='DLD Escolaridade '!X24/'DLD Escolaridade '!Y24 -> 0.1366459627 | X25: ='DLD Escolaridade '!AA24/'DLD Escolaridade '!AG24 -> 0.05797101449 | Y25: ='DLD Escolaridade '!AB24/'DLD Escolaridade '!AG24 -> 0.2753623188 | Z25: ='DLD Escolaridade '!AC24/'DLD Escolaridade '!AG24 -> 0.1797101449 | AA25: ='DLD Escolaridade '!AD24/'DLD Escolaridade '!AG24 -> 0.1594202899 | AB25: ='DLD Escolaridade '!AE24/'DLD Escolaridade '!AG24 -> 0.2 | AC25: ='DLD Escolaridade '!AF24/'DLD Escolaridade '!AG24 -> 0.1275362319
B26: Carnide | C26: ='DLD Escolaridade '!C25/'DLD Escolaridade '!I25 -> 0.1202185792 | D26: ='DLD Escolaridade '!D25/'DLD Escolaridade '!I25 -> 0.2313296903 | E26: ='DLD Escolaridade '!E25/'DLD Escolaridade '!I25 -> 0.1111111111 | F26: ='DLD Escolaridade '!F25/'DLD Escolaridade '!I25 -> 0.1857923497 | G26: ='DLD Escolaridade '!G25/'DLD Escolaridade '!I25 -> 0.1566484517 | H26: ='DLD Escolaridade '!H25/'DLD Escolaridade '!I25 -> 0.1948998179 | J26: ='DLD Escolaridade '!K25/'DLD Escolaridade '!Q25 -> 0.1247803163 | K26: ='DLD Escolaridade '!L25/'DLD Escolaridade '!Q25 -> 0.2319859402 | L26: ='DLD Escolaridade '!M25/'DLD Escolaridade '!Q25 -> 0.1124780316 | M26: ='DLD Escolaridade '!N25/'DLD Escolaridade '!Q25 -> 0.1933216169 | N26: ='DLD Escolaridade '!O25/'DLD Escolaridade '!Q25 -> 0.1528998243 | O26: ='DLD Escolaridade '!P25/'DLD Escolaridade '!Q25 -> 0.1845342707 | Q26: ='DLD Escolaridade '!S25/'DLD Escolaridade '!Y25 -> 0.1288014311 | R26: ='DLD Escolaridade '!T25/'DLD Escolaridade '!Y25 -> 0.2468694097 | S26: ='DLD Escolaridade '!U25/'DLD Escolaridade '!Y25 -> 0.1127012522 | T26: ='DLD Escolaridade '!V25/'DLD Escolaridade '!Y25 -> 0.1878354204 | U26: ='DLD Escolaridade '!W25/'DLD Escolaridade '!Y25 -> 0.1538461538 | V26: ='DLD Escolaridade '!X25/'DLD Escolaridade '!Y25 -> 0.1699463327 | X26: ='DLD Escolaridade '!AA25/'DLD Escolaridade '!AG25 -> 0.1256931608 | Y26: ='DLD Escolaridade '!AB25/'DLD Escolaridade '!AG25 -> 0.2550831793 | Z26: ='DLD Escolaridade '!AC25/'DLD Escolaridade '!AG25 -> 0.123844732 | AA26: ='DLD Escolaridade '!AD25/'DLD Escolaridade '!AG25 -> 0.1774491682 | AB26: ='DLD Escolaridade '!AE25/'DLD Escolaridade '!AG25 -> 0.1478743068 | AC26: ='DLD Escolaridade '!AF25/'DLD Escolaridade '!AG25 -> 0.1700554529
B27: Estrela | C27: ='DLD Escolaridade '!C26/'DLD Escolaridade '!I26 -> 0.03058823529 | D27: ='DLD Escolaridade '!D26/'DLD Escolaridade '!I26 -> 0.1176470588 | E27: ='DLD Escolaridade '!E26/'DLD Escolaridade '!I26 -> 0.1176470588 | F27: ='DLD Escolaridade '!F26/'DLD Escolaridade '!I26 -> 0.1670588235 | G27: ='DLD Escolaridade '!G26/'DLD Escolaridade '!I26 -> 0.2917647059 | H27: ='DLD Escolaridade '!H26/'DLD Escolaridade '!I26 -> 0.2752941176 | J27: ='DLD Escolaridade '!K26/'DLD Escolaridade '!Q26 -> 0.02216748768 | K27: ='DLD Escolaridade '!L26/'DLD Escolaridade '!Q26 -> 0.1403940887 | L27: ='DLD Escolaridade '!M26/'DLD Escolaridade '!Q26 -> 0.1157635468 | M27: ='DLD Escolaridade '!N26/'DLD Escolaridade '!Q26 -> 0.1748768473 | N27: ='DLD Escolaridade '!O26/'DLD Escolaridade '!Q26 -> 0.2783251232 | O27: ='DLD Escolaridade '!P26/'DLD Escolaridade '!Q26 -> 0.2684729064 | Q27: ='DLD Escolaridade '!S26/'DLD Escolaridade '!Y26 -> 0.02962962963 | R27: ='DLD Escolaridade '!T26/'DLD Escolaridade '!Y26 -> 0.1456790123 | S27: ='DLD Escolaridade '!U26/'DLD Escolaridade '!Y26 -> 0.1037037037 | T27: ='DLD Escolaridade '!V26/'DLD Escolaridade '!Y26 -> 0.1654320988 | U27: ='DLD Escolaridade '!W26/'DLD Escolaridade '!Y26 -> 0.2666666667 | V27: ='DLD Escolaridade '!X26/'DLD Escolaridade '!Y26 -> 0.2888888889 | X27: ='DLD Escolaridade '!AA26/'DLD Escolaridade '!AG26 -> 0.02898550725 | Y27: ='DLD Escolaridade '!AB26/'DLD Escolaridade '!AG26 -> 0.168115942 | Z27: ='DLD Escolaridade '!AC26/'DLD Escolaridade '!AG26 -> 0.1130434783 | AA27: ='DLD Escolaridade '!AD26/'DLD Escolaridade '!AG26 -> 0.1536231884 | AB27: ='DLD Escolaridade '!AE26/'DLD Escolaridade '!AG26 -> 0.2666666667 | AC27: ='DLD Escolaridade '!AF26/'DLD Escolaridade '!AG26 -> 0.2695652174
B28: Lumiar | C28: ='DLD Escolaridade '!C27/'DLD Escolaridade '!I27 -> 0.07461139896 | D28: ='DLD Escolaridade '!D27/'DLD Escolaridade '!I27 -> 0.1626943005 | E28: ='DLD Escolaridade '!E27/'DLD Escolaridade '!I27 -> 0.08808290155 | F28: ='DLD Escolaridade '!F27/'DLD Escolaridade '!I27 -> 0.1212435233 | G28: ='DLD Escolaridade '!G27/'DLD Escolaridade '!I27 -> 0.2310880829 | H28: ='DLD Escolaridade '!H27/'DLD Escolaridade '!I27 -> 0.3222797927 | J28: ='DLD Escolaridade '!K27/'DLD Escolaridade '!Q27 -> 0.07995735608 | K28: ='DLD Escolaridade '!L27/'DLD Escolaridade '!Q27 -> 0.170575693 | L28: ='DLD Escolaridade '!M27/'DLD Escolaridade '!Q27 -> 0.08528784648 | M28: ='DLD Escolaridade '!N27/'DLD Escolaridade '!Q27 -> 0.1172707889 | N28: ='DLD Escolaridade '!O27/'DLD Escolaridade '!Q27 -> 0.2430703625 | O28: ='DLD Escolaridade '!P27/'DLD Escolaridade '!Q27 -> 0.3038379531 | Q28: ='DLD Escolaridade '!S27/'DLD Escolaridade '!Y27 -> 0.08387799564 | R28: ='DLD Escolaridade '!T27/'DLD Escolaridade '!Y27 -> 0.1666666667 | S28: ='DLD Escolaridade '!U27/'DLD Escolaridade '!Y27 -> 0.09477124183 | T28: ='DLD Escolaridade '!V27/'DLD Escolaridade '!Y27 -> 0.114379085 | U28: ='DLD Escolaridade '!W27/'DLD Escolaridade '!Y27 -> 0.2091503268 | V28: ='DLD Escolaridade '!X27/'DLD Escolaridade '!Y27 -> 0.3311546841 | X28: ='DLD Escolaridade '!AA27/'DLD Escolaridade '!AG27 -> 0.09364548495 | Y28: ='DLD Escolaridade '!AB27/'DLD Escolaridade '!AG27 -> 0.1828316611 | Z28: ='DLD Escolaridade '!AC27/'DLD Escolaridade '!AG27 -> 0.09698996656 | AA28: ='DLD Escolaridade '!AD27/'DLD Escolaridade '!AG27 -> 0.110367893 | AB28: ='DLD Escolaridade '!AE27/'DLD Escolaridade '!AG27 -> 0.2017837235 | AC28: ='DLD Escolaridade '!AF27/'DLD Escolaridade '!AG27 -> 0.3143812709
B29: Marvila | C29: ='DLD Escolaridade '!C28/'DLD Escolaridade '!I28 -> 0.1253071253 | D29: ='DLD Escolaridade '!D28/'DLD Escolaridade '!I28 -> 0.32002457 | E29: ='DLD Escolaridade '!E28/'DLD Escolaridade '!I28 -> 0.199017199 | F29: ='DLD Escolaridade '!F28/'DLD Escolaridade '!I28 -> 0.1726044226 | G29: ='DLD Escolaridade '!G28/'DLD Escolaridade '!I28 -> 0.1332923833 | H29: ='DLD Escolaridade '!H28/'DLD Escolaridade '!I28 -> 0.04975429975 | J29: ='DLD Escolaridade '!K28/'DLD Escolaridade '!Q28 -> 0.126459144 | K29: ='DLD Escolaridade '!L28/'DLD Escolaridade '!Q28 -> 0.3437094682 | L29: ='DLD Escolaridade '!M28/'DLD Escolaridade '!Q28 -> 0.1939040208 | M29: ='DLD Escolaridade '!N28/'DLD Escolaridade '!Q28 -> 0.1835278859 | N29: ='DLD Escolaridade '!O28/'DLD Escolaridade '!Q28 -> 0.1121919585 | O29: ='DLD Escolaridade '!P28/'DLD Escolaridade '!Q28 -> 0.0402075227 | Q29: ='DLD Escolaridade '!S28/'DLD Escolaridade '!Y28 -> 0.1369949495 | R29: ='DLD Escolaridade '!T28/'DLD Escolaridade '!Y28 -> 0.3333333333 | S29: ='DLD Escolaridade '!U28/'DLD Escolaridade '!Y28 -> 0.196969697 | T29: ='DLD Escolaridade '!V28/'DLD Escolaridade '!Y28 -> 0.1672979798 | U29: ='DLD Escolaridade '!W28/'DLD Escolaridade '!Y28 -> 0.1174242424 | V29: ='DLD Escolaridade '!X28/'DLD Escolaridade '!Y28 -> 0.04797979798 | X29: ='DLD Escolaridade '!AA28/'DLD Escolaridade '!AG28 -> 0.1414068165 | Y29: ='DLD Escolaridade '!AB28/'DLD Escolaridade '!AG28 -> 0.3582306019 | Z29: ='DLD Escolaridade '!AC28/'DLD Escolaridade '!AG28 -> 0.2001450326 | AA29: ='DLD Escolaridade '!AD28/'DLD Escolaridade '!AG28 -> 0.1508339376 | AB29: ='DLD Escolaridade '!AE28/'DLD Escolaridade '!AG28 -> 0.1116751269 | AC29: ='DLD Escolaridade '!AF28/'DLD Escolaridade '!AG28 -> 0.03770848441
B30: Misericórdia | C30: ='DLD Escolaridade '!C29/'DLD Escolaridade '!I29 -> 0.08955223881 | D30: ='DLD Escolaridade '!D29/'DLD Escolaridade '!I29 -> 0.1890547264 | E30: ='DLD Escolaridade '!E29/'DLD Escolaridade '!I29 -> 0.1592039801 | F30: ='DLD Escolaridade '!F29/'DLD Escolaridade '!I29 -> 0.1542288557 | G30: ='DLD Escolaridade '!G29/'DLD Escolaridade '!I29 -> 0.2512437811 | H30: ='DLD Escolaridade '!H29/'DLD Escolaridade '!I29 -> 0.1567164179 | J30: ='DLD Escolaridade '!K29/'DLD Escolaridade '!Q29 -> 0.07945205479 | K30: ='DLD Escolaridade '!L29/'DLD Escolaridade '!Q29 -> 0.197260274 | L30: ='DLD Escolaridade '!M29/'DLD Escolaridade '!Q29 -> 0.1561643836 | M30: ='DLD Escolaridade '!N29/'DLD Escolaridade '!Q29 -> 0.1753424658 | N30: ='DLD Escolaridade '!O29/'DLD Escolaridade '!Q29 -> 0.2630136986 | O30: ='DLD Escolaridade '!P29/'DLD Escolaridade '!Q29 -> 0.1287671233 | Q30: ='DLD Escolaridade '!S29/'DLD Escolaridade '!Y29 -> 0.08011049724 | R30: ='DLD Escolaridade '!T29/'DLD Escolaridade '!Y29 -> 0.1767955801 | S30: ='DLD Escolaridade '!U29/'DLD Escolaridade '!Y29 -> 0.1602209945 | T30: ='DLD Escolaridade '!V29/'DLD Escolaridade '!Y29 -> 0.1657458564 | U30: ='DLD Escolaridade '!W29/'DLD Escolaridade '!Y29 -> 0.2651933702 | V30: ='DLD Escolaridade '!X29/'DLD Escolaridade '!Y29 -> 0.1519337017 | X30: ='DLD Escolaridade '!AA29/'DLD Escolaridade '!AG29 -> 0.07357859532 | Y30: ='DLD Escolaridade '!AB29/'DLD Escolaridade '!AG29 -> 0.220735786 | Z30: ='DLD Escolaridade '!AC29/'DLD Escolaridade '!AG29 -> 0.1939799331 | AA30: ='DLD Escolaridade '!AD29/'DLD Escolaridade '!AG29 -> 0.1571906355 | AB30: ='DLD Escolaridade '!AE29/'DLD Escolaridade '!AG29 -> 0.1839464883 | AC30: ='DLD Escolaridade '!AF29/'DLD Escolaridade '!AG29 -> 0.1705685619
B31: Olivais | C31: ='DLD Escolaridade '!C30/'DLD Escolaridade '!I30 -> 0.2222222222 | D31: ='DLD Escolaridade '!D30/'DLD Escolaridade '!I30 -> 0.2777777778 | E31: ='DLD Escolaridade '!E30/'DLD Escolaridade '!I30 -> 0.1111111111 | F31: ='DLD Escolaridade '!F30/'DLD Escolaridade '!I30 -> 0.1111111111 | G31: - | H31: ='DLD Escolaridade '!H30/'DLD Escolaridade '!I30 -> 0.2777777778 | J31: ='DLD Escolaridade '!K30/'DLD Escolaridade '!Q30 -> 0.05769230769 | K31: ='DLD Escolaridade '!L30/'DLD Escolaridade '!Q30 -> 0.2115384615 | L31: ='DLD Escolaridade '!M30/'DLD Escolaridade '!Q30 -> 0.1153846154 | M31: ='DLD Escolaridade '!N30/'DLD Escolaridade '!Q30 -> 0.2115384615 | N31: ='DLD Escolaridade '!O30/'DLD Escolaridade '!Q30 -> 0.2115384615 | O31: ='DLD Escolaridade '!P30/'DLD Escolaridade '!Q30 -> 0.1923076923 | Q31: ='DLD Escolaridade '!S30/'DLD Escolaridade '!Y30 -> 0.07352941176 | R31: ='DLD Escolaridade '!T30/'DLD Escolaridade '!Y30 -> 0.1176470588 | S31: ='DLD Escolaridade '!U30/'DLD Escolaridade '!Y30 -> 0.1764705882 | T31: ='DLD Escolaridade '!V30/'DLD Escolaridade '!Y30 -> 0.2205882353 | U31: ='DLD Escolaridade '!W30/'DLD Escolaridade '!Y30 -> 0.1911764706 | V31: ='DLD Escolaridade '!X30/'DLD Escolaridade '!Y30 -> 0.2205882353 | X31: ='DLD Escolaridade '!AA30/'DLD Escolaridade '!AG30 -> 0.07608695652 | Y31: ='DLD Escolaridade '!AB30/'DLD Escolaridade '!AG30 -> 0.152173913 | Z31: ='DLD Escolaridade '!AC30/'DLD Escolaridade '!AG30 -> 0.1739130435 | AA31: ='DLD Escolaridade '!AD30/'DLD Escolaridade '!AG30 -> 0.1739130435 | AB31: ='DLD Escolaridade '!AE30/'DLD Escolaridade '!AG30 -> 0.1739130435 | AC31: ='DLD Escolaridade '!AF30/'DLD Escolaridade '!AG30 -> 0.25
B32: Parque das Nações | C32: ='DLD Escolaridade '!C31/'DLD Escolaridade '!I31 -> 0.08914996545 | D32: ='DLD Escolaridade '!D31/'DLD Escolaridade '!I31 -> 0.206634416 | E32: ='DLD Escolaridade '!E31/'DLD Escolaridade '!I31 -> 0.1541119558 | F32: ='DLD Escolaridade '!F31/'DLD Escolaridade '!I31 -> 0.1796821009 | G32: ='DLD Escolaridade '!G31/'DLD Escolaridade '!I31 -> 0.208016586 | H32: ='DLD Escolaridade '!H31/'DLD Escolaridade '!I31 -> 0.1624049758 | J32: ='DLD Escolaridade '!K31/'DLD Escolaridade '!Q31 -> 0.09386281588 | K32: ='DLD Escolaridade '!L31/'DLD Escolaridade '!Q31 -> 0.2093862816 | L32: ='DLD Escolaridade '!M31/'DLD Escolaridade '!Q31 -> 0.157400722 | M32: ='DLD Escolaridade '!N31/'DLD Escolaridade '!Q31 -> 0.1711191336 | N32: ='DLD Escolaridade '!O31/'DLD Escolaridade '!Q31 -> 0.202166065 | O32: ='DLD Escolaridade '!P31/'DLD Escolaridade '!Q31 -> 0.1660649819 | Q32: ='DLD Escolaridade '!S31/'DLD Escolaridade '!Y31 -> 0.1095690285 | R32: ='DLD Escolaridade '!T31/'DLD Escolaridade '!Y31 -> 0.2169466764 | S32: ='DLD Escolaridade '!U31/'DLD Escolaridade '!Y31 -> 0.1607012418 | T32: ='DLD Escolaridade '!V31/'DLD Escolaridade '!Y31 -> 0.1643535427 | U32: ='DLD Escolaridade '!W31/'DLD Escolaridade '!Y31 -> 0.1862673484 | V32: ='DLD Escolaridade '!X31/'DLD Escolaridade '!Y31 -> 0.1621621622 | X32: ='DLD Escolaridade '!AA31/'DLD Escolaridade '!AG31 -> 0.1181172291 | Y32: ='DLD Escolaridade '!AB31/'DLD Escolaridade '!AG31 -> 0.2531083481 | Z32: ='DLD Escolaridade '!AC31/'DLD Escolaridade '!AG31 -> 0.1509769094 | AA32: ='DLD Escolaridade '!AD31/'DLD Escolaridade '!AG31 -> 0.1580817052 | AB32: ='DLD Escolaridade '!AE31/'DLD Escolaridade '!AG31 -> 0.1714031972 | AC32: ='DLD Escolaridade '!AF31/'DLD Escolaridade '!AG31 -> 0.148312611
B33: Penha de França | C33: ='DLD Escolaridade '!C32/'DLD Escolaridade '!I32 -> 0.09336332958 | D33: ='DLD Escolaridade '!D32/'DLD Escolaridade '!I32 -> 0.1754780652 | E33: ='DLD Escolaridade '!E32/'DLD Escolaridade '!I32 -> 0.1529808774 | F33: ='DLD Escolaridade '!F32/'DLD Escolaridade '!I32 -> 0.1788526434 | G33: ='DLD Escolaridade '!G32/'DLD Escolaridade '!I32 -> 0.2429696288 | H33: ='DLD Escolaridade '!H32/'DLD Escolaridade '!I32 -> 0.1563554556 | J33: ='DLD Escolaridade '!K32/'DLD Escolaridade '!Q32 -> 0.08679706601 | K33: ='DLD Escolaridade '!L32/'DLD Escolaridade '!Q32 -> 0.1748166259 | L33: ='DLD Escolaridade '!M32/'DLD Escolaridade '!Q32 -> 0.1674816626 | M33: ='DLD Escolaridade '!N32/'DLD Escolaridade '!Q32 -> 0.1870415648 | N33: ='DLD Escolaridade '!O32/'DLD Escolaridade '!Q32 -> 0.2444987775 | O33: ='DLD Escolaridade '!P32/'DLD Escolaridade '!Q32 -> 0.1393643032 | Q33: ='DLD Escolaridade '!S32/'DLD Escolaridade '!Y32 -> 0.08343711083 | R33: ='DLD Escolaridade '!T32/'DLD Escolaridade '!Y32 -> 0.1718555417 | S33: ='DLD Escolaridade '!U32/'DLD Escolaridade '!Y32 -> 0.1481942715 | T33: ='DLD Escolaridade '!V32/'DLD Escolaridade '!Y32 -> 0.1855541719 | U33: ='DLD Escolaridade '!W32/'DLD Escolaridade '!Y32 -> 0.2440846824 | V33: ='DLD Escolaridade '!X32/'DLD Escolaridade '!Y32 -> 0.1668742217 | X33: ='DLD Escolaridade '!AA32/'DLD Escolaridade '!AG32 -> 0.09908536585 | Y33: ='DLD Escolaridade '!AB32/'DLD Escolaridade '!AG32 -> 0.2027439024 | Z33: ='DLD Escolaridade '!AC32/'DLD Escolaridade '!AG32 -> 0.1844512195 | AA33: ='DLD Escolaridade '!AD32/'DLD Escolaridade '!AG32 -> 0.1875 | AB33: ='DLD Escolaridade '!AE32/'DLD Escolaridade '!AG32 -> 0.1661585366 | AC33: ='DLD Escolaridade '!AF32/'DLD Escolaridade '!AG32 -> 0.1600609756
B34: Santa Clara | C34: ='DLD Escolaridade '!C33/'DLD Escolaridade '!I33 -> 0.2083739046 | D34: ='DLD Escolaridade '!D33/'DLD Escolaridade '!I33 -> 0.2911392405 | E34: ='DLD Escolaridade '!E33/'DLD Escolaridade '!I33 -> 0.17624148 | F34: ='DLD Escolaridade '!F33/'DLD Escolaridade '!I33 -> 0.1392405063 | G34: ='DLD Escolaridade '!G33/'DLD Escolaridade '!I33 -> 0.1129503408 | H34: ='DLD Escolaridade '!H33/'DLD Escolaridade '!I33 -> 0.07205452775 | J34: ='DLD Escolaridade '!K33/'DLD Escolaridade '!Q33 -> 0.2242609582 | K34: ='DLD Escolaridade '!L33/'DLD Escolaridade '!Q33 -> 0.2996941896 | L34: ='DLD Escolaridade '!M33/'DLD Escolaridade '!Q33 -> 0.1671763507 | M34: ='DLD Escolaridade '!N33/'DLD Escolaridade '!Q33 -> 0.125382263 | N34: ='DLD Escolaridade '!O33/'DLD Escolaridade '!Q33 -> 0.1090723751 | O34: ='DLD Escolaridade '!P33/'DLD Escolaridade '!Q33 -> 0.0744138634 | Q34: ='DLD Escolaridade '!S33/'DLD Escolaridade '!Y33 -> 0.2338949455 | R34: ='DLD Escolaridade '!T33/'DLD Escolaridade '!Y33 -> 0.2943508424 | S34: ='DLD Escolaridade '!U33/'DLD Escolaridade '!Y33 -> 0.171456888 | T34: ='DLD Escolaridade '!V33/'DLD Escolaridade '!Y33 -> 0.1159563925 | U34: ='DLD Escolaridade '!W33/'DLD Escolaridade '!Y33 -> 0.1209117939 | V34: ='DLD Escolaridade '!X33/'DLD Escolaridade '!Y33 -> 0.06342913776 | X34: ='DLD Escolaridade '!AA33/'DLD Escolaridade '!AG33 -> 0.2521551724 | Y34: ='DLD Escolaridade '!AB33/'DLD Escolaridade '!AG33 -> 0.3275862069 | Z34: ='DLD Escolaridade '!AC33/'DLD Escolaridade '!AG33 -> 0.1681034483 | AA34: ='DLD Escolaridade '!AD33/'DLD Escolaridade '!AG33 -> 0.1109913793 | AB34: ='DLD Escolaridade '!AE33/'DLD Escolaridade '!AG33 -> 0.07650862069 | AC34: ='DLD Escolaridade '!AF33/'DLD Escolaridade '!AG33 -> 0.06465517241
B35: Santa Maria Maior | C35: ='DLD Escolaridade '!C34/'DLD Escolaridade '!I34 -> 0.1392694064 | D35: ='DLD Escolaridade '!D34/'DLD Escolaridade '!I34 -> 0.198630137 | E35: ='DLD Escolaridade '!E34/'DLD Escolaridade '!I34 -> 0.1803652968 | F35: ='DLD Escolaridade '!F34/'DLD Escolaridade '!I34 -> 0.196347032 | G35: ='DLD Escolaridade '!G34/'DLD Escolaridade '!I34 -> 0.1461187215 | H35: ='DLD Escolaridade '!H34/'DLD Escolaridade '!I34 -> 0.1392694064 | J35: ='DLD Escolaridade '!K34/'DLD Escolaridade '!Q34 -> 0.1435643564 | K35: ='DLD Escolaridade '!L34/'DLD Escolaridade '!Q34 -> 0.2103960396 | L35: ='DLD Escolaridade '!M34/'DLD Escolaridade '!Q34 -> 0.1757425743 | M35: ='DLD Escolaridade '!N34/'DLD Escolaridade '!Q34 -> 0.2202970297 | N35: ='DLD Escolaridade '!O34/'DLD Escolaridade '!Q34 -> 0.1435643564 | O35: ='DLD Escolaridade '!P34/'DLD Escolaridade '!Q34 -> 0.1064356436 | Q35: ='DLD Escolaridade '!S34/'DLD Escolaridade '!Y34 -> 0.1351351351 | R35: ='DLD Escolaridade '!T34/'DLD Escolaridade '!Y34 -> 0.230958231 | S35: ='DLD Escolaridade '!U34/'DLD Escolaridade '!Y34 -> 0.1547911548 | T35: ='DLD Escolaridade '!V34/'DLD Escolaridade '!Y34 -> 0.1941031941 | U35: ='DLD Escolaridade '!W34/'DLD Escolaridade '!Y34 -> 0.1769041769 | V35: ='DLD Escolaridade '!X34/'DLD Escolaridade '!Y34 -> 0.1081081081 | X35: ='DLD Escolaridade '!AA34/'DLD Escolaridade '!AG34 -> 0.1370262391 | Y35: ='DLD Escolaridade '!AB34/'DLD Escolaridade '!AG34 -> 0.2448979592 | Z35: ='DLD Escolaridade '!AC34/'DLD Escolaridade '!AG34 -> 0.1807580175 | AA35: ='DLD Escolaridade '!AD34/'DLD Escolaridade '!AG34 -> 0.1778425656 | AB35: ='DLD Escolaridade '!AE34/'DLD Escolaridade '!AG34 -> 0.1545189504 | AC35: ='DLD Escolaridade '!AF34/'DLD Escolaridade '!AG34 -> 0.1049562682
B36: Santo António | C36: ='DLD Escolaridade '!C35/'DLD Escolaridade '!I35 -> 0.07831325301 | D36: ='DLD Escolaridade '!D35/'DLD Escolaridade '!I35 -> 0.1385542169 | E36: ='DLD Escolaridade '!E35/'DLD Escolaridade '!I35 -> 0.1144578313 | F36: ='DLD Escolaridade '!F35/'DLD Escolaridade '!I35 -> 0.1686746988 | G36: ='DLD Escolaridade '!G35/'DLD Escolaridade '!I35 -> 0.265060241 | H36: ='DLD Escolaridade '!H35/'DLD Escolaridade '!I35 -> 0.234939759 | J36: ='DLD Escolaridade '!K35/'DLD Escolaridade '!Q35 -> 0.06840390879 | K36: ='DLD Escolaridade '!L35/'DLD Escolaridade '!Q35 -> 0.1368078176 | L36: ='DLD Escolaridade '!M35/'DLD Escolaridade '!Q35 -> 0.1107491857 | M36: ='DLD Escolaridade '!N35/'DLD Escolaridade '!Q35 -> 0.1498371336 | N36: ='DLD Escolaridade '!O35/'DLD Escolaridade '!Q35 -> 0.2671009772 | O36: ='DLD Escolaridade '!P35/'DLD Escolaridade '!Q35 -> 0.2671009772 | Q36: ='DLD Escolaridade '!S35/'DLD Escolaridade '!Y35 -> 0.05245901639 | R36: ='DLD Escolaridade '!T35/'DLD Escolaridade '!Y35 -> 0.1508196721 | S36: ='DLD Escolaridade '!U35/'DLD Escolaridade '!Y35 -> 0.1213114754 | T36: ='DLD Escolaridade '!V35/'DLD Escolaridade '!Y35 -> 0.1213114754 | U36: ='DLD Escolaridade '!W35/'DLD Escolaridade '!Y35 -> 0.2819672131 | V36: ='DLD Escolaridade '!X35/'DLD Escolaridade '!Y35 -> 0.2721311475 | X36: ='DLD Escolaridade '!AA35/'DLD Escolaridade '!AG35 -> 0.0625 | Y36: ='DLD Escolaridade '!AB35/'DLD Escolaridade '!AG35 -> 0.2125 | Z36: ='DLD Escolaridade '!AC35/'DLD Escolaridade '!AG35 -> 0.1333333333 | AA36: ='DLD Escolaridade '!AD35/'DLD Escolaridade '!AG35 -> 0.1375 | AB36: ='DLD Escolaridade '!AE35/'DLD Escolaridade '!AG35 -> 0.2291666667 | AC36: ='DLD Escolaridade '!AF35/'DLD Escolaridade '!AG35 -> 0.225
B37: São Domingos de Benfica | C37: ='DLD Escolaridade '!C36/'DLD Escolaridade '!I36 -> 0.02209131075 | D37: ='DLD Escolaridade '!D36/'DLD Escolaridade '!I36 -> 0.09572901325 | E37: ='DLD Escolaridade '!E36/'DLD Escolaridade '!I36 -> 0.09278350515 | F37: ='DLD Escolaridade '!F36/'DLD Escolaridade '!I36 -> 0.1634756996 | G37: ='DLD Escolaridade '!G36/'DLD Escolaridade '!I36 -> 0.2871870398 | H37: ='DLD Escolaridade '!H36/'DLD Escolaridade '!I36 -> 0.3387334315 | J37: ='DLD Escolaridade '!K36/'DLD Escolaridade '!Q36 -> 0.02423263328 | K37: ='DLD Escolaridade '!L36/'DLD Escolaridade '!Q36 -> 0.1098546042 | L37: ='DLD Escolaridade '!M36/'DLD Escolaridade '!Q36 -> 0.09369951535 | M37: ='DLD Escolaridade '!N36/'DLD Escolaridade '!Q36 -> 0.1647819063 | N37: ='DLD Escolaridade '!O36/'DLD Escolaridade '!Q36 -> 0.281098546 | O37: ='DLD Escolaridade '!P36/'DLD Escolaridade '!Q36 -> 0.3263327948 | Q37: ='DLD Escolaridade '!S36/'DLD Escolaridade '!Y36 -> 0.02611367127 | R37: ='DLD Escolaridade '!T36/'DLD Escolaridade '!Y36 -> 0.10906298 | S37: ='DLD Escolaridade '!U36/'DLD Escolaridade '!Y36 -> 0.08448540707 | T37: ='DLD Escolaridade '!V36/'DLD Escolaridade '!Y36 -> 0.1735791091 | U37: ='DLD Escolaridade '!W36/'DLD Escolaridade '!Y36 -> 0.2519201229 | V37: ='DLD Escolaridade '!X36/'DLD Escolaridade '!Y36 -> 0.3548387097 | X37: ='DLD Escolaridade '!AA36/'DLD Escolaridade '!AG36 -> 0.02730375427 | Y37: ='DLD Escolaridade '!AB36/'DLD Escolaridade '!AG36 -> 0.1194539249 | Z37: ='DLD Escolaridade '!AC36/'DLD Escolaridade '!AG36 -> 0.08532423208 | AA37: ='DLD Escolaridade '!AD36/'DLD Escolaridade '!AG36 -> 0.1552901024 | AB37: ='DLD Escolaridade '!AE36/'DLD Escolaridade '!AG36 -> 0.2627986348 | AC37: ='DLD Escolaridade '!AF36/'DLD Escolaridade '!AG36 -> 0.3498293515
B38: São Vicente | C38: ='DLD Escolaridade '!C37/'DLD Escolaridade '!I37 -> 0.08659793814 | D38: ='DLD Escolaridade '!D37/'DLD Escolaridade '!I37 -> 0.206185567 | E38: ='DLD Escolaridade '!E37/'DLD Escolaridade '!I37 -> 0.1484536082 | F38: ='DLD Escolaridade '!F37/'DLD Escolaridade '!I37 -> 0.1979381443 | G38: ='DLD Escolaridade '!G37/'DLD Escolaridade '!I37 -> 0.2329896907 | H38: ='DLD Escolaridade '!H37/'DLD Escolaridade '!I37 -> 0.1278350515 | J38: ='DLD Escolaridade '!K37/'DLD Escolaridade '!Q37 -> 0.08294930876 | K38: ='DLD Escolaridade '!L37/'DLD Escolaridade '!Q37 -> 0.2281105991 | L38: ='DLD Escolaridade '!M37/'DLD Escolaridade '!Q37 -> 0.1543778802 | M38: ='DLD Escolaridade '!N37/'DLD Escolaridade '!Q37 -> 0.2096774194 | N38: ='DLD Escolaridade '!O37/'DLD Escolaridade '!Q37 -> 0.2235023041 | O38: ='DLD Escolaridade '!P37/'DLD Escolaridade '!Q37 -> 0.1013824885 | Q38: ='DLD Escolaridade '!S37/'DLD Escolaridade '!Y37 -> 0.07469879518 | R38: ='DLD Escolaridade '!T37/'DLD Escolaridade '!Y37 -> 0.2096385542 | S38: ='DLD Escolaridade '!U37/'DLD Escolaridade '!Y37 -> 0.1518072289 | T38: ='DLD Escolaridade '!V37/'DLD Escolaridade '!Y37 -> 0.221686747 | U38: ='DLD Escolaridade '!W37/'DLD Escolaridade '!Y37 -> 0.2265060241 | V38: ='DLD Escolaridade '!X37/'DLD Escolaridade '!Y37 -> 0.1156626506 | X38: ='DLD Escolaridade '!AA37/'DLD Escolaridade '!AG37 -> 0.08547008547 | Y38: ='DLD Escolaridade '!AB37/'DLD Escolaridade '!AG37 -> 0.2535612536 | Z38: ='DLD Escolaridade '!AC37/'DLD Escolaridade '!AG37 -> 0.1709401709 | AA38: ='DLD Escolaridade '!AD37/'DLD Escolaridade '!AG37 -> 0.1965811966 | AB38: ='DLD Escolaridade '!AE37/'DLD Escolaridade '!AG37 -> 0.1538461538 | AC38: ='DLD Escolaridade '!AF37/'DLD Escolaridade '!AG37 -> 0.1396011396
B39: Freg. Não Codificada | C39: - | D39: - | E39: ='DLD Escolaridade '!E38/'DLD Escolaridade '!I38 -> 0.25 | F39: ='DLD Escolaridade '!F38/'DLD Escolaridade '!I38 -> 0.25 | G39: ='DLD Escolaridade '!G38/'DLD Escolaridade '!I38 -> 0.3333333333 | H39: ='DLD Escolaridade '!H38/'DLD Escolaridade '!I38 -> 0.1666666667 | J39: - | K39: ='DLD Escolaridade '!L38/'DLD Escolaridade '!Q38 -> 0.05555555556 | L39: ='DLD Escolaridade '!M38/'DLD Escolaridade '!Q38 -> 0.1666666667 | M39: ='DLD Escolaridade '!N38/'DLD Escolaridade '!Q38 -> 0.1666666667 | N39: ='DLD Escolaridade '!O38/'DLD Escolaridade '!Q38 -> 0.1111111111 | O39: ='DLD Escolaridade '!P38/'DLD Escolaridade '!Q38 -> 0.5 | Q39: - | R39: ='DLD Escolaridade '!T38/'DLD Escolaridade '!Y38 -> 0.04 | S39: ='DLD Escolaridade '!U38/'DLD Escolaridade '!Y38 -> 0.08 | T39: ='DLD Escolaridade '!V38/'DLD Escolaridade '!Y38 -> 0.12 | U39: ='DLD Escolaridade '!W38/'DLD Escolaridade '!Y38 -> 0.16 | V39: ='DLD Escolaridade '!X38/'DLD Escolaridade '!Y38 -> 0.6 | X39: ='DLD Escolaridade '!AA38/'DLD Escolaridade '!AG38 -> 0.07142857143 | Y39: ='DLD Escolaridade '!AB38/'DLD Escolaridade '!AG38 -> 0.07142857143 | Z39: ='DLD Escolaridade '!AC38/'DLD Escolaridade '!AG38 -> 0.07142857143 | AA39: ='DLD Escolaridade '!AD38/'DLD Escolaridade '!AG38 -> 0.1428571429 | AB39: ='DLD Escolaridade '!AE38/'DLD Escolaridade '!AG38 -> 0.07142857143 | AC39: ='DLD Escolaridade '!AF38/'DLD Escolaridade '!AG38 -> 0.5714285714
B41: Fonte: Instituto de Emprego e Formação Profissional
B42: Cálculos: OLCPL
B43: Notas n.d.: não disponível (para valores =< 5, por razões de confidencialidade dados não disponibilizados pela fonte)

Sheet 1º Empr. Genero
A5: Q.13 | B5: Número de desempregados 1º emprego inscritos Centros de Emprego, género 2014
C7: Número de desempregados 1º emprego inscritos Centros de Emprego, género
C8: 1º TRIMESTRE | G8: 2º TRIMESTRE | I8: 2 | K8: 3º TRIMESTRE | O8: 4º TRIMESTRE | Q8: 4
B9: Unidade: Nº | C9: Fem | D9: Masc | E9: Total | G9: Fem | H9: Masc | I9: Total | K9: Fem | L9: Masc | M9: Total | O9: Fem | P9: Masc | Q9: Total
B10: Portugal Continental | C10: 39576 | D10: 29524 | E10: =SUM(C10:D10) -> 69100 | G10: 32476 | H10: 24118 | I10: 56594 | K10: 38000 | L10: 27552 | M10: 65552 | O10: 34541 | P10: 25500 | Q10: 60041
B11: AML | C11: 7572 | D11: 6598 | E11: 14170 | G11: 6352 | H11: 5437 | I11: 11789 | K11: 7223 | L11: 5992 | M11: 13215 | O11: 6562 | P11: 5377 | Q11: 11939
B12: Distrito de Lisboa | C12: 5841 | D12: 5146 | E12: 10987 | G12: 4921 | H12: 4218 | I12: =SUM(G12:H12) -> 9139 | K12: 5526 | L12: 4638 | M12: 10164 | O12: 4912 | P12: 4128 | Q12: 9040
B13: Concelho de Lisboa | C13: 2251 | D13: 1793 | E13: 4044 | G13: =SUM(G14:G38) -> 1948 | H13: =SUM(H14:H38) -> 1578 | I13: 3526 | K13: 2045 | L13: 1619 | M13: 3664 | O13: 1795 | P13: 1308 | Q13: 3103
B14: Ajuda | C14: 90 | D14: 47 | E14: 137 | G14: 96 | H14: 50 | I14: 146 | K14: 104 | L14: 50 | M14: 154 | O14: 78 | P14: 46 | Q14: 124
B15: Alcântara | C15: 38 | D15: 43 | E15: 81 | G15: 29 | H15: 32 | I15: 61 | K15: 26 | L15: 32 | M15: 58 | O15: 22 | P15: 29 | Q15: 51
B16: Alvalade | C16: 129 | D16: 82 | E16: 211 | G16: 90 | H16: 68 | I16: 158 | K16: 104 | L16: 60 | M16: 164 | O16: 100 | P16: 44 | Q16: 144
B17: Areeiro | C17: 83 | D17: 67 | E17: 150 | G17: 70 | H17: 59 | I17: 129 | K17: 72 | L17: 63 | M17: 135 | O17: 63 | P17: 47 | Q17: 110
B18: Arroios | C18: 138 | D18: 98 | E18: 236 | G18: 110 | H18: 86 | I18: 196 | K18: 110 | L18: 100 | M18: 210 | O18: 86 | P18: 79 | Q18: 165
B19: Avenidas Novas | C19: 106 | D19: 86 | E19: 192 | G19: 89 | H19: 58 | I19: 147 | K19: 90 | L19: 61 | M19: 151 | O19: 81 | P19: 46 | Q19: 127
B20: Beato | C20: 76 | D20: 48 | E20: 124 | G20: 67 | H20: 46 | I20: 113 | K20: 56 | L20: 42 | M20: 98 | O20: 50 | P20: 36 | Q20: 86
B21: Belém | C21: 25 | D21: 27 | E21: 52 | G21: 25 | H21: 26 | I21: 51 | K21: 26 | L21: 29 | M21: 55 | O21: 21 | P21: 16 | Q21: 37
B22: Benfica | C22: 144 | D22: 99 | E22: 243 | G22: 103 | H22: 74 | I22: 177 | K22: 120 | L22: 91 | M22: 211 | O22: 129 | P22: 73 | Q22: 202
B23: Campo de Ourique | C23: 52 | D23: 47 | E23: 99 | G23: 39 | H23: 42 | I23: 81 | K23: 34 | L23: 45 | M23: 79 | O23: 37 | P23: 25 | Q23: 62
B24: Campolide | C24: 37 | D24: 26 | E24: 63 | G24: 27 | H24: 27 | I24: 54 | K24: 27 | L24: 32 | M24: 59 | O24: 25 | P24: 22 | Q24: 47
B25: Carnide | C25: 80 | D25: 73 | E25: 153 | G25: 75 | H25: 73 | I25: 148 | K25: 84 | L25: 73 | M25: 157 | O25: 78 | P25: 66 | Q25: 144
B26: Estrela | C26: 46 | D26: 32 | E26: 78 | G26: 37 | H26: 23 | I26: 60 | K26: 49 | L26: 24 | M26: 73 | O26: 28 | P26: 33 | Q26: 61
B27: Lumiar | C27: 130 | D27: 144 | E27: 274 | G27: 136 | H27: 117 | I27: 253 | K27: 139 | L27: 120 | M27: 259 | O27: 128 | P27: 95 | Q27: 223
B28: Marvila | C28: 207 | D28: 249 | E28: 456 | G28: 207 | H28: 187 | I28: 394 | K28: 233 | L28: 193 | M28: 426 | O28: 179 | P28: 144 | Q28: 323
B29: Misericórdia | C29: 40 | D29: 42 | E29: 82 | G29: 30 | H29: 41 | I29: 71 | K29: 32 | L29: 29 | M29: 61 | O29: 23 | P29: 23 | Q29: 46
B30: Olivais | C30: 18 | D30: 28 | E30: 46 | G30: 42 | H30: 30 | I30: 72 | K30: 47 | L30: 40 | M30: 87 | O30: 59 | P30: 37 | Q30: 96
B31: Parque das Nações | C31: 180 | D31: 188 | E31: 368 | G31: 172 | H31: 156 | I31: 328 | K31: 168 | L31: 143 | M31: 311 | O31: 130 | P31: 106 | Q31: 236
B32: Penha de França | C32: 76 | D32: 95 | E32: 171 | G32: 66 | H32: 75 | I32: 141 | K32: 69 | L32: 71 | M32: 140 | O32: 74 | P32: 57 | Q32: 131
B33: Santa Clara | C33: 170 | D33: 226 | E33: 396 | G33: 221 | H33: 157 | I33: 378 | K33: 241 | L33: 163 | M33: 404 | O33: 220 | P33: 154 | Q33: 374
B34: Santa Maria Maior | C34: 45 | D34: 54 | E34: 99 | G34: 51 | H34: 37 | I34: 88 | K34: 38 | L34: 23 | M34: 61 | O34: 31 | P34: 23 | Q34: 54
B35: Santo António | C35: 36 | D35: 45 | E35: 81 | G35: 47 | H35: 22 | I35: 69 | K35: 46 | L35: 24 | M35: 70 | O35: 39 | P35: 14 | Q35: 53
B36: São Domingos de Benfica | C36: 65 | D36: 74 | E36: 139 | G36: 70 | H36: 60 | I36: 130 | K36: 84 | L36: 70 | M36: 154 | O36: 75 | P36: 61 | Q36: 136
B37: São Vicente | C37: 45 | D37: 59 | E37: 104 | G37: 45 | H37: 31 | I37: 76 | K37: 42 | L37: 36 | M37: 78 | O37: 37 | P37: 26 | Q37: 63
B38: Freg. Não Codificada | C38: 3 | D38: 6 | E38: 9 | G38: 4 | H38: 1 | I38: 5 | K38: 2045 | L38: 1619 | M38: 3664 | O38: 2 | P38: 6 | Q38: 8
B40: Fonte: Instituto de Emprego e Formação Profissional
B41: Cálculos: OLCPL
B42: Notas n.d.: não disponível (para valores =< 5, por razões de confidencialidade dados não disponibilizados pela fonte)

Sheet 1º Emprego Genero_%
A5: Q.14 | B5: Desempregados 1º emprego inscritos nos Centros de Emprego, Género, 2014 (%)
C7: Desempregados inscritos nos Centros de Emprego, género
C8: %
C9: 1º TRIMESTRE | F9: 2º TRIMESTRE | I9: 3º TRIMESTRE | L9: 4º TRIMESTRE
B10: Unidade: Nº e % | C10: Fem | D10: Masc | F10: Fem | G10: Masc | I10: Fem | J10: Masc | L10: Fem | M10: Masc
B11: Portugal Continental | C11: ='1º Empr. Genero'!C10/'1º Empr. Genero'!E10 -> 0.5727351664 | D11: ='1º Empr. Genero'!D10/'1º Empr. Genero'!E10 -> 0.4272648336 | F11: ='1º Empr. Genero'!G10/'1º Empr. Genero'!I10 -> 0.57384175 | G11: ='1º Empr. Genero'!H10/'1º Empr. Genero'!I10 -> 0.42615825 | I11: ='1º Empr. Genero'!K10/'1º Empr. Genero'!M10 -> 0.5796924579 | J11: ='1º Empr. Genero'!L10/'1º Empr. Genero'!M10 -> 0.4203075421 | L11: ='1º Empr. Genero'!O10/'1º Empr. Genero'!Q10 -> 0.5752902184 | M11: ='1º Empr. Genero'!P10/'1º Empr. Genero'!Q10 -> 0.4247097816
B12: AML | C12: ='1º Empr. Genero'!C11/'1º Empr. Genero'!E11 -> 0.5343683839 | D12: ='1º Empr. Genero'!D11/'1º Empr. Genero'!E11 -> 0.4656316161 | F12: ='1º Empr. Genero'!G11/'1º Empr. Genero'!I11 -> 0.5388073628 | G12: ='1º Empr. Genero'!H11/'1º Empr. Genero'!I11 -> 0.4611926372 | I12: ='1º Empr. Genero'!K11/'1º Empr. Genero'!M11 -> 0.5465758608 | J12: ='1º Empr. Genero'!L11/'1º Empr. Genero'!M11 -> 0.4534241392 | L12: ='1º Empr. Genero'!O11/'1º Empr. Genero'!Q11 -> 0.549627272 | M12: ='1º Empr. Genero'!P11/'1º Empr. Genero'!Q11 -> 0.450372728
B13: Distrito de Lisboa | C13: ='1º Empr. Genero'!C12/'1º Empr. Genero'!E12 -> 0.531628288 | D13: ='1º Empr. Genero'!D12/'1º Empr. Genero'!E12 -> 0.468371712 | F13: ='1º Empr. Genero'!G12/'1º Empr. Genero'!I12 -> 0.5384615385 | G13: ='1º Empr. Genero'!H12/'1º Empr. Genero'!I12 -> 0.4615384615 | I13: ='1º Empr. Genero'!K12/'1º Empr. Genero'!M12 -> 0.5436835891 | J13: ='1º Empr. Genero'!L12/'1º Empr. Genero'!M12 -> 0.4563164109 | L13: ='1º Empr. Genero'!O12/'1º Empr. Genero'!Q12 -> 0.5433628319 | M13: ='1º Empr. Genero'!P12/'1º Empr. Genero'!Q12 -> 0.4566371681
B14: Concelho de Lisboa | C14: ='1º Empr. Genero'!C13/'1º Empr. Genero'!E13 -> 0.5566271019 | D14: ='1º Empr. Genero'!D13/'1º Empr. Genero'!E13 -> 0.4433728981 | F14: ='1º Empr. Genero'!G13/'1º Empr. Genero'!I13 -> 0.5524673851 | G14: ='1º Empr. Genero'!H13/'1º Empr. Genero'!I13 -> 0.4475326149 | I14: ='1º Empr. Genero'!K13/'1º Empr. Genero'!M13 -> 0.5581331878 | J14: ='1º Empr. Genero'!L13/'1º Empr. Genero'!M13 -> 0.4418668122 | L14: ='1º Empr. Genero'!O13/'1º Empr. Genero'!Q13 -> 0.578472446 | M14: ='1º Empr. Genero'!P13/'1º Empr. Genero'!Q13 -> 0.421527554
B15: Ajuda | C15: ='1º Empr. Genero'!C14/'1º Empr. Genero'!E14 -> 0.6569343066 | D15: ='1º Empr. Genero'!D14/'1º Empr. Genero'!E14 -> 0.3430656934 | F15: ='1º Empr. Genero'!G14/'1º Empr. Genero'!I14 -> 0.6575342466 | G15: ='1º Empr. Genero'!H14/'1º Empr. Genero'!I14 -> 0.3424657534 | I15: ='1º Empr. Genero'!K14/'1º Empr. Genero'!M14 -> 0.6753246753 | J15: ='1º Empr. Genero'!L14/'1º Empr. Genero'!M14 -> 0.3246753247 | L15: ='1º Empr. Genero'!O14/'1º Empr. Genero'!Q14 -> 0.6290322581 | M15: ='1º Empr. Genero'!P14/'1º Empr. Genero'!Q14 -> 0.3709677419
B16: Alcântara | C16: ='1º Empr. Genero'!C15/'1º Empr. Genero'!E15 -> 0.4691358025 | D16: ='1º Empr. Genero'!D15/'1º Empr. Genero'!E15 -> 0.5308641975 | F16: ='1º Empr. Genero'!G15/'1º Empr. Genero'!I15 -> 0.4754098361 | G16: ='1º Empr. Genero'!H15/'1º Empr. Genero'!I15 -> 0.5245901639 | I16: ='1º Empr. Genero'!K15/'1º Empr. Genero'!M15 -> 0.4482758621 | J16: ='1º Empr. Genero'!L15/'1º Empr. Genero'!M15 -> 0.5517241379 | L16: ='1º Empr. Genero'!O15/'1º Empr. Genero'!Q15 -> 0.431372549 | M16: ='1º Empr. Genero'!P15/'1º Empr. Genero'!Q15 -> 0.568627451
B17: Alvalade | C17: ='1º Empr. Genero'!C16/'1º Empr. Genero'!E16 -> 0.6113744076 | D17: ='1º Empr. Genero'!D16/'1º Empr. Genero'!E16 -> 0.3886255924 | F17: ='1º Empr. Genero'!G16/'1º Empr. Genero'!I16 -> 0.5696202532 | G17: ='1º Empr. Genero'!H16/'1º Empr. Genero'!I16 -> 0.4303797468 | I17: ='1º Empr. Genero'!K16/'1º Empr. Genero'!M16 -> 0.6341463415 | J17: ='1º Empr. Genero'!L16/'1º Empr. Genero'!M16 -> 0.3658536585 | L17: ='1º Empr. Genero'!O16/'1º Empr. Genero'!Q16 -> 0.6944444444 | M17: ='1º Empr. Genero'!P16/'1º Empr. Genero'!Q16 -> 0.3055555556
B18: Areeiro | C18: ='1º Empr. Genero'!C17/'1º Empr. Genero'!E17 -> 0.5533333333 | D18: ='1º Empr. Genero'!D17/'1º Empr. Genero'!E17 -> 0.4466666667 | F18: ='1º Empr. Genero'!G17/'1º Empr. Genero'!I17 -> 0.5426356589 | G18: ='1º Empr. Genero'!H17/'1º Empr. Genero'!I17 -> 0.4573643411 | I18: ='1º Empr. Genero'!K17/'1º Empr. Genero'!M17 -> 0.5333333333 | J18: ='1º Empr. Genero'!L17/'1º Empr. Genero'!M17 -> 0.4666666667 | L18: ='1º Empr. Genero'!O17/'1º Empr. Genero'!Q17 -> 0.5727272727 | M18: ='1º Empr. Genero'!P17/'1º Empr. Genero'!Q17 -> 0.4272727273
B19: Arroios | C19: ='1º Empr. Genero'!C18/'1º Empr. Genero'!E18 -> 0.5847457627 | D19: ='1º Empr. Genero'!D18/'1º Empr. Genero'!E18 -> 0.4152542373 | F19: ='1º Empr. Genero'!G18/'1º Empr. Genero'!I18 -> 0.5612244898 | G19: ='1º Empr. Genero'!H18/'1º Empr. Genero'!I18 -> 0.4387755102 | I19: ='1º Empr. Genero'!K18/'1º Empr. Genero'!M18 -> 0.5238095238 | J19: ='1º Empr. Genero'!L18/'1º Empr. Genero'!M18 -> 0.4761904762 | L19: ='1º Empr. Genero'!O18/'1º Empr. Genero'!Q18 -> 0.5212121212 | M19: ='1º Empr. Genero'!P18/'1º Empr. Genero'!Q18 -> 0.4787878788
B20: Avenidas Novas | C20: ='1º Empr. Genero'!C19/'1º Empr. Genero'!E19 -> 0.5520833333 | D20: ='1º Empr. Genero'!D19/'1º Empr. Genero'!E19 -> 0.4479166667 | F20: ='1º Empr. Genero'!G19/'1º Empr. Genero'!I19 -> 0.6054421769 | G20: ='1º Empr. Genero'!H19/'1º Empr. Genero'!I19 -> 0.3945578231 | I20: ='1º Empr. Genero'!K19/'1º Empr. Genero'!M19 -> 0.5960264901 | J20: ='1º Empr. Genero'!L19/'1º Empr. Genero'!M19 -> 0.4039735099 | L20: ='1º Empr. Genero'!O19/'1º Empr. Genero'!Q19 -> 0.6377952756 | M20: ='1º Empr. Genero'!P19/'1º Empr. Genero'!Q19 -> 0.3622047244
B21: Beato | C21: ='1º Empr. Genero'!C20/'1º Empr. Genero'!E20 -> 0.6129032258 | D21: ='1º Empr. Genero'!D20/'1º Empr. Genero'!E20 -> 0.3870967742 | F21: ='1º Empr. Genero'!G20/'1º Empr. Genero'!I20 -> 0.592920354 | G21: ='1º Empr. Genero'!H20/'1º Empr. Genero'!I20 -> 0.407079646 | I21: ='1º Empr. Genero'!K20/'1º Empr. Genero'!M20 -> 0.5714285714 | J21: ='1º Empr. Genero'!L20/'1º Empr. Genero'!M20 -> 0.4285714286 | L21: ='1º Empr. Genero'!O20/'1º Empr. Genero'!Q20 -> 0.5813953488 | M21: ='1º Empr. Genero'!P20/'1º Empr. Genero'!Q20 -> 0.4186046512
B22: Belém | C22: ='1º Empr. Genero'!C21/'1º Empr. Genero'!E21 -> 0.4807692308 | D22: ='1º Empr. Genero'!D21/'1º Empr. Genero'!E21 -> 0.5192307692 | F22: ='1º Empr. Genero'!G21/'1º Empr. Genero'!I21 -> 0.4901960784 | G22: ='1º Empr. Genero'!H21/'1º Empr. Genero'!I21 -> 0.5098039216 | I22: ='1º Empr. Genero'!K21/'1º Empr. Genero'!M21 -> 0.4727272727 | J22: ='1º Empr. Genero'!L21/'1º Empr. Genero'!M21 -> 0.5272727273 | L22: ='1º Empr. Genero'!O21/'1º Empr. Genero'!Q21 -> 0.5675675676 | M22: ='1º Empr. Genero'!P21/'1º Empr. Genero'!Q21 -> 0.4324324324
B23: Benfica | C23: ='1º Empr. Genero'!C22/'1º Empr. Genero'!E22 -> 0.5925925926 | D23: ='1º Empr. Genero'!D22/'1º Empr. Genero'!E22 -> 0.4074074074 | F23: ='1º Empr. Genero'!G22/'1º Empr. Genero'!I22 -> 0.581920904 | G23: ='1º Empr. Genero'!H22/'1º Empr. Genero'!I22 -> 0.418079096 | I23: ='1º Empr. Genero'!K22/'1º Empr. Genero'!M22 -> 0.5687203791 | J23: ='1º Empr. Genero'!L22/'1º Empr. Genero'!M22 -> 0.4312796209 | L23: ='1º Empr. Genero'!O22/'1º Empr. Genero'!Q22 -> 0.6386138614 | M23: ='1º Empr. Genero'!P22/'1º Empr. Genero'!Q22 -> 0.3613861386
B24: Campo de Ourique | C24: ='1º Empr. Genero'!C23/'1º Empr. Genero'!E23 -> 0.5252525253 | D24: ='1º Empr. Genero'!D23/'1º Empr. Genero'!E23 -> 0.4747474747 | F24: ='1º Empr. Genero'!G23/'1º Empr. Genero'!I23 -> 0.4814814815 | G24: ='1º Empr. Genero'!H23/'1º Empr. Genero'!I23 -> 0.5185185185 | I24: ='1º Empr. Genero'!K23/'1º Empr. Genero'!M23 -> 0.4303797468 | J24: ='1º Empr. Genero'!L23/'1º Empr. Genero'!M23 -> 0.5696202532 | L24: ='1º Empr. Genero'!O23/'1º Empr. Genero'!Q23 -> 0.5967741935 | M24: ='1º Empr. Genero'!P23/'1º Empr. Genero'!Q23 -> 0.4032258065
B25: Campolide | C25: ='1º Empr. Genero'!C24/'1º Empr. Genero'!E24 -> 0.5873015873 | D25: ='1º Empr. Genero'!D24/'1º Empr. Genero'!E24 -> 0.4126984127 | F25: ='1º Empr. Genero'!G24/'1º Empr. Genero'!I24 -> 0.5 | G25: ='1º Empr. Genero'!H24/'1º Empr. Genero'!I24 -> 0.5 | I25: ='1º Empr. Genero'!K24/'1º Empr. Genero'!M24 -> 0.4576271186 | J25: ='1º Empr. Genero'!L24/'1º Empr. Genero'!M24 -> 0.5423728814 | L25: ='1º Empr. Genero'!O24/'1º Empr. Genero'!Q24 -> 0.5319148936 | M25: ='1º Empr. Genero'!P24/'1º Empr. Genero'!Q24 -> 0.4680851064
B26: Carnide | C26: ='1º Empr. Genero'!C25/'1º Empr. Genero'!E25 -> 0.522875817 | D26: ='1º Empr. Genero'!D25/'1º Empr. Genero'!E25 -> 0.477124183 | F26: ='1º Empr. Genero'!G25/'1º Empr. Genero'!I25 -> 0.5067567568 | G26: ='1º Empr. Genero'!H25/'1º Empr. Genero'!I25 -> 0.4932432432 | I26: ='1º Empr. Genero'!K25/'1º Empr. Genero'!M25 -> 0.5350318471 | J26: ='1º Empr. Genero'!L25/'1º Empr. Genero'!M25 -> 0.4649681529 | L26: ='1º Empr. Genero'!O25/'1º Empr. Genero'!Q25 -> 0.5416666667 | M26: ='1º Empr. Genero'!P25/'1º Empr. Genero'!Q25 -> 0.4583333333
B27: Estrela | C27: ='1º Empr. Genero'!C26/'1º Empr. Genero'!E26 -> 0.5897435897 | D27: ='1º Empr. Genero'!D26/'1º Empr. Genero'!E26 -> 0.4102564103 | F27: ='1º Empr. Genero'!G26/'1º Empr. Genero'!I26 -> 0.6166666667 | G27: ='1º Empr. Genero'!H26/'1º Empr. Genero'!I26 -> 0.3833333333 | I27: ='1º Empr. Genero'!K26/'1º Empr. Genero'!M26 -> 0.6712328767 | J27: ='1º Empr. Genero'!L26/'1º Empr. Genero'!M26 -> 0.3287671233 | L27: ='1º Empr. Genero'!O26/'1º Empr. Genero'!Q26 -> 0.4590163934 | M27: ='1º Empr. Genero'!P26/'1º Empr. Genero'!Q26 -> 0.5409836066
B28: Lumiar | C28: ='1º Empr. Genero'!C27/'1º Empr. Genero'!E27 -> 0.4744525547 | D28: ='1º Empr. Genero'!D27/'1º Empr. Genero'!E27 -> 0.5255474453 | F28: ='1º Empr. Genero'!G27/'1º Empr. Genero'!I27 -> 0.5375494071 | G28: ='1º Empr. Genero'!H27/'1º Empr. Genero'!I27 -> 0.4624505929 | I28: ='1º Empr. Genero'!K27/'1º Empr. Genero'!M27 -> 0.5366795367 | J28: ='1º Empr. Genero'!L27/'1º Empr. Genero'!M27 -> 0.4633204633 | L28: ='1º Empr. Genero'!O27/'1º Empr. Genero'!Q27 -> 0.5739910314 | M28: ='1º Empr. Genero'!P27/'1º Empr. Genero'!Q27 -> 0.4260089686
B29: Marvila | C29: ='1º Empr. Genero'!C28/'1º Empr. Genero'!E28 -> 0.4539473684 | D29: ='1º Empr. Genero'!D28/'1º Empr. Genero'!E28 -> 0.5460526316 | F29: ='1º Empr. Genero'!G28/'1º Empr. Genero'!I28 -> 0.5253807107 | G29: ='1º Empr. Genero'!H28/'1º Empr. Genero'!I28 -> 0.4746192893 | I29: ='1º Empr. Genero'!K28/'1º Empr. Genero'!M28 -> 0.5469483568 | J29: ='1º Empr. Genero'!L28/'1º Empr. Genero'!M28 -> 0.4530516432 | L29: ='1º Empr. Genero'!O28/'1º Empr. Genero'!Q28 -> 0.5541795666 | M29: ='1º Empr. Genero'!P28/'1º Empr. Genero'!Q28 -> 0.4458204334
B30: Misericórdia | C30: ='1º Empr. Genero'!C29/'1º Empr. Genero'!E29 -> 0.487804878 | D30: ='1º Empr. Genero'!D29/'1º Empr. Genero'!E29 -> 0.512195122 | F30: ='1º Empr. Genero'!G29/'1º Empr. Genero'!I29 -> 0.4225352113 | G30: ='1º Empr. Genero'!H29/'1º Empr. Genero'!I29 -> 0.5774647887 | I30: ='1º Empr. Genero'!K29/'1º Empr. Genero'!M29 -> 0.5245901639 | J30: ='1º Empr. Genero'!L29/'1º Empr. Genero'!M29 -> 0.4754098361 | L30: ='1º Empr. Genero'!O29/'1º Empr. Genero'!Q29 -> 0.5 | M30: ='1º Empr. Genero'!P29/'1º Empr. Genero'!Q29 -> 0.5
B31: Olivais | C31: ='1º Empr. Genero'!C30/'1º Empr. Genero'!E30 -> 0.3913043478 | D31: ='1º Empr. Genero'!D30/'1º Empr. Genero'!E30 -> 0.6086956522 | F31: ='1º Empr. Genero'!G30/'1º Empr. Genero'!I30 -> 0.5833333333 | G31: ='1º Empr. Genero'!H30/'1º Empr. Genero'!I30 -> 0.4166666667 | I31: ='1º Empr. Genero'!K30/'1º Empr. Genero'!M30 -> 0.5402298851 | J31: ='1º Empr. Genero'!L30/'1º Empr. Genero'!M30 -> 0.4597701149 | L31: ='1º Empr. Genero'!O30/'1º Empr. Genero'!Q30 -> 0.6145833333 | M31: ='1º Empr. Genero'!P30/'1º Empr. Genero'!Q30 -> 0.3854166667
B32: Parque das Nações | C32: ='1º Empr. Genero'!C31/'1º Empr. Genero'!E31 -> 0.4891304348 | D32: ='1º Empr. Genero'!D31/'1º Empr. Genero'!E31 -> 0.5108695652 | F32: ='1º Empr. Genero'!G31/'1º Empr. Genero'!I31 -> 0.5243902439 | G32: ='1º Empr. Genero'!H31/'1º Empr. Genero'!I31 -> 0.4756097561 | I32: ='1º Empr. Genero'!K31/'1º Empr. Genero'!M31 -> 0.540192926 | J32: ='1º Empr. Genero'!L31/'1º Empr. Genero'!M31 -> 0.459807074 | L32: ='1º Empr. Genero'!O31/'1º Empr. Genero'!Q31 -> 0.5508474576 | M32: ='1º Empr. Genero'!P31/'1º Empr. Genero'!Q31 -> 0.4491525424
B33: Penha de França | C33: ='1º Empr. Genero'!C32/'1º Empr. Genero'!E32 -> 0.4444444444 | D33: ='1º Empr. Genero'!D32/'1º Empr. Genero'!E32 -> 0.5555555556 | F33: ='1º Empr. Genero'!G32/'1º Empr. Genero'!I32 -> 0.4680851064 | G33: ='1º Empr. Genero'!H32/'1º Empr. Genero'!I32 -> 0.5319148936 | I33: ='1º Empr. Genero'!K32/'1º Empr. Genero'!M32 -> 0.4928571429 | J33: ='1º Empr. Genero'!L32/'1º Empr. Genero'!M32 -> 0.5071428571 | L33: ='1º Empr. Genero'!O32/'1º Empr. Genero'!Q32 -> 0.5648854962 | M33: ='1º Empr. Genero'!P32/'1º Empr. Genero'!Q32 -> 0.4351145038
B34: Santa Clara | C34: ='1º Empr. Genero'!C33/'1º Empr. Genero'!E33 -> 0.4292929293 | D34: ='1º Empr. Genero'!D33/'1º Empr. Genero'!E33 -> 0.5707070707 | F34: ='1º Empr. Genero'!G33/'1º Empr. Genero'!I33 -> 0.5846560847 | G34: ='1º Empr. Genero'!H33/'1º Empr. Genero'!I33 -> 0.4153439153 | I34: ='1º Empr. Genero'!K33/'1º Empr. Genero'!M33 -> 0.5965346535 | J34: ='1º Empr. Genero'!L33/'1º Empr. Genero'!M33 -> 0.4034653465 | L34: ='1º Empr. Genero'!O33/'1º Empr. Genero'!Q33 -> 0.5882352941 | M34: ='1º Empr. Genero'!P33/'1º Empr. Genero'!Q33 -> 0.4117647059
B35: Santa Maria Maior | C35: ='1º Empr. Genero'!C34/'1º Empr. Genero'!E34 -> 0.4545454545 | D35: ='1º Empr. Genero'!D34/'1º Empr. Genero'!E34 -> 0.5454545455 | F35: ='1º Empr. Genero'!G34/'1º Empr. Genero'!I34 -> 0.5795454545 | G35: ='1º Empr. Genero'!H34/'1º Empr. Genero'!I34 -> 0.4204545455 | I35: ='1º Empr. Genero'!K34/'1º Empr. Genero'!M34 -> 0.6229508197 | J35: ='1º Empr. Genero'!L34/'1º Empr. Genero'!M34 -> 0.3770491803 | L35: ='1º Empr. Genero'!O34/'1º Empr. Genero'!Q34 -> 0.5740740741 | M35: ='1º Empr. Genero'!P34/'1º Empr. Genero'!Q34 -> 0.4259259259
B36: Santo António | C36: ='1º Empr. Genero'!C35/'1º Empr. Genero'!E35 -> 0.4444444444 | D36: ='1º Empr. Genero'!D35/'1º Empr. Genero'!E35 -> 0.5555555556 | F36: ='1º Empr. Genero'!G35/'1º Empr. Genero'!I35 -> 0.6811594203 | G36: ='1º Empr. Genero'!H35/'1º Empr. Genero'!I35 -> 0.3188405797 | I36: ='1º Empr. Genero'!K35/'1º Empr. Genero'!M35 -> 0.6571428571 | J36: ='1º Empr. Genero'!L35/'1º Empr. Genero'!M35 -> 0.3428571429 | L36: ='1º Empr. Genero'!O35/'1º Empr. Genero'!Q35 -> 0.7358490566 | M36: ='1º Empr. Genero'!P35/'1º Empr. Genero'!Q35 -> 0.2641509434
B37: São Domingos de Benfica | C37: ='1º Empr. Genero'!C36/'1º Empr. Genero'!E36 -> 0.4676258993 | D37: ='1º Empr. Genero'!D36/'1º Empr. Genero'!E36 -> 0.5323741007 | F37: ='1º Empr. Genero'!G36/'1º Empr. Genero'!I36 -> 0.5384615385 | G37: ='1º Empr. Genero'!H36/'1º Empr. Genero'!I36 -> 0.4615384615 | I37: ='1º Empr. Genero'!K36/'1º Empr. Genero'!M36 -> 0.5454545455 | J37: ='1º Empr. Genero'!L36/'1º Empr. Genero'!M36 -> 0.4545454545 | L37: ='1º Empr. Genero'!O36/'1º Empr. Genero'!Q36 -> 0.5514705882 | M37: ='1º Empr. Genero'!P36/'1º Empr. Genero'!Q36 -> 0.4485294118
B38: São Vicente | C38: ='1º Empr. Genero'!C37/'1º Empr. Genero'!E37 -> 0.4326923077 | D38: ='1º Empr. Genero'!D37/'1º Empr. Genero'!E37 -> 0.5673076923 | F38: ='1º Empr. Genero'!G37/'1º Empr. Genero'!I37 -> 0.5921052632 | G38: ='1º Empr. Genero'!H37/'1º Empr. Genero'!I37 -> 0.4078947368 | I38: ='1º Empr. Genero'!K37/'1º Empr. Genero'!M37 -> 0.5384615385 | J38: ='1º Empr. Genero'!L37/'1º Empr. Genero'!M37 -> 0.4615384615 | L38: ='1º Empr. Genero'!O37/'1º Empr. Genero'!Q37 -> 0.5873015873 | M38: ='1º Empr. Genero'!P37/'1º Empr. Genero'!Q37 -> 0.4126984127
B39: Freg. Não Codificada | C39: ='1º Empr. Genero'!C38/'1º Empr. Genero'!E38 -> 0.3333333333 | D39: ='1º Empr. Genero'!D38/'1º Empr. Genero'!E38 -> 0.6666666667 | F39: ='1º Empr. Genero'!G38/'1º Empr. Genero'!I38 -> 0.8 | G39: ='1º Empr. Genero'!H38/'1º Empr. Genero'!I38 -> 0.2 | I39: ='1º Empr. Genero'!K38/'1º Empr. Genero'!M38 -> 0.5581331878 | J39: ='1º Empr. Genero'!L38/'1º Empr. Genero'!M38 -> 0.4418668122 | L39: ='1º Empr. Genero'!O38/'1º Empr. Genero'!Q38 -> 0.25 | M39: ='1º Empr. Genero'!P38/'1º Empr. Genero'!Q38 -> 0.75
B41: Fonte: Instituto de Emprego e Formação Profissional
B42: Cálculos: OLCPL
B43: Notas n.d.: não disponível (para valores =< 5, por razões de confidencialidade dados não disponibilizados pela fonte)

Sheet 1º Emprego idades
A5: Q.15 | B5: Número de desempregados 1º emprego inscritos Centros de Emprego, idade 2014
C7: Número de desempregados 1º emprego inscritos Centros de Emprego, idade
C8: 1º TRIMESTRE | I8: 2º TRIMESTRE | O8: 3º TRIMESTRE | U8: 4º TRIMESTRE
B9: Unidade: Nº | C9: < 25 Anos | D9: 25 - 34 Anos | E9: 35 - 54 Anos | F9: 55 Anos e + | G9: Total | I9: < 25 Anos | J9: 25 - 34 Anos | K9: 35 - 54 Anos | L9: 55 Anos e + | M9: Total | O9: < 25 Anos | P9: 25 - 34 Anos | Q9: 35 - 54 Anos | R9: 55 Anos e + | S9: Total | U9: < 25 Anos | V9: 25 - 34 Anos | W9: 35 - 54 Anos | X9: 55 Anos e + | Y9: Total
B10: Portugal Continental | C10: 47418 | D10: 16264 | E10: 4454 | F10: 964 | G10: =SUM(C10:F10) -> 69100 | I10: 37413 | J10: 13927 | K10: 4299 | L10: 955 | M10: 56594 | O10: 45389 | P10: 14816 | Q10: 4362 | R10: 985 | S10: 65552 | U10: 40594 | V10: 14205 | W10: 4265 | X10: 977 | Y10: 60041
B11: AML | C11: 9342 | D11: 3681 | E11: 991 | F11: 156 | G11: 14170 | I11: 7394 | J11: 3237 | K11: 1001 | L11: 157 | M11: 11789 | O11: 8627 | P11: 3392 | Q11: 1032 | R11: 164 | S11: 13215 | U11: 7530 | V11: 3230 | W11: 1015 | X11: 164 | Y11: 11939
B12: Distrito de Lisboa | C12: 7255 | D12: 2897 | E12: 733 | F12: 102 | G12: 10987 | I12: 5722 | J12: 2558 | K12: 747 | L12: 112 | M12: =SUM(I12:L12) -> 9139 | O12: 6626 | P12: 2641 | Q12: 777 | R12: 120 | S12: 10164 | U12: 5698 | V12: 2467 | W12: 759 | X12: 116 | Y12: =SUM(U12:X12) -> 9040
B13: Concelho de Lisboa | C13: 2256 | D13: 1315 | E13: 420 | F13: 53 | G13: 4044 | I13: =SUM(I14:I38) -> 1877 | J13: =SUM(J14:J38) -> 1166 | K13: 425 | L13: 58 | M13: 3526 | O13: 1966 | P13: 1192 | Q13: 447 | R13: 59 | S13: 3664 | U13: 1582 | V13: 1050 | W13: 412 | X13: 59 | Y13: 3103
B14: Ajuda | C14: 62 | D14: 49 | E14: 25 | F14: 1 | G14: 137 | I14: 67 | J14: 47 | K14: 30 | L14: 2 | M14: 146 | O14: 72 | P14: 48 | Q14: 30 | R14: 4 | S14: =SUM(O14:R14) -> 154 | U14: 51 | V14: 39 | W14: 30 | X14: 4 | Y14: 124
B15: Alcântara | C15: 53 | D15: 23 | E15: 5 | F15: - | G15: 81 | I15: 36 | J15: 22 | K15: 3 | L15: - | M15: 61 | O15: 32 | P15: 22 | Q15: 4 | R15: - | S15: =SUM(O15:R15) -> 58 | U15: 27 | V15: 21 | W15: 3 | X15: - | Y15: 51
B16: Alvalade | C16: 110 | D16: 79 | E16: 20 | F16: 2 | G16: 211 | I16: 68 | J16: 65 | K16: 23 | L16: 2 | M16: 158 | O16: 68 | P16: 70 | Q16: 23 | R16: 3 | S16: 164 | U16: 64 | V16: 60 | W16: 17 | X16: 3 | Y16: 144
B17: Areeiro | C17: 83 | D17: 49 | E17: 13 | F17: 5 | G17: 150 | I17: 64 | J17: 45 | K17: 16 | L17: 4 | M17: 129 | O17: 65 | P17: 53 | Q17: 15 | R17: 2 | S17: 135 | U17: 58 | V17: 38 | W17: 12 | X17: 2 | Y17: 110
B18: Arroios | C18: 135 | D18: 82 | E18: 18 | F18: 1 | G18: 236 | I18: 94 | J18: 84 | K18: 16 | L18: 2 | M18: 196 | O18: 104 | P18: 81 | Q18: 22 | R18: 3 | S18: 210 | U18: 80 | V18: 69 | W18: 15 | X18: 1 | Y18: 165
B19: Avenidas Novas | C19: 95 | D19: 71 | E19: 22 | F19: 4 | G19: 192 | I19: 73 | J19: 52 | K19: 19 | L19: 3 | M19: 147 | O19: 81 | P19: 48 | Q19: 20 | R19: 2 | S19: 151 | U19: 65 | V19: 44 | W19: 16 | X19: 2 | Y19: 127
B20: Beato | C20: 82 | D20: 31 | E20: 10 | F20: 1 | G20: 124 | I20: 64 | J20: 32 | K20: 16 | L20: 1 | M20: 113 | O20: 53 | P20: 28 | Q20: 16 | R20: 1 | S20: 98 | U20: 52 | V20: 21 | W20: 12 | X20: 1 | Y20: 86
B21: Belém | C21: 32 | D21: 19 | E21: 1 | F21: - | G21: 52 | I21: 31 | J21: 19 | K21: 1 | L21: - | M21: 51 | O21: 35 | P21: 19 | Q21: 1 | R21: - | S21: 55 | U21: 24 | V21: 13 | W21: - | X21: - | Y21: 37
B22: Benfica | C22: 131 | D22: 87 | E22: 22 | F22: 3 | G22: 243 | I22: 97 | J22: 59 | K22: 19 | L22: 2 | M22: 177 | O22: 117 | P22: 71 | Q22: 21 | R22: 2 | S22: 211 | U22: 111 | V22: 65 | W22: 23 | X22: 3 | Y22: 202
B23: Campo de Ourique | C23: 63 | D23: 33 | E23: 3 | F23: - | G23: 99 | I23: 50 | J23: 29 | K23: 2 | L23: - | M23: 81 | O23: 53 | P23: 24 | Q23: 2 | R23: - | S23: 79 | U23: 34 | V23: 27 | W23: 1 | X23: - | Y23: 62
B24: Campolide | C24: 41 | D24: 15 | E24: 5 | F24: 2 | G24: 63 | I24: 37 | J24: 10 | K24: 5 | L24: 2 | M24: 54 | O24: 43 | P24: 10 | Q24: 4 | R24: 2 | S24: 59 | U24: 30 | V24: 11 | W24: 4 | X24: 2 | Y24: 47
B25: Carnide | C25: 95 | D25: 39 | E25: 17 | F25: 2 | G25: 153 | I25: 89 | J25: 37 | K25: 18 | L25: 4 | M25: 148 | O25: 94 | P25: 39 | Q25: 19 | R25: 5 | S25: 157 | U25: 82 | V25: 38 | W25: 20 | X25: 4 | Y25: 144
B26: Estrela | C26: 44 | D26: 29 | E26: 5 | F26: - | G26: 78 | I26: 39 | J26: 17 | K26: 4 | L26: - | M26: 60 | O26: 51 | P26: 21 | Q26: 1 | R26: - | S26: 73 | U26: 35 | V26: 24 | W26: 2 | X26: - | Y26: 61
B27: Lumiar | C27: 149 | D27: 111 | E27: 13 | F27: 1 | G27: 274 | I27: 135 | J27: 101 | K27: 16 | L27: 1 | M27: 253 | O27: 149 | P27: 90 | Q27: 19 | R27: 1 | S27: 259 | U27: 109 | V27: 91 | W27: 21 | X27: 2 | Y27: 223
B28: Marvila | C28: 275 | D28: 118 | E28: 54 | F28: 9 | G28: 456 | I28: 230 | J28: 104 | K28: 49 | L28: 11 | M28: 394 | O28: 233 | P28: 123 | Q28: 57 | R28: 13 | S28: 426 | U28: 159 | V28: 96 | W28: 56 | X28: 12 | Y28: 323
B29: Misericórdia | C29: 48 | D29: 26 | E29: 7 | F29: 1 | G29: 82 | I29: 38 | J29: 27 | K29: 5 | L29: 1 | M29: 71 | O29: 33 | P29: 21 | Q29: 6 | R29: 1 | S29: 61 | U29: 27 | V29: 13 | W29: 5 | X29: 1 | Y29: 46
B30: Olivais | C30: 33 | D30: 12 | E30: 1 | F30: - | G30: 46 | I30: 51 | J30: 14 | K30: 5 | L30: 2 | M30: 72 | O30: 62 | P30: 18 | Q30: 6 | R30: 1 | S30: 87 | U30: 57 | V30: 30 | W30: 6 | X30: 3 | Y30: 96
B31: Parque das Nações | C31: 195 | D31: 111 | E31: 54 | F31: 8 | G31: 368 | I31: 158 | J31: 103 | K31: 60 | L31: 7 | M31: 328 | O31: 139 | P31: 100 | Q31: 64 | R31: 8 | S31: 311 | U31: 98 | V31: 81 | W31: 50 | X31: 7 | Y31: 236
B32: Penha de França | C32: 95 | D32: 63 | E32: 13 | F32: - | G32: 171 | I32: 84 | J32: 47 | K32: 10 | L32: - | M32: 141 | O32: 89 | P32: 39 | Q32: 12 | R32: - | S32: 140 | U32: 74 | V32: 41 | W32: 16 | X32: - | Y32: 131
B33: Santa Clara | C33: 189 | D33: 126 | E33: 73 | F33: 8 | G33: 396 | I33: 173 | J33: 122 | K33: 73 | L33: 10 | M33: 378 | O33: 186 | P33: 132 | Q33: 78 | R33: 8 | S33: 404 | U33: 169 | V33: 124 | W33: 73 | X33: 8 | Y33: 374
B34: Santa Maria Maior | C34: 50 | D34: 32 | E34: 17 | F34: - | G34: 99 | I34: 41 | J34: 34 | K34: 13 | L34: - | M34: 88 | O34: 27 | P34: 24 | Q34: 10 | R34: - | S34: 61 | U34: 32 | V34: 12 | W34: 10 | X34: - | Y34: 54
B35: Santo António | C35: 36 | D35: 34 | E35: 8 | F35: 3 | G35: 81 | I35: 36 | J35: 23 | K35: 8 | L35: 2 | M35: 69 | O35: 37 | P35: 25 | Q35: 7 | R35: 1 | S35: 70 | U35: 28 | V35: 16 | W35: 8 | X35: 1 | Y35: 53
B36: São Domingos de Benfica | C36: 85 | D36: 43 | E36: 10 | F36: 1 | G36: 139 | I36: 73 | J36: 47 | K36: 9 | L36: 1 | M36: 130 | O36: 86 | P36: 60 | Q36: 7 | R36: 1 | S36: 154 | U36: 72 | V36: 54 | W36: 8 | X36: 2 | Y36: 136
B37: São Vicente | C37: 70 | D37: 29 | E37: 4 | F37: 1 | G37: 104 | I37: 47 | J37: 23 | K37: 5 | L37: 1 | M37: 76 | O37: 51 | P37: 23 | Q37: 3 | R37: 1 | S37: 78 | U37: 37 | V37: 21 | W37: 4 | X37: 1 | Y37: 63
B38: Freg. Não Codificada | C38: 5 | D38: 4 | E38: - | F38: - | G38: 9 | I38: 2 | J38: 3 | K38: - | L38: - | M38: 5 | O38: 6 | P38: 3 | Q38: - | R38: - | S38: 9 | U38: 7 | V38: 1 | W38: - | X38: - | Y38: 8
B40: Fonte: Instituto de Emprego e Formação Profissional
B41: Cálculos: OLCPL
B42: Notas n.d.: não disponível (para valores =< 5, por razões de confidencialidade dados não disponibilizados pela fonte)

Sheet 1º emprego idades %
A5: Q.16 | B5: Desempregados 1º emprego inscritos nos Centros de Emprego, idade, 2014 (%)
C7: Desempregados inscritos nos Centros de Emprego, idades
C8: %
B9: Unidade: Nº e % | C9: 1º TRIMESTRE | H9: 2º TRIMESTRE | M9: 3º TRIMESTRE | R9: 4º TRIMESTRE
C10: < 25 Anos | D10: 25 - 34 Anos | E10: 35 - 54 Anos | F10: 55 Anos e + | H10: < 25 Anos | I10: 25 - 34 Anos | J10: 35 - 54 Anos | K10: 55 Anos e + | M10: < 25 Anos | N10: 25 - 34 Anos | O10: 35 - 54 Anos | P10: 55 Anos e + | R10: < 25 Anos | S10: 25 - 34 Anos | T10: 35 - 54 Anos | U10: 55 Anos e +
B11: Portugal Continental | C11: ='1º Emprego idades'!C10/'1º Emprego idades'!G10 -> 0.6862228654 | D11: ='1º Emprego idades'!D10/'1º Emprego idades'!G10 -> 0.2353690304 | E11: ='1º Emprego idades'!E10/'1º Emprego idades'!G10 -> 0.06445730825 | F11: ='1º Emprego idades'!F10/'1º Emprego idades'!G10 -> 0.01395079595 | H11: ='1º Emprego idades'!I10/'1º Emprego idades'!M10 -> 0.661077146 | I11: ='1º Emprego idades'!J10/'1º Emprego idades'!M10 -> 0.2460861575 | J11: ='1º Emprego idades'!K10/'1º Emprego idades'!M10 -> 0.07596211613 | K11: ='1º Emprego idades'!L10/'1º Emprego idades'!M10 -> 0.01687458034 | M11: ='1º Emprego idades'!O10/'1º Emprego idades'!S10 -> 0.6924121308 | N11: ='1º Emprego idades'!P10/'1º Emprego idades'!S10 -> 0.2260190383 | O11: ='1º Emprego idades'!Q10/'1º Emprego idades'!S10 -> 0.06654259214 | P11: ='1º Emprego idades'!R10/'1º Emprego idades'!S10 -> 0.01502623871 | R11: ='1º Emprego idades'!U10/'1º Emprego idades'!Y10 -> 0.6761046618 | S11: ='1º Emprego idades'!V10/'1º Emprego idades'!Y10 -> 0.2365883313 | T11: ='1º Emprego idades'!W10/'1º Emprego idades'!Y10 -> 0.07103479289 | U11: ='1º Emprego idades'!X10/'1º Emprego idades'!Y10 -> 0.01627221399
B12: AML | C12: ='1º Emprego idades'!C11/'1º Emprego idades'!G11 -> 0.6592801694 | D12: ='1º Emprego idades'!D11/'1º Emprego idades'!G11 -> 0.2597741708 | E12: ='1º Emprego idades'!E11/'1º Emprego idades'!G11 -> 0.06993648553 | F12: ='1º Emprego idades'!F11/'1º Emprego idades'!G11 -> 0.01100917431 | H12: ='1º Emprego idades'!I11/'1º Emprego idades'!M11 -> 0.6271948426 | I12: ='1º Emprego idades'!J11/'1º Emprego idades'!M11 -> 0.2745779964 | J12: ='1º Emprego idades'!K11/'1º Emprego idades'!M11 -> 0.08490966155 | K12: ='1º Emprego idades'!L11/'1º Emprego idades'!M11 -> 0.01331749936 | M12: ='1º Emprego idades'!O11/'1º Emprego idades'!S11 -> 0.6528187666 | N12: ='1º Emprego idades'!P11/'1º Emprego idades'!S11 -> 0.2566780174 | O12: ='1º Emprego idades'!Q11/'1º Emprego idades'!S11 -> 0.07809307605 | P12: ='1º Emprego idades'!R11/'1º Emprego idades'!S11 -> 0.01241013999 | R12: ='1º Emprego idades'!U11/'1º Emprego idades'!Y11 -> 0.6307060893 | S12: ='1º Emprego idades'!V11/'1º Emprego idades'!Y11 -> 0.2705419214 | T12: ='1º Emprego idades'!W11/'1º Emprego idades'!Y11 -> 0.08501549544 | U12: ='1º Emprego idades'!X11/'1º Emprego idades'!Y11 -> 0.01373649384
